Workbook

Sheet NewConst
B1: New Construction - Benchmark and NCTH
C3: Last modified December 17, 2010. This sheet contains the NCTH inputs (orange cells), the corresponding B10 Benchmark specifications, and specifications for modeling the NCTH.
B5: Characteristics | E5: B10 Benchmark | F5: New Construction Test House
A6: Default | C6: Building Site and Geometry | Q6: Used for cell validation:
A7: Denver Intl AP, CO | C7: Site | E7: Denver Intl Ap, CO | Q7: YES | R7: NO
C8: Climate Zone (IECC 2009, Building America) | E8: =Locations!$CZ$2 -> 5B | F8: =", " & Locations!$CY$2 -> , Cold | Q8: 0 | R8: 1 | S8: 2 | T8: 3
C9: Annual Heating Degree Days | D9: deg-days | E9: =Locations!L2 -> 5632.2 | Q9: Gas | R9: Electric | S9: None or Other
C10: Annual Cooling Degree Days | D10: deg-days | E10: =Locations!M2 -> 952.2 | Q10: Slab on grade | R10: Basement | S10: Crawlspace | T10: Exposed floor
A11: 0 | C11: Home Type (0=Single Family Detached, 1=Single Family Attached, 2=Multi-family) | E11: =HomeType -> 0 | F11: 0 | Q11: DOE2 | R11: TRNSYS
A12: 1800 | C12: Finished Floor Area of unit, Above Grade | D12: ft² | E12: =FFA -> 2296 | F12: 2296 | G12: =IF(HomeType=2,"for the unit being modeled, not entire building","") -> 
A13: 2 | C13: Num Floors of unit (Above Grade) | D13: # | E13: =F13 -> 2 | F13: 2 | G13: =IF(HomeType=2,"for the unit being modeled, not entire building","") ->  | Q13: Gas | R13: Electric | S13: NA
A14: 1 | C14: Building Aspect Ratio (Width/Depth) | D14: ratio | E14: 1 | F14: 1 | Q14: Option | R14: BAB | S14: NCTH
A15: 1 | C15: Foundation Type (0=slab, 1=basement, 2=crawlspace, 3=exposed floor) | D15: 0/1/2/3 | E15: =FndType&" - "&HLOOKUP(FndType,$Q$8:$T$10,3) -> 1 - Basement | F15: 1
A16: 900 | C16: Basement Floor Area | D16: sq ft | E16: 900 | F16: 900 | Q16: Vented | R16: Unvented
A17: NO | C17: Basement Finished? | D17: YES/NO | E17: NO | F17: NO | Q17: 13 | R17: 14 | S17: 15 | T17: 16 | U17: 17 | V17: 18 | W17: 19 | X17: 20 | Y17: 21 | Z17: NA
C18: Conditioned Floor Area(incl. conditioned basement) | D18: ft² | E18: =FFA+IF(NewConst!F15=1,IF(OR(NewConst!F21="yes", NewConst!F22="yes",NewConst!F23="yes"),NewConst!F16,0),0) -> 2296 | F18: =E18 -> 2296 | Q18: End Unit | R18: Middle Unit
C19: Total Floor Area (conditioned+unconditioned) | D19: ft² | E19: =IntCalc!E8 -> 3196 | F19: =E19 -> 3196 | Q19: Top | R19: Middle Unit | S19: Bottom
A20: 2 | C20: Foundation Height Above Grade | D20: ft | E20: 2 | F20: 2
A21: NO | C21: Heated Slab? | D21: YES/NO | E21: NO | F21: NO
A22: NO | C22: Basement or Crawlspace Walls Insulated? | D22: YES/NO | E22: NO | F22: NO
A23: NO | C23: Supply Register(s) in Basement or Crawlspace? | D23: YES/NO | E23: NO | F23: NO
A24: Vented | C24: Crawlspace Vented or Unvented? | D24: Vented/Unvented | E24: Vented | F24: Vented
A25: Vented | C25: Attic Vented or Unvented | D25: Vented/Unvented | E25: Vented | F25: Vented
A26: 3 | C26: Number of Bedrooms (6 maximum) | D26: # | E26: =F26 -> 3 | F26: 3
A27: 2 | C27: Number of Bathrooms (0.5 increments, 1 - minimum, 3.5 - maximum) | D27: # | E27: 2 | F27: 2
A28: 2 | C28: Garage Type (0 = none, 1 = 1car, 2 = 2 car) | D28: 0/1/2 | E28: 2 | F28: 2
A29: 20 | C29: Garage Depth | D29: ft | E29: 20 | F29: 20
A30: 10 | C30: Garage Protrusion | D30: ft | E30: 10 | F30: 10
A31: 400 | C31: Total Garage Floor Area | D31: sq ft | E31: 400 | F31: 400
A32: 8 | C32: Basement Wall Height | D32: ft | E32: 8 | F32: 8
A33: 4 | C33: Crawlspace Wall Height | D33: ft | E33: 4 | F33: 4
A34: 8 | C34: Floor-to-floor Height | D34: ft | E34: 8 | F34: 8
A35: 0 | B35: mf | C35: Length of all common/party walls (assumed to be same for all floors and foundation) | D35: ft | E35: =F35 -> 0 | F35: 0
A36: 0 | B36: mf | C36: Length of exterior walls adjacent to exterior hallways | D36: ft | E36: 0 | F36: 0
A37: 1 | B37: mf | C37: Unit location (0=ground floor, 1=middle floor(s), 2=top floor, 3=unit occupies ground and top floors) | D37: 0/1/2/3 | E37: =F37 -> 1 | F37: 1
A38: 200 | B38: mf | C38: Number of units in multi-family complex | D38: # | E38: =F38 -> 200 | F38: 200
A39: 50 | B39: mf | C39: Number of garages in multi-family complex | D39: # | E39: 50 | F39: 50
B40: mf | C40: Multi-family Common Area Finished Floor Area
A41: 250 | B41: mf | C41: Central Laundry | D41: sq ft | E41: 250 | F41: 250
A42: 1200 | B42: mf | C42: Office | D42: sq ft | E42: 1200 | F42: 1200
A43: 3000 | B43: mf | C43: Indoor Corridor | D43: sq ft | E43: 3000 | F43: 3000
A44: 225 | B44: mf | C44: Workout Room | D44: sq ft | E44: 225 | F44: 225
A45: 50 | B45: mf | C45: Central Restroom | D45: sq ft | E45: 50 | F45: 50
A46: 400 | B46: mf | C46: Electrical Equipment Room | D46: sq ft | E46: =F46 -> 200 | F46: 200
A47: 400 | B47: mf | C47: Multi-purpose Room | D47: sq ft | E47: 400 | F47: 400
A48: 0 | B48: mf | C48: Number of Elevators | D48: # | E48: 1 | F48: 1
C49: Window Area and Orientation
A50: 2 | C50: Solar orientation neutrality option (Option 1 or Option 2) | D50: 1 or 2 | E50: 1 | G50: =IF($E$50=1,"Note: Four rotations cases for the Benchmark must be modeled.","") -> Note: Four rotations cases for the Benchmark must be modeled.
A51: 100 | C51: Window area on south side | D51: sqft | E51: =IF($E$50=1,$F51/$F$55*$E$55,IF($E$50=2,$E$55/4,"error")) -> 135.4757353 | F51: 150
A52: 100 | C52: Window area on west side | D52: sqft | E52: =IF($E$50=1,$F52/$F$55*$E$55,IF($E$50=2,$E$55/4,"error")) -> 45.15857843 | F52: 50
A53: 100 | C53: Window area on north side | D53: sqft | E53: =IF($E$50=1,$F53/$F$55*$E$55,IF($E$50=2,$E$55/4,"error")) -> 90.31715686 | F53: 100
A54: 100 | C54: Window area on east side | D54: sqft | E54: =IF($E$50=1,$F54/$F$55*$E$55,IF($E$50=2,$E$55/4,"error")) -> 90.31715686 | F54: 100
A55: 400 | C55: Total Window area | D55: sqft | E55: =IF(HomeType=2,0.3,0.15)*(A_ExWaLiv*E13+A_ExWaBsm) -> 361.2686274 | F55: =SUM(F51:F54) -> 400
A56: user specified | C56: Percentage of Window Area on each façade that can be opened for nat. vent. | D56: % | E56: 33
C57: Building Envelope Characteristics
B58: cmt | C58: Attic floor/Ceiling R-value | D58: hr-F-ft²/Btu | E58: =VLOOKUP(ClimateZone,LookupTables!$H$5:$Q$24,2) -> 38
B59: cmt | C59: Framing Factor (below unconditioned space) | D59: % | E59: 0.11
B60: cmt | C60: Frame wall cavity R-value | D60: hr-F-ft²/Btu | E60: =IF(HomeType=0,VLOOKUP(ClimateZone,LookupTables!$H$5:$Q$24,3),VLOOKUP(ClimateZone,LookupTables!$H$5:$Q$24,5)) -> 13
B61: cmt | C61: Insulating sheathing R-value | D61: hr-F-ft²/Btu | E61: =IF(HomeType=0,VLOOKUP(ClimateZone,LookupTables!$H$5:$Q$24,4),0) -> 5
B62: cmt | C62: Wall Framing | D62: 2x4 or 2x6 | E62: =IF(E60>=19,"2x6","2x4")&", 16"" o.c" -> 2x4, 16" o.c
B63: cmt | C63: Wall Framing Factor | D63: % | E63: 0.23
B64: cmt | C64: Stud R-value | D64: hr-F-ft²/Btu | E64: =IF(NewConst!$E$62="2x4",4.38,6.88) -> 6.88
C65: Remaining wall assembly components
B66: cmt | C66: 1/2" drywall R-value | D66: hr-F-ft²/Btu | E66: 0.45
B67: cmt | C67: 1/2" plywood R-value | D67: hr-F-ft²/Btu | E67: 0.62
B68: cmt | C68: Stucco R-value | D68: hr-F-ft²/Btu | E68: 0.2
B69: cmt | C69: Floor over unconditioned space R-value | D69: hr-F-ft²/Btu | E69: =VLOOKUP(ClimateZone,LookupTables!$H$5:$Q$24,6) -> 30
B70: cmt | C70: Basement wall R-value (continuous insulation) | D70: hr-F-ft²/Btu | E70: =VLOOKUP(ClimateZone,LookupTables!$H$5:$Q$24,7) -> 10
B71: cmt | C71: Crawlspace wall R-value (continuous insulation) | D71: hr-F-ft²/Btu | E71: =VLOOKUP(ClimateZone,LookupTables!$H$5:$Q$24,8) -> 10
B72: cmt | C72: Floor/basement ceiling Framing Factor | D72: % | E72: 0.13
B73: cmt | C73: Slab insulation R-value (continuous insulation) | E73: =VLOOKUP(ClimateZone,LookupTables!$H$5:$Q$24,9) -> 10
B74: cmt | C74: Slab insulation depth | D74: ft | E74: =VLOOKUP(ClimateZone,LookupTables!$H$5:$Q$24,10) -> 2
B75: cmt | C75: Window U-value (entire assembly) | D75: Btu/hr-F-ft² | E75: =VLOOKUP(ClimateZone,LookupTables!$H$5:$T$24,12) -> 0.35
B76: cmt | C76: Window SHGC (entire assembly) | E76: =VLOOKUP(ClimateZone,LookupTables!$H$5:$T$24,13) -> 0.35
B77: cmt | C77: Door U-value (air to air) | D77: Btu/hr-F-ft² | E77: 0.2
B78: cmt | C78: Solar Absorptivity, opaque exterior wall | E78: 0.5
B79: cmt | C79: Solar Absorptivity, opaque roof | E79: 0.75
B80: cmt | C80: Total Emittance, exterior walls/roof | E80: 0.9
B81: cmt | C81: Fraction of Floor Area - Carpet | D81: % | E81: 80
B82: cmt | C82: Carpet R-value | D82: hr-F-ft²/Btu | E82: 2
B83: cmt | C83: Unfinished attic - ventilation opening area | D83: sqft | E83: 1 ft² per 300 ft² ceiling area
C84: Space Conditioning
A85: Gas or oil fired furnace | C85: Heating Equipment Type | E85: =VLOOKUP(NewConst!F85,LookupTables!B4:F15,3,FALSE) -> 78% AFUE gas furnace | F85: Gas or oil fired furnace
B86: cmt | C86: ="Heating System Efficiency"&" "&IF(E86<1,"(AFUE)","(HSPF)") -> Heating System Efficiency (AFUE) | E86: =VLOOKUP(NewConst!F85,LookupTables!B4:F15,5,FALSE) -> 0.78
B87: cmt | C87: Heating Fuel Type | E87: =VLOOKUP(NewConst!F85,LookupTables!B4:F15,4,FALSE) -> Gas
A88: YES | C88: Does the NCTH have a duct system for heating? | D88: YES/NO | F88: YES
A89: Split system central (or mini-split) A/C | C89: Cooling Equipment Type | E89: =IF(NewConst!F85="Other Electric or No System",LookupTables!D17,VLOOKUP(NewConst!F89,LookupTables!B16:F23,3,FALSE)) -> 13 SEER air conditioner | F89: Split system central (or mini-split) A/C | G89: =IF(F89="No cooling system",IF(NewConst!F88="YES","If cooling load is non-zero, model the NCTH with a 13 SEER split system","If cooling load is non-zero, model the NCTH with a 9 EER room A/C"),"") -> 
A90: 13 | C90: Cooling Equipment SEER rating (for DX cooling systems) | F90: 13 | G90: (as installed
E91: =IF(NewConst!F85="Other Electric or No System",LookupTables!F17,VLOOKUP(NewConst!F89,LookupTables!B16:F23,5,FALSE)) -> 13 | F91: =IF(F89="No cooling system",IF(NewConst!F88="YES",13,9.7229),NewConst!$F$90) -> 13 | G91: (for modeling)
C92: Cooling System Approximate EER | E92: =-0.02*E91^2+1.12*E91 -> 11.18 | F92: =IF(NewConst!$F$90="NA",NA(),-0.02*F91^2+1.12*F91) -> 11.18
B93: cmt | C93: Dehumidifier? | D93: YES/NO | E93: YES
B94: cmt | C94: Dehumidifier Energy Factor (EF) | D94: L/kWh | E94: 1.2
C95: Distribution System
B96: cmt | C96: AH Fan Efficiency | D96: W/cfm | E96: 0.364
A97: 4 | C97: Number of return registers | D97: # | E97: =Nreturns -> 4 | F97: 4
B98: cmt | C98: Supply Duct Surface Area | D98: ft² | E98: =LookupTables!AF5 -> 459.2
B99: cmt | C99: Return Duct Surface Area | D99: ft² | E99: =LookupTables!AF6 -> 367.36
B100: cmt | C100: Supply/return duct insulation (inside thermal envelope) | D100: hr-F-ft²/Btu | E100: =LookupTables!AF8 -> None
B101: cmt | C101: Supply duct insulation within attic | D101: hr-F-ft²/Btu | E101: =LookupTables!AF9 -> R-8
B102: cmt | C102: Supply/return duct insulation (all other locations) | D102: hr-F-ft²/Btu | E102: =LookupTables!AF10 -> R-6
B103: cmt | C103: Duct material | E103: =LookupTables!AF12 -> Sheet metal
B104: cmt | C104: Duct leakage excluding air handler (inside and outside) | E104: =LookupTables!AF13 -> 10% of air handler flow (9% supply, 1% return)
B105: cmt | C105: Air handler leakage (inside and outside) | E105: =LookupTables!AF14 -> 5% of air handler flow (1% supply, 4% return)
B106: cmt | C106: Percent of duct/air handler leakage imbalance (supply minus return) made up by outside air (OA) | D106: % | E106: =LookupTables!AF15 -> 0% OA
B107: cmt | C107: Supply duct location | E107: =LookupTables!AF18 -> 65% crawlspace, 35% above-grade conditioned space
B108: cmt | C108: Return duct and air handler location | E108: =LookupTables!AF25 -> 100% crawlspace
E109: see footnotes in House Simulation Protocols, p9
C110: Domestic Hot Water (DHW)
A111: Gas | C111: Fuel Type (gas or electric) | D111: G/E | E111: =IF(NewConst!F111="Gas","Gas",IF(NewConst!F111="Electric","Electric",NewConst!E87)) -> Gas | F111: Gas
C112: Tank Setpoint | D112: deg F | E112: 130 | F112: 130
A113: 40 | C113: Tank Nominal Volume | D113: gal | E113: =HLOOKUP(Nbath,LookupTables!$AJ$12:$AV$14,2) -> 30 | F113: 40
A114: 45 | C114: Height | D114: in | F114: 45
A115: 0.54 | C115: Energy Factor (EF) | E115: =IF(E111="Gas",0.67-(0.0019*V),IF(E111="Electric",0.97-(0.00132*V),"Fuel Type Not Defined")) -> 0.613 | F115: 0.54
A116: 0.76 | C116: Recovery Efficiency | E116: =IF(E111="Gas",0.78,IF(E111="Electric",1,"Fuel Type Not Defined")) -> 0.78 | F116: 0.76
A117: 36 | C117: Rated input power (Burner Capacity) | D117: =LookupTables!AK14 -> kBtu/h | E117: =HLOOKUP(Nbath,LookupTables!$AJ$12:$AV$14,3) -> 36 | F117: 36
C118: Tank UA | D118: Btu/hr-F | E118: =IF(E111="Gas",DHW!$K$50,IF(E111="Electric",DHW!$J$50,"Fuel Type Not Defined")) -> 11.03096171 | F118: =DHW!N50 -> 11.3264966
C119: TRNSYS Inputs
C120: Height (TRNSYS input) | D120: m | F120: =F114*2.54/100 -> 1.143
C121: Volume (TRNSYS input) | D121: m^3 | F121: =IF(F111="Electric",0.9*(F113/264.172),0.95*(F113/264.172)) -> 0.1438456763
C122: U_stdby (TRNSYS input) | D122: kJ/(h m² K) | F122: =DHW!N47*5.678*3.6 -> 12.73307259
C123: Input Capacity (TRNSYS input) | D123: kJ/hr | F123: =IF(F111="Electric",F117*3600,F117*1055) -> 37980
A124: Split system central (or mini-split) A/C | C124: Low-Flow Fixture Options | G124: =IF(F124="No cooling system",IF(NewConst!F123="YES","If cooling load is non-zero, model the NCTH with a 13 SEER split system","If cooling load is non-zero, model the NCTH with a 9 EER room A/C"),"") -> 
A125: NO | C125: Faucet aerators on all sinks? | E125: NO | F125: NO
A126: NO | B126: mf | C126: Faucet aerators on all common area sinks? | E126: NO | F126: NO
A127: NO | C127: Low-flow showerheads in all showers? | E127: NO | F127: NO
A128: Split system central (or mini-split) A/C | C128: DHW Usage
C129: Clothes washer DHW Use | D129: gal/day (hot only) | E129: =2.35+0.78*N_br -> 4.69 | F129: =E129 -> 4.69
B130: mf | C130: Common area laundry water use (hot only) | D130: gal/day (hot) | E130: =2.47*Nunits -> 494 | F130: =E130 -> 494
C131: Dishwasher DHW Use | D131: gal/day (hot only) | E131: =2.26+0.75*N_br -> 4.51 | F131: 4.51
C132: Shower - water use | D132: gal/day (hot and cold) | E132: =14+4.67*N_br -> 28.01 | F132: =E132*IF($F$127="YES",0.66,1) -> 28.01
C133: Bath - water use | D133: gal/day (hot and cold) | E133: =3.5+1.17*N_br -> 7.01 | F133: 7.01
C134: Sinks - water use | D134: gal/day (hot and cold) | E134: =12.5+4.16*N_br -> 24.98 | F134: =E134*IF($F$125="YES",0.44,1) -> 24.98
A135: 2 | B135: mf | C135: How many sinks does mutli-family common area have? (Include kitch. & bath) | D135: # | E135: 2 | F135: 2
B136: mf | C136: Office/public sink(s) water Use (hot and cold) | D136: gal/day (hot and cold) | E136: =0.028*Nunits -> 5.6 | F136: =E136*IF($F$126="YES",0.44,1) -> 5.6
C137: Shower DHW Use Sensible Gain | D137: Btu/day | E137: =741+247*N_br -> 1482 | F137: =E137*IF($F$127="YES",0.66,1) -> 1482
C138: Bath DHW Use Sensible Gain | D138: Btu/day | E138: =185+62*N_br -> 371 | F138: 371
C139: Sink DHW Use Sensible Gain | D139: Btu/day | E139: =310+103*N_br -> 619 | F139: =E139*IF($F$125="YES",0.44,1) -> 619
B140: mf | C140: Office/public sink(s) DHW Use Sensible Gain | D140: Btu/day | E140: =IF(HomeType=2, (0.69*Nunits), "N/A") -> N/A | F140: =E140*IF($F$126="YES",0.44,1) -> 
C141: Shower DHW Use Latent Gain | D141: Btu/day | E141: =703+235*N_br -> 1408 | F141: =E141*IF($F$127="YES",0.66,1) -> 1408
D142: pints/day | E142: =0.7+0.23*N_br -> 1.39 | F142: =E142*IF($F$127="YES",0.66,1) -> 1.39
C143: Bath DHW Use Latent Gain | D143: Btu/day | E143: negligible | F143: negligible
D144: pints/day | E144: negligible | F144: negligible
C145: Sink DHW Use Latent Gain | D145: Btu/day | E145: =140+47*N_br -> 281 | F145: =E145*IF($F$125="YES",0.44,1) -> 281
D146: pints/day | E146: =0.14+0.05*N_br -> 0.29 | F146: =E146*IF($F$125="YES",0.44,1) -> 0.29
B147: mf | C147: Office/public sink(s) DHW Use Latent Gain | D147: Btu/day | E147: =IF(HomeType=2, (0.314*Nunits), "N/A") -> N/A | F147: =E147*IF($F$126="YES",0.44,1) -> 
B148: mf | D148: pints/day | E148: =IF(HomeType=2, (0.000314*Nunits), "N/A") -> N/A | F148: =E148*IF($F$126="YES",0.44,1) -> 
C149: Use the DHW Event Schedule Generation Tool if necessary
C150: DHW Distribution
A151: Copper | C151: Pipe material | E151: Copper | F151: Copper | H151: Copper
A152: 0 | C152: Pipe insulation R-Value | E152: 0 | F152: 0 | H152: PEX
A153: Trunk and branch | C153: Pipe layout | E153: see comment | F153: Trunk and branch | H153: Trunk and branch | I153: Home run
A154: None | C154: Recirculation type | E154: None | F154: None | H154: Demand control
C155: Recirc Pump Energy | D155: kWh/yr | F155: =IF(NewConst!F154="Demand control",-0.13+0.72*N_br+(0.13-0.17*N_br)*NewConst!F152/2,IF(NewConst!F154="Timer control",193,0)) -> 0 | H155: Timer control
A156: Basement or interior space | C156: Primary pipe location | E156: Inside conditioned space | F156: Basement or interior space | H156: None
C157: Internal Heat Gain from distribution system | E157: see monthly profiles | F157: see monthly profiles | H157: Basement or interior space
C158: Infiltration | H158: Attic or garage
C159: Blower Door test completed? | D159: YES/NO | F159: YES (mandatory)
A160: 100 | C160: Effective Leakage Area (ELA) to the outside | D160: in2 | E160: =$E$163*CFA_total/CONVERT(1,"in","ft")^2 -> 119.02464 | F160: 100
C161: Specific Leakage Area, Above grade | E161: =IF(HomeType=2,0.00006+0.0009*T,0.00036) -> 0.00036
C162: Specific Leakage Area, Basement | E162: =IF(IntCalc!E33=0,0,0.00036*(IntCalc!$E$34/IntCalc!$E$33)) -> 9e-05
C163: Specific Leakage Area, overall | E163: =((CFA_bsmt*SLA_bsmt)+(CFA_ag*SLA_ag))/CFA_total -> 0.00036 | F163: =F160/CFA_total*CONVERT(1,"in","ft")^2 -> 0.0003024583817
A164: YES | B164: mf | C164: Blower Door test completed for multi-family common areas? | D164: YES/NO | F164: YES
B165: mf | C165: Effective Leakage Area (common areas) | F165: =IF(MultifamBlowerDoor="NO","(using Benchmark values)",IF(MultifamBlowerDoor="YES","(enter below)","Error")) -> (enter below)
A166: 50 | B166: mf | C166: Central Laundry | D166: in2 | E166: =IF(F41=0,"N/A",E173*NewConst!F41/CONVERT(1,"in","ft")^2) -> 6.84 | F166: 6.84
A167: 50 | B167: mf | C167: Office | D167: in2 | E167: =IF(F42=0,"N/A",E174*NewConst!F42/CONVERT(1,"in","ft")^2) -> 62.208 | F167: 62.208
A168: 50 | B168: mf | C168: Indoor Corridor | D168: in2 | E168: =IF(F43=0,"N/A",E175*NewConst!F43/CONVERT(1,"in","ft")^2) -> 30.24 | F168: 30.24
A169: 50 | B169: mf | C169: Workout Room | D169: in2 | E169: =IF(F44=0,"N/A",E176*NewConst!F44/CONVERT(1,"in","ft")^2) -> 6.156 | F169: 6.156
A170: 50 | B170: mf | C170: Central Restroom | D170: in2 | E170: =IF(F45=0,"N/A",E177*NewConst!F45/CONVERT(1,"in","ft")^2) -> 1.368 | F170: 1.368
A171: 50 | B171: mf | C171: Multi-purpose Room | D171: in2 | E171: =IF(F47=0,"N/A",E178*NewConst!F47/CONVERT(1,"in","ft")^2) -> 15.552 | F171: 15.552
B172: mf | C172: Specific Leakage Area (common areas)
B173: mf | C173: Central Laundry | E173: =IF(E41=0,"N/A",0.00019) -> 0.00019 | F173: =IF(F41=0,"N/A",F166/F41*CONVERT(1,"in","ft")^2) -> 0.00019
B174: mf | C174: Office | E174: =IF(E42=0,"N/A",0.00036) -> 0.00036 | F174: =IF(F42=0,"N/A",F167/F42*CONVERT(1,"in","ft")^2) -> 0.00036
B175: mf | C175: Indoor Corridor | E175: =IF(E43=0,"N/A",0.00007) -> 7e-05 | F175: =IF(F43=0,"N/A",F168/F43*CONVERT(1,"in","ft")^2) -> 7e-05
B176: mf | C176: Workout Room | E176: =IF(E44=0,"N/A",0.00019) -> 0.00019 | F176: =IF(F44=0,"N/A",F169/F44*CONVERT(1,"in","ft")^2) -> 0.00019
B177: mf | C177: Central Restroom | E177: =IF(E45=0,"N/A",0.00019) -> 0.00019 | F177: =IF(F45=0,"N/A",F170/F45*CONVERT(1,"in","ft")^2) -> 0.00019
B178: mf | C178: Multi-purpose Room | E178: =IF(E47=0,"N/A",0.00027) -> 0.00027 | F178: =IF(F47=0,"N/A",F171/F47*CONVERT(1,"in","ft")^2) -> 0.00027
C179: Mechanical Ventilation
A180: YES | C180: Does the NCTH have a whole-house fresh air mech. ventilation system? | D180: YES/NO | F180: YES
A181: 55 | C181: Equivalent continuous ventilation rate for whole house ventilation | D181: cfm | E181: =IF(NewConst!F180="NO",0,MIN(NewConst!F181,NewConst!G181)) -> 55 | F181: 55 | G181: ="ASHRAE 62.2 continuous vent rate: " & 0.01*IntCalc!$E$9+7.5*(N_br+1) & " cfm" -> ASHRAE 62.2 continuous vent rate: 52.96 cfm
C182: Infiltration rate attributed to continuous mechanical ventilation | D182: ACH | E182: =$E$181*60/Volume -> 0.1796602787 | F182: =IF(F180="NO",0,F181*60/Volume) -> 0.1796602787 | G182: (actual change in infiltration will need to be added in quadrature with natural infiltration rate)
C183: Continuous mechanical ventilation fan efficiency | D183: W/cfm | E183: 0.5 | F183: Use Manufacturers Performance Data
C184: Continuous mechanical ventilation fan energy | D184: kWh/yr | E184: =E181*E183*8760/1000 -> 240.9
A185: 100 | C185: Range hood fan flow rate | D185: cfm | E185: =F185 -> 100 | F185: 100 | G185: ASHRAE 62.2: intermittent 100 cfm or continuous 5 ach
C186: Range hood fan efficiency | D186: W/cfm | E186: 0.5 | F186: Use Manufacturers Performance Data | G186: (actual change in infiltration will need to be added in quadrature with natural infiltration rate for duration of fan run time)
C187: Range hood fan energy | D187: kWh/yr | E187: =NewConst!F185*E186*30/60*365/1000 -> 9.125
A188: 50 | C188: Bath exhaust fan flow rate | D188: cfm | E188: =F188 -> 50 | F188: 50 | G188: ASHRAE 62.2: intermittent 50 cfm or continuous 20 cfm (actual change in infiltration will need to be added in quadrature with natural infiltration rate for duration of fan run time)
A189: 2 | C189: # of spot ventilation bath fans | D189: # | E189: =Nbath -> 2 | F189: 2
C190: Bath exhaust fan efficiency | D190: W/cfm | E190: 0.5 | F190: Use Manufacturers Performance Data
C191: Bath exhaust fan energy | D191: kWh/yr | E191: =NewConst!F189*E190*NewConst!F188*60/60*365/1000 -> 18.25
A192: YES | C192: Are the clothes dryer specifications known? | D192: YES/NO | F192: YES
C193: Clothes dryer (in-unit) exhaust flow rate | D193: cfm | E193: =IF(AND($F$270="no",$F$249="yes",$F$250>0),0,100) -> 100 | F193: =IF($F$270="yes",IF($F$192="yes","Use known spec.",100),IF($F$249="yes","N/A",100)) -> Use known spec. | G193: (actual change in infiltration will need to be added in quadrature with natural infiltration rate for duration of fan run time)
B194: mf | C194: Mechanical Ventialation (Multi-family common areas)
B195: mfcmt | C195: Central Laundry | D195: cfm | E195: =IF(HomeType=2, 0.12*NewConst!F41, "N/A") -> N/A
B196: mfcmt | C196: Office | D196: cfm | E196: =IF(HomeType=2, 0.08*NewConst!F42, "N/A") -> N/A
B197: mfcmt | C197: Indoor Corridor | D197: cfm | E197: =IF(HomeType=2, 0.05*NewConst!F43, "N/A") -> N/A
B198: mfcmt | C198: Workout Room | D198: cfm | E198: =IF(HomeType=2, 0.06*NewConst!F44, "N/A") -> N/A
B199: mfcmt | C199: Electrical Equipment Room | D199: cfm | E199: =IF(HomeType=2, 0.06*E46, "N/A") -> N/A
B200: mfcmt | C200: Multi-purpose Room | D200: cfm | E200: =IF(HomeType=2, 0.06*NewConst!F47, "N/A") -> N/A
B201: mfcmt | C201: Central Restroom (only operating for 30 minutes per day) | D201: cfm/toilet | E201: =IF(HomeType=2, 50, "N/A") -> N/A
C202: Lighting
... 235 more rows

Sheet Hourly Profiles
P1: Winter (October - March) | Q1: Summer (April - September) | R1: Annual Average | AD1: =COLUMN() -> 30
B2: Benchmark Normalized Hourly Profiles | BA2: Benchmark Normalized Hourly Profiles (Common Areas)
O3: Misc Elec Loads (Total of disaggregation at right) | P3: Disaggregation of Misc Elec Loads (Figure 23 in HSP) | AE3: Combined Equipment | AF3: Equipment Sensible | AG3: Equipment Latent | BU3: Combined Equipment | BV3: Equipment Sensible | BW3: Equipment Latent | BX3: Occupancy | BY3: Sensible Load | BZ3: Latent Load | CA3: Occupancy | CB3: Sensible Load | CC3: Latent Load | CD3: Occupancy | CE3: Sensible Load | CF3: Latent Load | CG3: Occupancy | CH3: Sensible Load | CI3: Latent Load
P4: Select Schedule to view: | AE4: (Excludes space | AF4: Load (no lights, | AG4: Load (no lights, | AH4: Occupancy | AI4: Sensible Load | AJ4: Latent Load | BU4: (Excludes space | BV4: Load (no lights, | BW4: Load (no lights, | BX4: (Fraction of | BY4: (Occupants - | BZ4: (Occupants - | CA4: (Fraction of | CB4: (Occupants - | CC4: (Occupants - | CD4: (Fraction of | CE4: (Occupants - | CF4: (Occupants - | CG4: (Fraction of | CH4: (Occupants - | CI4: (Occupants -
P5: Annual Average | AE5: conditioning, lighting | AF5: water heater or | AG5: water heater or | AH5: (Fraction of | AI5: (Occupants - | AJ5: (Occupants - | AK5: Lighting | AL5: Lighting | AM5: Lighting | AN5: Lighting | AO5: Lighting | AP5: Lighting | AQ5: Lighting | AR5: Lighting | AS5: Lighting | AT5: Lighting | AU5: Lighting | AV5: Lighting | AW5: Lighting | BB5: Common Laundry | BF5: Office | BI5: Indoor Corridor | BJ5: Workout Room | BM5: Central Restroom | BP5: Multi-Purpose Room | BT5: Outdoor | BU5: conditioning, lighting | BV5: water heater or | BW5: water heater or | BX5: Hours) | BY5: Btu/hr) | BZ5: Btu/hr) | CA5: Hours) | CB5: Btu/hr) | CC5: Btu/hr) | CD5: Hours) | CE5: Btu/hr) | CF5: Btu/hr) | CG5: Hours) | CH5: Btu/hr) | CI5: Btu/hr)
C6: Hour | D6: Occ | E6: Lights | F6: Clothes Washer | G6: Dish-Washer | H6: Combined DHW | I6: Bath | J6: Shower | K6: Sinks | L6: Fridge | M6: Clothes Dryer | N6: Range | P6: Water heater | Q6: Refrigerator | R6: Freezer | S6: Cooking appliances | T6: Dishwasher | U6: Clothes washer | V6: Clothes dryer | W6: Home Entertainment appliances | X6: Waterbed heater | Y6: Spa heater | Z6: Spa pump | AA6: Pool heater | AB6: Pool pump | AC6: Miscellaneous appliances | AD6: Ceiling Fans (FSEC) | AE6: and DHW) | AF6: occupancy) | AG6: occupancy) | AH6: max occupancy) | AI6: Btu/hr) | AJ6: Btu/hr) | AK6: Jan | AL6: Feb | AM6: Mar | AN6: Apr | AO6: May | AP6: Jun | AQ6: Jul | AR6: Aug | AS6: Sep | AT6: Oct | AU6: Nov | AV6: Dec | AW6: Annual Average | BA6: Hour | BB6: Occ | BC6: Lights | BD6: Clothes Washer Energy | BE6: Clothes Dryer Energy | BF6: Occ | BG6: Lights | BH6: Equipment | BI6: Lights | BJ6: Occ. | BK6: Lights | BL6: Equipment | BM6: Occ | BN6: Water | BO6: Lights | BP6: Lights | BQ6: Television | BR6: Fridge | BS6: Dishwasher, Range, Microwave | BT6: Lighting | BU6: and DHW) | BV6: occupancy) | BW6: occupancy) | BX6: =LookupTables!AX7 -> Common Laundry | CA6: =LookupTables!AX8 -> Office | CD6: =LookupTables!AX9 -> Workout room | CG6: Central Restroom
C7: Sensible (Btu/day) | F7: =NewConst!$E$265*kWh_to_Btu/365 -> 579.5726027 | G7: =NewConst!$E$299*kWh_to_Btu/365 -> 982.656 | H7: ='Monthly Profiles'!$AC$18 -> 4254.88522 | I7: =NewConst!E138 -> 371 | J7: =NewConst!E137 -> 1482 | K7: =NewConst!E139 -> 619 | L7: =NewConst!$E$239*kWh_to_Btu/365 -> 4057.008219 | M7: =(NewConst!$E$281*kWh_to_Btu+NewConst!$E$283*Therms_to_Btu)/365 -> 1871.481644 | N7: =((NewConst!$E$329+NewConst!$E$337)*kWh_to_Btu+NewConst!$E$333*Therms_to_Btu)/365 -> 2582.974356 | O7: =NewConst!$E$364*kWh_to_Btu/365 -> 24327.63879 | AF7: =SUM($F7:$O7) -> 41128.21683 | BA7: Sensible (Btu/day) | BB7: =NewConst!E425 -> 32341.34395 | BD7: =NewConst!E265/365*kWh_to_Btu -> 579.5726027 | BE7: =(NewConst!E281*kWh_to_Btu+NewConst!E283*Therms_to_Btu)/365 -> 1871.481644 | BF7: =NewConst!E409 -> 6375 | BH7: =Appliances!M15*kWh_to_Btu/365 -> 35896.10959 | BJ7: =NewConst!E420 -> 30885 | BL7: =Appliances!M16*kWh_to_Btu/365 -> 20612.21918 | BM7: =NewConst!E414 -> 565.95 | BN7: =IF(NewConst!$E$140="N/A",0,NewConst!$E$140) -> 0 | BQ7: =Appliances!M20*kWh_to_Btu/365 -> 6291.167123 | BR7: =Appliances!M21*kWh_to_Btu/365 -> 4057.008219 | BV7: =SUM($BB7:$BU7)-$BB7-$BF7-$BJ7-$BM7 -> 69307.55836 | BY7: =VLOOKUP(BX6,LookupTables!$AX$5:$AZ$10,2,FALSE) -> 250 | BZ7: =VLOOKUP(BX6,LookupTables!$AX$5:$AZ$10,3,FALSE) -> 200 | CB7: =VLOOKUP(CA6,LookupTables!$AX$5:$AZ$10,2,FALSE) -> 250 | CC7: =VLOOKUP(CA6,LookupTables!$AX$5:$AZ$10,3,FALSE) -> 200 | CE7: =VLOOKUP(CD6,LookupTables!$AX$5:$AZ$10,2,FALSE) -> 710 | CF7: =VLOOKUP(CD6,LookupTables!$AX$5:$AZ$10,3,FALSE) -> 1090 | CH7: =VLOOKUP(CG6,LookupTables!$AX$5:$AZ$10,2,FALSE) -> 245 | CI7: =VLOOKUP(CG6,LookupTables!$AX$5:$AZ$10,3,FALSE) -> 155
C8: Latent (Btu/day) | F8: =NewConst!$E$266*kWh_to_Btu/365 -> 0 | G8: =NewConst!$E$300*kWh_to_Btu/365 -> 245.664 | H8: 0 | I8: 0 | J8: =NewConst!E141 -> 1408 | K8: =NewConst!E145 -> 281 | L8: 0 | M8: =(NewConst!$E$282*kWh_to_Btu+NewConst!E284*Therms_to_Btu)/365 -> 534.2465753 | N8: =((NewConst!$E$330+NewConst!$E$338)*kWh_to_Btu+NewConst!$E$334*Therms_to_Btu)/365 -> 1721.982904 | O8: =NewConst!$E$366*kWh_to_Btu/365 -> 662.8784412 | AG8: =SUM($F8:$O8) -> 4853.771921 | BA8: Latent (Btu/day) | BB8: =NewConst!E426 -> 25873.07516 | BD8: =NewConst!E266/365*kWh_to_Btu -> 0 | BE8: =(NewConst!E282*kWh_to_Btu+NewConst!E284*Therms_to_Btu)/365 -> 534.2465753 | BF8: =NewConst!E410 -> 5100 | BH8: =Appliances!N15*kWh_to_Btu/365 -> 0 | BJ8: =NewConst!E421 -> 47415 | BL8: =Appliances!N16*kWh_to_Btu/365 -> 0 | BM8: =NewConst!E415 -> 358.05 | BN8: =IF(NewConst!$E$147="N/A",0,NewConst!$E$147) -> 0 | BQ8: =Appliances!N20*kWh_to_Btu/365 -> 0 | BR8: =Appliances!N21*kWh_to_Btu/365 -> 0 | BW8: =SUM($BB8:$BU8)-$BB8-$BF8-$BJ8-$BM8 -> 534.2465753
C9: 1 | D9: 0.06051878873 | E9: 0.008 | F9: 0.009345794 | G9: 0.015358362 | H9: 0.00623053 | I9: 0.007722007722 | J9: 0.01068999028 | K9: 0.01416430595 | L9: 0.039761431 | M9: 0.00990099 | N9: 0.007072136 | O9: 0.037 | P9: =IF(selSchedule=$P$1,Q73,IF(selSchedule=$Q$1,Q101,IF(selSchedule=$R$1,Q129,"Error"))) -> 0.02552106319 | Q9: 0.04096007984 | R9: 0.04035285285 | S9: 0.004 | T9: 0.003490527419 | U9: 0.002502502503 | V9: 0.01299101796 | W9: 0.04493718843 | X9: 0.03443891653 | Y9: 0.02384402621 | Z9: 0.02384402621 | AA9: 0.002994035785 | AB9: 0.002994035785 | AC9: 0.0435 | AD9: 0.05687203791 | AE9: 0.02873786408 | AF9: =($L$7*$L9+$O$7*$O9+$N$7*$N9+$G$7*$G9+$M$7*$M9+$F$7*$F9+$I9*$I$7+$J9*$J$7+$K9*$K$7+$H9*$H$7)/$AF$7 -> 0.02851389444 | AG9: =($L$8*$L9+$O$8*$O9+$N$8*$N9+$G$8*$G9+$M$8*$M9+$F$8*$F9+$I9*$I$8+$J9*$J$8+$K9*$K$8+$H9*$H$8)/$AG$8 -> 0.01335020343 | AH9: =D9/MAX($D$9:$D$32) -> 1 | AI9: =$AH9*NewConst!$E$400*N_occ -> 580.8 | AJ9: =$AH9*NewConst!$E$401*N_occ -> 432.96 | AK9: =IF(NewConst!$F$203=NewConst!$I$203,'Detailed Lighting'!BD11,Lighting!BH21) -> 0.023899623 | AL9: =IF(NewConst!$F$203=NewConst!$I$203,'Detailed Lighting'!BE11,Lighting!BI21) -> 0.02727618429 | AM9: =IF(NewConst!$F$203=NewConst!$I$203,'Detailed Lighting'!BF11,Lighting!BJ21) -> 0.03228780016 | AN9: =IF(NewConst!$F$203=NewConst!$I$203,'Detailed Lighting'!BG11,Lighting!BK21) -> 0.03944960543 | AO9: =IF(NewConst!$F$203=NewConst!$I$203,'Detailed Lighting'!BH11,Lighting!BL21) -> 0.04531303648 | AP9: =IF(NewConst!$F$203=NewConst!$I$203,'Detailed Lighting'!BI11,Lighting!BM21) -> 0.04845076476 | AQ9: =IF(NewConst!$F$203=NewConst!$I$203,'Detailed Lighting'!BJ11,Lighting!BN21) -> 0.04756067259 | AR9: =IF(NewConst!$F$203=NewConst!$I$203,'Detailed Lighting'!BK11,Lighting!BO21) -> 0.04231315923 | AS9: =IF(NewConst!$F$203=NewConst!$I$203,'Detailed Lighting'!BL11,Lighting!BP21) -> 0.03544750968 | AT9: =IF(NewConst!$F$203=NewConst!$I$203,'Detailed Lighting'!BM11,Lighting!BQ21) -> 0.02933209784 | AU9: =IF(NewConst!$F$203=NewConst!$I$203,'Detailed Lighting'!BN11,Lighting!BR21) -> 0.02484928955 | AV9: =IF(NewConst!$F$203=NewConst!$I$203,'Detailed Lighting'!BO11,Lighting!BS21) -> 0.02300821302 | AW9: =IF(NewConst!$F$203=NewConst!$I$203,'Detailed Lighting'!BP11,Lighting!BG21) -> 0.03261910557 | BA9: 1 | BB9: 0.003441024854 | BC9: 0.04166666667 | BD9: 0.003441024854 | BE9: 0.004351815461 | BF9: 0 | BG9: 0.01682242991 | BH9: 0.02319044273 | BI9: 0.04166666667 | BJ9: 0 | BK9: 0 | BL9: 0 | BM9: 0 | BN9: 0 | BO9: 0.00990099 | BP9: 0.01682242991 | BQ9: 0 | BR9: 0.04166666667 | BS9: No profile available *Assuming 1 h/wk use (data from appliance usage list from PSNH: The Northeast Utility System) | BT9: =IF(AVERAGE('Sunrise Calc'!$G$2:$G$13)>'Hourly Profiles'!BA9, 1/12, "0.000") -> 0.08333333333 | BU9: 0.02873786408 | BV9: =($BD9*$BD$7+$BE9*$BE$7+$BH9*$BH$7+$BL9*$BL$7+$BN9*$BN$7+$BQ9*$BQ$7+$BR9*$BR$7)/$BV$7 -> 0.01459620528 | BW9: =($BD9*$BD$8+$BE9*$BE$8+$BH9*$BH$8+$BL9*$BL$8+$BN9*$BN$8+$BQ9*$BQ$8+$BR9*$BR$8)/$BW$8 -> 0.004351815461 | BX9: =BB9/MAX($BB$9:$BB$32) -> 0.04451494734 | BY9: =$BX9*NewConst!$F$250*BY$7 -> 111.2873684 | BZ9: =$BX9*NewConst!$F$250*BZ$7 -> 89.02989468 | CA9: =BF9/MAX($BF$9:$BF$32) -> 0 | CB9: =$CA9*CB$7*NewConst!$E$407 -> 0 | CC9: =$CA9*CC$7*NewConst!$E$407 -> 0 | CD9: =BJ9/MAX($BJ$9:$BJ$32) -> 0 | CE9: =$CD9*CE$7*NewConst!$F$419 -> 0 | CF9: =$CD9*CF$7*NewConst!$F$419 -> 0 | CG9: 0 | CH9: =$CG9*CH$7*NewConst!$E$413 -> 0 | CI9: =$CG9*CI$7*NewConst!$E$413 -> 0
C10: 2 | D10: 0.06051878873 | E10: 0.008 | F10: 0.007476636 | G10: 0.006825939 | H10: 0.003115265 | I10: 0.003861003861 | J10: 0.004859086492 | K10: 0.006798866856 | L10: 0.038909401 | M10: 0.005940594 | N10: 0.007072136 | O10: 0.035 | P10: =IF(selSchedule=$P$1,Q74,IF(selSchedule=$Q$1,Q102,IF(selSchedule=$R$1,Q130,"Error"))) -> 0.02051504514 | Q10: 0.03996107784 | R10: 0.04035285285 | S10: 0.001 | T10: 0 | U10: 0.0005005005005 | V10: 0.001497005988 | W10: 0.01948205384 | X10: 0.03692647872 | Y10: 0.02881420514 | Z10: 0.02881420514 | AA10: 0.002994035785 | AB10: 0.002994035785 | AC10: 0.023 | AD10: 0.05687203791 | AE10: 0.02601941748 | AF10: =($L$7*$L10+$O$7*$O10+$N$7*$N10+$G$7*$G10+$M$7*$M10+$F$7*$F10+$I10*$I$7+$J10*$J$7+$K10*$K$7+$H10*$H$7)/$AF$7 -> 0.02615834223 | AG10: =($L$8*$L10+$O$8*$O10+$N$8*$N10+$G$8*$G10+$M$8*$M10+$F$8*$F10+$I10*$I$8+$J10*$J$8+$K10*$K$8+$H10*$H$8)/$AG$8 -> 0.01009143989 | AH10: 1 | AI10: =$AH10*NewConst!$E$400*N_occ -> 580.8 | AJ10: =$AH10*NewConst!$E$401*N_occ -> 432.96 | AK10: =IF(NewConst!$F$203=NewConst!$I$203,'Detailed Lighting'!BD12,Lighting!BH22) -> 0.0143397738 | AL10: =IF(NewConst!$F$203=NewConst!$I$203,'Detailed Lighting'!BE12,Lighting!BI22) -> 0.01636571057 | AM10: =IF(NewConst!$F$203=NewConst!$I$203,'Detailed Lighting'!BF12,Lighting!BJ22) -> 0.0193726801 | AN10: =IF(NewConst!$F$203=NewConst!$I$203,'Detailed Lighting'!BG12,Lighting!BK22) -> 0.02366976326 | AO10: =IF(NewConst!$F$203=NewConst!$I$203,'Detailed Lighting'!BH12,Lighting!BL22) -> 0.02718782189 | AP10: =IF(NewConst!$F$203=NewConst!$I$203,'Detailed Lighting'!BI12,Lighting!BM22) -> 0.02907045886 | AQ10: =IF(NewConst!$F$203=NewConst!$I$203,'Detailed Lighting'!BJ12,Lighting!BN22) -> 0.02853640356 | AR10: =IF(NewConst!$F$203=NewConst!$I$203,'Detailed Lighting'!BK12,Lighting!BO22) -> 0.02538789554 | AS10: =IF(NewConst!$F$203=NewConst!$I$203,'Detailed Lighting'!BL12,Lighting!BP22) -> 0.02126850581 | AT10: =IF(NewConst!$F$203=NewConst!$I$203,'Detailed Lighting'!BM12,Lighting!BQ22) -> 0.0175992587 | AU10: =IF(NewConst!$F$203=NewConst!$I$203,'Detailed Lighting'!BN12,Lighting!BR22) -> 0.01490957373 | AV10: =IF(NewConst!$F$203=NewConst!$I$203,'Detailed Lighting'!BO12,Lighting!BS22) -> 0.01380492781 | AW10: =IF(NewConst!$F$203=NewConst!$I$203,'Detailed Lighting'!BP12,Lighting!BG22) -> 0.01957146334 | BA10: 2 | BB10: 0.003975761633 | BC10: 0.04166666667 | BD10: 0.003975761633 | BE10: 0.003481452369 | BF10: 0 | BG10: 0.01682242991 | BH10: 0.02319044273 | BI10: 0.04166666667 | BJ10: 0 | BK10: 0 | BL10: 0 | BM10: 0 | BN10: 0 | BO10: 0.005940594 | BP10: 0.01682242991 | BQ10: 0 | BR10: 0.04166666667 | BT10: =IF(AVERAGE('Sunrise Calc'!$G$2:$G$13)>'Hourly Profiles'!BA10, 1/12, "0.000") -> 0.08333333333 | BU10: 0.02601941748 | BV10: =($BD10*$BD$7+$BE10*$BE$7+$BH10*$BH$7+$BL10*$BL$7+$BN10*$BN$7+$BQ10*$BQ$7+$BR10*$BR$7)/$BV$7 -> 0.01457717489 | BW10: =($BD10*$BD$8+$BE10*$BE$8+$BH10*$BH$8+$BL10*$BL$8+$BN10*$BN$8+$BQ10*$BQ$8+$BR10*$BR$8)/$BW$8 -> 0.003481452369 | BX10: 0.05143258978 | BY10: =$BX10*NewConst!$F$250*BY$7 -> 128.5814745 | BZ10: =$BX10*NewConst!$F$250*BZ$7 -> 102.8651796 | CA10: 0 | CB10: =$CA10*CB$7*NewConst!$E$407 -> 0 | CC10: =$CA10*CC$7*NewConst!$E$407 -> 0 | CD10: 0 | CE10: =$CD10*CE$7*NewConst!$F$419 -> 0 | CF10: =$CD10*CF$7*NewConst!$F$419 -> 0 | CG10: 0 | CH10: =$CG10*CH$7*NewConst!$E$413 -> 0 | CI10: =$CG10*CI$7*NewConst!$E$413 -> 0
C11: 3 | D11: 0.06051878873 | E11: 0.008 | F11: 0.003738318 | G11: 0.005119454 | H11: 0.000779 | I11: 0.003861003861 | J11: 0.003401360544 | K11: 0.005099150142 | L11: 0.03805737 | M11: 0.003960396 | N11: 0.003536068 | O11: 0.034 | P11: =IF(selSchedule=$P$1,Q75,IF(selSchedule=$Q$1,Q103,IF(selSchedule=$R$1,Q131,"Error"))) -> 0.01851955868 | Q11: 0.03896207585 | R11: 0.04035285285 | S11: 0.001 | T11: 0 | U11: 0.0005005005005 | V11: 0.001497005988 | W11: 0.009991026919 | X11: 0.05042505192 | Y11: 0.02384402621 | Z11: 0.02384402621 | AA11: 0.003494035785 | AB11: 0.003494035785 | AC11: 0.019 | AD11: 0.05687203791 | AE11: 0.02485436893 | AF11: 0.0247573493 | AG11: 0.007874779996 | AH11: 1 | AI11: =$AH11*NewConst!$E$400*N_occ -> 580.8 | AJ11: =$AH11*NewConst!$E$401*N_occ -> 432.96 | AK11: =IF(NewConst!$F$203=NewConst!$I$203,'Detailed Lighting'!BD13,Lighting!BH23) -> 0.009559849198 | AL11: =IF(NewConst!$F$203=NewConst!$I$203,'Detailed Lighting'!BE13,Lighting!BI23) -> 0.01091047372 | AM11: =IF(NewConst!$F$203=NewConst!$I$203,'Detailed Lighting'!BF13,Lighting!BJ23) -> 0.01291512006 | AN11: =IF(NewConst!$F$203=NewConst!$I$203,'Detailed Lighting'!BG13,Lighting!BK23) -> 0.01577984217 | AO11: =IF(NewConst!$F$203=NewConst!$I$203,'Detailed Lighting'!BH13,Lighting!BL23) -> 0.01812521459 | AP11: =IF(NewConst!$F$203=NewConst!$I$203,'Detailed Lighting'!BI13,Lighting!BM23) -> 0.01938030591 | AQ11: =IF(NewConst!$F$203=NewConst!$I$203,'Detailed Lighting'!BJ13,Lighting!BN23) -> 0.01902426904 | AR11: =IF(NewConst!$F$203=NewConst!$I$203,'Detailed Lighting'!BK13,Lighting!BO23) -> 0.01692526369 | AS11: =IF(NewConst!$F$203=NewConst!$I$203,'Detailed Lighting'!BL13,Lighting!BP23) -> 0.01417900387 | AT11: =IF(NewConst!$F$203=NewConst!$I$203,'Detailed Lighting'!BM13,Lighting!BQ23) -> 0.01173283914 | AU11: =IF(NewConst!$F$203=NewConst!$I$203,'Detailed Lighting'!BN13,Lighting!BR23) -> 0.009939715818 | AV11: =IF(NewConst!$F$203=NewConst!$I$203,'Detailed Lighting'!BO13,Lighting!BS23) -> 0.009203285209 | AW11: =IF(NewConst!$F$203=NewConst!$I$203,'Detailed Lighting'!BP13,Lighting!BG23) -> 0.01304764223 | BA11: 3 | BB11: 0.001634550013 | BC11: 0.04166666667 | BD11: 0.001634550013 | BE11: 0.004055247297 | BF11: 0 | BG11: 0.01682242991 | BH11: 0.02319044273 | BI11: 0.04166666667 | BJ11: 0 | BK11: 0 | BL11: 0 | BM11: 0 | BN11: 0 | BO11: 0.003960396 | BP11: 0.01682242991 | BQ11: 0 | BR11: 0.04166666667 | BT11: =IF(AVERAGE('Sunrise Calc'!$G$2:$G$13)>'Hourly Profiles'!BA11, 1/12, "0.000") -> 0.08333333333 | BU11: 0.02485436893 | BV11: 0.01457309084 | BW11: 0.004055247297 | BX11: 0.02114541768 | BY11: =$BX11*NewConst!$F$250*BY$7 -> 52.86354419 | BZ11: =$BX11*NewConst!$F$250*BZ$7 -> 42.29083535 | CA11: 0 | CB11: =$CA11*CB$7*NewConst!$E$407 -> 0 | CC11: =$CA11*CC$7*NewConst!$E$407 -> 0 | CD11: 0 | CE11: =$CD11*CE$7*NewConst!$F$419 -> 0 | CF11: =$CD11*CF$7*NewConst!$F$419 -> 0 | CG11: 0 | CH11: =$CG11*CH$7*NewConst!$E$413 -> 0 | CI11: =$CG11*CI$7*NewConst!$E$413 -> 0
C12: 4 | D12: 0.06051878873 | E12: 0.008 | F12: 0.003738318 | G12: 0.003412969 | H12: 0.000779 | I12: 0.003861003861 | J12: 0.004859086492 | K12: 0.005099150142 | L12: 0.036921329 | M12: 0.001980198 | N12: 0.003536068 | O12: 0.034 | P12: =IF(selSchedule=$P$1,Q76,IF(selSchedule=$Q$1,Q104,IF(selSchedule=$R$1,Q132,"Error"))) -> 0.01652407222 | Q12: 0.03796307385 | R12: 0.04035285285 | S12: 0.0015 | T12: 0 | U12: 0.0005005005005 | V12: 0.000998003992 | W12: 0.001 | X12: 0.05793255943 | Y12: 0.02881420514 | Z12: 0.02881420514 | AA12: 0.003991053678 | AB12: 0.003991053678 | AC12: 0.015 | AD12: 0.05687203791 | AE12: 0.0240776699 | AF12: 0.02456693575 | AG12: 0.007993315068 | AH12: 1 | AI12: =$AH12*NewConst!$E$400*N_occ -> 580.8 | AJ12: =$AH12*NewConst!$E$401*N_occ -> 432.96 | AK12: =IF(NewConst!$F$203=NewConst!$I$203,'Detailed Lighting'!BD14,Lighting!BH24) -> 0.009559849198 | AL12: =IF(NewConst!$F$203=NewConst!$I$203,'Detailed Lighting'!BE14,Lighting!BI24) -> 0.01091047372 | AM12: =IF(NewConst!$F$203=NewConst!$I$203,'Detailed Lighting'!BF14,Lighting!BJ24) -> 0.01291512006 | AN12: =IF(NewConst!$F$203=NewConst!$I$203,'Detailed Lighting'!BG14,Lighting!BK24) -> 0.01577984217 | AO12: =IF(NewConst!$F$203=NewConst!$I$203,'Detailed Lighting'!BH14,Lighting!BL24) -> 0.01812521459 | AP12: =IF(NewConst!$F$203=NewConst!$I$203,'Detailed Lighting'!BI14,Lighting!BM24) -> 0.01938030591 | AQ12: =IF(NewConst!$F$203=NewConst!$I$203,'Detailed Lighting'!BJ14,Lighting!BN24) -> 0.01902426904 | AR12: =IF(NewConst!$F$203=NewConst!$I$203,'Detailed Lighting'!BK14,Lighting!BO24) -> 0.01692526369 | AS12: =IF(NewConst!$F$203=NewConst!$I$203,'Detailed Lighting'!BL14,Lighting!BP24) -> 0.01417900387 | AT12: =IF(NewConst!$F$203=NewConst!$I$203,'Detailed Lighting'!BM14,Lighting!BQ24) -> 0.01173283914 | AU12: =IF(NewConst!$F$203=NewConst!$I$203,'Detailed Lighting'!BN14,Lighting!BR24) -> 0.009939715818 | AV12: =IF(NewConst!$F$203=NewConst!$I$203,'Detailed Lighting'!BO14,Lighting!BS24) -> 0.009203285209 | AW12: =IF(NewConst!$F$203=NewConst!$I$203,'Detailed Lighting'!BP14,Lighting!BG24) -> 0.01304764223 | BA12: 4 | BB12: 0.004075882562 | BC12: 0.04166666667 | BD12: 0.004075882562 | BE12: 0.001667228857 | BF12: 0 | BG12: 0.01682242991 | BH12: 0.02319044273 | BI12: 0.04166666667 | BJ12: 0 | BK12: 0 | BL12: 0 | BM12: 0 | BN12: 0 | BO12: 0.001980198 | BP12: 0.01682242991 | BQ12: 0 | BR12: 0.04166666667 | BT12: =IF(AVERAGE('Sunrise Calc'!$G$2:$G$13)>'Hourly Profiles'!BA12, 1/12, "0.000") -> 0.08333333333 | BU12: 0.0240776699 | BV12: 0.01452902345 | BW12: 0.001667228857 | BX12: 0.05272780794 | BY12: =$BX12*NewConst!$F$250*BY$7 -> 131.8195199 | BZ12: =$BX12*NewConst!$F$250*BZ$7 -> 105.4556159 | CA12: 0 | CB12: =$CA12*CB$7*NewConst!$E$407 -> 0 | CC12: =$CA12*CC$7*NewConst!$E$407 -> 0 | CD12: 0 | CE12: =$CD12*CE$7*NewConst!$F$419 -> 0 | CF12: =$CD12*CF$7*NewConst!$F$419 -> 0 | CG12: 0 | CH12: =$CG12*CH$7*NewConst!$E$413 -> 0 | CI12: =$CG12*CI$7*NewConst!$E$413 -> 0
C13: 5 | D13: 0.06051878873 | E13: 0.024 | F13: 0.007476636 | G13: 0.003412969 | H13: 0.003115265 | I13: 0.007722007722 | J13: 0.01360544218 | K13: 0.006798866856 | L13: 0.036353309 | M13: 0.003960396 | N13: 0.007072136 | O13: 0.032 | P13: =IF(selSchedule=$P$1,Q77,IF(selSchedule=$Q$1,Q105,IF(selSchedule=$R$1,Q133,"Error"))) -> 0.02354964895 | Q13: 0.03696307385 | R13: 0.0403483841 | S13: 0.0065 | T13: 0.001994017946 | U13: 0.004504504505 | V13: 0.00249500998 | W13: 0.0005 | X13: 0.04990662304 | Y13: 0.0466945102 | Z13: 0.0466945102 | AA13: 0.008482107356 | AB13: 0.008482107356 | AC13: 0.016 | AD13: 0.05687203791 | AE13: 0.0240776699 | AF13: 0.02431002114 | AG13: 0.01182820786 | AH13: 1 | AI13: =$AH13*NewConst!$E$400*N_occ -> 580.8 | AJ13: =$AH13*NewConst!$E$401*N_occ -> 432.96 | AK13: =IF(NewConst!$F$203=NewConst!$I$203,'Detailed Lighting'!BD15,Lighting!BH25) -> 0.009559849198 | AL13: =IF(NewConst!$F$203=NewConst!$I$203,'Detailed Lighting'!BE15,Lighting!BI25) -> 0.01091047372 | AM13: =IF(NewConst!$F$203=NewConst!$I$203,'Detailed Lighting'!BF15,Lighting!BJ25) -> 0.01291512006 | AN13: =IF(NewConst!$F$203=NewConst!$I$203,'Detailed Lighting'!BG15,Lighting!BK25) -> 0.01577984217 | AO13: =IF(NewConst!$F$203=NewConst!$I$203,'Detailed Lighting'!BH15,Lighting!BL25) -> 0.01812521459 | AP13: =IF(NewConst!$F$203=NewConst!$I$203,'Detailed Lighting'!BI15,Lighting!BM25) -> 0.01938030591 | AQ13: =IF(NewConst!$F$203=NewConst!$I$203,'Detailed Lighting'!BJ15,Lighting!BN25) -> 0.01902426904 | AR13: =IF(NewConst!$F$203=NewConst!$I$203,'Detailed Lighting'!BK15,Lighting!BO25) -> 0.01692526369 | AS13: =IF(NewConst!$F$203=NewConst!$I$203,'Detailed Lighting'!BL15,Lighting!BP25) -> 0.01417900387 | AT13: =IF(NewConst!$F$203=NewConst!$I$203,'Detailed Lighting'!BM15,Lighting!BQ25) -> 0.01173283914 | AU13: =IF(NewConst!$F$203=NewConst!$I$203,'Detailed Lighting'!BN15,Lighting!BR25) -> 0.009939715818 | AV13: =IF(NewConst!$F$203=NewConst!$I$203,'Detailed Lighting'!BO15,Lighting!BS25) -> 0.009203285209 | AW13: =IF(NewConst!$F$203=NewConst!$I$203,'Detailed Lighting'!BP15,Lighting!BG25) -> 0.01304764223 | BA13: 5 | BB13: 0.004797714007 | BC13: 0.04166666667 | BD13: 0.004797714007 | BE13: 0.004157369899 | BF13: 0 | BG13: 0.01682242991 | BH13: 0.02319044273 | BI13: 0.04166666667 | BJ13: 0 | BK13: 0 | BL13: 0 | BM13: 0 | BN13: 0 | BO13: 0.003960396 | BP13: 0.01682242991 | BQ13: 0 | BR13: 0.04166666667 | BT13: =IF(AVERAGE('Sunrise Calc'!$G$2:$G$13)>'Hourly Profiles'!BA13, 1/12, "0.000") -> 0.08333333333 | BU13: 0.0240776699 | BV13: 0.01460229983 | BW13: 0.004157369899 | BX13: 0.06206580755 | BY13: =$BX13*NewConst!$F$250*BY$7 -> 155.1645189 | BZ13: =$BX13*NewConst!$F$250*BZ$7 -> 124.1316151 | CA13: 0 | CB13: =$CA13*CB$7*NewConst!$E$407 -> 0 | CC13: =$CA13*CC$7*NewConst!$E$407 -> 0 | CD13: 0 | CE13: =$CD13*CE$7*NewConst!$F$419 -> 0 | CF13: =$CD13*CF$7*NewConst!$F$419 -> 0 | CG13: 0 | CH13: =$CG13*CH$7*NewConst!$E$413 -> 0 | CI13: =$CG13*CI$7*NewConst!$E$413 -> 0
C14: 6 | D14: 0.06051878873 | E14: 0.05 | F14: 0.011214953 | G14: 0.010238908 | H14: 0.021806854 | I14: 0.01930501931 | J14: 0.05150631681 | K14: 0.01813031161 | L14: 0.036353309 | M14: 0.005940594 | N14: 0.010608204 | O14: 0.036 | P14: =IF(selSchedule=$P$1,Q78,IF(selSchedule=$Q$1,Q106,IF(selSchedule=$R$1,Q134,"Error"))) -> 0.03107522568 | Q14: 0.03646307385 | R14: 0.04034391534 | S14: 0.0115 | T14: 0.003489531406 | U14: 0.009009009009 | V14: 0.003493013972 | W14: 0.0005 | X14: 0.05391062704 | Y14: 0.06656091258 | Z14: 0.06656091258 | AA14: 0.01495526839 | AB14: 0.01495526839 | AC14: 0.0175 | AD14: 0.05687203791 | AE14: 0.02718446602 | AF14: 0.03077845942 | AG14: 0.0258428613 | AH14: 1 | AI14: =$AH14*NewConst!$E$400*N_occ -> 580.8 | AJ14: =$AH14*NewConst!$E$401*N_occ -> 432.96 | AK14: =IF(NewConst!$F$203=NewConst!$I$203,'Detailed Lighting'!BD16,Lighting!BH26) -> 0.01046786451 | AL14: =IF(NewConst!$F$203=NewConst!$I$203,'Detailed Lighting'!BE16,Lighting!BI26) -> 0.01174793491 | AM14: =IF(NewConst!$F$203=NewConst!$I$203,'Detailed Lighting'!BF16,Lighting!BJ26) -> 0.01354069543 | AN14: =IF(NewConst!$F$203=NewConst!$I$203,'Detailed Lighting'!BG16,Lighting!BK26) -> 0.0166649614 | AO14: =IF(NewConst!$F$203=NewConst!$I$203,'Detailed Lighting'!BH16,Lighting!BL26) -> 0.01876566366 | AP14: =IF(NewConst!$F$203=NewConst!$I$203,'Detailed Lighting'!BI16,Lighting!BM26) -> 0.01994359997 | AQ14: =IF(NewConst!$F$203=NewConst!$I$203,'Detailed Lighting'!BJ16,Lighting!BN26) -> 0.01968350084 | AR14: =IF(NewConst!$F$203=NewConst!$I$203,'Detailed Lighting'!BK16,Lighting!BO26) -> 0.01774951827 | AS14: =IF(NewConst!$F$203=NewConst!$I$203,'Detailed Lighting'!BL16,Lighting!BP26) -> 0.01512514176 | AT14: =IF(NewConst!$F$203=NewConst!$I$203,'Detailed Lighting'!BM16,Lighting!BQ26) -> 0.01277075506 | AU14: =IF(NewConst!$F$203=NewConst!$I$203,'Detailed Lighting'!BN16,Lighting!BR26) -> 0.01060175987 | AV14: =IF(NewConst!$F$203=NewConst!$I$203,'Detailed Lighting'!BO16,Lighting!BS26) -> 0.01001489822 | AW14: =IF(NewConst!$F$203=NewConst!$I$203,'Detailed Lighting'!BP16,Lighting!BG26) -> 0.01384499176 | BA14: 6 | BB14: 0.01124337805 | BC14: 0.04166666667 | BD14: 0.01124337805 | BE14: 0.004893632604 | BF14: 0 | BG14: 0.01682242991 | BH14: 0.02319044273 | BI14: 0.04166666667 | BJ14: 0 | BK14: 0 | BL14: 0 | BM14: 0 | BN14: 0 | BO14: 0.005940594 | BP14: 0.01682242991 | BQ14: 0 | BR14: 0.04166666667 | BT14: =IF(AVERAGE('Sunrise Calc'!$G$2:$G$13)>'Hourly Profiles'!BA14, 1/12, "0.000") -> 0.08333333333 | BU14: 0.02718446602 | BV14: 0.01467608157 | BW14: 0.004893632604 | BX14: 0.1454503827 | BY14: =$BX14*NewConst!$F$250*BY$7 -> 363.6259567 | BZ14: =$BX14*NewConst!$F$250*BZ$7 -> 290.9007654 | CA14: 0 | CB14: =$CA14*CB$7*NewConst!$E$407 -> 0 | CC14: =$CA14*CC$7*NewConst!$E$407 -> 0 | CD14: 0 | CE14: =$CD14*CE$7*NewConst!$F$419 -> 0 | CF14: =$CD14*CF$7*NewConst!$F$419 -> 0 | CG14: 0 | CH14: =$CG14*CH$7*NewConst!$E$413 -> 0 | CI14: =$CG14*CI$7*NewConst!$E$413 -> 0
C15: 7 | D15: 0.06051878873 | E15: 0.056 | F15: 0.022429907 | G15: 0.020477816 | H15: 0.074766355 | I15: 0.04633204633 | J15: 0.1175898931 | K15: 0.04249291785 | L15: 0.03777336 | M15: 0.015841584 | N15: 0.024752475 | O15: 0.042 | P15: =IF(selSchedule=$P$1,Q79,IF(selSchedule=$Q$1,Q107,IF(selSchedule=$R$1,Q135,"Error"))) -> 0.04159478435 | Q15: 0.03696207585 | R15: 0.04034391534 | S15: 0.0285 | T15: 0.01495613061 | U15: 0.02152152152 | V15: 0.01597704591 | W15: 0.004992522433 | X15: 0.05990169274 | Y15: 0.05663042598 | Z15: 0.05663042598 | AA15: 0.02591650099 | AB15: 0.02591650099 | AC15: 0.0255 | AD15: 0.05687203791 | AE15: 0.03417475728 | AF15: 0.04467966857 | AG15: 0.05386847408 | AH15: 1 | AI15: =$AH15*NewConst!$E$400*N_occ -> 580.8 | AJ15: =$AH15*NewConst!$E$401*N_occ -> 432.96 | AK15: =IF(NewConst!$F$203=NewConst!$I$203,'Detailed Lighting'!BD17,Lighting!BH27) -> 0.02258490878 | AL15: =IF(NewConst!$F$203=NewConst!$I$203,'Detailed Lighting'!BE17,Lighting!BI27) -> 0.02292346705 | AM15: =IF(NewConst!$F$203=NewConst!$I$203,'Detailed Lighting'!BF17,Lighting!BJ27) -> 0.0218887093 | AN15: =IF(NewConst!$F$203=NewConst!$I$203,'Detailed Lighting'!BG17,Lighting!BK27) -> 0.02847646807 | AO15: =IF(NewConst!$F$203=NewConst!$I$203,'Detailed Lighting'!BH17,Lighting!BL27) -> 0.02731216026 | AP15: =IF(NewConst!$F$203=NewConst!$I$203,'Detailed Lighting'!BI17,Lighting!BM27) -> 0.02746049859 | AQ15: =IF(NewConst!$F$203=NewConst!$I$203,'Detailed Lighting'!BJ17,Lighting!BN27) -> 0.02848064427 | AR15: =IF(NewConst!$F$203=NewConst!$I$203,'Detailed Lighting'!BK17,Lighting!BO27) -> 0.02874881427 | AS15: =IF(NewConst!$F$203=NewConst!$I$203,'Detailed Lighting'!BL17,Lighting!BP27) -> 0.02775091411 | AT15: =IF(NewConst!$F$203=NewConst!$I$203,'Detailed Lighting'!BM17,Lighting!BQ27) -> 0.02662126293 | AU15: =IF(NewConst!$F$203=NewConst!$I$203,'Detailed Lighting'!BN17,Lighting!BR27) -> 0.01943643151 | AV15: =IF(NewConst!$F$203=NewConst!$I$203,'Detailed Lighting'!BO17,Lighting!BS27) -> 0.02084549843 | AW15: =IF(NewConst!$F$203=NewConst!$I$203,'Detailed Lighting'!BP17,Lighting!BG27) -> 0.02448525237 | BA15: 7 | BB15: 0.02308596469 | BC15: 0.04166666667 | BD15: 0.02308596469 | BE15: 0.01146816199 | BF15: 0 | BG15: 0.01682242991 | BH15: 0.02319044273 | BI15: 0.04166666667 | BJ15: 0.03448275862 | BK15: 0.05882352941 | BL15: 0.04761904762 | BM15: 0.07142857143 | BN15: 0.07142857143 | BO15: 0.015841584 | BP15: 0.01682242991 | BQ15: 0 | BR15: 0.04166666667 | BT15: =IF(AVERAGE('Sunrise Calc'!$G$2:$G$13)>'Hourly Profiles'!BA15, 1/12, "0.000") -> 0.000 | BU15: 0.03417475728 | BV15: 0.02911465105 | BW15: 0.01146816199 | BX15: 0.2986524498 | BY15: =$BX15*NewConst!$F$250*BY$7 -> 746.6311245 | BZ15: =$BX15*NewConst!$F$250*BZ$7 -> 597.3048996 | CA15: 0 | CB15: =$CA15*CB$7*NewConst!$E$407 -> 0 | CC15: =$CA15*CC$7*NewConst!$E$407 -> 0 | CD15: 0.5 | CE15: =$CD15*CE$7*NewConst!$F$419 -> 1065 | CF15: =$CD15*CF$7*NewConst!$F$419 -> 1635 | CG15: 0.5 | CH15: =$CG15*CH$7*NewConst!$E$413 -> 40.425 | CI15: =$CG15*CI$7*NewConst!$E$413 -> 25.575
C16: 8 | D16: 0.05344389362 | E16: 0.05 | F16: 0.048598131 | G16: 0.030716724 | H16: 0.079439252 | I16: 0.05791505792 | J16: 0.1166180758 | K16: 0.06232294618 | L16: 0.039761431 | M16: 0.031683168 | N16: 0.042432815 | O16: 0.044 | P16: =IF(selSchedule=$P$1,Q80,IF(selSchedule=$Q$1,Q108,IF(selSchedule=$R$1,Q136,"Error"))) -> 0.05211434303 | Q16: 0.03746107784 | R16: 0.04084441584 | S16: 0.046 | T16: 0.02542472483 | U16: 0.03453453453 | V16: 0.02846107784 | W16: 0.009486540379 | X16: 0.05838525092 | Y16: 0.02434548617 | Z16: 0.02434548617 | AA16: 0.04388071571 | AB16: 0.04388071571 | AC16: 0.0325 | AD16: 0.02369668246 | AE16: 0.04116504854 | AF16: 0.0493547606 | AG16: 0.06354209764 | AH16: 0.8830958904 | AI16: =$AH16*NewConst!$E$400*N_occ -> 512.9020932 | AJ16: =$AH16*NewConst!$E$401*N_occ -> 382.3451967 | AK16: =IF(NewConst!$F$203=NewConst!$I$203,'Detailed Lighting'!BD18,Lighting!BH28) -> 0.04722584452 | AL16: =IF(NewConst!$F$203=NewConst!$I$203,'Detailed Lighting'!BE18,Lighting!BI28) -> 0.04564976591 | AM16: =IF(NewConst!$F$203=NewConst!$I$203,'Detailed Lighting'!BF18,Lighting!BJ28) -> 0.03886503361 | AN16: =IF(NewConst!$F$203=NewConst!$I$203,'Detailed Lighting'!BG18,Lighting!BK28) -> 0.05249606974 | AO16: =IF(NewConst!$F$203=NewConst!$I$203,'Detailed Lighting'!BH18,Lighting!BL28) -> 0.04469211439 | AP16: =IF(NewConst!$F$203=NewConst!$I$203,'Detailed Lighting'!BI18,Lighting!BM28) -> 0.04274668653 | AQ16: =IF(NewConst!$F$203=NewConst!$I$203,'Detailed Lighting'!BJ18,Lighting!BN28) -> 0.04637030788 | AR16: =IF(NewConst!$F$203=NewConst!$I$203,'Detailed Lighting'!BK18,Lighting!BO28) -> 0.05111672347 | AS16: =IF(NewConst!$F$203=NewConst!$I$203,'Detailed Lighting'!BL18,Lighting!BP28) -> 0.0534263873 | AT16: =IF(NewConst!$F$203=NewConst!$I$203,'Detailed Lighting'!BM18,Lighting!BQ28) -> 0.05478732941 | AU16: =IF(NewConst!$F$203=NewConst!$I$203,'Detailed Lighting'!BN18,Lighting!BR28) -> 0.03740241159 | AV16: =IF(NewConst!$F$203=NewConst!$I$203,'Detailed Lighting'!BO18,Lighting!BS28) -> 0.04287035184 | AW16: =IF(NewConst!$F$203=NewConst!$I$203,'Detailed Lighting'!BP18,Lighting!BG28) -> 0.04612303566 | BA16: 8 | BB16: 0.03738859334 | BC16: 0.04166666667 | BD16: 0.03738859334 | BE16: 0.02354751228 | BF16: 0 | BG16: 0.01682242991 | BH16: 0.03513703443 | BI16: 0.04166666667 | BJ16: 0.06896551724 | BK16: 0.05882352941 | BL16: 0.09523809524 | BM16: 0.07142857143 | BN16: 0.07142857143 | BO16: 0.031683168 | BP16: 0.01682242991 | BQ16: 0 | BR16: 0.04166666667 | BT16: =IF(AVERAGE('Sunrise Calc'!$G$2:$G$13)>'Hourly Profiles'!BA16, 1/12, "0.000") -> 0.000 | BU16: 0.04116504854 | BV16: 0.04990987368 | BW16: 0.02354751228 | BX16: 0.4836789429 | BY16: =$BX16*NewConst!$F$250*BY$7 -> 1209.197357 | BZ16: =$BX16*NewConst!$F$250*BZ$7 -> 967.3578858 | CA16: 0 | CB16: =$CA16*CB$7*NewConst!$E$407 -> 0 | CC16: =$CA16*CC$7*NewConst!$E$407 -> 0 | CD16: 1 | CE16: =$CD16*CE$7*NewConst!$F$419 -> 2130 | CF16: =$CD16*CF$7*NewConst!$F$419 -> 3270 | CG16: 0.5 | CH16: =$CG16*CH$7*NewConst!$E$413 -> 40.425 | CI16: =$CG16*CI$7*NewConst!$E$413 -> 25.575
C17: 9 | D17: 0.02472855625 | E17: 0.022 | F17: 0.072897196 | G17: 0.058020478 | H17: 0.076323988 | I17: 0.06563706564 | J17: 0.09475218659 | K17: 0.0657223796 | L17: 0.040613462 | M17: 0.048316832 | N17: 0.045968883 | O17: 0.037 | P17: =IF(selSchedule=$P$1,Q81,IF(selSchedule=$Q$1,Q109,IF(selSchedule=$R$1,Q137,"Error"))) -> 0.05460381143 | Q17: 0.03796107784 | R17: 0.04134491634 | S17: 0.0435 | T17: 0.05239376775 | U17: 0.06449113784 | V17: 0.04344111776 | W17: 0.01797158524 | X17: 0.06137032555 | Y17: 0.02384402621 | Z17: 0.02384402621 | AA17: 0.08427932406 | AB17: 0.08427932406 | AC17: 0.0325 | AD17: 0.02369668246 | AE17: 0.04194174757 | AF17: 0.04628262256 | AG17: 0.06090723873 | AH17: 0.4086095703 | AI17: =$AH17*NewConst!$E$400*N_occ -> 237.3204384 | AJ17: =$AH17*NewConst!$E$401*N_occ -> 176.9115995 | AK17: =IF(NewConst!$F$203=NewConst!$I$203,'Detailed Lighting'!BD19,Lighting!BH29) -> 0.04511949377 | AL17: =IF(NewConst!$F$203=NewConst!$I$203,'Detailed Lighting'!BE19,Lighting!BI29) -> 0.0407309392 | AM17: =IF(NewConst!$F$203=NewConst!$I$203,'Detailed Lighting'!BF19,Lighting!BJ29) -> 0.03137051692 | AN17: =IF(NewConst!$F$203=NewConst!$I$203,'Detailed Lighting'!BG19,Lighting!BK29) -> 0.04164800662 | AO17: =IF(NewConst!$F$203=NewConst!$I$203,'Detailed Lighting'!BH19,Lighting!BL29) -> 0.03367381519 | AP17: =IF(NewConst!$F$203=NewConst!$I$203,'Detailed Lighting'!BI19,Lighting!BM29) -> 0.03182907143 | AQ17: =IF(NewConst!$F$203=NewConst!$I$203,'Detailed Lighting'!BJ19,Lighting!BN29) -> 0.03489501736 | AR17: =IF(NewConst!$F$203=NewConst!$I$203,'Detailed Lighting'!BK19,Lighting!BO29) -> 0.03992178055 | AS17: =IF(NewConst!$F$203=NewConst!$I$203,'Detailed Lighting'!BL19,Lighting!BP29) -> 0.04442741536 | AT17: =IF(NewConst!$F$203=NewConst!$I$203,'Detailed Lighting'!BM19,Lighting!BQ29) -> 0.04909011844 | AU17: =IF(NewConst!$F$203=NewConst!$I$203,'Detailed Lighting'!BN19,Lighting!BR29) -> 0.03605645397 | AV17: =IF(NewConst!$F$203=NewConst!$I$203,'Detailed Lighting'!BO19,Lighting!BS29) -> 0.04247479421 | AW17: =IF(NewConst!$F$203=NewConst!$I$203,'Detailed Lighting'!BP19,Lighting!BG29) -> 0.03995658826 | BA17: 9 | BB17: 0.05084423939 | BC17: 0.04166666667 | BD17: 0.05084423939 | BE17: 0.03813608714 | BF17: 0.1176470588 | BG17: 0.08411214953 | BH17: 0.07027406887 | BI17: 0.04166666667 | BJ17: 0.06896551724 | BK17: 0.05882352941 | BL17: 0.09523809524 | BM17: 0.07142857143 | BN17: 0.07142857143 | BO17: 0.048316832 | BP17: 0.08411214953 | BQ17: =1/9 -> 0.1111111111 | BR17: 0.04166666667 | BT17: =IF(AVERAGE('Sunrise Calc'!$G$2:$G$13)>'Hourly Profiles'!BA17, 1/12, "0.000") -> 0.000 | BU17: 0.04194174757 | BV17: 0.07870041585 | BW17: 0.03813608714 | BX17: 0.6577484137 | BY17: =$BX17*NewConst!$F$250*BY$7 -> 1644.371034 | BZ17: =$BX17*NewConst!$F$250*BZ$7 -> 1315.496827 | CA17: 1 | CB17: =$CA17*CB$7*NewConst!$E$407 -> 750 | CC17: =$CA17*CC$7*NewConst!$E$407 -> 600 | CD17: 1 | CE17: =$CD17*CE$7*NewConst!$F$419 -> 2130 | CF17: =$CD17*CF$7*NewConst!$F$419 -> 3270 | CG17: 0.5 | CH17: =$CG17*CH$7*NewConst!$E$413 -> 40.425 | CI17: =$CG17*CI$7*NewConst!$E$413 -> 25.575
C18: 10 | D18: 0.01463875568 | E18: 0.015 | F18: 0.085981308 | G18: 0.064846416 | H18: 0.066978193 | I18: 0.05791505792 | J18: 0.07434402332 | K18: 0.06175637394 | L18: 0.041181483 | M18: 0.068118812 | N18: 0.048090523 | O18: 0.032 | P18: =IF(selSchedule=$P$1,Q82,IF(selSchedule=$Q$1,Q110,IF(selSchedule=$R$1,Q138,"Error"))) -> 0.05809478435 | Q18: 0.03946007984 | R18: 0.04234591735 | S18: 0.041 | T18: 0.07886331017 | U18: 0.09444774115 | V18: 0.05742215569 | W18: 0.02645663011 | X18: 0.06385788774 | Y18: 0.01937530724 | Z18: 0.01937530724 | AA18: 0.1206600398 | AB18: 0.1206600398 | AC18: 0.032 | AD18: 0.02369668246 | AE18: 0.0427184466 | AF18: 0.04293130275 | AG18: 0.05735246135 | AH18: 0.2418877838 | AI18: =$AH18*NewConst!$E$400*N_occ -> 140.4884248 | AJ18: =$AH18*NewConst!$E$401*N_occ -> 104.7277349 | AK18: =IF(NewConst!$F$203=NewConst!$I$203,'Detailed Lighting'!BD20,Lighting!BH30) -> 0.02312943294 | AL18: =IF(NewConst!$F$203=NewConst!$I$203,'Detailed Lighting'!BE20,Lighting!BI30) -> 0.02044953837 | AM18: =IF(NewConst!$F$203=NewConst!$I$203,'Detailed Lighting'!BF20,Lighting!BJ30) -> 0.01622050767 | AN18: =IF(NewConst!$F$203=NewConst!$I$203,'Detailed Lighting'!BG20,Lighting!BK30) -> 0.02021243666 | AO18: =IF(NewConst!$F$203=NewConst!$I$203,'Detailed Lighting'!BH20,Lighting!BL30) -> 0.01816359867 | AP18: =IF(NewConst!$F$203=NewConst!$I$203,'Detailed Lighting'!BI20,Lighting!BM30) -> 0.01818737347 | AQ18: =IF(NewConst!$F$203=NewConst!$I$203,'Detailed Lighting'!BJ20,Lighting!BN30) -> 0.01892992597 | AR18: =IF(NewConst!$F$203=NewConst!$I$203,'Detailed Lighting'!BK20,Lighting!BO30) -> 0.01996021378 | AS18: =IF(NewConst!$F$203=NewConst!$I$203,'Detailed Lighting'!BL20,Lighting!BP30) -> 0.02151411274 | AT18: =IF(NewConst!$F$203=NewConst!$I$203,'Detailed Lighting'!BM20,Lighting!BQ30) -> 0.02395416087 | AU18: =IF(NewConst!$F$203=NewConst!$I$203,'Detailed Lighting'!BN20,Lighting!BR30) -> 0.02002325624 | AV18: =IF(NewConst!$F$203=NewConst!$I$203,'Detailed Lighting'!BO20,Lighting!BS30) -> 0.02281937725 | AW18: =IF(NewConst!$F$203=NewConst!$I$203,'Detailed Lighting'!BP20,Lighting!BG30) -> 0.02064660037 | BA18: 10 | BB18: 0.05640904153 | BC18: 0.04166666667 | BD18: 0.05640904153 | BE18: 0.05186074603 | BF18: 0.1176470588 | BG18: 0.08411214953 | BH18: 0.07027406887 | BI18: 0.04166666667 | BJ18: 0.06896551724 | BK18: 0.05882352941 | BL18: 0.04761904762 | BM18: 0.1428571429 | BN18: 0.1428571429 | BO18: 0.068118812 | BP18: 0.08411214953 | BQ18: =1/9 -> 0.1111111111 | BR18: 0.04166666667 | BT18: =IF(AVERAGE('Sunrise Calc'!$G$2:$G$13)>'Hourly Profiles'!BA18, 1/12, "0.000") -> 0.000 | BU18: 0.0427184466 | BV18: 0.06495554278 | BW18: 0.05186074603 | BX18: 0.7297376856 | BY18: =$BX18*NewConst!$F$250*BY$7 -> 1824.344214 | BZ18: =$BX18*NewConst!$F$250*BZ$7 -> 1459.475371 | CA18: 1 | CB18: =$CA18*CB$7*NewConst!$E$407 -> 750 | CC18: =$CA18*CC$7*NewConst!$E$407 -> 600 | CD18: 1 | CE18: =$CD18*CE$7*NewConst!$F$419 -> 2130 | CF18: =$CD18*CF$7*NewConst!$F$419 -> 3270 | CG18: 1 | CH18: =$CG18*CH$7*NewConst!$E$413 -> 80.85 | CI18: =$CG18*CI$7*NewConst!$E$413 -> 51.15
C19: 11 | D19: 0.01463875568 | E19: 0.015 | F19: 0.08411215 | G19: 0.056313993 | H19: 0.060747664 | I19: 0.04633204633 | J19: 0.05976676385 | K19: 0.05439093484 | L19: 0.039761431 | M19: 0.078019802 | N19: 0.042432815 | O19: 0.033 | P19: =IF(selSchedule=$P$1,Q83,IF(selSchedule=$Q$1,Q111,IF(selSchedule=$R$1,Q139,"Error"))) -> 0.05507973922 | Q19: 0.04045908184 | R19: 0.04185435435 | S19: 0.0435 | T19: 0.07337976082 | U19: 0.1014172855 | V19: 0.07641916168 | W19: 0.03245214357 | X19: 0.05635038023 | Y19: 0.01540311261 | Z19: 0.01540311261 | AA19: 0.127082505 | AB19: 0.127082505 | AC19: 0.0325 | AD19: 0.02369668246 | AE19: 0.04349514563 | AF19: 0.04186255583 | AG19: 0.05148473468 | AH19: 0.2418877838 | AI19: =$AH19*NewConst!$E$400*N_occ -> 140.4884248 | AJ19: =$AH19*NewConst!$E$401*N_occ -> 104.7277349 | AK19: =IF(NewConst!$F$203=NewConst!$I$203,'Detailed Lighting'!BD21,Lighting!BH31) -> 0.0188329218 | AL19: =IF(NewConst!$F$203=NewConst!$I$203,'Detailed Lighting'!BE21,Lighting!BI31) -> 0.01648687246 | AM19: =IF(NewConst!$F$203=NewConst!$I$203,'Detailed Lighting'!BF21,Lighting!BJ31) -> 0.01326043476 | AN19: =IF(NewConst!$F$203=NewConst!$I$203,'Detailed Lighting'!BG21,Lighting!BK31) -> 0.0160242643 | AO19: =IF(NewConst!$F$203=NewConst!$I$203,'Detailed Lighting'!BH21,Lighting!BL31) -> 0.01513314694 | AP19: =IF(NewConst!$F$203=NewConst!$I$203,'Detailed Lighting'!BI21,Lighting!BM31) -> 0.0155220008 | AQ19: =IF(NewConst!$F$203=NewConst!$I$203,'Detailed Lighting'!BJ21,Lighting!BN31) -> 0.01581059886 | AR19: =IF(NewConst!$F$203=NewConst!$I$203,'Detailed Lighting'!BK21,Lighting!BO31) -> 0.0160600384 | AS19: =IF(NewConst!$F$203=NewConst!$I$203,'Detailed Lighting'!BL21,Lighting!BP31) -> 0.01703721472 | AT19: =IF(NewConst!$F$203=NewConst!$I$203,'Detailed Lighting'!BM21,Lighting!BQ31) -> 0.01904299112 | AU19: =IF(NewConst!$F$203=NewConst!$I$203,'Detailed Lighting'!BN21,Lighting!BR31) -> 0.01689062222 | AV19: =IF(NewConst!$F$203=NewConst!$I$203,'Detailed Lighting'!BO21,Lighting!BS31) -> 0.01897901871 | AW19: =IF(NewConst!$F$203=NewConst!$I$203,'Detailed Lighting'!BP21,Lighting!BG31) -> 0.01687373323 | BA19: 11 | BB19: 0.05647351334 | BC19: 0.04166666667 | BD19: 0.05647351334 | BE19: 0.05753680282 | BF19: 0.1176470588 | BG19: 0.08411214953 | BH19: 0.07027406887 | BI19: 0.04166666667 | BJ19: 0.06896551724 | BK19: 0.05882352941 | BL19: 0.04761904762 | BM19: 0.07142857143 | BN19: 0.07142857143 | BO19: 0.078019802 | BP19: 0.08411214953 | BQ19: 0.1111111111 | BR19: 0.04166666667 | BT19: =IF(AVERAGE('Sunrise Calc'!$G$2:$G$13)>'Hourly Profiles'!BA19, 1/12, "0.000") -> 0.000 | BU19: 0.04349514563 | BV19: 0.06510934999 | BW19: 0.05753680282 | BX19: 0.7305717276 | BY19: =$BX19*NewConst!$F$250*BY$7 -> 1826.429319 | BZ19: =$BX19*NewConst!$F$250*BZ$7 -> 1461.143455 | CA19: 1 | CB19: =$CA19*CB$7*NewConst!$E$407 -> 750 | CC19: =$CA19*CC$7*NewConst!$E$407 -> 600 | CD19: 1 | CE19: =$CD19*CE$7*NewConst!$F$419 -> 2130 | CF19: =$CD19*CF$7*NewConst!$F$419 -> 3270 | CG19: 0.5 | CH19: =$CG19*CH$7*NewConst!$E$413 -> 40.425 | CI19: =$CG19*CI$7*NewConst!$E$413 -> 25.575
C20: 12 | D20: 0.01463875568 | E20: 0.015 | F20: 0.074766355 | G20: 0.04778157 | H20: 0.048286604 | I20: 0.03474903475 | J20: 0.04713313897 | K20: 0.04985835694 | L20: 0.039761431 | M20: 0.081188119 | N20: 0.04950495 | O20: 0.033 | P20: =IF(selSchedule=$P$1,Q84,IF(selSchedule=$Q$1,Q112,IF(selSchedule=$R$1,Q140,"Error"))) -> 0.05156469408 | Q20: 0.04245708583 | R20: 0.04186329186 | S20: 0.046 | T20: 0.06789621147 | U20: 0.1078878279 | V20: 0.09491616766 | W20: 0.03844765703 | X20: 0.05035931454 | Y20: 0.01390811042 | Z20: 0.01390811042 | AA20: 0.120582505 | AB20: 0.120582505 | AC20: 0.033 | AD20: 0.02369668246 | AE20: 0.04427184466 | AF20: 0.04019822916 | AG20: 0.04998339729 | AH20: 0.2418877838 | AI20: =$AH20*NewConst!$E$400*N_occ -> 140.4884248 | AJ20: =$AH20*NewConst!$E$401*N_occ -> 104.7277349 | AK20: =IF(NewConst!$F$203=NewConst!$I$203,'Detailed Lighting'!BD22,Lighting!BH32) -> 0.01865961378 | AL20: =IF(NewConst!$F$203=NewConst!$I$203,'Detailed Lighting'!BE22,Lighting!BI32) -> 0.01632703073 | AM20: =IF(NewConst!$F$203=NewConst!$I$203,'Detailed Lighting'!BF22,Lighting!BJ32) -> 0.01314103453 | AN20: =IF(NewConst!$F$203=NewConst!$I$203,'Detailed Lighting'!BG22,Lighting!BK32) -> 0.01585532633 | AO20: =IF(NewConst!$F$203=NewConst!$I$203,'Detailed Lighting'!BH22,Lighting!BL32) -> 0.01501090785 | AP20: =IF(NewConst!$F$203=NewConst!$I$203,'Detailed Lighting'!BI22,Lighting!BM32) -> 0.01541448788 | AQ20: =IF(NewConst!$F$203=NewConst!$I$203,'Detailed Lighting'!BJ22,Lighting!BN32) -> 0.01568477481 | AR20: =IF(NewConst!$F$203=NewConst!$I$203,'Detailed Lighting'!BK22,Lighting!BO32) -> 0.01590271734 | AS20: =IF(NewConst!$F$203=NewConst!$I$203,'Detailed Lighting'!BL22,Lighting!BP32) -> 0.01685663044 | AT20: =IF(NewConst!$F$203=NewConst!$I$203,'Detailed Lighting'!BM22,Lighting!BQ32) -> 0.01884488966 | AU20: =IF(NewConst!$F$203=NewConst!$I$203,'Detailed Lighting'!BN22,Lighting!BR32) -> 0.01676426142 | AV20: =IF(NewConst!$F$203=NewConst!$I$203,'Detailed Lighting'!BO22,Lighting!BS32) -> 0.01882411048 | AW20: =IF(NewConst!$F$203=NewConst!$I$203,'Detailed Lighting'!BP22,Lighting!BG32) -> 0.01672154739 | BA20: 12 | BB20: 0.06458937651 | BC20: 0.04166666667 | BD20: 0.06458937651 | BE20: 0.05760256359 | BF20: 0.1176470588 | BG20: 0.08411214953 | BH20: 0.07027406887 | BI20: 0.04166666667 | BJ20: 0.03448275862 | BK20: 0.05882352941 | BL20: 0.04761904762 | BM20: 0.07142857143 | BN20: 0.07142857143 | BO20: 0.081188119 | BP20: 0.08411214953 | BQ20: 0.1111111111 | BR20: 0.04166666667 | BT20: =IF(AVERAGE('Sunrise Calc'!$G$2:$G$13)>'Hourly Profiles'!BA20, 1/12, "0.000") -> 0.000 | BU20: 0.04427184466 | BV20: 0.06517899321 | BW20: 0.05760256359 | BX20: 0.8355628966 | BY20: =$BX20*NewConst!$F$250*BY$7 -> 2088.907241 | BZ20: =$BX20*NewConst!$F$250*BZ$7 -> 1671.125793 | CA20: 1 | CB20: =$CA20*CB$7*NewConst!$E$407 -> 750 | CC20: =$CA20*CC$7*NewConst!$E$407 -> 600 | CD20: 0.5 | CE20: =$CD20*CE$7*NewConst!$F$419 -> 1065 | CF20: =$CD20*CF$7*NewConst!$F$419 -> 1635 | CG20: 0.5 | CH20: =$CG20*CH$7*NewConst!$E$413 -> 40.425 | CI20: =$CG20*CI$7*NewConst!$E$413 -> 25.575
C21: 13 | D21: 0.01463875568 | E21: 0.015 | F21: 0.06728972 | G21: 0.040955631 | H21: 0.042056075 | I21: 0.03088803089 | J21: 0.03401360544 | K21: 0.04872521246 | L21: 0.041749503 | M21: 0.074059406 | N21: 0.056577086 | O21: 0.032 | P21: =IF(selSchedule=$P$1,Q85,IF(selSchedule=$Q$1,Q113,IF(selSchedule=$R$1,Q141,"Error"))) -> 0.04956018054 | Q21: 0.04245708583 | R21: 0.04236379236 | S21: 0.042 | T21: 0.06489522442 | U21: 0.08043372714 | V21: 0.0924261477 | W21: 0.039944666 | X21: 0.0359105374 | Y21: 0.01390811042 | Z21: 0.01390811042 | AA21: 0.119582505 | AB21: 0.119582505 | AC21: 0.032 | AD21: 0.02369668246 | AE21: 0.04349514563 | AF21: 0.03848495016 | AG21: 0.04735433351 | AH21: 0.2418877838 | AI21: =$AH21*NewConst!$E$400*N_occ -> 140.4884248 | AJ21: =$AH21*NewConst!$E$401*N_occ -> 104.7277349 | AK21: =IF(NewConst!$F$203=NewConst!$I$203,'Detailed Lighting'!BD23,Lighting!BH33) -> 0.01866403116 | AL21: =IF(NewConst!$F$203=NewConst!$I$203,'Detailed Lighting'!BE23,Lighting!BI33) -> 0.016328454 | AM21: =IF(NewConst!$F$203=NewConst!$I$203,'Detailed Lighting'!BF23,Lighting!BJ33) -> 0.01314163194 | AN21: =IF(NewConst!$F$203=NewConst!$I$203,'Detailed Lighting'!BG23,Lighting!BK33) -> 0.01585391263 | AO21: =IF(NewConst!$F$203=NewConst!$I$203,'Detailed Lighting'!BH23,Lighting!BL33) -> 0.0150098981 | AP21: =IF(NewConst!$F$203=NewConst!$I$203,'Detailed Lighting'!BI23,Lighting!BM33) -> 0.01541363135 | AQ21: =IF(NewConst!$F$203=NewConst!$I$203,'Detailed Lighting'!BJ23,Lighting!BN33) -> 0.01568375821 | AR21: =IF(NewConst!$F$203=NewConst!$I$203,'Detailed Lighting'!BK23,Lighting!BO33) -> 0.01590141807 | AS21: =IF(NewConst!$F$203=NewConst!$I$203,'Detailed Lighting'!BL23,Lighting!BP33) -> 0.01685524422 | AT21: =IF(NewConst!$F$203=NewConst!$I$203,'Detailed Lighting'!BM23,Lighting!BQ33) -> 0.01884380652 | AU21: =IF(NewConst!$F$203=NewConst!$I$203,'Detailed Lighting'!BN23,Lighting!BR33) -> 0.01678379897 | AV21: =IF(NewConst!$F$203=NewConst!$I$203,'Detailed Lighting'!BO23,Lighting!BS33) -> 0.01883899184 | AW21: =IF(NewConst!$F$203=NewConst!$I$203,'Detailed Lighting'!BP23,Lighting!BG33) -> 0.01672558441 | BA21: 13 | BB21: 0.06203831547 | BC21: 0.04166666667 | BD21: 0.06203831547 | BE21: 0.06588068366 | BF21: 0.05882352941 | BG21: 0.07476635514 | BH21: 0.06605762474 | BI21: 0.04166666667 | BJ21: 0 | BK21: 0.05882352941 | BL21: 0 | BM21: 0.07142857143 | BN21: 0.07142857143 | BO21: 0.074059406 | BP21: 0.07476635514 | BQ21: 0.1111111111 | BR21: 0.04166666667 | BT21: =IF(AVERAGE('Sunrise Calc'!$G$2:$G$13)>'Hourly Profiles'!BA21, 1/12, "0.000") -> 0.000 | BU21: 0.04349514563 | BV21: 0.04903538076 | BW21: 0.06588068366 | BX21: 0.8025609995 | BY21: =$BX21*NewConst!$F$250*BY$7 -> 2006.402499 | BZ21: =$BX21*NewConst!$F$250*BZ$7 -> 1605.121999 | CA21: 0.5 | CB21: =$CA21*CB$7*NewConst!$E$407 -> 375 | CC21: =$CA21*CC$7*NewConst!$E$407 -> 300 | CD21: 0 | CE21: =$CD21*CE$7*NewConst!$F$419 -> 0 | CF21: =$CD21*CF$7*NewConst!$F$419 -> 0 | CG21: 0.5 | CH21: =$CG21*CH$7*NewConst!$E$413 -> 40.425 | CI21: =$CG21*CI$7*NewConst!$E$413 -> 25.575
C22: 14 | D22: 0.01463875568 | E22: 0.015 | F22: 0.059813084 | G22: 0.046075085 | H22: 0.037383178 | I22: 0.02316602317 | J22: 0.02915451895 | K22: 0.04532577904 | L22: 0.041749503 | M22: 0.067326733 | N22: 0.045968883 | O22: 0.033 | P22: =IF(selSchedule=$P$1,Q86,IF(selSchedule=$Q$1,Q114,IF(selSchedule=$R$1,Q142,"Error"))) -> 0.047555667 | Q22: 0.04295708583 | R22: 0.04286429286 | S22: 0.038 | T22: 0.06139573288 | U22: 0.05348012683 | V22: 0.08893712575 | W22: 0.04094317049 | X22: 0.02844785084 | Y22: 0.01390811042 | Z22: 0.01390811042 | AA22: 0.09023161034 | AB22: 0.09023161034 | AC22: 0.0315 | AD22: 0.02369668246 | AE22: 0.04194174757 | AF22: 0.03734148548 | AG22: 0.04163912011 | AH22: 0.2418877838 | AI22: =$AH22*NewConst!$E$400*N_occ -> 140.4884248 | AJ22: =$AH22*NewConst!$E$401*N_occ -> 104.7277349 | AK22: =IF(NewConst!$F$203=NewConst!$I$203,'Detailed Lighting'!BD24,Lighting!BH34) -> 0.01876330295 | AL22: =IF(NewConst!$F$203=NewConst!$I$203,'Detailed Lighting'!BE24,Lighting!BI34) -> 0.01637689537 | AM22: =IF(NewConst!$F$203=NewConst!$I$203,'Detailed Lighting'!BF24,Lighting!BJ34) -> 0.01316954478 | AN22: =IF(NewConst!$F$203=NewConst!$I$203,'Detailed Lighting'!BG24,Lighting!BK34) -> 0.01585541097 | AO22: =IF(NewConst!$F$203=NewConst!$I$203,'Detailed Lighting'!BH24,Lighting!BL34) -> 0.01501114658 | AP22: =IF(NewConst!$F$203=NewConst!$I$203,'Detailed Lighting'!BI24,Lighting!BM34) -> 0.01541513011 | AQ22: =IF(NewConst!$F$203=NewConst!$I$203,'Detailed Lighting'!BJ24,Lighting!BN34) -> 0.01568526083 | AR22: =IF(NewConst!$F$203=NewConst!$I$203,'Detailed Lighting'!BK24,Lighting!BO34) -> 0.01590297894 | AS22: =IF(NewConst!$F$203=NewConst!$I$203,'Detailed Lighting'!BL24,Lighting!BP34) -> 0.01685911927 | AT22: =IF(NewConst!$F$203=NewConst!$I$203,'Detailed Lighting'!BM24,Lighting!BQ34) -> 0.01885608666 | AU22: =IF(NewConst!$F$203=NewConst!$I$203,'Detailed Lighting'!BN24,Lighting!BR34) -> 0.0170464616 | AV22: =IF(NewConst!$F$203=NewConst!$I$203,'Detailed Lighting'!BO24,Lighting!BS34) -> 0.01907076834 | AW22: =IF(NewConst!$F$203=NewConst!$I$203,'Detailed Lighting'!BP24,Lighting!BG34) -> 0.01680208141 | BA22: 14 | BB22: 0.06400533776 | BC22: 0.04166666667 | BD22: 0.06400533776 | BE22: 0.06327862038 | BF22: 0.1176470588 | BG22: 0.08411214953 | BH22: 0.07027406887 | BI22: 0.04166666667 | BJ22: 0.06896551724 | BK22: 0.05882352941 | BL22: 0.04761904762 | BM22: 0.07142857143 | BN22: 0.07142857143 | BO22: 0.067326733 | BP22: 0.08411214953 | BQ22: 0.1111111111 | BR22: 0.04166666667 | BT22: =IF(AVERAGE('Sunrise Calc'!$F$2:$F$13)<'Hourly Profiles'!BA22, 1/12, "0.000 ") -> 0.000 | BU22: 0.04194174757 | BV22: 0.06532737737 | BW22: 0.06327862038 | BX22: 0.8280074573 | BY22: =$BX22*NewConst!$F$250*BY$7 -> 2070.018643 | BZ22: =$BX22*NewConst!$F$250*BZ$7 -> 1656.014915 | CA22: 1 | CB22: =$CA22*CB$7*NewConst!$E$407 -> 750 | CC22: =$CA22*CC$7*NewConst!$E$407 -> 600 | CD22: 1 | CE22: =$CD22*CE$7*NewConst!$F$419 -> 2130 | CF22: =$CD22*CF$7*NewConst!$F$419 -> 3270 | CG22: 0.5 | CH22: =$CG22*CH$7*NewConst!$E$413 -> 40.425 | CI22: =$CG22*CI$7*NewConst!$E$413 -> 25.575
C23: 16 | D23: 0.01463875568 | E23: 0.026 | F23: 0.048598131 | G23: 0.035836177 | H23: 0.037383178 | I23: 0.02316602317 | J23: 0.02623906706 | K23: 0.04305949008 | L23: 0.041749503 | M23: 0.057425743 | N23: 0.056577086 | O23: 0.037 | P23: =IF(selSchedule=$P$1,Q87,IF(selSchedule=$Q$1,Q115,IF(selSchedule=$R$1,Q143,"Error"))) -> 0.046055667 | Q23: 0.04395608782 | R23: 0.04336479336 | S23: 0.0485 | T23: 0.05041369398 | U23: 0.07542872214 | V23: 0.07544111776 | W23: 0.04343868395 | X23: 0.02444384683 | Y23: 0.02384402621 | Z23: 0.02384402621 | AA23: 0.07478827038 | AB23: 0.07478827038 | AC23: 0.032 | AD23: 0.02369668246 | AE23: 0.04310679612 | AF23: 0.03938137489 | AG23: 0.04336395877 | AH23: 0.2418877838 | AI23: =$AH23*NewConst!$E$400*N_occ -> 140.4884248 | AJ23: =$AH23*NewConst!$E$401*N_occ -> 104.7277349 | AK23: =IF(NewConst!$F$203=NewConst!$I$203,'Detailed Lighting'!BD26,Lighting!BH36) -> 0.02459116911 | AL23: =IF(NewConst!$F$203=NewConst!$I$203,'Detailed Lighting'!BE26,Lighting!BI36) -> 0.01967333344 | AM23: =IF(NewConst!$F$203=NewConst!$I$203,'Detailed Lighting'!BF26,Lighting!BJ36) -> 0.01520889106 | AN23: =IF(NewConst!$F$203=NewConst!$I$203,'Detailed Lighting'!BG26,Lighting!BK36) -> 0.01606687219 | AO23: =IF(NewConst!$F$203=NewConst!$I$203,'Detailed Lighting'!BH26,Lighting!BL36) -> 0.01516738494 | AP23: =IF(NewConst!$F$203=NewConst!$I$203,'Detailed Lighting'!BI26,Lighting!BM36) -> 0.01556494557 | AQ23: =IF(NewConst!$F$203=NewConst!$I$203,'Detailed Lighting'!BJ26,Lighting!BN36) -> 0.01583476851 | AR23: =IF(NewConst!$F$203=NewConst!$I$203,'Detailed Lighting'!BK26,Lighting!BO36) -> 0.0160856511 | AS23: =IF(NewConst!$F$203=NewConst!$I$203,'Detailed Lighting'!BL26,Lighting!BP36) -> 0.01728008049 | AT23: =IF(NewConst!$F$203=NewConst!$I$203,'Detailed Lighting'!BM26,Lighting!BQ36) -> 0.01996290267 | AU23: =IF(NewConst!$F$203=NewConst!$I$203,'Detailed Lighting'!BN26,Lighting!BR36) -> 0.02671294476 | AV23: =IF(NewConst!$F$203=NewConst!$I$203,'Detailed Lighting'!BO26,Lighting!BS36) -> 0.02889138344 | AW23: =IF(NewConst!$F$203=NewConst!$I$203,'Detailed Lighting'!BP26,Lighting!BG36) -> 0.02036970421 | BA23: 16 | BB23: 0.0606211998 | BC23: 0.04166666667 | BD23: 0.0606211998 | BE23: 0.06528496848 | BF23: 0.1176470588 | BG23: 0.08411214953 | BH23: 0.07027406887 | BI23: 0.04166666667 | BJ23: 0.06896551724 | BK23: 0.05882352941 | BL23: 0.04761904762 | BM23: 0.07142857143 | BN23: 0.07142857143 | BO23: 0.057425743 | BP23: 0.08411214953 | BQ23: 0.1111111111 | BR23: 0.04166666667 | BT23: =IF(AVERAGE('Sunrise Calc'!$F$2:$F$13)<'Hourly Profiles'!BA23, 1/12, "0.000 ") -> 0.000 | BU23: 0.04310679612 | BV23: 0.06535325463 | BW23: 0.06528496848 | BX23: 0.7842284294 | BY23: =$BX23*NewConst!$F$250*BY$7 -> 1960.571073 | BZ23: =$BX23*NewConst!$F$250*BZ$7 -> 1568.456859 | CA23: 1 | CB23: =$CA23*CB$7*NewConst!$E$407 -> 750 | CC23: =$CA23*CC$7*NewConst!$E$407 -> 600 | CD23: 1 | CE23: =$CD23*CE$7*NewConst!$F$419 -> 2130 | CF23: =$CD23*CF$7*NewConst!$F$419 -> 3270 | CG23: 1 | CH23: =$CG23*CH$7*NewConst!$E$413 -> 80.85 | CI23: =$CG23*CI$7*NewConst!$E$413 -> 51.15
C24: 15 | D24: 0.01463875568 | E24: 0.015 | F24: 0.052336449 | G24: 0.037542662 | H24: 0.03271028 | I24: 0.02316602317 | J24: 0.02526724976 | K24: 0.04135977337 | L24: 0.041181483 | M24: 0.060594059 | N24: 0.043847242 | O24: 0.035 | P24: =IF(selSchedule=$P$1,Q88,IF(selSchedule=$Q$1,Q116,IF(selSchedule=$R$1,Q144,"Error"))) -> 0.04355416249 | Q24: 0.04495508982 | R24: 0.04386529387 | S24: 0.059 | T24: 0.03943165508 | U24: 0.09787781794 | V24: 0.06144610778 | W24: 0.04543569292 | X24: 0.02444384683 | Y24: 0.05760768063 | Z24: 0.05760768063 | AA24: 0.06132107356 | AB24: 0.06132107356 | AC24: 0.033 | AD24: 0.02369668246 | AE24: 0.04116504854 | AF24: 0.03703644846 | AG24: 0.038629417 | AH24: 0.2418877838 | AI24: =$AH24*NewConst!$E$400*N_occ -> 140.4884248 | AJ24: =$AH24*NewConst!$E$401*N_occ -> 104.7277349 | AK24: =IF(NewConst!$F$203=NewConst!$I$203,'Detailed Lighting'!BD25,Lighting!BH35) -> 0.01964007139 | AL24: =IF(NewConst!$F$203=NewConst!$I$203,'Detailed Lighting'!BE25,Lighting!BI35) -> 0.01683219819 | AM24: =IF(NewConst!$F$203=NewConst!$I$203,'Detailed Lighting'!BF25,Lighting!BJ35) -> 0.01343763644 | AN24: =IF(NewConst!$F$203=NewConst!$I$203,'Detailed Lighting'!BG25,Lighting!BK35) -> 0.01587549887 | AO24: =IF(NewConst!$F$203=NewConst!$I$203,'Detailed Lighting'!BH25,Lighting!BL35) -> 0.01502662473 | AP24: =IF(NewConst!$F$203=NewConst!$I$203,'Detailed Lighting'!BI25,Lighting!BM35) -> 0.01543139268 | AQ24: =IF(NewConst!$F$203=NewConst!$I$203,'Detailed Lighting'!BJ25,Lighting!BN35) -> 0.01570152522 | AR24: =IF(NewConst!$F$203=NewConst!$I$203,'Detailed Lighting'!BK25,Lighting!BO35) -> 0.01592165715 | AS24: =IF(NewConst!$F$203=NewConst!$I$203,'Detailed Lighting'!BL25,Lighting!BP35) -> 0.01690437197 | AT24: =IF(NewConst!$F$203=NewConst!$I$203,'Detailed Lighting'!BM25,Lighting!BQ35) -> 0.01898801662 | AU24: =IF(NewConst!$F$203=NewConst!$I$203,'Detailed Lighting'!BN25,Lighting!BR35) -> 0.01881553438 | AV24: =IF(NewConst!$F$203=NewConst!$I$203,'Detailed Lighting'!BO25,Lighting!BS35) -> 0.02078647565 | AW24: =IF(NewConst!$F$203=NewConst!$I$203,'Detailed Lighting'!BP25,Lighting!BG35) -> 0.01738720519 | BA24: 15 | BB24: 0.05723706184 | BC24: 0.04166666667 | BD24: 0.05723706184 | BE24: 0.06183317293 | BF24: 0.1176470588 | BG24: 0.08411214953 | BH24: 0.07027406887 | BI24: 0.04166666667 | BJ24: 0.06896551724 | BK24: 0.05882352941 | BL24: 0.04761904762 | BM24: 0.1428571429 | BN24: 0.1428571429 | BO24: 0.060594059 | BP24: 0.08411214953 | BQ24: 0.1111111111 | BR24: 0.04166666667 | BT24: =IF(AVERAGE('Sunrise Calc'!$F$2:$F$13)<'Hourly Profiles'!BA24, 1/12, "0.000 ") -> 0.000 | BU24: 0.04116504854 | BV24: 0.06523174803 | BW24: 0.06183317293 | BX24: 0.7404494015 | BY24: =$BX24*NewConst!$F$250*BY$7 -> 1851.123504 | BZ24: =$BX24*NewConst!$F$250*BZ$7 -> 1480.898803 | CA24: 1 | CB24: =$CA24*CB$7*NewConst!$E$407 -> 750 | CC24: =$CA24*CC$7*NewConst!$E$407 -> 600 | CD24: 1 | CE24: =$CD24*CE$7*NewConst!$F$419 -> 2130 | CF24: =$CD24*CF$7*NewConst!$F$419 -> 3270 | CG24: 0.5 | CH24: =$CG24*CH$7*NewConst!$E$413 -> 40.425 | CI24: =$CG24*CI$7*NewConst!$E$413 -> 25.575
C25: 17 | D25: 0.01785205466 | E25: 0.056 | F25: 0.05046729 | G25: 0.037542662 | H25: 0.043613707 | I25: 0.03861003861 | J25: 0.03012633625 | K25: 0.04815864023 | L25: 0.044021585 | M25: 0.055445545 | N25: 0.091937765 | O25: 0.044 | P25: =IF(selSchedule=$P$1,Q89,IF(selSchedule=$Q$1,Q117,IF(selSchedule=$R$1,Q145,"Error"))) -> 0.04656920762 | Q25: 0.04595409182 | R25: 0.04336032461 | S25: 0.11 | T25: 0.05538379865 | U25: 0.06644219069 | V25: 0.06094510978 | W25: 0.05042971087 | X25: 0.02444384683 | Y25: 0.126212931 | Z25: 0.126212931 | AA25: 0.03688966203 | AB25: 0.03688966203 | AC25: 0.045 | AD25: 0.02369668246 | AE25: 0.05087378641 | AF25: 0.0469445176 | AG25: 0.05815618204 | AH25: 0.2949836742 | AI25: =$AH25*NewConst!$E$400*N_occ -> 171.326518 | AJ25: =$AH25*NewConst!$E$401*N_occ -> 127.7161316 | AK25: =IF(NewConst!$F$203=NewConst!$I$203,'Detailed Lighting'!BD27,Lighting!BH37) -> 0.04188545019 | AL25: =IF(NewConst!$F$203=NewConst!$I$203,'Detailed Lighting'!BE27,Lighting!BI37) -> 0.03113326913 | AM25: =IF(NewConst!$F$203=NewConst!$I$203,'Detailed Lighting'!BF27,Lighting!BJ37) -> 0.02307179814 | AN25: =IF(NewConst!$F$203=NewConst!$I$203,'Detailed Lighting'!BG27,Lighting!BK37) -> 0.01734503 | AO25: =IF(NewConst!$F$203=NewConst!$I$203,'Detailed Lighting'!BH27,Lighting!BL37) -> 0.01609296385 | AP25: =IF(NewConst!$F$203=NewConst!$I$203,'Detailed Lighting'!BI27,Lighting!BM37) -> 0.01638112502 | AQ25: =IF(NewConst!$F$203=NewConst!$I$203,'Detailed Lighting'!BJ27,Lighting!BN37) -> 0.01664704909 | AR25: =IF(NewConst!$F$203=NewConst!$I$203,'Detailed Lighting'!BK27,Lighting!BO37) -> 0.01712620567 | AS25: =IF(NewConst!$F$203=NewConst!$I$203,'Detailed Lighting'!BL27,Lighting!BP37) -> 0.01946150363 | AT25: =IF(NewConst!$F$203=NewConst!$I$203,'Detailed Lighting'!BM27,Lighting!BQ37) -> 0.02481986224 | AU25: =IF(NewConst!$F$203=NewConst!$I$203,'Detailed Lighting'!BN27,Lighting!BR37) -> 0.04906525233 | AV25: =IF(NewConst!$F$203=NewConst!$I$203,'Detailed Lighting'!BO27,Lighting!BS37) -> 0.05228414438 | AW25: =IF(NewConst!$F$203=NewConst!$I$203,'Detailed Lighting'!BP27,Lighting!BG37) -> 0.03025649791 | BA25: 17 | BB25: 0.06488013173 | BC25: 0.04166666667 | BD25: 0.06488013173 | BE25: 0.05838137738 | BF25: 0.1176470588 | BG25: 0.08411214953 | BH25: 0.07027406887 | BI25: 0.04166666667 | BJ25: 0.06896551724 | BK25: 0.05882352941 | BL25: 0.09523809524 | BM25: 0.07142857143 | BN25: 0.07142857143 | BO25: 0.055445545 | BP25: 0.08411214953 | BQ25: 0.1111111111 | BR25: 0.04166666667 | BT25: =IF(AVERAGE('Sunrise Calc'!$F$2:$F$13)<'Hourly Profiles'!BA25, 1/12, "0.000 ") -> 0.000 | BU25: 0.05087378641 | BV25: 0.0793644633 | BW25: 0.05838137738 | BX25: 0.8393242624 | BY25: =$BX25*NewConst!$F$250*BY$7 -> 2098.310656 | BZ25: =$BX25*NewConst!$F$250*BZ$7 -> 1678.648525 | CA25: 1 | CB25: =$CA25*CB$7*NewConst!$E$407 -> 750 | CC25: =$CA25*CC$7*NewConst!$E$407 -> 600 | CD25: 1 | CE25: =$CD25*CE$7*NewConst!$F$419 -> 2130 | CF25: =$CD25*CF$7*NewConst!$F$419 -> 3270 | CG25: 0.5 | CH25: =$CG25*CH$7*NewConst!$E$413 -> 40.425 | CI25: =$CG25*CI$7*NewConst!$E$413 -> 25.575
C26: 18 | D26: 0.03347269334 | E26: 0.078 | F26: 0.048598131 | G26: 0.049488055 | H26: 0.057632399 | I26: 0.04633204633 | J26: 0.03887269193 | K26: 0.06515580737 | L26: 0.048281738 | M26: 0.054257426 | N26: 0.149929279 | O26: 0.053 | P26: =IF(selSchedule=$P$1,Q90,IF(selSchedule=$Q$1,Q118,IF(selSchedule=$R$1,Q146,"Error"))) -> 0.05008425276 | Q26: 0.04695309381 | R26: 0.04335585586 | S26: 0.161 | T26: 0.07133594222 | U26: 0.03600606595 | V26: 0.05944510978 | W26: 0.05492522433 | X26: 0.02444384683 | Y26: 0.1217229888 | Z26: 0.1217229888 | AA26: 0.02344930417 | AB26: 0.02344930417 | AC26: 0.057 | AD26: 0.02369668246 | AE26: 0.06330097087 | AF26: 0.05862628615 | AG26: 0.08395409364 | AH26: 0.5530958904 | AI26: =$AH26*NewConst!$E$400*N_occ -> 321.2380932 | AJ26: =$AH26*NewConst!$E$401*N_occ -> 239.4683967 | AK26: =IF(NewConst!$F$203=NewConst!$I$203,'Detailed Lighting'!BD28,Lighting!BH38) -> 0.07762566664 | AL26: =IF(NewConst!$F$203=NewConst!$I$203,'Detailed Lighting'!BE28,Lighting!BI38) -> 0.06019362403 | AM26: =IF(NewConst!$F$203=NewConst!$I$203,'Detailed Lighting'!BF28,Lighting!BJ38) -> 0.04608611579 | AN26: =IF(NewConst!$F$203=NewConst!$I$203,'Detailed Lighting'!BG28,Lighting!BK38) -> 0.02328432669 | AO26: =IF(NewConst!$F$203=NewConst!$I$203,'Detailed Lighting'!BH28,Lighting!BL38) -> 0.02046684281 | AP26: =IF(NewConst!$F$203=NewConst!$I$203,'Detailed Lighting'!BI28,Lighting!BM38) -> 0.0200732986 | AQ26: =IF(NewConst!$F$203=NewConst!$I$203,'Detailed Lighting'!BJ28,Lighting!BN38) -> 0.02031232525 | AR26: =IF(NewConst!$F$203=NewConst!$I$203,'Detailed Lighting'!BK28,Lighting!BO38) -> 0.02186686258 | AS26: =IF(NewConst!$F$203=NewConst!$I$203,'Detailed Lighting'!BL28,Lighting!BP38) -> 0.02823500537 | AT26: =IF(NewConst!$F$203=NewConst!$I$203,'Detailed Lighting'!BM28,Lighting!BQ38) -> 0.04088393269 | AU26: =IF(NewConst!$F$203=NewConst!$I$203,'Detailed Lighting'!BN28,Lighting!BR38) -> 0.08703105892 | AV26: =IF(NewConst!$F$203=NewConst!$I$203,'Detailed Lighting'!BO28,Lighting!BS38) -> 0.09095376349 | AW26: =IF(NewConst!$F$203=NewConst!$I$203,'Detailed Lighting'!BP28,Lighting!BG38) -> 0.051372481 | BA26: 18 | BB26: 0.07730043636 | BC26: 0.04166666667 | BD26: 0.07730043636 | BE26: 0.06617725183 | BF26: 0 | BG26: 0.01682242991 | BH26: 0.03513703443 | BI26: 0.04166666667 | BJ26: 0.06896551724 | BK26: 0.05882352941 | BL26: 0.04761904762 | BM26: 0.07142857143 | BN26: 0.07142857143 | BO26: 0.054257426 | BP26: 0.01682242991 | BQ26: 0 | BR26: 0.04166666667 | BT26: =IF(AVERAGE('Sunrise Calc'!$F$2:$F$13)<'Hourly Profiles'!BA26, 1/12, "0.000 ") -> 0.000 | BU26: 0.06330097087 | BV26: 0.03723273309 | BW26: 0.06617725183 | BX26: 1 | BY26: =$BX26*NewConst!$F$250*BY$7 -> 2500 | BZ26: =$BX26*NewConst!$F$250*BZ$7 -> 2000 | CA26: 0 | CB26: =$CA26*CB$7*NewConst!$E$407 -> 0 | CC26: =$CA26*CC$7*NewConst!$E$407 -> 0 | CD26: 1 | CE26: =$CD26*CE$7*NewConst!$F$419 -> 2130 | CF26: =$CD26*CF$7*NewConst!$F$419 -> 3270 | CG26: 0.5 | CH26: =$CG26*CH$7*NewConst!$E$413 -> 40.425 | CI26: =$CG26*CI$7*NewConst!$E$413 -> 25.575
C27: 19 | D27: 0.05428120836 | E27: 0.105 | F27: 0.048598131 | G27: 0.087030717 | H27: 0.068535826 | I27: 0.07722007722 | J27: 0.04227405248 | K27: 0.07478753541 | L27: 0.049701789 | M27: 0.051485149 | N27: 0.11669024 | O27: 0.058 | P27: =IF(selSchedule=$P$1,Q91,IF(selSchedule=$Q$1,Q119,IF(selSchedule=$R$1,Q147,"Error"))) -> 0.05158274824 | Q27: 0.04595409182 | R27: 0.04285535536 | S27: 0.115 | T27: 0.08930700406 | U27: 0.03600606595 | V27: 0.04744610778 | W27: 0.06989531406 | X27: 0.02444384683 | Y27: 0.06804505637 | Z27: 0.06804505637 | AA27: 0.01347614314 | AB27: 0.01347614314 | AC27: 0.066 | AD27: 0.05687203791 | AE27: 0.06330097087 | AF27: 0.0620813878 | AG27: 0.07598395555 | AH27: 0.8969315068 | AI27: =$AH27*NewConst!$E$400*N_occ -> 520.9378192 | AJ27: =$AH27*NewConst!$E$401*N_occ -> 388.3354652 | AK27: =IF(NewConst!$F$203=NewConst!$I$203,'Detailed Lighting'!BD29,Lighting!BH39) -> 0.1157944396 | AL27: =IF(NewConst!$F$203=NewConst!$I$203,'Detailed Lighting'!BE29,Lighting!BI39) -> 0.1034152411 | AM27: =IF(NewConst!$F$203=NewConst!$I$203,'Detailed Lighting'!BF29,Lighting!BJ39) -> 0.08869520446 | AN27: =IF(NewConst!$F$203=NewConst!$I$203,'Detailed Lighting'!BG29,Lighting!BK39) -> 0.0422216986 | AO27: =IF(NewConst!$F$203=NewConst!$I$203,'Detailed Lighting'!BH29,Lighting!BL39) -> 0.03516469411 | AP27: =IF(NewConst!$F$203=NewConst!$I$203,'Detailed Lighting'!BI29,Lighting!BM39) -> 0.03232802695 | AQ27: =IF(NewConst!$F$203=NewConst!$I$203,'Detailed Lighting'!BJ29,Lighting!BN39) -> 0.03244596097 | AR27: =IF(NewConst!$F$203=NewConst!$I$203,'Detailed Lighting'!BK29,Lighting!BO39) -> 0.03720101072 | AS27: =IF(NewConst!$F$203=NewConst!$I$203,'Detailed Lighting'!BL29,Lighting!BP39) -> 0.05224403253 | AT27: =IF(NewConst!$F$203=NewConst!$I$203,'Detailed Lighting'!BM29,Lighting!BQ39) -> 0.0750286701 | AU27: =IF(NewConst!$F$203=NewConst!$I$203,'Detailed Lighting'!BN29,Lighting!BR39) -> 0.1192264371 | AV27: =IF(NewConst!$F$203=NewConst!$I$203,'Detailed Lighting'!BO29,Lighting!BS39) -> 0.1197306827 | AW27: =IF(NewConst!$F$203=NewConst!$I$203,'Detailed Lighting'!BP29,Lighting!BG39) -> 0.07997191362 | BA27: 19 | BB27: 0.07496680966 | BC27: 0.04166666667 | BD27: 0.07496680966 | BE27: 0.07884587017 | BF27: 0 | BG27: 0.01682242991 | BH27: 0.02319044273 | BI27: 0.04166666667 | BJ27: 0.06896551724 | BK27: 0.05882352941 | BL27: 0.04761904762 | BM27: 0 | BN27: 0 | BO27: 0.051485149 | BP27: 0.01682242991 | BQ27: 0 | BR27: 0.04166666667 | BT27: =IF(AVERAGE('Sunrise Calc'!$F$2:$F$13)<'Hourly Profiles'!BA27, 1/12, "0.000 ") -> 0.08333333333 | BU27: 0.06330097087 | BV27: 0.03136786649 | BW27: 0.07884587017 | BX27: 0.9698109505 | BY27: =$BX27*NewConst!$F$250*BY$7 -> 2424.527376 | BZ27: =$BX27*NewConst!$F$250*BZ$7 -> 1939.621901 | CA27: 0 | CB27: =$CA27*CB$7*NewConst!$E$407 -> 0 | CC27: =$CA27*CC$7*NewConst!$E$407 -> 0 | CD27: 1 | CE27: =$CD27*CE$7*NewConst!$F$419 -> 2130 | CF27: =$CD27*CF$7*NewConst!$F$419 -> 3270 | CG27: 0 | CH27: =$CG27*CH$7*NewConst!$E$413 -> 0 | CI27: =$CG27*CI$7*NewConst!$E$413 -> 0
C28: 20 | D28: 0.05428120836 | E28: 0.126 | F28: 0.048598131 | G28: 0.110921502 | H28: 0.065420561 | I28: 0.1003861004 | J28: 0.04227405248 | K28: 0.06912181303 | L28: 0.048281738 | M28: 0.050693069 | N28: 0.060113154 | O28: 0.06 | P28: =IF(selSchedule=$P$1,Q92,IF(selSchedule=$Q$1,Q120,IF(selSchedule=$R$1,Q148,"Error"))) -> 0.05307973922 | Q28: 0.04545409182 | R28: 0.04235485485 | S28: 0.0695 | T28: 0.1072780659 | U28: 0.03650656645 | V28: 0.03544710579 | W28: 0.08536540379 | X28: 0.03443891653 | Y28: 0.06109914495 | Z28: 0.06109914495 | AA28: 0.007985089463 | AB28: 0.007985089463 | AC28: 0.0755 | AD28: 0.05687203791 | AE28: 0.0586407767 | AF28: 0.05990729486 | AG28: 0.05697911814 | AH28: 0.8969315068 | AI28: =$AH28*NewConst!$E$400*N_occ -> 520.9378192 | AJ28: =$AH28*NewConst!$E$401*N_occ -> 388.3354652 | AK28: =IF(NewConst!$F$203=NewConst!$I$203,'Detailed Lighting'!BD30,Lighting!BH40) -> 0.1225192391 | AL28: =IF(NewConst!$F$203=NewConst!$I$203,'Detailed Lighting'!BE30,Lighting!BI40) -> 0.1322295716 | AM28: =IF(NewConst!$F$203=NewConst!$I$203,'Detailed Lighting'!BF30,Lighting!BJ40) -> 0.1329666593 | AN28: =IF(NewConst!$F$203=NewConst!$I$203,'Detailed Lighting'!BG30,Lighting!BK40) -> 0.0825134 | AO28: =IF(NewConst!$F$203=NewConst!$I$203,'Detailed Lighting'!BH30,Lighting!BL40) -> 0.06959542571 | AP28: =IF(NewConst!$F$203=NewConst!$I$203,'Detailed Lighting'!BI30,Lighting!BM40) -> 0.06170120636 | AQ28: =IF(NewConst!$F$203=NewConst!$I$203,'Detailed Lighting'!BJ30,Lighting!BN40) -> 0.06144761682 | AR28: =IF(NewConst!$F$203=NewConst!$I$203,'Detailed Lighting'!BK30,Lighting!BO40) -> 0.07166898027 | AS28: =IF(NewConst!$F$203=NewConst!$I$203,'Detailed Lighting'!BL30,Lighting!BP40) -> 0.09526617523 | AT28: =IF(NewConst!$F$203=NewConst!$I$203,'Detailed Lighting'!BM30,Lighting!BQ40) -> 0.1178841808 | AU28: =IF(NewConst!$F$203=NewConst!$I$203,'Detailed Lighting'!BN30,Lighting!BR40) -> 0.1187659094 | AV28: =IF(NewConst!$F$203=NewConst!$I$203,'Detailed Lighting'!BO30,Lighting!BS40) -> 0.1120871923 | AW28: =IF(NewConst!$F$203=NewConst!$I$203,'Detailed Lighting'!BP30,Lighting!BG40) -> 0.1039397548 | BA28: 20 | BB28: 0.07087601009 | BC28: 0.04166666667 | BD28: 0.07087601009 | BE28: 0.07646558829 | BF28: 0 | BG28: 0.01682242991 | BH28: 0.02319044273 | BI28: 0.04166666667 | BJ28: 0.06896551724 | BK28: 0.05882352941 | BL28: 0.09523809524 | BM28: 0 | BN28: 0 | BO28: 0.050693069 | BP28: 0.01682242991 | BQ28: 0 | BR28: 0.04166666667 | BT28: =IF(AVERAGE('Sunrise Calc'!$F$2:$F$13)<'Hourly Profiles'!BA28, 1/12, "0.000 ") -> 0.08333333333 | BU28: 0.0586407767 | BV28: 0.0454313929 | BW28: 0.07646558829 | BX28: 0.9168901681 | BY28: =$BX28*NewConst!$F$250*BY$7 -> 2292.22542 | BZ28: =$BX28*NewConst!$F$250*BZ$7 -> 1833.780336 | CA28: 0 | CB28: =$CA28*CB$7*NewConst!$E$407 -> 0 | CC28: =$CA28*CC$7*NewConst!$E$407 -> 0 | CD28: 1 | CE28: =$CD28*CE$7*NewConst!$F$419 -> 2130 | CF28: =$CD28*CF$7*NewConst!$F$419 -> 3270 | CG28: 0 | CH28: =$CG28*CH$7*NewConst!$E$413 -> 0 | CI28: =$CG28*CI$7*NewConst!$E$413 -> 0
C29: 21 | D29: 0.05428120836 | E29: 0.128 | F29: 0.048598131 | G29: 0.090443686 | H29: 0.059190031 | I29: 0.1003861004 | J29: 0.04178814383 | K29: 0.0566572238 | L29: 0.046861687 | M29: 0.052277228 | N29: 0.035360679 | O29: 0.062 | P29: =IF(selSchedule=$P$1,Q93,IF(selSchedule=$Q$1,Q121,IF(selSchedule=$R$1,Q149,"Error"))) -> 0.04907071214 | Q29: 0.04495508982 | R29: 0.04185435435 | S29: 0.044 | T29: 0.0728404198 | U29: 0.03100106094 | V29: 0.0389500998 | W29: 0.09683998006 | X29: 0.04042998222 | Y29: 0.05116322917 | Z29: 0.05116322917 | AA29: 0.003991053678 | AB29: 0.003991053678 | AC29: 0.081 | AD29: 0.05687203791 | AE29: 0.05631067961 | AF29: 0.05812883942 | AG29: 0.04674612361 | AH29: 0.8969315068 | AI29: =$AH29*NewConst!$E$400*N_occ -> 520.9378192 | AJ29: =$AH29*NewConst!$E$401*N_occ -> 388.3354652 | AK29: =IF(NewConst!$F$203=NewConst!$I$203,'Detailed Lighting'!BD31,Lighting!BH41) -> 0.1057132961 | AL29: =IF(NewConst!$F$203=NewConst!$I$203,'Detailed Lighting'!BE31,Lighting!BI41) -> 0.122744659 | AM29: =IF(NewConst!$F$203=NewConst!$I$203,'Detailed Lighting'!BF31,Lighting!BJ41) -> 0.1428160511 | AN29: =IF(NewConst!$F$203=NewConst!$I$203,'Detailed Lighting'!BG31,Lighting!BK41) -> 0.1359426949 | AO29: =IF(NewConst!$F$203=NewConst!$I$203,'Detailed Lighting'!BH31,Lighting!BL41) -> 0.1234396103 | AP29: =IF(NewConst!$F$203=NewConst!$I$203,'Detailed Lighting'!BI31,Lighting!BM41) -> 0.1109255058 | AQ29: =IF(NewConst!$F$203=NewConst!$I$203,'Detailed Lighting'!BJ31,Lighting!BN41) -> 0.1098943457 | AR29: =IF(NewConst!$F$203=NewConst!$I$203,'Detailed Lighting'!BK31,Lighting!BO41) -> 0.1229973115 | AS29: =IF(NewConst!$F$203=NewConst!$I$203,'Detailed Lighting'!BL31,Lighting!BP41) -> 0.1421019529 | AT29: =IF(NewConst!$F$203=NewConst!$I$203,'Detailed Lighting'!BM31,Lighting!BQ41) -> 0.1297423288 | AU29: =IF(NewConst!$F$203=NewConst!$I$203,'Detailed Lighting'!BN31,Lighting!BR41) -> 0.1099138804 | AV29: =IF(NewConst!$F$203=NewConst!$I$203,'Detailed Lighting'!BO31,Lighting!BS41) -> 0.1017703935 | AW29: =IF(NewConst!$F$203=NewConst!$I$203,'Detailed Lighting'!BP31,Lighting!BG41) -> 0.1202612186 | BA29: 21 | BB29: 0.05212356237 | BC29: 0.04166666667 | BD29: 0.05212356237 | BE29: 0.07229300316 | BF29: 0 | BG29: 0.01682242991 | BH29: 0.02319044273 | BI29: 0.04166666667 | BJ29: 0.06896551724 | BK29: 0.05882352941 | BL29: 0.09523809524 | BM29: 0 | BN29: 0 | BO29: 0.052277228 | BP29: 0.01682242991 | BQ29: 0 | BR29: 0.04166666667 | BT29: =IF(AVERAGE('Sunrise Calc'!$F$2:$F$13)<'Hourly Profiles'!BA29, 1/12, "0.000 ") -> 0.08333333333 | BU29: 0.05631067961 | BV29: 0.04516190827 | BW29: 0.07229300316 | BX29: 0.6742984235 | BY29: =$BX29*NewConst!$F$250*BY$7 -> 1685.746059 | BZ29: =$BX29*NewConst!$F$250*BZ$7 -> 1348.596847 | CA29: 0 | CB29: =$CA29*CB$7*NewConst!$E$407 -> 0 | CC29: =$CA29*CC$7*NewConst!$E$407 -> 0 | CD29: 1 | CE29: =$CD29*CE$7*NewConst!$F$419 -> 2130 | CF29: =$CD29*CF$7*NewConst!$F$419 -> 3270 | CG29: 0 | CH29: =$CG29*CH$7*NewConst!$E$413 -> 0 | CI29: =$CG29*CI$7*NewConst!$E$413 -> 0
C30: 22 | D30: 0.06051878873 | E30: 0.088 | F30: 0.046728972 | G30: 0.066552901 | H30: 0.048286604 | I30: 0.07722007722 | J30: 0.04081632653 | K30: 0.04815864023 | L30: 0.046009656 | M30: 0.054257426 | N30: 0.024752475 | O30: 0.06 | P30: =IF(selSchedule=$P$1,Q94,IF(selSchedule=$Q$1,Q122,IF(selSchedule=$R$1,Q150,"Error"))) -> 0.04556168506 | Q30: 0.04445608782 | R30: 0.04135385385 | S30: 0.019 | T30: 0.03790426921 | U30: 0.02549555544 | V30: 0.04195309381 | W30: 0.1078160518 | X30: 0.03342297521 | Y30: 0.04272231556 | Z30: 0.04272231556 | AA30: 0.002991053678 | AB30: 0.002991053678 | AC30: 0.0855 | AD30: 0.05687203791 | AE30: 0.05359223301 | AF30: 0.05418860521 | AG30: 0.04094434392 | AH30: 1 | AI30: =$AH30*NewConst!$E$400*N_occ -> 580.8 | AJ30: =$AH30*NewConst!$E$401*N_occ -> 432.96 | AK30: =IF(NewConst!$F$203=NewConst!$I$203,'Detailed Lighting'!BD32,Lighting!BH42) -> 0.0889846468 | AL30: =IF(NewConst!$F$203=NewConst!$I$203,'Detailed Lighting'!BE32,Lighting!BI42) -> 0.1015564817 | AM30: =IF(NewConst!$F$203=NewConst!$I$203,'Detailed Lighting'!BF32,Lighting!BJ42) -> 0.1202160592 | AN30: =IF(NewConst!$F$203=NewConst!$I$203,'Detailed Lighting'!BG32,Lighting!BK42) -> 0.1468813632 | AO30: =IF(NewConst!$F$203=NewConst!$I$203,'Detailed Lighting'!BH32,Lighting!BL42) -> 0.1613807237 | AP30: =IF(NewConst!$F$203=NewConst!$I$203,'Detailed Lighting'!BI32,Lighting!BM42) -> 0.1611633818 | AQ30: =IF(NewConst!$F$203=NewConst!$I$203,'Detailed Lighting'!BJ32,Lighting!BN42) -> 0.1586902107 | AR30: =IF(NewConst!$F$203=NewConst!$I$203,'Detailed Lighting'!BK32,Lighting!BO42) -> 0.1575431349 | AS30: =IF(NewConst!$F$203=NewConst!$I$203,'Detailed Lighting'!BL32,Lighting!BP42) -> 0.1319804973 | AT30: =IF(NewConst!$F$203=NewConst!$I$203,'Detailed Lighting'!BM32,Lighting!BQ42) -> 0.1092111941 | AU30: =IF(NewConst!$F$203=NewConst!$I$203,'Detailed Lighting'!BN32,Lighting!BR42) -> 0.0925205077 | AV30: =IF(NewConst!$F$203=NewConst!$I$203,'Detailed Lighting'!BO32,Lighting!BS42) -> 0.08566569061 | AW30: =IF(NewConst!$F$203=NewConst!$I$203,'Detailed Lighting'!BP32,Lighting!BG42) -> 0.1188658995 | BA30: 22 | BB30: 0.04539068274 | BC30: 0.04166666667 | BD30: 0.04539068274 | BE30: 0.05316564596 | BF30: 0 | BG30: 0.01682242991 | BH30: 0.02319044273 | BI30: 0.04166666667 | BJ30: 0.06896551724 | BK30: 0.05882352941 | BL30: 0.04761904762 | BM30: 0 | BN30: 0 | BO30: 0.054257426 | BP30: 0.01682242991 | BQ30: 0 | BR30: 0.04166666667 | BT30: =IF(AVERAGE('Sunrise Calc'!$F$2:$F$13)<'Hourly Profiles'!BA30, 1/12, "0.000 ") -> 0.08333333333 | BU30: 0.05359223301 | BV30: 0.03042710934 | BW30: 0.05316564596 | BX30: 0.587198273 | BY30: =$BX30*NewConst!$F$250*BY$7 -> 1467.995683 | BZ30: =$BX30*NewConst!$F$250*BZ$7 -> 1174.396546 | CA30: 0 | CB30: =$CA30*CB$7*NewConst!$E$407 -> 0 | CC30: =$CA30*CC$7*NewConst!$E$407 -> 0 | CD30: 1 | CE30: =$CD30*CE$7*NewConst!$F$419 -> 2130 | CF30: =$CD30*CF$7*NewConst!$F$419 -> 3270 | CG30: 0 | CH30: =$CG30*CH$7*NewConst!$E$413 -> 0 | CI30: =$CG30*CI$7*NewConst!$E$413 -> 0
C31: 23 | D31: 0.06051878873 | E31: 0.049 | F31: 0.031775701 | G31: 0.044368601 | H31: 0.042056075 | I31: 0.06563706564 | J31: 0.02915451895 | K31: 0.03966005666 | L31: 0.044021585 | M31: 0.043564356 | N31: 0.015558699 | O31: 0.052 | P31: =IF(selSchedule=$P$1,Q95,IF(selSchedule=$Q$1,Q123,IF(selSchedule=$R$1,Q151,"Error"))) -> 0.03804363089 | Q31: 0.04345708583 | R31: 0.04085335335 | S31: 0.013 | T31: 0.02194316152 | U31: 0.01500002997 | V31: 0.03346906188 | W31: 0.08885493519 | X31: 0.03342297521 | Y31: 0.02384402621 | Z31: 0.02384402621 | AA31: 0.002991053678 | AB31: 0.002991053678 | AC31: 0.075 | AD31: 0.05687203791 | AE31: 0.04504854369 | AF31: 0.04615852575 | AG31: 0.03041539851 | AH31: 1 | AI31: =$AH31*NewConst!$E$400*N_occ -> 580.8 | AJ31: =$AH31*NewConst!$E$401*N_occ -> 432.96 | AK31: =IF(NewConst!$F$203=NewConst!$I$203,'Detailed Lighting'!BD33,Lighting!BH43) -> 0.06659281302 | AL31: =IF(NewConst!$F$203=NewConst!$I$203,'Detailed Lighting'!BE33,Lighting!BI43) -> 0.0760011085 | AM31: =IF(NewConst!$F$203=NewConst!$I$203,'Detailed Lighting'!BF33,Lighting!BJ43) -> 0.08996524503 | AN31: =IF(NewConst!$F$203=NewConst!$I$203,'Detailed Lighting'!BG33,Lighting!BK43) -> 0.1099205706 | AO31: =IF(NewConst!$F$203=NewConst!$I$203,'Detailed Lighting'!BH33,Lighting!BL43) -> 0.1262581659 | AP31: =IF(NewConst!$F$203=NewConst!$I$203,'Detailed Lighting'!BI33,Lighting!BM43) -> 0.1350009881 | AQ31: =IF(NewConst!$F$203=NewConst!$I$203,'Detailed Lighting'!BJ33,Lighting!BN43) -> 0.1325208761 | AR31: =IF(NewConst!$F$203=NewConst!$I$203,'Detailed Lighting'!BK33,Lighting!BO43) -> 0.1178994456 | AS31: =IF(NewConst!$F$203=NewConst!$I$203,'Detailed Lighting'!BL33,Lighting!BP43) -> 0.09876931466 | AT31: =IF(NewConst!$F$203=NewConst!$I$203,'Detailed Lighting'!BM33,Lighting!BQ43) -> 0.08172961169 | AU31: =IF(NewConst!$F$203=NewConst!$I$203,'Detailed Lighting'!BN33,Lighting!BR43) -> 0.06923892032 | AV31: =IF(NewConst!$F$203=NewConst!$I$203,'Detailed Lighting'!BO33,Lighting!BS43) -> 0.06410902917 | AW31: =IF(NewConst!$F$203=NewConst!$I$203,'Detailed Lighting'!BP33,Lighting!BG43) -> 0.09088837922 | BA31: 23 | BB31: 0.0287620123 | BC31: 0.04166666667 | BD31: 0.0287620123 | BE31: 0.0462981588 | BF31: 0 | BG31: 0.01682242991 | BH31: 0.02319044273 | BI31: 0.04166666667 | BJ31: 0.03448275862 | BK31: 0.05882352941 | BL31: 0.04761904762 | BM31: 0 | BN31: 0 | BO31: 0.043564356 | BP31: 0.01682242991 | BQ31: 0 | BR31: 0.04166666667 | BT31: =IF(AVERAGE('Sunrise Calc'!$F$2:$F$13)<'Hourly Profiles'!BA31, 1/12, "0.000 ") -> 0.08333333333 | BU31: 0.04504854369 | BV31: 0.03010261517 | BW31: 0.0462981588 | BX31: 0.372080853 | BY31: =$BX31*NewConst!$F$250*BY$7 -> 930.2021325 | BZ31: =$BX31*NewConst!$F$250*BZ$7 -> 744.161706 | CA31: 0 | CB31: =$CA31*CB$7*NewConst!$E$407 -> 0 | CC31: =$CA31*CC$7*NewConst!$E$407 -> 0 | CD31: 0.5 | CE31: =$CD31*CE$7*NewConst!$F$419 -> 1065 | CF31: =$CD31*CF$7*NewConst!$F$419 -> 1635 | CG31: 0 | CH31: =$CG31*CH$7*NewConst!$E$413 -> 0 | CI31: =$CG31*CI$7*NewConst!$E$413 -> 0
C32: 24 | D32: 0.06051878873 | E32: 0.02 | F32: 0.01682243 | G32: 0.030716724 | H32: 0.023364486 | I32: 0.03861003861 | J32: 0.02089407191 | K32: 0.02719546742 | L32: 0.041181483 | M32: 0.023762376 | N32: 0.010608204 | O32: 0.045 | P32: =IF(selSchedule=$P$1,Q96,IF(selSchedule=$Q$1,Q124,IF(selSchedule=$R$1,Q152,"Error"))) -> 0.03052557673 | Q32: 0.04245808383 | R32: 0.04085335335 | S32: 0.007 | T32: 0.005983049851 | U32: 0.004504504505 | V32: 0.02448602794 | W32: 0.06989381854 | X32: 0.03794242003 | Y32: 0.02384402621 | Z32: 0.02384402621 | AA32: 0.002991053678 | AB32: 0.002991053678 | AC32: 0.0645 | AD32: 0.05687203791 | AE32: 0.03650485437 | AF32: 0.03732618091 | AG32: 0.02171474441 | AH32: 1 | AI32: =$AH32*NewConst!$E$400*N_occ -> 580.8 | AJ32: =$AH32*NewConst!$E$401*N_occ -> 432.96 | AK32: =IF(NewConst!$F$203=NewConst!$I$203,'Detailed Lighting'!BD34,Lighting!BH44) -> 0.0462868495 | AL32: =IF(NewConst!$F$203=NewConst!$I$203,'Detailed Lighting'!BE34,Lighting!BI44) -> 0.05282629928 | AM32: =IF(NewConst!$F$203=NewConst!$I$203,'Detailed Lighting'!BF34,Lighting!BJ44) -> 0.06253239003 | AN32: =IF(NewConst!$F$203=NewConst!$I$203,'Detailed Lighting'!BG34,Lighting!BK44) -> 0.07640279302 | AO32: =IF(NewConst!$F$203=NewConst!$I$203,'Detailed Lighting'!BH34,Lighting!BL44) -> 0.08775861025 | AP32: =IF(NewConst!$F$203=NewConst!$I$203,'Detailed Lighting'!BI34,Lighting!BM44) -> 0.09383550766 | AQ32: =IF(NewConst!$F$203=NewConst!$I$203,'Detailed Lighting'!BJ34,Lighting!BN44) -> 0.0921116494 | AR32: =IF(NewConst!$F$203=NewConst!$I$203,'Detailed Lighting'!BK34,Lighting!BO44) -> 0.08194869155 | AS32: =IF(NewConst!$F$203=NewConst!$I$203,'Detailed Lighting'!BL34,Lighting!BP44) -> 0.06865185889 | AT32: =IF(NewConst!$F$203=NewConst!$I$203,'Detailed Lighting'!BM34,Lighting!BQ44) -> 0.05680802573 | AU32: =IF(NewConst!$F$203=NewConst!$I$203,'Detailed Lighting'!BN34,Lighting!BR44) -> 0.04812608657 | AV32: =IF(NewConst!$F$203=NewConst!$I$203,'Detailed Lighting'!BO34,Lighting!BS44) -> 0.04456043903 | AW32: =IF(NewConst!$F$203=NewConst!$I$203,'Detailed Lighting'!BP34,Lighting!BG44) -> 0.06317403544 | BA32: 24 | BB32: 0.02383939996 | BC32: 0.04166666667 | BD32: 0.02383939996 | BE32: 0.02933703863 | BF32: 0 | BG32: 0.01682242991 | BH32: 0.02319044273 | BI32: 0.04166666667 | BJ32: 0 | BK32: 0 | BL32: 0 | BM32: 0 | BN32: 0 | BO32: 0.023762376 | BP32: 0.01682242991 | BQ32: 0 | BR32: 0.04166666667 | BT32: =IF(AVERAGE('Sunrise Calc'!$F$2:$F$13)<'Hourly Profiles'!BA32, 1/12, "0.000 ") -> 0.08333333333 | BU32: 0.03650485437 | BV32: 0.01544144824 | BW32: 0.02933703863 | BX32: 0.3083992935 | BY32: =$BX32*NewConst!$F$250*BY$7 -> 770.9982338 | BZ32: =$BX32*NewConst!$F$250*BZ$7 -> 616.798587 | CA32: 0 | CB32: =$CA32*CB$7*NewConst!$E$407 -> 0 | CC32: =$CA32*CC$7*NewConst!$E$407 -> 0 | CD32: 0 | CE32: =$CD32*CE$7*NewConst!$F$419 -> 0 | CF32: =$CD32*CF$7*NewConst!$F$419 -> 0 | CG32: 0 | CH32: =$CG32*CH$7*NewConst!$E$413 -> 0 | CI32: =$CG32*CI$7*NewConst!$E$413 -> 0
D33: =SUM(D9:D32) -> 1 | E33: 1 | F33: 1.000000003 | G33: 1.000000001 | H33: 1.00000037 | I33: 1 | J33: 1 | K33: 1 | L33: 1 | M33: 1.000000001 | N33: 1.000000001 | O33: 1 | P33: 1 | Q33: 1 | R33: 1 | S33: 1 | T33: 1 | U33: 1 | V33: 1 | W33: 1 | X33: 1 | Y33: 1 | Z33: 1 | AA33: 1 | AB33: 1 | AC33: 1 | AD33: 1 | AE33: 1 | AF33: 1.000000038 | AG33: 1.000000001 | AH33: 16.52379403 | AI33: 9597.019574 | AJ33: 7154.141864 | AK33: 1 | AL33: 1 | AM33: 1 | AN33: 1 | AO33: 1 | AP33: 1 | AQ33: 1 | AR33: 1 | AS33: 1 | AT33: 1 | AU33: 1 | AV33: 1 | AW33: 1 | BB33: =SUM(BB9:BB32) -> 1 | BC33: =SUM(BC9:BC32) -> 1 | BD33: =SUM(BD9:BD32) -> 1 | BE33: =SUM(BE9:BE32) -> 1 | BF33: =SUM(BF9:BF32) -> 1 | BG33: =SUM(BH9:BH32) -> 1 | BH33: =SUM(BI9:BI32) -> 1 | BI33: =SUM(BJ9:BJ32) -> 1 | BJ33: =SUM(BK9:BK32) -> 1 | BK33: =SUM(BL9:BL32) -> 1 | BL33: =SUM(BO9:BO32) -> 1.000000001 | BM33: =SUM(BM9:BM32) -> 1 | BO33: 1.000000001 | BP33: 1 | BQ33: 1 | BR33: 1 | BT33: 1 | BU33: 1 | BV33: 1 | BW33: 1 | BX33: =SUM(BX9:BX32) -> 12.93653758 | BY33: 32341.34395 | BZ33: 25873.07516 | CA33: 8.5 | CB33: 6375 | CC33: 5100 | CD33: 14.5 | CE33: 30885 | CF33: 47415 | CG33: =SUM(CG9:CG32) -> 7 | CH33: =SUM(CH9:CH32) -> 565.95 | CI33: =SUM(CI9:CI32) -> 358.05
B36: NCTH Normalized Hourly Profiles | BA36: NCTH Normalized Hourly Profiles (Common Areas)
O37: =O3 -> Misc Elec Loads (Total of disaggregation at right) | P37: Disaggregation of Misc Elec Loads (Figure 23 in HSP) | AE37: Combined Equipment | AF37: Equipment Sensible | AG37: Equipment Latent | BU37: Combined Equipment | BV37: Equipment Sensible | BW37: Equipment Latent | BX37: Occupancy | BY37: Sensible Load | BZ37: Latent Load | CA37: Occupancy | CB37: Sensible Load | CC37: Latent Load | CD37: Occupancy | CE37: Sensible Load | CF37: Latent Load | CG37: Occupancy | CH37: Sensible Load | CI37: Latent Load
P38: Select Schedule to view: | AE38: (Excludes space | AF38: Load (no lights, | AG38: Load (no lights, | AH38: =AH4 -> Occupancy | AI38: Sensible Load | AJ38: Latent Load | BU38: (Excludes space | BV38: Load (no lights, | BW38: Load (no lights, | BX38: (Fraction of | BY38: (Occupants - | BZ38: (Occupants - | CA38: (Fraction of | CB38: (Occupants - | CC38: (Occupants - | CD38: (Fraction of | CE38: (Occupants - | CF38: (Occupants - | CG38: (Fraction of | CH38: (Occupants - | CI38: (Occupants -
P39: =P5 -> Annual Average | AE39: conditioning, lighting | AF39: water heater or | AG39: water heater or | AH39: (Fraction of | AI39: (Occupants - | AJ39: (Occupants - | AK39: Lighting | AL39: Lighting | AM39: Lighting | AN39: Lighting | AO39: Lighting | AP39: Lighting | AQ39: Lighting | AR39: Lighting | AS39: Lighting | AT39: Lighting | AU39: Lighting | AV39: Lighting | AW39: Lighting | BB39: Common Laundry | BF39: Office | BI39: Indoor Corridor | BJ39: Workout Room | BM39: Central Restroom | BP39: Multi-Purpose Room | BT39: Outdoor | BU39: conditioning, lighting | BV39: water heater or | BW39: water heater or | BX39: max occupancy) | BY39: Btu/hr) | BZ39: Btu/hr) | CA39: max occupancy) | CB39: Btu/hr) | CC39: Btu/hr) | CD39: max occupancy) | CE39: Btu/hr) | CF39: Btu/hr) | CG39: Hours) | CH39: Btu/hr) | CI39: Btu/hr)
C40: Hour | D40: Occ | E40: =E6 -> Lights | F40: Clothes Washer | G40: Dish-Washer | H40: Combined DHW | I40: Bath | J40: Showers | K40: Sinks | L40: Fridge | M40: Clothes Dryer | N40: Range | P40: Water heater | Q40: Refrigerator | R40: Freezer | S40: Cooking appliances | T40: Dishwasher | U40: Clothes washer | V40: Clothes dryer | W40: Home Entertainment appliances | X40: Waterbed heater | Y40: Spa heater | Z40: Spa pump | AA40: Pool heater | AB40: Pool pump | AC40: Miscellaneous appliances | AD40: Ceiling Fans (FSEC) | AE40: and DHW) | AF40: occupancy) | AG40: occupancy) | AH40: max occupancy) | AI40: Btu/hr) | AJ40: Btu/hr) | AK40: Jan | AL40: Feb | AM40: Mar | AN40: Apr | AO40: May | AP40: Jun | AQ40: Jul | AR40: Aug | AS40: Sep | AT40: Oct | AU40: Nov | AV40: Dec | AW40: Annual Average | BA40: Hour | BB40: Occ | BC40: Lights | BD40: Clothes Washer Energy | BE40: Clothes Dryer Energy | BF40: Occ | BG40: Lights | BH40: Equipment | BI40: Lights | BJ40: Occ. | BK40: Lights | BL40: Equipment | BM40: Occ | BN40: Water | BO40: Lights | BP40: Lights | BQ40: =BQ6 -> Television | BR40: Fridge | BS40: Dishwasher, Range, Microwave | BT40: Lights | BU40: and DHW) | BV40: occupancy) | BW40: occupancy) | BX40: Common Laundry | CA40: Office | CD40: Workout Room | CG40: Central Restroom
C41: Sensible (kWh/yr) | F41: =NewConst!$F$265*kWh_to_Btu/365 -> 503.8369034 | G41: =NewConst!$F$299*kWh_to_Btu/365 -> 488.7179118 | H41: ='Monthly Profiles'!$AC$40 -> 4254.88522 | I41: =NewConst!F138 -> 371 | J41: =NewConst!F137 -> 1482 | K41: =NewConst!F139 -> 619 | L41: =NewConst!$F$239*kWh_to_Btu/365 -> 6272.471233 | M41: =(NewConst!$F$281*kWh_to_Btu+NewConst!$F$283*Therms_to_Btu)/365 -> 1691.220265 | N41: =((NewConst!$F$329+NewConst!$F$337)*kWh_to_Btu+NewConst!$F$333*Therms_to_Btu)/365 -> 2570.220459 | O41: =NewConst!$F$364*kWh_to_Btu/365 -> 24327.63879 | AF41: =SUM($F41:$O41) -> 42580.99078 | BB41: =NewConst!F425 -> 32341.34395 | BD41: =NewConst!F265/365*kWh_to_Btu -> 503.8369034 | BE41: =(NewConst!F281*kWh_to_Btu+NewConst!F283*Therms_to_Btu)/365 -> 1691.220265 | BF41: =NewConst!F409 -> 6375 | BH41: =BH7 -> 35896.10959 | BJ41: =NewConst!F420 -> 30885 | BL41: =BL7 -> 20612.21918 | BM41: =NewConst!F414 -> 565.95 | BN41: =IF(NewConst!$F$140="N/A",0,NewConst!$F$140) ->  | BQ41: 6291.167123 | BR41: =BR7 -> 4057.008219 | BV41: =SUM($BB41:$BU41)-$BB41-$BF41-$BJ41-$BM41 ->  | CH41: =VLOOKUP(CG40,LookupTables!$AX$5:$AZ$10,2,FALSE) -> 245 | CI41: =VLOOKUP(CG40,LookupTables!$AX$5:$AZ$10,3,FALSE) -> 155
C42: Latent (kWh/yr) | F42: =NewConst!$F$266*kWh_to_Btu/365 -> 0 | G42: =NewConst!$F$300*kWh_to_Btu/365 -> 122.1794779 | I42: 0 | J42: =NewConst!F141 -> 1408 | K42: =NewConst!F145 -> 281 | L42: 0 | M42: =(NewConst!$F$282*kWh_to_Btu+NewConst!F318*Therms_to_Btu)/365 -> 0 | N42: =((NewConst!$F$330+NewConst!$F$338)*kWh_to_Btu+NewConst!$F$334*Therms_to_Btu)/365 -> 1713.480306 | O42: =NewConst!$F$366*kWh_to_Btu/365 -> 662.8784412 | AG42: =SUM($F42:$O42) -> 4187.538225 | BB42: =NewConst!F426 -> 25873.07516 | BD42: =NewConst!F266/365*kWh_to_Btu -> 0 | BE42: =(NewConst!F282*kWh_to_Btu+NewConst!F284*Therms_to_Btu)/365 -> 482.4646768 | BF42: =NewConst!F410 -> 5100 | BH42: =BH8 -> 0 | BJ42: =NewConst!F421 -> 47415 | BL42: =BL8 -> 0 | BM42: =NewConst!F415 -> 358.05 | BN42: =IF(NewConst!$F$147="N/A",0,NewConst!$F$147) ->  | BQ42: 0 | BR42: 0 | BW42: =SUM($BB42:$BU42)-$BB42-$BF42-$BJ42-$BM42 -> 
C43: 1 | D43: ='Hourly Profiles'!D9 -> 0.06051878873 | E43: =E9 -> 0.008 | F43: ='Hourly Profiles'!F9 -> 0.009345794 | G43: ='Hourly Profiles'!G9 -> 0.015358362 | H43: =(F43*'Monthly Profiles'!V$40+G43*'Monthly Profiles'!T$40+I43*'Monthly Profiles'!W$40+J43*'Monthly Profiles'!X$40+K43*'Monthly Profiles'!Y$40)/'Monthly Profiles'!AA$40 -> 0.01154964188 | I43: ='Hourly Profiles'!I9 -> 0.007722007722 | J43: ='Hourly Profiles'!J9 -> 0.01068999028 | K43: ='Hourly Profiles'!K9 -> 0.01416430595 | L43: ='Hourly Profiles'!L9 -> 0.039761431 | M43: ='Hourly Profiles'!M9 -> 0.00990099 | N43: ='Hourly Profiles'!N9 -> 0.007072136 | O43: ='Hourly Profiles'!O9 -> 0.037 | P43: =P9 -> 0.02552106319 | Q43: =Q9 -> 0.04096007984 | R43: 0.04035285285 | S43: 0.004 | T43: 0.003490527419 | U43: 0.002502502503 | V43: 0.01299101796 | W43: 0.04493718843 | X43: 0.03443891653 | Y43: 0.02384402621 | Z43: 0.02384402621 | AA43: 0.002994035785 | AB43: 0.002994035785 | AC43: 0.0435 | AD43: 0.05687203791 | AE43: =((L43*NewConst!F$238+O43*NewConst!$F$155/365+N43*NewConst!F$328+G43*NewConst!F$298+M43*NewConst!F$279+F43*NewConst!F$264)*3412+(M43*NewConst!F$280+N43*NewConst!F$332)*100000)/((NewConst!F$238+NewConst!$F$155/365+NewConst!F$328+NewConst!F$298+NewConst!F$279+NewConst!F$264)*3412+(NewConst!F$280+NewConst!F$332)*100000) -> 0.0164333098 | AF43: =($L$41*$L43+$O$41*$O43+$N$41*$N43+$G$41*$G43+$M$41*$M43+$F$41*$F43+$I43*$I$41+$J43*$J$41+$K43*$K$41+$H43*$H$41)/$AF$41 -> 0.02990252097 | AG43: =($L$42*$L43+$O$42*$O43+$N$42*$N43+$G$42*$G43+$M$42*$M43+$F$42*$F43+$I43*$I$42+$J43*$J$42+$K43*$K$42+$H43*$H$42)/$AG$42 -> 0.01374378404 | AH43: =D43/MAX($D$9:$D$32) -> 1 | AI43: =$AH43*NewConst!$E$400*N_occ -> 580.8 | AJ43: =$AH43*NewConst!$E$401*N_occ -> 432.96 | AK43: =IF(NewConst!$F$203=NewConst!$I$203,'Detailed Lighting'!BD11,Lighting!BH21) -> 0.023899623 | AL43: =IF(NewConst!$F$203=NewConst!$I$203,'Detailed Lighting'!BE11,Lighting!BI21) -> 0.02727618429 | AM43: =IF(NewConst!$F$203=NewConst!$I$203,'Detailed Lighting'!BF11,Lighting!BJ21) -> 0.03228780016 | AN43: =IF(NewConst!$F$203=NewConst!$I$203,'Detailed Lighting'!BG11,Lighting!BK21) -> 0.03944960543 | AO43: =IF(NewConst!$F$203=NewConst!$I$203,'Detailed Lighting'!BH11,Lighting!BL21) -> 0.04531303648 | AP43: =IF(NewConst!$F$203=NewConst!$I$203,'Detailed Lighting'!BI11,Lighting!BM21) -> 0.04845076476 | AQ43: =IF(NewConst!$F$203=NewConst!$I$203,'Detailed Lighting'!BJ11,Lighting!BN21) -> 0.04756067259 | AR43: =IF(NewConst!$F$203=NewConst!$I$203,'Detailed Lighting'!BK11,Lighting!BO21) -> 0.04231315923 | AS43: =IF(NewConst!$F$203=NewConst!$I$203,'Detailed Lighting'!BL11,Lighting!BP21) -> 0.03544750968 | AT43: =IF(NewConst!$F$203=NewConst!$I$203,'Detailed Lighting'!BM11,Lighting!BQ21) -> 0.02933209784 | AU43: =IF(NewConst!$F$203=NewConst!$I$203,'Detailed Lighting'!BN11,Lighting!BR21) -> 0.02484928955 | AV43: =IF(NewConst!$F$203=NewConst!$I$203,'Detailed Lighting'!BO11,Lighting!BS21) -> 0.02300821302 | AW43: =IF(NewConst!$F$203=NewConst!$I$203,'Detailed Lighting'!BP11,Lighting!BG21) -> 0.03261910557 | BA43: 1 | BB43: =BB9 -> 0.003441024854 | BC43: 0.04166666667 | BD43: =BD9 -> 0.003441024854 | BE43: 0.004351815461 | BF43: 0 | BG43: 0.01682242991 | BH43: 0.02319044273 | BI43: 0.04166666667 | BJ43: 0 | BK43: 0 | BL43: 0 | BM43: 0 | BN43: =BN9 -> 0 | BO43: 0.00990099 | BP43: =BP9 -> 0.01682242991 | BQ43: 0 | BR43: 0.04166666667 | BS43: =BS9 -> No profile available *Assuming 1 h/wk use (data from appliance usage list from PSNH: The Northeast Utility System) | BT43: =IF(AVERAGE('Sunrise Calc'!$G$2:$G$13)>'Hourly Profiles'!BA43, 1/12, "0.000") -> 0.08333333333 | BU43: 0.02873786408 | BV43: =($BD43*$BD$41+$BE43*$BE$41+$BH43*$BH$41+$BL43*$BL$41+$BN43*$BN$41+$BQ43*$BQ$41+$BR43*$BR$41)/$BV$41 ->  | BW43: =($BD43*$BD$42+$BE43*$BE$42+$BH43*$BH$42+$BL43*$BL$42+$BN43*$BN$42+$BQ43*$BQ$42+$BR43*$BR$42)/$BW$42 ->  | BX43: =BB43/MAX($BB$43:$BB$66) -> 0.04451494734 | BY43: =BX43*250*NewConst!$F$250 -> 111.2873684 | BZ43: =BX43*200*NewConst!$F$250 -> 89.02989468 | CA43: =BF43/MAX($BF$43:$BF$66) -> 0 | CB43: =CA43*250*N_emp -> 0 | CC43: =CA43*200*N_emp -> 0 | CD43: =BJ43/MAX($BJ$43:$BJ$66) -> 0 | CE43: =CD43*710*NewConst!$F$419 -> 0 | CF43: =CD43*1090*NewConst!$F$419 -> 0 | CG43: 0 | CH43: =$CG43*CH$7*NewConst!$E$413 -> 0 | CI43: =$CG43*CI$7*NewConst!$E$413 -> 0
C44: 2 | D44: ='Hourly Profiles'!D10 -> 0.06051878873 | E44: =E10 -> 0.008 | F44: ='Hourly Profiles'!F10 -> 0.007476636 | G44: ='Hourly Profiles'!G10 -> 0.006825939 | H44: =(F44*'Monthly Profiles'!V$40+G44*'Monthly Profiles'!T$40+I44*'Monthly Profiles'!W$40+J44*'Monthly Profiles'!X$40+K44*'Monthly Profiles'!Y$40)/'Monthly Profiles'!AA$40 -> 0.005910429236 | I44: ='Hourly Profiles'!I10 -> 0.003861003861 | J44: ='Hourly Profiles'!J10 -> 0.004859086492 | K44: ='Hourly Profiles'!K10 -> 0.006798866856 | L44: ='Hourly Profiles'!L10 -> 0.038909401 | M44: ='Hourly Profiles'!M10 -> 0.005940594 | N44: ='Hourly Profiles'!N10 -> 0.007072136 | O44: ='Hourly Profiles'!O10 -> 0.035 | P44: =P10 -> 0.02051504514 | Q44: 0.03996107784 | R44: 0.04035285285 | S44: 0.001 | T44: 0 | U44: 0.0005005005005 | V44: 0.001497005988 | W44: 0.01948205384 | X44: 0.03692647872 | Y44: 0.02881420514 | Z44: 0.02881420514 | AA44: 0.002994035785 | AB44: 0.002994035785 | AC44: 0.023 | AD44: 0.05687203791 | AE44: =((L44*NewConst!F$238+O44*NewConst!$F$155/365+N44*NewConst!F$328+G44*NewConst!F$298+M44*NewConst!F$279+F44*NewConst!F$264)*3412+(M44*NewConst!F$280+N44*NewConst!F$332)*100000)/((NewConst!F$238+NewConst!$F$155/365+NewConst!F$328+NewConst!F$298+NewConst!F$279+NewConst!F$264)*3412+(NewConst!F$280+NewConst!F$332)*100000) -> 0.01432768304 | AF44: =($L$41*$L44+$O$41*$O44+$N$41*$N44+$G$41*$G44+$M$41*$M44+$F$41*$F44+$I44*$I$41+$J44*$J$41+$K44*$K$41+$H44*$H$41)/$AF$41 -> 0.0274498666 | AG44: =($L$42*$L44+$O$42*$O44+$N$42*$N44+$G$42*$G44+$M$42*$M44+$F$42*$F44+$I44*$I$42+$J44*$J$42+$K44*$K$42+$H44*$H$42)/$AG$42 -> 0.01072343076 | AH44: 1 | AI44: =$AH44*NewConst!$E$400*N_occ -> 580.8 | AJ44: =$AH44*NewConst!$E$401*N_occ -> 432.96 | AK44: =IF(NewConst!$F$203=NewConst!$I$203,'Detailed Lighting'!BD12,Lighting!BH22) -> 0.0143397738 | AL44: =IF(NewConst!$F$203=NewConst!$I$203,'Detailed Lighting'!BE12,Lighting!BI22) -> 0.01636571057 | AM44: =IF(NewConst!$F$203=NewConst!$I$203,'Detailed Lighting'!BF12,Lighting!BJ22) -> 0.0193726801 | AN44: =IF(NewConst!$F$203=NewConst!$I$203,'Detailed Lighting'!BG12,Lighting!BK22) -> 0.02366976326 | AO44: =IF(NewConst!$F$203=NewConst!$I$203,'Detailed Lighting'!BH12,Lighting!BL22) -> 0.02718782189 | AP44: =IF(NewConst!$F$203=NewConst!$I$203,'Detailed Lighting'!BI12,Lighting!BM22) -> 0.02907045886 | AQ44: =IF(NewConst!$F$203=NewConst!$I$203,'Detailed Lighting'!BJ12,Lighting!BN22) -> 0.02853640356 | AR44: =IF(NewConst!$F$203=NewConst!$I$203,'Detailed Lighting'!BK12,Lighting!BO22) -> 0.02538789554 | AS44: =IF(NewConst!$F$203=NewConst!$I$203,'Detailed Lighting'!BL12,Lighting!BP22) -> 0.02126850581 | AT44: =IF(NewConst!$F$203=NewConst!$I$203,'Detailed Lighting'!BM12,Lighting!BQ22) -> 0.0175992587 | AU44: =IF(NewConst!$F$203=NewConst!$I$203,'Detailed Lighting'!BN12,Lighting!BR22) -> 0.01490957373 | AV44: =IF(NewConst!$F$203=NewConst!$I$203,'Detailed Lighting'!BO12,Lighting!BS22) -> 0.01380492781 | AW44: =IF(NewConst!$F$203=NewConst!$I$203,'Detailed Lighting'!BP12,Lighting!BG22) -> 0.01957146334 | BA44: 2 | BB44: =BB10 -> 0.003975761633 | BC44: 0.04166666667 | BD44: 0.003975761633 | BE44: 0.003481452369 | BF44: 0 | BG44: 0.01682242991 | BH44: 0.02319044273 | BI44: 0.04166666667 | BJ44: 0 | BK44: 0 | BL44: 0 | BM44: 0 | BN44: 0 | BO44: 0.005940594 | BP44: 0.01682242991 | BQ44: 0 | BR44: 0.04166666667 | BT44: =IF(AVERAGE('Sunrise Calc'!$G$2:$G$13)>'Hourly Profiles'!BA44, 1/12, "0.000") -> 0.08333333333 | BU44: 0.02601941748 | BV44: =($BD44*$BD$41+$BE44*$BE$41+$BH44*$BH$41+$BL44*$BL$41+$BN44*$BN$41+$BQ44*$BQ$41+$BR44*$BR$41)/$BV$41 ->  | BW44: =($BD44*$BD$42+$BE44*$BE$42+$BH44*$BH$42+$BL44*$BL$42+$BN44*$BN$42+$BQ44*$BQ$42+$BR44*$BR$42)/$BW$42 ->  | BX44: 0.05143258978 | BY44: =BX44*250*NewConst!$F$250 -> 128.5814745 | BZ44: =BX44*200*NewConst!$F$250 -> 102.8651796 | CA44: 0 | CB44: 0 | CC44: 0 | CD44: 0 | CE44: =CD44*710*NewConst!$F$419 -> 0 | CF44: =CD44*1090*NewConst!$F$419 -> 0 | CG44: 0 | CH44: =$CG44*CH$7*NewConst!$E$413 -> 0 | CI44: =$CG44*CI$7*NewConst!$E$413 -> 0
C45: 3 | D45: ='Hourly Profiles'!D11 -> 0.06051878873 | E45: 0.008 | F45: ='Hourly Profiles'!F11 -> 0.003738318 | G45: ='Hourly Profiles'!G11 -> 0.005119454 | H45: =(F45*'Monthly Profiles'!V$40+G45*'Monthly Profiles'!T$40+I45*'Monthly Profiles'!W$40+J45*'Monthly Profiles'!X$40+K45*'Monthly Profiles'!Y$40)/'Monthly Profiles'!AA$40 -> 0.004134485999 | I45: ='Hourly Profiles'!I11 -> 0.003861003861 | J45: ='Hourly Profiles'!J11 -> 0.003401360544 | K45: ='Hourly Profiles'!K11 -> 0.005099150142 | L45: ='Hourly Profiles'!L11 -> 0.03805737 | M45: ='Hourly Profiles'!M11 -> 0.003960396 | N45: ='Hourly Profiles'!N11 -> 0.003536068 | O45: ='Hourly Profiles'!O11 -> 0.034 | P45: 0.01851955868 | Q45: 0.03896207585 | R45: 0.04035285285 | S45: 0.001 | T45: 0 | U45: 0.0005005005005 | V45: 0.001497005988 | W45: 0.009991026919 | X45: 0.05042505192 | Y45: 0.02384402621 | Z45: 0.02384402621 | AA45: 0.003494035785 | AB45: 0.003494035785 | AC45: 0.019 | AD45: 0.05687203791 | AE45: =((L45*NewConst!F$238+O45*NewConst!$F$155/365+N45*NewConst!F$328+G45*NewConst!F$298+M45*NewConst!F$279+F45*NewConst!F$264)*3412+(M45*NewConst!F$280+N45*NewConst!F$332)*100000)/((NewConst!F$238+NewConst!$F$155/365+NewConst!F$328+NewConst!F$298+NewConst!F$279+NewConst!F$264)*3412+(NewConst!F$280+NewConst!F$332)*100000) -> 0.0121168817 | AF45: =($L$41*$L45+$O$41*$O45+$N$41*$N45+$G$41*$G45+$M$41*$M45+$F$41*$F45+$I45*$I$41+$J45*$J$41+$K45*$K$41+$H45*$H$41)/$AF$41 -> 0.02614421813 | AG45: =($L$42*$L45+$O$42*$O45+$N$42*$N45+$G$42*$G45+$M$42*$M45+$F$42*$F45+$I45*$I$42+$J45*$J$42+$K45*$K$42+$H45*$H$42)/$AG$42 -> 0.008464237704 | AH45: 1 | AI45: =$AH45*NewConst!$E$400*N_occ -> 580.8 | AJ45: =$AH45*NewConst!$E$401*N_occ -> 432.96 | AK45: =IF(NewConst!$F$203=NewConst!$I$203,'Detailed Lighting'!BD13,Lighting!BH23) -> 0.009559849198 | AL45: =IF(NewConst!$F$203=NewConst!$I$203,'Detailed Lighting'!BE13,Lighting!BI23) -> 0.01091047372 | AM45: =IF(NewConst!$F$203=NewConst!$I$203,'Detailed Lighting'!BF13,Lighting!BJ23) -> 0.01291512006 | AN45: =IF(NewConst!$F$203=NewConst!$I$203,'Detailed Lighting'!BG13,Lighting!BK23) -> 0.01577984217 | AO45: =IF(NewConst!$F$203=NewConst!$I$203,'Detailed Lighting'!BH13,Lighting!BL23) -> 0.01812521459 | AP45: =IF(NewConst!$F$203=NewConst!$I$203,'Detailed Lighting'!BI13,Lighting!BM23) -> 0.01938030591 | AQ45: =IF(NewConst!$F$203=NewConst!$I$203,'Detailed Lighting'!BJ13,Lighting!BN23) -> 0.01902426904 | AR45: =IF(NewConst!$F$203=NewConst!$I$203,'Detailed Lighting'!BK13,Lighting!BO23) -> 0.01692526369 | AS45: =IF(NewConst!$F$203=NewConst!$I$203,'Detailed Lighting'!BL13,Lighting!BP23) -> 0.01417900387 | AT45: =IF(NewConst!$F$203=NewConst!$I$203,'Detailed Lighting'!BM13,Lighting!BQ23) -> 0.01173283914 | AU45: =IF(NewConst!$F$203=NewConst!$I$203,'Detailed Lighting'!BN13,Lighting!BR23) -> 0.009939715818 | AV45: =IF(NewConst!$F$203=NewConst!$I$203,'Detailed Lighting'!BO13,Lighting!BS23) -> 0.009203285209 | AW45: =IF(NewConst!$F$203=NewConst!$I$203,'Detailed Lighting'!BP13,Lighting!BG23) -> 0.01304764223 | BA45: 3 | BB45: 0.001634550013 | BC45: 0.04166666667 | BD45: 0.001634550013 | BE45: 0.004055247297 | BF45: 0 | BG45: 0.01682242991 | BH45: 0.02319044273 | BI45: 0.04166666667 | BJ45: 0 | BK45: 0 | BL45: 0 | BM45: 0 | BN45: 0 | BO45: 0.003960396 | BP45: 0.01682242991 | BQ45: 0 | BR45: 0.04166666667 | BT45: =IF(AVERAGE('Sunrise Calc'!$G$2:$G$13)>'Hourly Profiles'!BA45, 1/12, "0.000") -> 0.08333333333 | BU45: 0.02485436893 | BX45: 0.02114541768 | BY45: =BX45*250*NewConst!$F$250 -> 52.86354419 | BZ45: =BX45*200*NewConst!$F$250 -> 42.29083535 | CA45: 0 | CB45: 0 | CC45: 0 | CD45: 0 | CE45: =CD45*710*NewConst!$F$419 -> 0 | CF45: =CD45*1090*NewConst!$F$419 -> 0 | CG45: 0 | CH45: =$CG45*CH$7*NewConst!$E$413 -> 0 | CI45: =$CG45*CI$7*NewConst!$E$413 -> 0
C46: 4 | D46: ='Hourly Profiles'!D12 -> 0.06051878873 | E46: 0.008 | F46: ='Hourly Profiles'!F12 -> 0.003738318 | G46: ='Hourly Profiles'!G12 -> 0.003412969 | H46: =(F46*'Monthly Profiles'!V$40+G46*'Monthly Profiles'!T$40+I46*'Monthly Profiles'!W$40+J46*'Monthly Profiles'!X$40+K46*'Monthly Profiles'!Y$40)/'Monthly Profiles'!AA$40 -> 0.004606685061 | I46: ='Hourly Profiles'!I12 -> 0.003861003861 | J46: ='Hourly Profiles'!J12 -> 0.004859086492 | K46: ='Hourly Profiles'!K12 -> 0.005099150142 | L46: ='Hourly Profiles'!L12 -> 0.036921329 | M46: ='Hourly Profiles'!M12 -> 0.001980198 | N46: ='Hourly Profiles'!N12 -> 0.003536068 | O46: ='Hourly Profiles'!O12 -> 0.034 | P46: 0.01652407222 | Q46: 0.03796307385 | R46: 0.04035285285 | S46: 0.0015 | T46: 0 | U46: 0.0005005005005 | V46: 0.000998003992 | W46: 0.001 | X46: 0.05793255943 | Y46: 0.02881420514 | Z46: 0.02881420514 | AA46: 0.003991053678 | AB46: 0.003991053678 | AC46: 0.015 | AD46: 0.05687203791 | AE46: =((L46*NewConst!F$238+O46*NewConst!$F$155/365+N46*NewConst!F$328+G46*NewConst!F$298+M46*NewConst!F$279+F46*NewConst!F$264)*3412+(M46*NewConst!F$280+N46*NewConst!F$332)*100000)/((NewConst!F$238+NewConst!$F$155/365+NewConst!F$328+NewConst!F$298+NewConst!F$279+NewConst!F$264)*3412+(NewConst!F$280+NewConst!F$332)*100000) -> 0.0109953747 | AF46: 0.02597655593 | AG46: 0.008904587281 | AH46: 1 | AI46: =$AH46*NewConst!$E$400*N_occ -> 580.8 | AJ46: =$AH46*NewConst!$E$401*N_occ -> 432.96 | AK46: =IF(NewConst!$F$203=NewConst!$I$203,'Detailed Lighting'!BD14,Lighting!BH24) -> 0.009559849198 | AL46: =IF(NewConst!$F$203=NewConst!$I$203,'Detailed Lighting'!BE14,Lighting!BI24) -> 0.01091047372 | AM46: =IF(NewConst!$F$203=NewConst!$I$203,'Detailed Lighting'!BF14,Lighting!BJ24) -> 0.01291512006 | AN46: =IF(NewConst!$F$203=NewConst!$I$203,'Detailed Lighting'!BG14,Lighting!BK24) -> 0.01577984217 | AO46: =IF(NewConst!$F$203=NewConst!$I$203,'Detailed Lighting'!BH14,Lighting!BL24) -> 0.01812521459 | AP46: =IF(NewConst!$F$203=NewConst!$I$203,'Detailed Lighting'!BI14,Lighting!BM24) -> 0.01938030591 | AQ46: =IF(NewConst!$F$203=NewConst!$I$203,'Detailed Lighting'!BJ14,Lighting!BN24) -> 0.01902426904 | AR46: =IF(NewConst!$F$203=NewConst!$I$203,'Detailed Lighting'!BK14,Lighting!BO24) -> 0.01692526369 | AS46: =IF(NewConst!$F$203=NewConst!$I$203,'Detailed Lighting'!BL14,Lighting!BP24) -> 0.01417900387 | AT46: =IF(NewConst!$F$203=NewConst!$I$203,'Detailed Lighting'!BM14,Lighting!BQ24) -> 0.01173283914 | AU46: =IF(NewConst!$F$203=NewConst!$I$203,'Detailed Lighting'!BN14,Lighting!BR24) -> 0.009939715818 | AV46: =IF(NewConst!$F$203=NewConst!$I$203,'Detailed Lighting'!BO14,Lighting!BS24) -> 0.009203285209 | AW46: =IF(NewConst!$F$203=NewConst!$I$203,'Detailed Lighting'!BP14,Lighting!BG24) -> 0.01304764223 | BA46: 4 | BB46: 0.004075882562 | BC46: 0.04166666667 | BD46: 0.004075882562 | BE46: 0.001667228857 | BF46: 0 | BG46: 0.01682242991 | BH46: 0.02319044273 | BI46: 0.04166666667 | BJ46: 0 | BK46: 0 | BL46: 0 | BM46: 0 | BN46: 0 | BO46: 0.001980198 | BP46: 0.01682242991 | BQ46: 0 | BR46: 0.04166666667 | BT46: =IF(AVERAGE('Sunrise Calc'!$G$2:$G$13)>'Hourly Profiles'!BA46, 1/12, "0.000") -> 0.08333333333 | BU46: 0.0240776699 | BX46: 0.05272780794 | BY46: =BX46*250*NewConst!$F$250 -> 131.8195199 | BZ46: =BX46*200*NewConst!$F$250 -> 105.4556159 | CA46: 0 | CB46: 0 | CC46: 0 | CD46: 0 | CE46: =CD46*710*NewConst!$F$419 -> 0 | CF46: =CD46*1090*NewConst!$F$419 -> 0 | CG46: 0 | CH46: =$CG46*CH$7*NewConst!$E$413 -> 0 | CI46: =$CG46*CI$7*NewConst!$E$413 -> 0
C47: 5 | D47: ='Hourly Profiles'!D13 -> 0.06051878873 | E47: 0.024 | F47: ='Hourly Profiles'!F13 -> 0.007476636 | G47: ='Hourly Profiles'!G13 -> 0.003412969 | H47: =(F47*'Monthly Profiles'!V$40+G47*'Monthly Profiles'!T$40+I47*'Monthly Profiles'!W$40+J47*'Monthly Profiles'!X$40+K47*'Monthly Profiles'!Y$40)/'Monthly Profiles'!AA$40 -> 0.009389606405 | I47: ='Hourly Profiles'!I13 -> 0.007722007722 | J47: ='Hourly Profiles'!J13 -> 0.01360544218 | K47: ='Hourly Profiles'!K13 -> 0.006798866856 | L47: ='Hourly Profiles'!L13 -> 0.036353309 | M47: ='Hourly Profiles'!M13 -> 0.003960396 | N47: ='Hourly Profiles'!N13 -> 0.007072136 | O47: ='Hourly Profiles'!O13 -> 0.032 | P47: 0.02354964895 | Q47: 0.03696307385 | R47: 0.0403483841 | S47: 0.0065 | T47: 0.001994017946 | U47: 0.004504504505 | V47: 0.00249500998 | W47: 0.0005 | X47: 0.04990662304 | Y47: 0.0466945102 | Z47: 0.0466945102 | AA47: 0.008482107356 | AB47: 0.008482107356 | AC47: 0.016 | AD47: 0.05687203791 | AE47: =((L47*NewConst!F$238+O47*NewConst!$F$155/365+N47*NewConst!F$328+G47*NewConst!F$298+M47*NewConst!F$279+F47*NewConst!F$264)*3412+(M47*NewConst!F$280+N47*NewConst!F$332)*100000)/((NewConst!F$238+NewConst!$F$155/365+NewConst!F$328+NewConst!F$298+NewConst!F$279+NewConst!F$264)*3412+(NewConst!F$280+NewConst!F$332)*100000) -> 0.01280879794 | AF47: 0.02592724282 | AG47: 0.0130897945 | AH47: 1 | AI47: =$AH47*NewConst!$E$400*N_occ -> 580.8 | AJ47: =$AH47*NewConst!$E$401*N_occ -> 432.96 | AK47: =IF(NewConst!$F$203=NewConst!$I$203,'Detailed Lighting'!BD15,Lighting!BH25) -> 0.009559849198 | AL47: =IF(NewConst!$F$203=NewConst!$I$203,'Detailed Lighting'!BE15,Lighting!BI25) -> 0.01091047372 | AM47: =IF(NewConst!$F$203=NewConst!$I$203,'Detailed Lighting'!BF15,Lighting!BJ25) -> 0.01291512006 | AN47: =IF(NewConst!$F$203=NewConst!$I$203,'Detailed Lighting'!BG15,Lighting!BK25) -> 0.01577984217 | AO47: =IF(NewConst!$F$203=NewConst!$I$203,'Detailed Lighting'!BH15,Lighting!BL25) -> 0.01812521459 | AP47: =IF(NewConst!$F$203=NewConst!$I$203,'Detailed Lighting'!BI15,Lighting!BM25) -> 0.01938030591 | AQ47: =IF(NewConst!$F$203=NewConst!$I$203,'Detailed Lighting'!BJ15,Lighting!BN25) -> 0.01902426904 | AR47: =IF(NewConst!$F$203=NewConst!$I$203,'Detailed Lighting'!BK15,Lighting!BO25) -> 0.01692526369 | AS47: =IF(NewConst!$F$203=NewConst!$I$203,'Detailed Lighting'!BL15,Lighting!BP25) -> 0.01417900387 | AT47: =IF(NewConst!$F$203=NewConst!$I$203,'Detailed Lighting'!BM15,Lighting!BQ25) -> 0.01173283914 | AU47: =IF(NewConst!$F$203=NewConst!$I$203,'Detailed Lighting'!BN15,Lighting!BR25) -> 0.009939715818 | AV47: =IF(NewConst!$F$203=NewConst!$I$203,'Detailed Lighting'!BO15,Lighting!BS25) -> 0.009203285209 | AW47: =IF(NewConst!$F$203=NewConst!$I$203,'Detailed Lighting'!BP15,Lighting!BG25) -> 0.01304764223 | BA47: 5 | BB47: 0.004797714007 | BC47: 0.04166666667 | BD47: 0.004797714007 | BE47: 0.004157369899 | BF47: 0 | BG47: 0.01682242991 | BH47: 0.02319044273 | BI47: 0.04166666667 | BJ47: 0 | BK47: 0 | BL47: 0 | BM47: 0 | BN47: 0 | BO47: 0.003960396 | BP47: 0.01682242991 | BQ47: 0 | BR47: 0.04166666667 | BT47: =IF(AVERAGE('Sunrise Calc'!$G$2:$G$13)>'Hourly Profiles'!BA47, 1/12, "0.000") -> 0.08333333333 | BU47: 0.0240776699 | BX47: 0.06206580755 | BY47: =BX47*250*NewConst!$F$250 -> 155.1645189 | BZ47: =BX47*200*NewConst!$F$250 -> 124.1316151 | CA47: 0 | CB47: 0 | CC47: 0 | CD47: 0 | CE47: =CD47*710*NewConst!$F$419 -> 0 | CF47: =CD47*1090*NewConst!$F$419 -> 0 | CG47: 0 | CH47: =$CG47*CH$7*NewConst!$E$413 -> 0 | CI47: =$CG47*CI$7*NewConst!$E$413 -> 0
C48: 6 | D48: ='Hourly Profiles'!D14 -> 0.06051878873 | E48: 0.05 | F48: ='Hourly Profiles'!F14 -> 0.011214953 | G48: ='Hourly Profiles'!G14 -> 0.010238908 | H48: =(F48*'Monthly Profiles'!V$40+G48*'Monthly Profiles'!T$40+I48*'Monthly Profiles'!W$40+J48*'Monthly Profiles'!X$40+K48*'Monthly Profiles'!Y$40)/'Monthly Profiles'!AA$40 -> 0.02925430983 | I48: ='Hourly Profiles'!I14 -> 0.01930501931 | J48: ='Hourly Profiles'!J14 -> 0.05150631681 | K48: ='Hourly Profiles'!K14 -> 0.01813031161 | L48: ='Hourly Profiles'!L14 -> 0.036353309 | M48: ='Hourly Profiles'!M14 -> 0.005940594 | N48: ='Hourly Profiles'!N14 -> 0.010608204 | O48: ='Hourly Profiles'!O14 -> 0.036 | P48: 0.03107522568 | Q48: 0.03646307385 | R48: 0.04034391534 | S48: 0.0115 | T48: 0.003489531406 | U48: 0.009009009009 | V48: 0.003493013972 | W48: 0.0005 | X48: 0.05391062704 | Y48: 0.06656091258 | Z48: 0.06656091258 | AA48: 0.01495526839 | AB48: 0.01495526839 | AC48: 0.0175 | AD48: 0.05687203791 | AE48: =((L48*NewConst!F$238+O48*NewConst!$F$155/365+N48*NewConst!F$328+G48*NewConst!F$298+M48*NewConst!F$279+F48*NewConst!F$264)*3412+(M48*NewConst!F$280+N48*NewConst!F$332)*100000)/((NewConst!F$238+NewConst!$F$155/365+NewConst!F$328+NewConst!F$298+NewConst!F$279+NewConst!F$264)*3412+(NewConst!F$280+NewConst!F$332)*100000) -> 0.01497427848 | AF48: 0.03219694268 | AG48: 0.02887306625 | AH48: 1 | AI48: =$AH48*NewConst!$E$400*N_occ -> 580.8 | AJ48: =$AH48*NewConst!$E$401*N_occ -> 432.96 | AK48: =IF(NewConst!$F$203=NewConst!$I$203,'Detailed Lighting'!BD16,Lighting!BH26) -> 0.01046786451 | AL48: =IF(NewConst!$F$203=NewConst!$I$203,'Detailed Lighting'!BE16,Lighting!BI26) -> 0.01174793491 | AM48: =IF(NewConst!$F$203=NewConst!$I$203,'Detailed Lighting'!BF16,Lighting!BJ26) -> 0.01354069543 | AN48: =IF(NewConst!$F$203=NewConst!$I$203,'Detailed Lighting'!BG16,Lighting!BK26) -> 0.0166649614 | AO48: =IF(NewConst!$F$203=NewConst!$I$203,'Detailed Lighting'!BH16,Lighting!BL26) -> 0.01876566366 | AP48: =IF(NewConst!$F$203=NewConst!$I$203,'Detailed Lighting'!BI16,Lighting!BM26) -> 0.01994359997 | AQ48: =IF(NewConst!$F$203=NewConst!$I$203,'Detailed Lighting'!BJ16,Lighting!BN26) -> 0.01968350084 | AR48: =IF(NewConst!$F$203=NewConst!$I$203,'Detailed Lighting'!BK16,Lighting!BO26) -> 0.01774951827 | AS48: =IF(NewConst!$F$203=NewConst!$I$203,'Detailed Lighting'!BL16,Lighting!BP26) -> 0.01512514176 | AT48: =IF(NewConst!$F$203=NewConst!$I$203,'Detailed Lighting'!BM16,Lighting!BQ26) -> 0.01277075506 | AU48: =IF(NewConst!$F$203=NewConst!$I$203,'Detailed Lighting'!BN16,Lighting!BR26) -> 0.01060175987 | AV48: =IF(NewConst!$F$203=NewConst!$I$203,'Detailed Lighting'!BO16,Lighting!BS26) -> 0.01001489822 | AW48: =IF(NewConst!$F$203=NewConst!$I$203,'Detailed Lighting'!BP16,Lighting!BG26) -> 0.01384499176 | BA48: 6 | BB48: 0.01124337805 | BC48: 0.04166666667 | BD48: 0.01124337805 | BE48: 0.004893632604 | BF48: 0 | BG48: 0.01682242991 | BH48: 0.02319044273 | BI48: 0.04166666667 | BJ48: 0 | BK48: 0 | BL48: 0 | BM48: 0 | BN48: 0 | BO48: 0.005940594 | BP48: 0.01682242991 | BQ48: 0 | BR48: 0.04166666667 | BT48: =IF(AVERAGE('Sunrise Calc'!$G$2:$G$13)>'Hourly Profiles'!BA48, 1/12, "0.000") -> 0.08333333333 | BU48: 0.02718446602 | BX48: 0.1454503827 | BY48: =BX48*250*NewConst!$F$250 -> 363.6259567 | BZ48: =BX48*200*NewConst!$F$250 -> 290.9007654 | CA48: 0 | CB48: 0 | CC48: 0 | CD48: 0 | CE48: =CD48*710*NewConst!$F$419 -> 0 | CF48: =CD48*1090*NewConst!$F$419 -> 0 | CG48: 0 | CH48: =$CG48*CH$7*NewConst!$E$413 -> 0 | CI48: =$CG48*CI$7*NewConst!$E$413 -> 0
C49: 7 | D49: ='Hourly Profiles'!D15 -> 0.06051878873 | E49: 0.056 | F49: ='Hourly Profiles'!F15 -> 0.022429907 | G49: ='Hourly Profiles'!G15 -> 0.020477816 | H49: =(F49*'Monthly Profiles'!V$40+G49*'Monthly Profiles'!T$40+I49*'Monthly Profiles'!W$40+J49*'Monthly Profiles'!X$40+K49*'Monthly Profiles'!Y$40)/'Monthly Profiles'!AA$40 -> 0.06673810384 | I49: ='Hourly Profiles'!I15 -> 0.04633204633 | J49: ='Hourly Profiles'!J15 -> 0.1175898931 | K49: ='Hourly Profiles'!K15 -> 0.04249291785 | L49: ='Hourly Profiles'!L15 -> 0.03777336 | M49: ='Hourly Profiles'!M15 -> 0.015841584 | N49: ='Hourly Profiles'!N15 -> 0.024752475 | O49: ='Hourly Profiles'!O15 -> 0.042 | P49: 0.04159478435 | Q49: 0.03696207585 | R49: 0.04034391534 | S49: 0.0285 | T49: 0.01495613061 | U49: 0.02152152152 | V49: 0.01597704591 | W49: 0.004992522433 | X49: 0.05990169274 | Y49: 0.05663042598 | Z49: 0.05663042598 | AA49: 0.02591650099 | AB49: 0.02591650099 | AC49: 0.0255 | AD49: 0.05687203791 | AE49: =((L49*NewConst!F$238+O49*NewConst!$F$155/365+N49*NewConst!F$328+G49*NewConst!F$298+M49*NewConst!F$279+F49*NewConst!F$264)*3412+(M49*NewConst!F$280+N49*NewConst!F$332)*100000)/((NewConst!F$238+NewConst!$F$155/365+NewConst!F$328+NewConst!F$298+NewConst!F$279+NewConst!F$264)*3412+(NewConst!F$280+NewConst!F$332)*100000) -> 0.02414555073 | AF49: 0.04396648418 | AG49: 0.05976371027 | AH49: 1 | AI49: =$AH49*NewConst!$E$400*N_occ -> 580.8 | AJ49: =$AH49*NewConst!$E$401*N_occ -> 432.96 | AK49: =IF(NewConst!$F$203=NewConst!$I$203,'Detailed Lighting'!BD17,Lighting!BH27) -> 0.02258490878 | AL49: =IF(NewConst!$F$203=NewConst!$I$203,'Detailed Lighting'!BE17,Lighting!BI27) -> 0.02292346705 | AM49: =IF(NewConst!$F$203=NewConst!$I$203,'Detailed Lighting'!BF17,Lighting!BJ27) -> 0.0218887093 | AN49: =IF(NewConst!$F$203=NewConst!$I$203,'Detailed Lighting'!BG17,Lighting!BK27) -> 0.02847646807 | AO49: =IF(NewConst!$F$203=NewConst!$I$203,'Detailed Lighting'!BH17,Lighting!BL27) -> 0.02731216026 | AP49: =IF(NewConst!$F$203=NewConst!$I$203,'Detailed Lighting'!BI17,Lighting!BM27) -> 0.02746049859 | AQ49: =IF(NewConst!$F$203=NewConst!$I$203,'Detailed Lighting'!BJ17,Lighting!BN27) -> 0.02848064427 | AR49: =IF(NewConst!$F$203=NewConst!$I$203,'Detailed Lighting'!BK17,Lighting!BO27) -> 0.02874881427 | AS49: =IF(NewConst!$F$203=NewConst!$I$203,'Detailed Lighting'!BL17,Lighting!BP27) -> 0.02775091411 | AT49: =IF(NewConst!$F$203=NewConst!$I$203,'Detailed Lighting'!BM17,Lighting!BQ27) -> 0.02662126293 | AU49: =IF(NewConst!$F$203=NewConst!$I$203,'Detailed Lighting'!BN17,Lighting!BR27) -> 0.01943643151 | AV49: =IF(NewConst!$F$203=NewConst!$I$203,'Detailed Lighting'!BO17,Lighting!BS27) -> 0.02084549843 | AW49: =IF(NewConst!$F$203=NewConst!$I$203,'Detailed Lighting'!BP17,Lighting!BG27) -> 0.02448525237 | BA49: 7 | BB49: 0.02308596469 | BC49: 0.04166666667 | BD49: 0.02308596469 | BE49: 0.01146816199 | BF49: 0 | BG49: 0.01682242991 | BH49: 0.02319044273 | BI49: 0.04166666667 | BJ49: 0.03448275862 | BK49: 0.05882352941 | BL49: 0.04761904762 | BM49: 0.07142857143 | BN49: 0.07142857143 | BO49: 0.015841584 | BP49: 0.01682242991 | BQ49: 0 | BR49: 0.04166666667 | BT49: =IF(AVERAGE('Sunrise Calc'!$G$2:$G$13)>'Hourly Profiles'!BA49, 1/12, "0.000") -> 0.000 | BU49: 0.03417475728 | BX49: 0.2986524498 | BY49: =BX49*250*NewConst!$F$250 -> 746.6311245 | BZ49: =BX49*200*NewConst!$F$250 -> 597.3048996 | CA49: 0 | CB49: 0 | CC49: 0 | CD49: 0.5 | CE49: =CD49*710*NewConst!$F$419 -> 1065 | CF49: =CD49*1090*NewConst!$F$419 -> 1635 | CG49: 0.5 | CH49: =$CG49*CH$7*NewConst!$E$413 -> 40.425 | CI49: =$CG49*CI$7*NewConst!$E$413 -> 25.575
C50: 8 | D50: ='Hourly Profiles'!D16 -> 0.05344389362 | E50: 0.05 | F50: ='Hourly Profiles'!F16 -> 0.048598131 | G50: ='Hourly Profiles'!G16 -> 0.030716724 | H50: =(F50*'Monthly Profiles'!V$40+G50*'Monthly Profiles'!T$40+I50*'Monthly Profiles'!W$40+J50*'Monthly Profiles'!X$40+K50*'Monthly Profiles'!Y$40)/'Monthly Profiles'!AA$40 -> 0.07864964719 | I50: ='Hourly Profiles'!I16 -> 0.05791505792 | J50: ='Hourly Profiles'!J16 -> 0.1166180758 | K50: ='Hourly Profiles'!K16 -> 0.06232294618 | L50: ='Hourly Profiles'!L16 -> 0.039761431 | M50: ='Hourly Profiles'!M16 -> 0.031683168 | N50: ='Hourly Profiles'!N16 -> 0.042432815 | O50: ='Hourly Profiles'!O16 -> 0.044 | P50: 0.05211434303 | Q50: 0.03746107784 | R50: 0.04084441584 | S50: 0.046 | T50: 0.02542472483 | U50: 0.03453453453 | V50: 0.02846107784 | W50: 0.009486540379 | X50: 0.05838525092 | Y50: 0.02434548617 | Z50: 0.02434548617 | AA50: 0.04388071571 | AB50: 0.04388071571 | AC50: 0.0325 | AD50: 0.02369668246 | AE50: =((L50*NewConst!F$238+O50*NewConst!$F$155/365+N50*NewConst!F$328+G50*NewConst!F$298+M50*NewConst!F$279+F50*NewConst!F$264)*3412+(M50*NewConst!F$280+N50*NewConst!F$332)*100000)/((NewConst!F$238+NewConst!$F$155/365+NewConst!F$328+NewConst!F$298+NewConst!F$279+NewConst!F$264)*3412+(NewConst!F$280+NewConst!F$332)*100000) -> 0.03726356129 | AF50: 0.04907115477 | AG50: 0.06861749809 | AH50: 0.8830958904 | AI50: =$AH50*NewConst!$E$400*N_occ -> 512.9020932 | AJ50: =$AH50*NewConst!$E$401*N_occ -> 382.3451967 | AK50: =IF(NewConst!$F$203=NewConst!$I$203,'Detailed Lighting'!BD18,Lighting!BH28) -> 0.04722584452 | AL50: =IF(NewConst!$F$203=NewConst!$I$203,'Detailed Lighting'!BE18,Lighting!BI28) -> 0.04564976591 | AM50: =IF(NewConst!$F$203=NewConst!$I$203,'Detailed Lighting'!BF18,Lighting!BJ28) -> 0.03886503361 | AN50: =IF(NewConst!$F$203=NewConst!$I$203,'Detailed Lighting'!BG18,Lighting!BK28) -> 0.05249606974 | AO50: =IF(NewConst!$F$203=NewConst!$I$203,'Detailed Lighting'!BH18,Lighting!BL28) -> 0.04469211439 | AP50: =IF(NewConst!$F$203=NewConst!$I$203,'Detailed Lighting'!BI18,Lighting!BM28) -> 0.04274668653 | AQ50: =IF(NewConst!$F$203=NewConst!$I$203,'Detailed Lighting'!BJ18,Lighting!BN28) -> 0.04637030788 | AR50: =IF(NewConst!$F$203=NewConst!$I$203,'Detailed Lighting'!BK18,Lighting!BO28) -> 0.05111672347 | AS50: =IF(NewConst!$F$203=NewConst!$I$203,'Detailed Lighting'!BL18,Lighting!BP28) -> 0.0534263873 | AT50: =IF(NewConst!$F$203=NewConst!$I$203,'Detailed Lighting'!BM18,Lighting!BQ28) -> 0.05478732941 | AU50: =IF(NewConst!$F$203=NewConst!$I$203,'Detailed Lighting'!BN18,Lighting!BR28) -> 0.03740241159 | AV50: =IF(NewConst!$F$203=NewConst!$I$203,'Detailed Lighting'!BO18,Lighting!BS28) -> 0.04287035184 | AW50: =IF(NewConst!$F$203=NewConst!$I$203,'Detailed Lighting'!BP18,Lighting!BG28) -> 0.04612303566 | BA50: 8 | BB50: 0.03738859334 | BC50: 0.04166666667 | BD50: 0.03738859334 | BE50: 0.02354751228 | BF50: 0 | BG50: 0.01682242991 | BH50: 0.03513703443 | BI50: 0.04166666667 | BJ50: 0.06896551724 | BK50: 0.05882352941 | BL50: 0.09523809524 | BM50: 0.07142857143 | BN50: 0.07142857143 | BO50: 0.031683168 | BP50: 0.01682242991 | BQ50: 0 | BR50: 0.04166666667 | BT50: =IF(AVERAGE('Sunrise Calc'!$G$2:$G$13)>'Hourly Profiles'!BA50, 1/12, "0.000") -> 0.000 | BU50: 0.04116504854 | BX50: 0.4836789429 | BY50: =BX50*250*NewConst!$F$250 -> 1209.197357 | BZ50: =BX50*200*NewConst!$F$250 -> 967.3578858 | CA50: 0 | CB50: 0 | CC50: 0 | CD50: 1 | CE50: =CD50*710*NewConst!$F$419 -> 2130 | CF50: =CD50*1090*NewConst!$F$419 -> 3270 | CG50: 0.5 | CH50: =$CG50*CH$7*NewConst!$E$413 -> 40.425 | CI50: =$CG50*CI$7*NewConst!$E$413 -> 25.575
C51: 9 | D51: ='Hourly Profiles'!D17 -> 0.02472855625 | E51: 0.022 | F51: ='Hourly Profiles'!F17 -> 0.072897196 | G51: ='Hourly Profiles'!G17 -> 0.058020478 | H51: =(F51*'Monthly Profiles'!V$40+G51*'Monthly Profiles'!T$40+I51*'Monthly Profiles'!W$40+J51*'Monthly Profiles'!X$40+K51*'Monthly Profiles'!Y$40)/'Monthly Profiles'!AA$40 -> 0.077360986 | I51: ='Hourly Profiles'!I17 -> 0.06563706564 | J51: ='Hourly Profiles'!J17 -> 0.09475218659 | K51: ='Hourly Profiles'!K17 -> 0.0657223796 | L51: ='Hourly Profiles'!L17 -> 0.040613462 | M51: ='Hourly Profiles'!M17 -> 0.048316832 | N51: ='Hourly Profiles'!N17 -> 0.045968883 | O51: ='Hourly Profiles'!O17 -> 0.037 | P51: 0.05460381143 | Q51: 0.03796107784 | R51: 0.04134491634 | S51: 0.0435 | T51: 0.05239376775 | U51: 0.06449113784 | V51: 0.04344111776 | W51: 0.01797158524 | X51: 0.06137032555 | Y51: 0.02384402621 | Z51: 0.02384402621 | AA51: 0.08427932406 | AB51: 0.08427932406 | AC51: 0.0325 | AD51: 0.02369668246 | AE51: =((L51*NewConst!F$238+O51*NewConst!$F$155/365+N51*NewConst!F$328+G51*NewConst!F$298+M51*NewConst!F$279+F51*NewConst!F$264)*3412+(M51*NewConst!F$280+N51*NewConst!F$332)*100000)/((NewConst!F$238+NewConst!$F$155/365+NewConst!F$328+NewConst!F$298+NewConst!F$279+NewConst!F$264)*3412+(NewConst!F$280+NewConst!F$332)*100000) -> 0.04664597287 | AF51: 0.04589926738 | AG51: 0.06262898224 | AH51: 0.4086095703 | AI51: =$AH51*NewConst!$E$400*N_occ -> 237.3204384 | AJ51: =$AH51*NewConst!$E$401*N_occ -> 176.9115995 | AK51: =IF(NewConst!$F$203=NewConst!$I$203,'Detailed Lighting'!BD19,Lighting!BH29) -> 0.04511949377 | AL51: =IF(NewConst!$F$203=NewConst!$I$203,'Detailed Lighting'!BE19,Lighting!BI29) -> 0.0407309392 | AM51: =IF(NewConst!$F$203=NewConst!$I$203,'Detailed Lighting'!BF19,Lighting!BJ29) -> 0.03137051692 | AN51: =IF(NewConst!$F$203=NewConst!$I$203,'Detailed Lighting'!BG19,Lighting!BK29) -> 0.04164800662 | AO51: =IF(NewConst!$F$203=NewConst!$I$203,'Detailed Lighting'!BH19,Lighting!BL29) -> 0.03367381519 | AP51: =IF(NewConst!$F$203=NewConst!$I$203,'Detailed Lighting'!BI19,Lighting!BM29) -> 0.03182907143 | AQ51: =IF(NewConst!$F$203=NewConst!$I$203,'Detailed Lighting'!BJ19,Lighting!BN29) -> 0.03489501736 | AR51: =IF(NewConst!$F$203=NewConst!$I$203,'Detailed Lighting'!BK19,Lighting!BO29) -> 0.03992178055 | AS51: =IF(NewConst!$F$203=NewConst!$I$203,'Detailed Lighting'!BL19,Lighting!BP29) -> 0.04442741536 | AT51: =IF(NewConst!$F$203=NewConst!$I$203,'Detailed Lighting'!BM19,Lighting!BQ29) -> 0.04909011844 | AU51: =IF(NewConst!$F$203=NewConst!$I$203,'Detailed Lighting'!BN19,Lighting!BR29) -> 0.03605645397 | AV51: =IF(NewConst!$F$203=NewConst!$I$203,'Detailed Lighting'!BO19,Lighting!BS29) -> 0.04247479421 | AW51: =IF(NewConst!$F$203=NewConst!$I$203,'Detailed Lighting'!BP19,Lighting!BG29) -> 0.03995658826 | BA51: 9 | BB51: 0.05084423939 | BC51: 0.04166666667 | BD51: 0.05084423939 | BE51: 0.03813608714 | BF51: 0.1176470588 | BG51: 0.08411214953 | BH51: 0.07027406887 | BI51: 0.04166666667 | BJ51: 0.06896551724 | BK51: 0.05882352941 | BL51: 0.09523809524 | BM51: 0.07142857143 | BN51: 0.07142857143 | BO51: 0.048316832 | BP51: 0.08411214953 | BQ51: 0.1111111111 | BR51: 0.04166666667 | BT51: =IF(AVERAGE('Sunrise Calc'!$G$2:$G$13)>'Hourly Profiles'!BA51, 1/12, "0.000") -> 0.000 | BU51: 0.04194174757 | BX51: 0.6577484137 | BY51: =BX51*250*NewConst!$F$250 -> 1644.371034 | BZ51: =BX51*200*NewConst!$F$250 -> 1315.496827 | CA51: 1 | CB51: 750 | CC51: 600 | CD51: 1 | CE51: =CD51*710*NewConst!$F$419 -> 2130 | CF51: =CD51*1090*NewConst!$F$419 -> 3270 | CG51: 0.5 | CH51: =$CG51*CH$7*NewConst!$E$413 -> 40.425 | CI51: =$CG51*CI$7*NewConst!$E$413 -> 25.575
C52: 10 | D52: ='Hourly Profiles'!D18 -> 0.01463875568 | E52: 0.015 | F52: ='Hourly Profiles'!F18 -> 0.085981308 | G52: ='Hourly Profiles'!G18 -> 0.064846416 | H52: =(F52*'Monthly Profiles'!V$40+G52*'Monthly Profiles'!T$40+I52*'Monthly Profiles'!W$40+J52*'Monthly Profiles'!X$40+K52*'Monthly Profiles'!Y$40)/'Monthly Profiles'!AA$40 -> 0.07008115833 | I52: ='Hourly Profiles'!I18 -> 0.05791505792 | J52: ='Hourly Profiles'!J18 -> 0.07434402332 | K52: ='Hourly Profiles'!K18 -> 0.06175637394 | L52: ='Hourly Profiles'!L18 -> 0.041181483 | M52: ='Hourly Profiles'!M18 -> 0.068118812 | N52: ='Hourly Profiles'!N18 -> 0.048090523 | O52: ='Hourly Profiles'!O18 -> 0.032 | P52: 0.05809478435 | Q52: 0.03946007984 | R52: 0.04234591735 | S52: 0.041 | T52: 0.07886331017 | U52: 0.09444774115 | V52: 0.05742215569 | W52: 0.02645663011 | X52: 0.06385788774 | Y52: 0.01937530724 | Z52: 0.01937530724 | AA52: 0.1206600398 | AB52: 0.1206600398 | AC52: 0.032 | AD52: 0.02369668246 | AE52: =((L52*NewConst!F$238+O52*NewConst!$F$155/365+N52*NewConst!F$328+G52*NewConst!F$298+M52*NewConst!F$279+F52*NewConst!F$264)*3412+(M52*NewConst!F$280+N52*NewConst!F$332)*100000)/((NewConst!F$238+NewConst!$F$155/365+NewConst!F$328+NewConst!F$298+NewConst!F$279+NewConst!F$264)*3412+(NewConst!F$280+NewConst!F$332)*100000) -> 0.05588510529 | AF52: 0.04271136502 | AG52: 0.05577670908 | AH52: 0.2418877838 | AI52: =$AH52*NewConst!$E$400*N_occ -> 140.4884248 | AJ52: =$AH52*NewConst!$E$401*N_occ -> 104.7277349 | AK52: =IF(NewConst!$F$203=NewConst!$I$203,'Detailed Lighting'!BD20,Lighting!BH30) -> 0.02312943294 | AL52: =IF(NewConst!$F$203=NewConst!$I$203,'Detailed Lighting'!BE20,Lighting!BI30) -> 0.02044953837 | AM52: =IF(NewConst!$F$203=NewConst!$I$203,'Detailed Lighting'!BF20,Lighting!BJ30) -> 0.01622050767 | AN52: =IF(NewConst!$F$203=NewConst!$I$203,'Detailed Lighting'!BG20,Lighting!BK30) -> 0.02021243666 | AO52: =IF(NewConst!$F$203=NewConst!$I$203,'Detailed Lighting'!BH20,Lighting!BL30) -> 0.01816359867 | AP52: =IF(NewConst!$F$203=NewConst!$I$203,'Detailed Lighting'!BI20,Lighting!BM30) -> 0.01818737347 | AQ52: =IF(NewConst!$F$203=NewConst!$I$203,'Detailed Lighting'!BJ20,Lighting!BN30) -> 0.01892992597 | AR52: =IF(NewConst!$F$203=NewConst!$I$203,'Detailed Lighting'!BK20,Lighting!BO30) -> 0.01996021378 | AS52: =IF(NewConst!$F$203=NewConst!$I$203,'Detailed Lighting'!BL20,Lighting!BP30) -> 0.02151411274 | AT52: =IF(NewConst!$F$203=NewConst!$I$203,'Detailed Lighting'!BM20,Lighting!BQ30) -> 0.02395416087 | AU52: =IF(NewConst!$F$203=NewConst!$I$203,'Detailed Lighting'!BN20,Lighting!BR30) -> 0.02002325624 | AV52: =IF(NewConst!$F$203=NewConst!$I$203,'Detailed Lighting'!BO20,Lighting!BS30) -> 0.02281937725 | AW52: =IF(NewConst!$F$203=NewConst!$I$203,'Detailed Lighting'!BP20,Lighting!BG30) -> 0.02064660037 | BA52: 10 | BB52: 0.05640904153 | BC52: 0.04166666667 | BD52: 0.05640904153 | BE52: 0.05186074603 | BF52: 0.1176470588 | BG52: 0.08411214953 | BH52: 0.07027406887 | BI52: 0.04166666667 | BJ52: 0.06896551724 | BK52: 0.05882352941 | BL52: 0.04761904762 | BM52: 0.1428571429 | BN52: 0.1428571429 | BO52: 0.068118812 | BP52: 0.08411214953 | BQ52: 0.1111111111 | BR52: 0.04166666667 | BT52: =IF(AVERAGE('Sunrise Calc'!$G$2:$G$13)>'Hourly Profiles'!BA52, 1/12, "0.000") -> 0.000 | BU52: 0.0427184466 | BX52: 0.7297376856 | BY52: =BX52*250*NewConst!$F$250 -> 1824.344214 | BZ52: =BX52*200*NewConst!$F$250 -> 1459.475371 | CA52: 1 | CB52: 750 | CC52: 600 | CD52: 1 | CE52: =CD52*710*NewConst!$F$419 -> 2130 | CF52: =CD52*1090*NewConst!$F$419 -> 3270 | CG52: 1 | CH52: =$CG52*CH$7*NewConst!$E$413 -> 80.85 | CI52: =$CG52*CI$7*NewConst!$E$413 -> 51.15
C53: 11 | D53: ='Hourly Profiles'!D19 -> 0.01463875568 | E53: 0.015 | F53: ='Hourly Profiles'!F19 -> 0.08411215 | G53: ='Hourly Profiles'!G19 -> 0.056313993 | H53: =(F53*'Monthly Profiles'!V$40+G53*'Monthly Profiles'!T$40+I53*'Monthly Profiles'!W$40+J53*'Monthly Profiles'!X$40+K53*'Monthly Profiles'!Y$40)/'Monthly Profiles'!AA$40 -> 0.06045960569 | I53: ='Hourly Profiles'!I19 -> 0.04633204633 | J53: ='Hourly Profiles'!J19 -> 0.05976676385 | K53: ='Hourly Profiles'!K19 -> 0.05439093484 | L53: ='Hourly Profiles'!L19 -> 0.039761431 | M53: ='Hourly Profiles'!M19 -> 0.078019802 | N53: ='Hourly Profiles'!N19 -> 0.042432815 | O53: ='Hourly Profiles'!O19 -> 0.033 | P53: 0.05507973922 | Q53: 0.04045908184 | R53: 0.04185435435 | S53: 0.0435 | T53: 0.07337976082 | U53: 0.1014172855 | V53: 0.07641916168 | W53: 0.03245214357 | X53: 0.05635038023 | Y53: 0.01540311261 | Z53: 0.01540311261 | AA53: 0.127082505 | AB53: 0.127082505 | AC53: 0.0325 | AD53: 0.02369668246 | AE53: =((L53*NewConst!F$238+O53*NewConst!$F$155/365+N53*NewConst!F$328+G53*NewConst!F$298+M53*NewConst!F$279+F53*NewConst!F$264)*3412+(M53*NewConst!F$280+N53*NewConst!F$332)*100000)/((NewConst!F$238+NewConst!$F$155/365+NewConst!F$328+NewConst!F$298+NewConst!F$279+NewConst!F$264)*3412+(NewConst!F$280+NewConst!F$332)*100000) -> 0.05748462289 | AF53: 0.04132843098 | AG53: 0.04797535952 | AH53: 0.2418877838 | AI53: =$AH53*NewConst!$E$400*N_occ -> 140.4884248 | AJ53: =$AH53*NewConst!$E$401*N_occ -> 104.7277349 | AK53: =IF(NewConst!$F$203=NewConst!$I$203,'Detailed Lighting'!BD21,Lighting!BH31) -> 0.0188329218 | AL53: =IF(NewConst!$F$203=NewConst!$I$203,'Detailed Lighting'!BE21,Lighting!BI31) -> 0.01648687246 | AM53: =IF(NewConst!$F$203=NewConst!$I$203,'Detailed Lighting'!BF21,Lighting!BJ31) -> 0.01326043476 | AN53: =IF(NewConst!$F$203=NewConst!$I$203,'Detailed Lighting'!BG21,Lighting!BK31) -> 0.0160242643 | AO53: =IF(NewConst!$F$203=NewConst!$I$203,'Detailed Lighting'!BH21,Lighting!BL31) -> 0.01513314694 | AP53: =IF(NewConst!$F$203=NewConst!$I$203,'Detailed Lighting'!BI21,Lighting!BM31) -> 0.0155220008 | AQ53: =IF(NewConst!$F$203=NewConst!$I$203,'Detailed Lighting'!BJ21,Lighting!BN31) -> 0.01581059886 | AR53: =IF(NewConst!$F$203=NewConst!$I$203,'Detailed Lighting'!BK21,Lighting!BO31) -> 0.0160600384 | AS53: =IF(NewConst!$F$203=NewConst!$I$203,'Detailed Lighting'!BL21,Lighting!BP31) -> 0.01703721472 | AT53: =IF(NewConst!$F$203=NewConst!$I$203,'Detailed Lighting'!BM21,Lighting!BQ31) -> 0.01904299112 | AU53: =IF(NewConst!$F$203=NewConst!$I$203,'Detailed Lighting'!BN21,Lighting!BR31) -> 0.01689062222 | AV53: =IF(NewConst!$F$203=NewConst!$I$203,'Detailed Lighting'!BO21,Lighting!BS31) -> 0.01897901871 | AW53: =IF(NewConst!$F$203=NewConst!$I$203,'Detailed Lighting'!BP21,Lighting!BG31) -> 0.01687373323 | BA53: 11 | BB53: 0.05647351334 | BC53: 0.04166666667 | BD53: 0.05647351334 | BE53: 0.05753680282 | BF53: 0.1176470588 | BG53: 0.08411214953 | BH53: 0.07027406887 | BI53: 0.04166666667 | BJ53: 0.06896551724 | BK53: 0.05882352941 | BL53: 0.04761904762 | BM53: 0.07142857143 | BN53: 0.07142857143 | BO53: 0.078019802 | BP53: 0.08411214953 | BQ53: 0.1111111111 | BR53: 0.04166666667 | BT53: =IF(AVERAGE('Sunrise Calc'!$G$2:$G$13)>'Hourly Profiles'!BA53, 1/12, "0.000") -> 0.000 | BU53: 0.04349514563 | BX53: 0.7305717276 | BY53: =BX53*250*NewConst!$F$250 -> 1826.429319 | BZ53: =BX53*200*NewConst!$F$250 -> 1461.143455 | CA53: 1 | CB53: 750 | CC53: 600 | CD53: 1 | CE53: =CD53*710*NewConst!$F$419 -> 2130 | CF53: =CD53*1090*NewConst!$F$419 -> 3270 | CG53: 0.5 | CH53: =$CG53*CH$7*NewConst!$E$413 -> 40.425 | CI53: =$CG53*CI$7*NewConst!$E$413 -> 25.575
C54: 12 | D54: ='Hourly Profiles'!D20 -> 0.01463875568 | E54: 0.015 | F54: ='Hourly Profiles'!F20 -> 0.074766355 | G54: ='Hourly Profiles'!G20 -> 0.04778157 | H54: =(F54*'Monthly Profiles'!V$40+G54*'Monthly Profiles'!T$40+I54*'Monthly Profiles'!W$40+J54*'Monthly Profiles'!X$40+K54*'Monthly Profiles'!Y$40)/'Monthly Profiles'!AA$40 -> 0.05131372435 | I54: ='Hourly Profiles'!I20 -> 0.03474903475 | J54: ='Hourly Profiles'!J20 -> 0.04713313897 | K54: ='Hourly Profiles'!K20 -> 0.04985835694 | L54: ='Hourly Profiles'!L20 -> 0.039761431 | M54: ='Hourly Profiles'!M20 -> 0.081188119 | N54: ='Hourly Profiles'!N20 -> 0.04950495 | O54: ='Hourly Profiles'!O20 -> 0.033 | P54: 0.05156469408 | Q54: 0.04245708583 | R54: 0.04186329186 | S54: 0.046 | T54: 0.06789621147 | U54: 0.1078878279 | V54: 0.09491616766 | W54: 0.03844765703 | X54: 0.05035931454 | Y54: 0.01390811042 | Z54: 0.01390811042 | AA54: 0.120582505 | AB54: 0.120582505 | AC54: 0.033 | AD54: 0.02369668246 | AE54: =((L54*NewConst!F$238+O54*NewConst!$F$155/365+N54*NewConst!F$328+G54*NewConst!F$298+M54*NewConst!F$279+F54*NewConst!F$264)*3412+(M54*NewConst!F$280+N54*NewConst!F$332)*100000)/((NewConst!F$238+NewConst!$F$155/365+NewConst!F$328+NewConst!F$298+NewConst!F$279+NewConst!F$264)*3412+(NewConst!F$280+NewConst!F$332)*100000) -> 0.06039224688 | AF54: 0.04015222286 | AG54: 0.04606819575 | AH54: 0.2418877838 | AI54: =$AH54*NewConst!$E$400*N_occ -> 140.4884248 | AJ54: =$AH54*NewConst!$E$401*N_occ -> 104.7277349 | AK54: =IF(NewConst!$F$203=NewConst!$I$203,'Detailed Lighting'!BD22,Lighting!BH32) -> 0.01865961378 | AL54: =IF(NewConst!$F$203=NewConst!$I$203,'Detailed Lighting'!BE22,Lighting!BI32) -> 0.01632703073 | AM54: =IF(NewConst!$F$203=NewConst!$I$203,'Detailed Lighting'!BF22,Lighting!BJ32) -> 0.01314103453 | AN54: =IF(NewConst!$F$203=NewConst!$I$203,'Detailed Lighting'!BG22,Lighting!BK32) -> 0.01585532633 | AO54: =IF(NewConst!$F$203=NewConst!$I$203,'Detailed Lighting'!BH22,Lighting!BL32) -> 0.01501090785 | AP54: =IF(NewConst!$F$203=NewConst!$I$203,'Detailed Lighting'!BI22,Lighting!BM32) -> 0.01541448788 | AQ54: =IF(NewConst!$F$203=NewConst!$I$203,'Detailed Lighting'!BJ22,Lighting!BN32) -> 0.01568477481 | AR54: =IF(NewConst!$F$203=NewConst!$I$203,'Detailed Lighting'!BK22,Lighting!BO32) -> 0.01590271734 | AS54: =IF(NewConst!$F$203=NewConst!$I$203,'Detailed Lighting'!BL22,Lighting!BP32) -> 0.01685663044 | AT54: =IF(NewConst!$F$203=NewConst!$I$203,'Detailed Lighting'!BM22,Lighting!BQ32) -> 0.01884488966 | AU54: =IF(NewConst!$F$203=NewConst!$I$203,'Detailed Lighting'!BN22,Lighting!BR32) -> 0.01676426142 | AV54: =IF(NewConst!$F$203=NewConst!$I$203,'Detailed Lighting'!BO22,Lighting!BS32) -> 0.01882411048 | AW54: =IF(NewConst!$F$203=NewConst!$I$203,'Detailed Lighting'!BP22,Lighting!BG32) -> 0.01672154739 | BA54: 12 | BB54: 0.06458937651 | BC54: 0.04166666667 | BD54: 0.06458937651 | BE54: 0.05760256359 | BF54: 0.1176470588 | BG54: 0.08411214953 | BH54: 0.07027406887 | BI54: 0.04166666667 | BJ54: 0.03448275862 | BK54: 0.05882352941 | BL54: 0.04761904762 | BM54: 0.07142857143 | BN54: 0.07142857143 | BO54: 0.081188119 | BP54: 0.08411214953 | BQ54: 0.1111111111 | BR54: 0.04166666667 | BT54: =IF(AVERAGE('Sunrise Calc'!$G$2:$G$13)>'Hourly Profiles'!BA54, 1/12, "0.000") -> 0.000 | BU54: 0.04427184466 | BX54: 0.8355628966 | BY54: =BX54*250*NewConst!$F$250 -> 2088.907241 | BZ54: =BX54*200*NewConst!$F$250 -> 1671.125793 | CA54: 1 | CB54: 750 | CC54: 600 | CD54: 0.5 | CE54: =CD54*710*NewConst!$F$419 -> 1065 | CF54: =CD54*1090*NewConst!$F$419 -> 1635 | CG54: 0.5 | CH54: =$CG54*CH$7*NewConst!$E$413 -> 40.425 | CI54: =$CG54*CI$7*NewConst!$E$413 -> 25.575
C55: 13 | D55: ='Hourly Profiles'!D21 -> 0.01463875568 | E55: 0.015 | F55: ='Hourly Profiles'!F21 -> 0.06728972 | G55: ='Hourly Profiles'!G21 -> 0.040955631 | H55: =(F55*'Monthly Profiles'!V$40+G55*'Monthly Profiles'!T$40+I55*'Monthly Profiles'!W$40+J55*'Monthly Profiles'!X$40+K55*'Monthly Profiles'!Y$40)/'Monthly Profiles'!AA$40 -> 0.04420712388 | I55: ='Hourly Profiles'!I21 -> 0.03088803089 | J55: ='Hourly Profiles'!J21 -> 0.03401360544 | K55: ='Hourly Profiles'!K21 -> 0.04872521246 | L55: ='Hourly Profiles'!L21 -> 0.041749503 | M55: ='Hourly Profiles'!M21 -> 0.074059406 | N55: ='Hourly Profiles'!N21 -> 0.056577086 | O55: ='Hourly Profiles'!O21 -> 0.032 | P55: 0.04956018054 | Q55: 0.04245708583 | R55: 0.04236379236 | S55: 0.042 | T55: 0.06489522442 | U55: 0.08043372714 | V55: 0.0924261477 | W55: 0.039944666 | X55: 0.0359105374 | Y55: 0.01390811042 | Z55: 0.01390811042 | AA55: 0.119582505 | AB55: 0.119582505 | AC55: 0.032 | AD55: 0.02369668246 | AE55: =((L55*NewConst!F$238+O55*NewConst!$F$155/365+N55*NewConst!F$328+G55*NewConst!F$298+M55*NewConst!F$279+F55*NewConst!F$264)*3412+(M55*NewConst!F$280+N55*NewConst!F$332)*100000)/((NewConst!F$238+NewConst!$F$155/365+NewConst!F$328+NewConst!F$298+NewConst!F$279+NewConst!F$264)*3412+(NewConst!F$280+NewConst!F$332)*100000) -> 0.05975721596 | AF55: 0.03863383359 | AG55: 0.04411725974 | AH55: 0.2418877838 | AI55: =$AH55*NewConst!$E$400*N_occ -> 140.4884248 | AJ55: =$AH55*NewConst!$E$401*N_occ -> 104.7277349 | AK55: =IF(NewConst!$F$203=NewConst!$I$203,'Detailed Lighting'!BD23,Lighting!BH33) -> 0.01866403116 | AL55: =IF(NewConst!$F$203=NewConst!$I$203,'Detailed Lighting'!BE23,Lighting!BI33) -> 0.016328454 | AM55: =IF(NewConst!$F$203=NewConst!$I$203,'Detailed Lighting'!BF23,Lighting!BJ33) -> 0.01314163194 | AN55: =IF(NewConst!$F$203=NewConst!$I$203,'Detailed Lighting'!BG23,Lighting!BK33) -> 0.01585391263 | AO55: =IF(NewConst!$F$203=NewConst!$I$203,'Detailed Lighting'!BH23,Lighting!BL33) -> 0.0150098981 | AP55: =IF(NewConst!$F$203=NewConst!$I$203,'Detailed Lighting'!BI23,Lighting!BM33) -> 0.01541363135 | AQ55: =IF(NewConst!$F$203=NewConst!$I$203,'Detailed Lighting'!BJ23,Lighting!BN33) -> 0.01568375821 | AR55: =IF(NewConst!$F$203=NewConst!$I$203,'Detailed Lighting'!BK23,Lighting!BO33) -> 0.01590141807 | AS55: =IF(NewConst!$F$203=NewConst!$I$203,'Detailed Lighting'!BL23,Lighting!BP33) -> 0.01685524422 | AT55: =IF(NewConst!$F$203=NewConst!$I$203,'Detailed Lighting'!BM23,Lighting!BQ33) -> 0.01884380652 | AU55: =IF(NewConst!$F$203=NewConst!$I$203,'Detailed Lighting'!BN23,Lighting!BR33) -> 0.01678379897 | AV55: =IF(NewConst!$F$203=NewConst!$I$203,'Detailed Lighting'!BO23,Lighting!BS33) -> 0.01883899184 | AW55: =IF(NewConst!$F$203=NewConst!$I$203,'Detailed Lighting'!BP23,Lighting!BG33) -> 0.01672558441 | BA55: 13 | BB55: 0.06203831547 | BC55: 0.04166666667 | BD55: 0.06203831547 | BE55: 0.06588068366 | BF55: 0.05882352941 | BG55: 0.07476635514 | BH55: 0.06605762474 | BI55: 0.04166666667 | BJ55: 0 | BK55: 0.05882352941 | BL55: 0 | BM55: 0.07142857143 | BN55: 0.07142857143 | BO55: 0.074059406 | BP55: 0.07476635514 | BQ55: 0.1111111111 | BR55: 0.04166666667 | BT55: =IF(AVERAGE('Sunrise Calc'!$G$2:$G$13)>'Hourly Profiles'!BA55, 1/12, "0.000") -> 0.000 | BU55: 0.04349514563 | BX55: 0.8025609995 | BY55: =BX55*250*NewConst!$F$250 -> 2006.402499 | BZ55: =BX55*200*NewConst!$F$250 -> 1605.121999 | CA55: 0.5 | CB55: 375 | CC55: 300 | CD55: 0 | CE55: =CD55*710*NewConst!$F$419 -> 0 | CF55: =CD55*1090*NewConst!$F$419 -> 0 | CG55: 0.5 | CH55: =$CG55*CH$7*NewConst!$E$413 -> 40.425 | CI55: =$CG55*CI$7*NewConst!$E$413 -> 25.575
C56: 14 | D56: ='Hourly Profiles'!D22 -> 0.01463875568 | E56: 0.015 | F56: ='Hourly Profiles'!F22 -> 0.059813084 | G56: ='Hourly Profiles'!G22 -> 0.046075085 | H56: =(F56*'Monthly Profiles'!V$40+G56*'Monthly Profiles'!T$40+I56*'Monthly Profiles'!W$40+J56*'Monthly Profiles'!X$40+K56*'Monthly Profiles'!Y$40)/'Monthly Profiles'!AA$40 -> 0.03956678947 | I56: ='Hourly Profiles'!I22 -> 0.02316602317 | J56: ='Hourly Profiles'!J22 -> 0.02915451895 | K56: ='Hourly Profiles'!K22 -> 0.04532577904 | L56: ='Hourly Profiles'!L22 -> 0.041749503 | M56: ='Hourly Profiles'!M22 -> 0.067326733 | N56: ='Hourly Profiles'!N22 -> 0.045968883 | O56: ='Hourly Profiles'!O22 -> 0.033 | P56: 0.047555667 | Q56: 0.04295708583 | R56: 0.04286429286 | S56: 0.038 | T56: 0.06139573288 | U56: 0.05348012683 | V56: 0.08893712575 | W56: 0.04094317049 | X56: 0.02844785084 | Y56: 0.01390811042 | Z56: 0.01390811042 | AA56: 0.09023161034 | AB56: 0.09023161034 | AC56: 0.0315 | AD56: 0.02369668246 | AE56: =((L56*NewConst!F$238+O56*NewConst!$F$155/365+N56*NewConst!F$328+G56*NewConst!F$298+M56*NewConst!F$279+F56*NewConst!F$264)*3412+(M56*NewConst!F$280+N56*NewConst!F$332)*100000)/((NewConst!F$238+NewConst!$F$155/365+NewConst!F$328+NewConst!F$298+NewConst!F$279+NewConst!F$264)*3412+(NewConst!F$280+NewConst!F$332)*100000) -> 0.05383909067 | AF56: 0.03751822729 | AG56: 0.03822229006 | AH56: 0.2418877838 | AI56: =$AH56*NewConst!$E$400*N_occ -> 140.4884248 | AJ56: =$AH56*NewConst!$E$401*N_occ -> 104.7277349 | AK56: =IF(NewConst!$F$203=NewConst!$I$203,'Detailed Lighting'!BD24,Lighting!BH34) -> 0.01876330295 | AL56: =IF(NewConst!$F$203=NewConst!$I$203,'Detailed Lighting'!BE24,Lighting!BI34) -> 0.01637689537 | AM56: =IF(NewConst!$F$203=NewConst!$I$203,'Detailed Lighting'!BF24,Lighting!BJ34) -> 0.01316954478 | AN56: =IF(NewConst!$F$203=NewConst!$I$203,'Detailed Lighting'!BG24,Lighting!BK34) -> 0.01585541097 | AO56: =IF(NewConst!$F$203=NewConst!$I$203,'Detailed Lighting'!BH24,Lighting!BL34) -> 0.01501114658 | AP56: =IF(NewConst!$F$203=NewConst!$I$203,'Detailed Lighting'!BI24,Lighting!BM34) -> 0.01541513011 | AQ56: =IF(NewConst!$F$203=NewConst!$I$203,'Detailed Lighting'!BJ24,Lighting!BN34) -> 0.01568526083 | AR56: =IF(NewConst!$F$203=NewConst!$I$203,'Detailed Lighting'!BK24,Lighting!BO34) -> 0.01590297894 | AS56: =IF(NewConst!$F$203=NewConst!$I$203,'Detailed Lighting'!BL24,Lighting!BP34) -> 0.01685911927 | AT56: =IF(NewConst!$F$203=NewConst!$I$203,'Detailed Lighting'!BM24,Lighting!BQ34) -> 0.01885608666 | AU56: =IF(NewConst!$F$203=NewConst!$I$203,'Detailed Lighting'!BN24,Lighting!BR34) -> 0.0170464616 | AV56: =IF(NewConst!$F$203=NewConst!$I$203,'Detailed Lighting'!BO24,Lighting!BS34) -> 0.01907076834 | AW56: =IF(NewConst!$F$203=NewConst!$I$203,'Detailed Lighting'!BP24,Lighting!BG34) -> 0.01680208141 | BA56: 14 | BB56: 0.06400533776 | BC56: 0.04166666667 | BD56: 0.06400533776 | BE56: 0.06327862038 | BF56: 0.1176470588 | BG56: 0.08411214953 | BH56: 0.07027406887 | BI56: 0.04166666667 | BJ56: 0.06896551724 | BK56: 0.05882352941 | BL56: 0.04761904762 | BM56: 0.07142857143 | BN56: 0.07142857143 | BO56: 0.067326733 | BP56: 0.08411214953 | BQ56: 0.1111111111 | BR56: 0.04166666667 | BT56: =IF(AVERAGE('Sunrise Calc'!$F$2:$F$13)<'Hourly Profiles'!BA56, 1/12, "0.000 ") -> 0.000 | BU56: 0.04194174757 | BX56: 0.8280074573 | BY56: =BX56*250*NewConst!$F$250 -> 2070.018643 | BZ56: =BX56*200*NewConst!$F$250 -> 1656.014915 | CA56: 1 | CB56: 750 | CC56: 600 | CD56: 1 | CE56: =CD56*710*NewConst!$F$419 -> 2130 | CF56: =CD56*1090*NewConst!$F$419 -> 3270 | CG56: 0.5 | CH56: =$CG56*CH$7*NewConst!$E$413 -> 40.425 | CI56: =$CG56*CI$7*NewConst!$E$413 -> 25.575
C57: 15 | D57: ='Hourly Profiles'!D24 -> 0.01463875568 | E57: 0.026 | F57: ='Hourly Profiles'!F24 -> 0.052336449 | G57: ='Hourly Profiles'!G24 -> 0.037542662 | H57: =(F57*'Monthly Profiles'!V$40+G57*'Monthly Profiles'!T$40+I57*'Monthly Profiles'!W$40+J57*'Monthly Profiles'!X$40+K57*'Monthly Profiles'!Y$40)/'Monthly Profiles'!AA$40 -> 0.03524983928 | I57: ='Hourly Profiles'!I24 -> 0.02316602317 | J57: ='Hourly Profiles'!J24 -> 0.02526724976 | K57: ='Hourly Profiles'!K24 -> 0.04135977337 | L57: ='Hourly Profiles'!L24 -> 0.041181483 | M57: ='Hourly Profiles'!M24 -> 0.060594059 | N57: ='Hourly Profiles'!N24 -> 0.043847242 | O57: ='Hourly Profiles'!O24 -> 0.035 | P57: 0.046055667 | Q57: 0.04395608782 | R57: 0.04336479336 | S57: 0.0485 | T57: 0.05041369398 | U57: 0.07542872214 | V57: 0.07544111776 | W57: 0.04343868395 | X57: 0.02444384683 | Y57: 0.02384402621 | Z57: 0.02384402621 | AA57: 0.07478827038 | AB57: 0.07478827038 | AC57: 0.032 | AD57: 0.02369668246 | AE57: =((L57*NewConst!F$238+O57*NewConst!$F$155/365+N57*NewConst!F$328+G57*NewConst!F$298+M57*NewConst!F$279+F57*NewConst!F$264)*3412+(M57*NewConst!F$280+N57*NewConst!F$332)*100000)/((NewConst!F$238+NewConst!$F$155/365+NewConst!F$328+NewConst!F$298+NewConst!F$279+NewConst!F$264)*3412+(NewConst!F$280+NewConst!F$332)*100000) -> 0.04991558732 | AF57: 0.03737102306 | AG57: 0.03584861793 | AH57: 0.2418877838 | AI57: =$AH57*NewConst!$E$400*N_occ -> 140.4884248 | AJ57: =$AH57*NewConst!$E$401*N_occ -> 104.7277349 | AK57: =IF(NewConst!$F$203=NewConst!$I$203,'Detailed Lighting'!BD25,Lighting!BH35) -> 0.01964007139 | AL57: =IF(NewConst!$F$203=NewConst!$I$203,'Detailed Lighting'!BE25,Lighting!BI35) -> 0.01683219819 | AM57: =IF(NewConst!$F$203=NewConst!$I$203,'Detailed Lighting'!BF25,Lighting!BJ35) -> 0.01343763644 | AN57: =IF(NewConst!$F$203=NewConst!$I$203,'Detailed Lighting'!BG25,Lighting!BK35) -> 0.01587549887 | AO57: =IF(NewConst!$F$203=NewConst!$I$203,'Detailed Lighting'!BH25,Lighting!BL35) -> 0.01502662473 | AP57: =IF(NewConst!$F$203=NewConst!$I$203,'Detailed Lighting'!BI25,Lighting!BM35) -> 0.01543139268 | AQ57: =IF(NewConst!$F$203=NewConst!$I$203,'Detailed Lighting'!BJ25,Lighting!BN35) -> 0.01570152522 | AR57: =IF(NewConst!$F$203=NewConst!$I$203,'Detailed Lighting'!BK25,Lighting!BO35) -> 0.01592165715 | AS57: =IF(NewConst!$F$203=NewConst!$I$203,'Detailed Lighting'!BL25,Lighting!BP35) -> 0.01690437197 | AT57: =IF(NewConst!$F$203=NewConst!$I$203,'Detailed Lighting'!BM25,Lighting!BQ35) -> 0.01898801662 | AU57: =IF(NewConst!$F$203=NewConst!$I$203,'Detailed Lighting'!BN25,Lighting!BR35) -> 0.01881553438 | AV57: =IF(NewConst!$F$203=NewConst!$I$203,'Detailed Lighting'!BO25,Lighting!BS35) -> 0.02078647565 | AW57: =IF(NewConst!$F$203=NewConst!$I$203,'Detailed Lighting'!BP25,Lighting!BG35) -> 0.01738720519 | BA57: 15 | BB57: 0.0606211998 | BC57: 0.04166666667 | BD57: 0.0606211998 | BE57: 0.06528496848 | BF57: 0.1176470588 | BG57: 0.08411214953 | BH57: 0.07027406887 | BI57: 0.04166666667 | BJ57: 0.06896551724 | BK57: 0.05882352941 | BL57: 0.04761904762 | BM57: 0.1428571429 | BN57: 0.07142857143 | BO57: 0.060594059 | BP57: 0.08411214953 | BQ57: 0.1111111111 | BR57: 0.04166666667 | BT57: =IF(AVERAGE('Sunrise Calc'!$F$2:$F$13)<'Hourly Profiles'!BA57, 1/12, "0.000 ") -> 0.000 | BU57: 0.04116504854 | BX57: 0.7842284294 | BY57: =BX57*250*NewConst!$F$250 -> 1960.571073 | BZ57: =BX57*200*NewConst!$F$250 -> 1568.456859 | CA57: 1 | CB57: 750 | CC57: 600 | CD57: 1 | CE57: =CD57*710*NewConst!$F$419 -> 2130 | CF57: =CD57*1090*NewConst!$F$419 -> 3270 | CG57: 1 | CH57: =$CG57*CH$7*NewConst!$E$413 -> 80.85 | CI57: =$CG57*CI$7*NewConst!$E$413 -> 51.15
C58: 16 | D58: ='Hourly Profiles'!D23 -> 0.01463875568 | E58: 0.015 | F58: ='Hourly Profiles'!F23 -> 0.048598131 | G58: ='Hourly Profiles'!G23 -> 0.035836177 | H58: =(F58*'Monthly Profiles'!V$40+G58*'Monthly Profiles'!T$40+I58*'Monthly Profiles'!W$40+J58*'Monthly Profiles'!X$40+K58*'Monthly Profiles'!Y$40)/'Monthly Profiles'!AA$40 -> 0.03551047902 | I58: ='Hourly Profiles'!I23 -> 0.02316602317 | J58: ='Hourly Profiles'!J23 -> 0.02623906706 | K58: ='Hourly Profiles'!K23 -> 0.04305949008 | L58: ='Hourly Profiles'!L23 -> 0.041749503 | M58: ='Hourly Profiles'!M23 -> 0.057425743 | N58: ='Hourly Profiles'!N23 -> 0.056577086 | O58: ='Hourly Profiles'!O23 -> 0.037 | P58: 0.04355416249 | Q58: 0.04495508982 | R58: 0.04386529387 | S58: 0.059 | T58: 0.03943165508 | U58: 0.09787781794 | V58: 0.06144610778 | W58: 0.04543569292 | X58: 0.02444384683 | Y58: 0.05760768063 | Z58: 0.05760768063 | AA58: 0.06132107356 | AB58: 0.06132107356 | AC58: 0.033 | AD58: 0.02369668246 | AE58: =((L58*NewConst!F$238+O58*NewConst!$F$155/365+N58*NewConst!F$328+G58*NewConst!F$298+M58*NewConst!F$279+F58*NewConst!F$264)*3412+(M58*NewConst!F$280+N58*NewConst!F$332)*100000)/((NewConst!F$238+NewConst!$F$155/365+NewConst!F$328+NewConst!F$298+NewConst!F$279+NewConst!F$264)*3412+(NewConst!F$280+NewConst!F$332)*100000) -> 0.05248184571 | AF58: 0.03926065053 | AG58: 0.04176510973 | AH58: 0.2418877838 | AI58: =$AH58*NewConst!$E$400*N_occ -> 140.4884248 | AJ58: =$AH58*NewConst!$E$401*N_occ -> 104.7277349 | AK58: =IF(NewConst!$F$203=NewConst!$I$203,'Detailed Lighting'!BD26,Lighting!BH36) -> 0.02459116911 | AL58: =IF(NewConst!$F$203=NewConst!$I$203,'Detailed Lighting'!BE26,Lighting!BI36) -> 0.01967333344 | AM58: =IF(NewConst!$F$203=NewConst!$I$203,'Detailed Lighting'!BF26,Lighting!BJ36) -> 0.01520889106 | AN58: =IF(NewConst!$F$203=NewConst!$I$203,'Detailed Lighting'!BG26,Lighting!BK36) -> 0.01606687219 | AO58: =IF(NewConst!$F$203=NewConst!$I$203,'Detailed Lighting'!BH26,Lighting!BL36) -> 0.01516738494 | AP58: =IF(NewConst!$F$203=NewConst!$I$203,'Detailed Lighting'!BI26,Lighting!BM36) -> 0.01556494557 | AQ58: =IF(NewConst!$F$203=NewConst!$I$203,'Detailed Lighting'!BJ26,Lighting!BN36) -> 0.01583476851 | AR58: =IF(NewConst!$F$203=NewConst!$I$203,'Detailed Lighting'!BK26,Lighting!BO36) -> 0.0160856511 | AS58: =IF(NewConst!$F$203=NewConst!$I$203,'Detailed Lighting'!BL26,Lighting!BP36) -> 0.01728008049 | AT58: =IF(NewConst!$F$203=NewConst!$I$203,'Detailed Lighting'!BM26,Lighting!BQ36) -> 0.01996290267 | AU58: =IF(NewConst!$F$203=NewConst!$I$203,'Detailed Lighting'!BN26,Lighting!BR36) -> 0.02671294476 | AV58: =IF(NewConst!$F$203=NewConst!$I$203,'Detailed Lighting'!BO26,Lighting!BS36) -> 0.02889138344 | AW58: =IF(NewConst!$F$203=NewConst!$I$203,'Detailed Lighting'!BP26,Lighting!BG36) -> 0.02036970421 | BA58: 16 | BB58: 0.05723706184 | BC58: 0.04166666667 | BD58: 0.05723706184 | BE58: 0.06183317293 | BF58: 0.1176470588 | BG58: 0.08411214953 | BH58: 0.07027406887 | BI58: 0.04166666667 | BJ58: 0.06896551724 | BK58: 0.05882352941 | BL58: 0.04761904762 | BM58: 0.07142857143 | BN58: 0.1428571429 | BO58: 0.057425743 | BP58: 0.08411214953 | BQ58: 0.1111111111 | BR58: 0.04166666667 | BT58: =IF(AVERAGE('Sunrise Calc'!$F$2:$F$13)<'Hourly Profiles'!BA58, 1/12, "0.000 ") -> 0.000 | BU58: 0.04310679612 | BX58: 0.7404494015 | BY58: =BX58*250*NewConst!$F$250 -> 1851.123504 | BZ58: =BX58*200*NewConst!$F$250 -> 1480.898803 | CA58: 1 | CB58: 750 | CC58: 600 | CD58: 1 | CE58: =CD58*710*NewConst!$F$419 -> 2130 | CF58: =CD58*1090*NewConst!$F$419 -> 3270 | CG58: 0.5 | CH58: =$CG58*CH$7*NewConst!$E$413 -> 40.425 | CI58: =$CG58*CI$7*NewConst!$E$413 -> 25.575
C59: 17 | D59: ='Hourly Profiles'!D25 -> 0.01785205466 | E59: 0.056 | F59: ='Hourly Profiles'!F25 -> 0.05046729 | G59: ='Hourly Profiles'!G25 -> 0.037542662 | H59: =(F59*'Monthly Profiles'!V$40+G59*'Monthly Profiles'!T$40+I59*'Monthly Profiles'!W$40+J59*'Monthly Profiles'!X$40+K59*'Monthly Profiles'!Y$40)/'Monthly Profiles'!AA$40 -> 0.0404665566 | I59: ='Hourly Profiles'!I25 -> 0.03861003861 | J59: ='Hourly Profiles'!J25 -> 0.03012633625 | K59: ='Hourly Profiles'!K25 -> 0.04815864023 | L59: ='Hourly Profiles'!L25 -> 0.044021585 | M59: ='Hourly Profiles'!M25 -> 0.055445545 | N59: ='Hourly Profiles'!N25 -> 0.091937765 | O59: ='Hourly Profiles'!O25 -> 0.044 | P59: 0.04656920762 | Q59: 0.04595409182 | R59: 0.04336032461 | S59: 0.11 | T59: 0.05538379865 | U59: 0.06644219069 | V59: 0.06094510978 | W59: 0.05042971087 | X59: 0.02444384683 | Y59: 0.126212931 | Z59: 0.126212931 | AA59: 0.03688966203 | AB59: 0.03688966203 | AC59: 0.045 | AD59: 0.02369668246 | AE59: =((L59*NewConst!F$238+O59*NewConst!$F$155/365+N59*NewConst!F$328+G59*NewConst!F$298+M59*NewConst!F$279+F59*NewConst!F$264)*3412+(M59*NewConst!F$280+N59*NewConst!F$332)*100000)/((NewConst!F$238+NewConst!$F$155/365+NewConst!F$328+NewConst!F$298+NewConst!F$279+NewConst!F$264)*3412+(NewConst!F$280+NewConst!F$332)*100000) -> 0.06300986188 | AF59: 0.04653129274 | AG59: 0.05904127676 | AH59: 0.2949836742 | AI59: =$AH59*NewConst!$E$400*N_occ -> 171.326518 | AJ59: =$AH59*NewConst!$E$401*N_occ -> 127.7161316 | AK59: =IF(NewConst!$F$203=NewConst!$I$203,'Detailed Lighting'!BD27,Lighting!BH37) -> 0.04188545019 | AL59: =IF(NewConst!$F$203=NewConst!$I$203,'Detailed Lighting'!BE27,Lighting!BI37) -> 0.03113326913 | AM59: =IF(NewConst!$F$203=NewConst!$I$203,'Detailed Lighting'!BF27,Lighting!BJ37) -> 0.02307179814 | AN59: =IF(NewConst!$F$203=NewConst!$I$203,'Detailed Lighting'!BG27,Lighting!BK37) -> 0.01734503 | AO59: =IF(NewConst!$F$203=NewConst!$I$203,'Detailed Lighting'!BH27,Lighting!BL37) -> 0.01609296385 | AP59: =IF(NewConst!$F$203=NewConst!$I$203,'Detailed Lighting'!BI27,Lighting!BM37) -> 0.01638112502 | AQ59: =IF(NewConst!$F$203=NewConst!$I$203,'Detailed Lighting'!BJ27,Lighting!BN37) -> 0.01664704909 | AR59: =IF(NewConst!$F$203=NewConst!$I$203,'Detailed Lighting'!BK27,Lighting!BO37) -> 0.01712620567 | AS59: =IF(NewConst!$F$203=NewConst!$I$203,'Detailed Lighting'!BL27,Lighting!BP37) -> 0.01946150363 | AT59: =IF(NewConst!$F$203=NewConst!$I$203,'Detailed Lighting'!BM27,Lighting!BQ37) -> 0.02481986224 | AU59: =IF(NewConst!$F$203=NewConst!$I$203,'Detailed Lighting'!BN27,Lighting!BR37) -> 0.04906525233 | AV59: =IF(NewConst!$F$203=NewConst!$I$203,'Detailed Lighting'!BO27,Lighting!BS37) -> 0.05228414438 | AW59: =IF(NewConst!$F$203=NewConst!$I$203,'Detailed Lighting'!BP27,Lighting!BG37) -> 0.03025649791 | BA59: 17 | BB59: 0.06488013173 | BC59: 0.04166666667 | BD59: 0.06488013173 | BE59: 0.05838137738 | BF59: 0.1176470588 | BG59: 0.08411214953 | BH59: 0.07027406887 | BI59: 0.04166666667 | BJ59: 0.06896551724 | BK59: 0.05882352941 | BL59: 0.09523809524 | BM59: 0.07142857143 | BN59: 0.07142857143 | BO59: 0.055445545 | BP59: 0.08411214953 | BQ59: 0.1111111111 | BR59: 0.04166666667 | BT59: =IF(AVERAGE('Sunrise Calc'!$F$2:$F$13)<'Hourly Profiles'!BA59, 1/12, "0.000 ") -> 0.000 | BU59: 0.05087378641 | BX59: 0.8393242624 | BY59: =BX59*250*NewConst!$F$250 -> 2098.310656 | BZ59: =BX59*200*NewConst!$F$250 -> 1678.648525 | CA59: 1 | CB59: 750 | CC59: 600 | CD59: 1 | CE59: =CD59*710*NewConst!$F$419 -> 2130 | CF59: =CD59*1090*NewConst!$F$419 -> 3270 | CG59: 0.5 | CH59: =$CG59*CH$7*NewConst!$E$413 -> 40.425 | CI59: =$CG59*CI$7*NewConst!$E$413 -> 25.575
C60: 18 | D60: ='Hourly Profiles'!D26 -> 0.03347269334 | E60: 0.078 | F60: ='Hourly Profiles'!F26 -> 0.048598131 | G60: ='Hourly Profiles'!G26 -> 0.049488055 | H60: =(F60*'Monthly Profiles'!V$40+G60*'Monthly Profiles'!T$40+I60*'Monthly Profiles'!W$40+J60*'Monthly Profiles'!X$40+K60*'Monthly Profiles'!Y$40)/'Monthly Profiles'!AA$40 -> 0.05030378581 | I60: ='Hourly Profiles'!I26 -> 0.04633204633 | J60: ='Hourly Profiles'!J26 -> 0.03887269193 | K60: ='Hourly Profiles'!K26 -> 0.06515580737 | L60: ='Hourly Profiles'!L26 -> 0.048281738 | M60: ='Hourly Profiles'!M26 -> 0.054257426 | N60: ='Hourly Profiles'!N26 -> 0.149929279 | O60: ='Hourly Profiles'!O26 -> 0.053 | P60: 0.05008425276 | Q60: 0.04695309381 | R60: 0.04335585586 | S60: 0.161 | T60: 0.07133594222 | U60: 0.03600606595 | V60: 0.05944510978 | W60: 0.05492522433 | X60: 0.02444384683 | Y60: =Y26 -> 0.1217229888 | Z60: 0.1217229888 | AA60: 0.02344930417 | AB60: 0.02344930417 | AC60: 0.057 | AD60: 0.02369668246 | AE60: =((L60*NewConst!F$238+O60*NewConst!$F$155/365+N60*NewConst!F$328+G60*NewConst!F$298+M60*NewConst!F$279+F60*NewConst!F$264)*3412+(M60*NewConst!F$280+N60*NewConst!F$332)*100000)/((NewConst!F$238+NewConst!$F$155/365+NewConst!F$328+NewConst!F$298+NewConst!F$279+NewConst!F$264)*3412+(NewConst!F$280+NewConst!F$332)*100000) -> 0.08139722681 | AF60: 0.05747074484 | AG60: 0.08862519245 | AH60: 0.5530958904 | AI60: =$AH60*NewConst!$E$400*N_occ -> 321.2380932 | AJ60: =$AH60*NewConst!$E$401*N_occ -> 239.4683967 | AK60: =IF(NewConst!$F$203=NewConst!$I$203,'Detailed Lighting'!BD28,Lighting!BH38) -> 0.07762566664 | AL60: =IF(NewConst!$F$203=NewConst!$I$203,'Detailed Lighting'!BE28,Lighting!BI38) -> 0.06019362403 | AM60: =IF(NewConst!$F$203=NewConst!$I$203,'Detailed Lighting'!BF28,Lighting!BJ38) -> 0.04608611579 | AN60: =IF(NewConst!$F$203=NewConst!$I$203,'Detailed Lighting'!BG28,Lighting!BK38) -> 0.02328432669 | AO60: =IF(NewConst!$F$203=NewConst!$I$203,'Detailed Lighting'!BH28,Lighting!BL38) -> 0.02046684281 | AP60: =IF(NewConst!$F$203=NewConst!$I$203,'Detailed Lighting'!BI28,Lighting!BM38) -> 0.0200732986 | AQ60: =IF(NewConst!$F$203=NewConst!$I$203,'Detailed Lighting'!BJ28,Lighting!BN38) -> 0.02031232525 | AR60: =IF(NewConst!$F$203=NewConst!$I$203,'Detailed Lighting'!BK28,Lighting!BO38) -> 0.02186686258 | AS60: =IF(NewConst!$F$203=NewConst!$I$203,'Detailed Lighting'!BL28,Lighting!BP38) -> 0.02823500537 | AT60: =IF(NewConst!$F$203=NewConst!$I$203,'Detailed Lighting'!BM28,Lighting!BQ38) -> 0.04088393269 | AU60: =IF(NewConst!$F$203=NewConst!$I$203,'Detailed Lighting'!BN28,Lighting!BR38) -> 0.08703105892 | AV60: =IF(NewConst!$F$203=NewConst!$I$203,'Detailed Lighting'!BO28,Lighting!BS38) -> 0.09095376349 | AW60: =IF(NewConst!$F$203=NewConst!$I$203,'Detailed Lighting'!BP28,Lighting!BG38) -> 0.051372481 | BA60: 18 | BB60: 0.07730043636 | BC60: 0.04166666667 | BD60: 0.07730043636 | BE60: 0.06617725183 | BF60: 0 | BG60: 0.01682242991 | BH60: 0.03513703443 | BI60: 0.04166666667 | BJ60: 0.06896551724 | BK60: 0.05882352941 | BL60: 0.04761904762 | BM60: 0.07142857143 | BN60: 0.07142857143 | BO60: 0.054257426 | BP60: 0.01682242991 | BQ60: 0 | BR60: 0.04166666667 | BT60: =IF(AVERAGE('Sunrise Calc'!$F$2:$F$13)<'Hourly Profiles'!BA60, 1/12, "0.000 ") -> 0.000 | BU60: 0.06330097087 | BX60: 1 | BY60: =BX60*250*NewConst!$F$250 -> 2500 | BZ60: =BX60*200*NewConst!$F$250 -> 2000 | CA60: 0 | CB60: 0 | CC60: 0 | CD60: 1 | CE60: =CD60*710*NewConst!$F$419 -> 2130 | CF60: =CD60*1090*NewConst!$F$419 -> 3270 | CG60: 0.5 | CH60: =$CG60*CH$7*NewConst!$E$413 -> 40.425 | CI60: =$CG60*CI$7*NewConst!$E$413 -> 25.575
C61: 19 | D61: ='Hourly Profiles'!D27 -> 0.05428120836 | E61: 0.105 | F61: ='Hourly Profiles'!F27 -> 0.048598131 | G61: ='Hourly Profiles'!G27 -> 0.087030717 | H61: =(F61*'Monthly Profiles'!V$40+G61*'Monthly Profiles'!T$40+I61*'Monthly Profiles'!W$40+J61*'Monthly Profiles'!X$40+K61*'Monthly Profiles'!Y$40)/'Monthly Profiles'!AA$40 -> 0.05922924489 | I61: ='Hourly Profiles'!I27 -> 0.07722007722 | J61: ='Hourly Profiles'!J27 -> 0.04227405248 | K61: ='Hourly Profiles'!K27 -> 0.07478753541 | L61: ='Hourly Profiles'!L27 -> 0.049701789 | M61: ='Hourly Profiles'!M27 -> 0.051485149 | N61: ='Hourly Profiles'!N27 -> 0.11669024 | O61: ='Hourly Profiles'!O27 -> 0.058 | P61: 0.05158274824 | Q61: 0.04595409182 | R61: 0.04285535536 | S61: 0.115 | T61: 0.08930700406 | U61: 0.03600606595 | V61: 0.04744610778 | W61: 0.06989531406 | X61: 0.02444384683 | Y61: 0.06804505637 | Z61: 0.06804505637 | AA61: 0.01347614314 | AB61: 0.01347614314 | AC61: 0.066 | AD61: 0.05687203791 | AE61: =((L61*NewConst!F$238+O61*NewConst!$F$155/365+N61*NewConst!F$328+G61*NewConst!F$298+M61*NewConst!F$279+F61*NewConst!F$264)*3412+(M61*NewConst!F$280+N61*NewConst!F$332)*100000)/((NewConst!F$238+NewConst!$F$155/365+NewConst!F$328+NewConst!F$298+NewConst!F$279+NewConst!F$264)*3412+(NewConst!F$280+NewConst!F$332)*100000) -> 0.07177949805 | AF61: 0.0602704008 | AG61: 0.07870111052 | AH61: 0.8969315068 | AI61: =$AH61*NewConst!$E$400*N_occ -> 520.9378192 | AJ61: =$AH61*NewConst!$E$401*N_occ -> 388.3354652 | AK61: =IF(NewConst!$F$203=NewConst!$I$203,'Detailed Lighting'!BD29,Lighting!BH39) -> 0.1157944396 | AL61: =IF(NewConst!$F$203=NewConst!$I$203,'Detailed Lighting'!BE29,Lighting!BI39) -> 0.1034152411 | AM61: =IF(NewConst!$F$203=NewConst!$I$203,'Detailed Lighting'!BF29,Lighting!BJ39) -> 0.08869520446 | AN61: =IF(NewConst!$F$203=NewConst!$I$203,'Detailed Lighting'!BG29,Lighting!BK39) -> 0.0422216986 | AO61: =IF(NewConst!$F$203=NewConst!$I$203,'Detailed Lighting'!BH29,Lighting!BL39) -> 0.03516469411 | AP61: =IF(NewConst!$F$203=NewConst!$I$203,'Detailed Lighting'!BI29,Lighting!BM39) -> 0.03232802695 | AQ61: =IF(NewConst!$F$203=NewConst!$I$203,'Detailed Lighting'!BJ29,Lighting!BN39) -> 0.03244596097 | AR61: =IF(NewConst!$F$203=NewConst!$I$203,'Detailed Lighting'!BK29,Lighting!BO39) -> 0.03720101072 | AS61: =IF(NewConst!$F$203=NewConst!$I$203,'Detailed Lighting'!BL29,Lighting!BP39) -> 0.05224403253 | AT61: =IF(NewConst!$F$203=NewConst!$I$203,'Detailed Lighting'!BM29,Lighting!BQ39) -> 0.0750286701 | AU61: =IF(NewConst!$F$203=NewConst!$I$203,'Detailed Lighting'!BN29,Lighting!BR39) -> 0.1192264371 | AV61: =IF(NewConst!$F$203=NewConst!$I$203,'Detailed Lighting'!BO29,Lighting!BS39) -> 0.1197306827 | AW61: =IF(NewConst!$F$203=NewConst!$I$203,'Detailed Lighting'!BP29,Lighting!BG39) -> 0.07997191362 | BA61: 19 | BB61: 0.07496680966 | BC61: 0.04166666667 | BD61: 0.07496680966 | BE61: 0.07884587017 | BF61: 0 | BG61: 0.01682242991 | BH61: 0.02319044273 | BI61: 0.04166666667 | BJ61: 0.06896551724 | BK61: 0.05882352941 | BL61: 0.04761904762 | BM61: 0 | BN61: 0 | BO61: 0.051485149 | BP61: 0.01682242991 | BQ61: 0 | BR61: 0.04166666667 | BT61: =IF(AVERAGE('Sunrise Calc'!$F$2:$F$13)<'Hourly Profiles'!BA61, 1/12, "0.000 ") -> 0.08333333333 | BU61: 0.06330097087 | BX61: 0.9698109505 | BY61: =BX61*250*NewConst!$F$250 -> 2424.527376 | BZ61: =BX61*200*NewConst!$F$250 -> 1939.621901 | CA61: 0 | CB61: 0 | CC61: 0 | CD61: 1 | CE61: =CD61*710*NewConst!$F$419 -> 2130 | CF61: =CD61*1090*NewConst!$F$419 -> 3270 | CG61: 0 | CH61: =$CG61*CH$7*NewConst!$E$413 -> 0 | CI61: =$CG61*CI$7*NewConst!$E$413 -> 0
C62: 20 | D62: ='Hourly Profiles'!D28 -> 0.05428120836 | E62: 0.126 | F62: ='Hourly Profiles'!F28 -> 0.048598131 | G62: ='Hourly Profiles'!G28 -> 0.110921502 | H62: =(F62*'Monthly Profiles'!V$40+G62*'Monthly Profiles'!T$40+I62*'Monthly Profiles'!W$40+J62*'Monthly Profiles'!X$40+K62*'Monthly Profiles'!Y$40)/'Monthly Profiles'!AA$40 -> 0.06050676179 | I62: ='Hourly Profiles'!I28 -> 0.1003861004 | J62: ='Hourly Profiles'!J28 -> 0.04227405248 | K62: ='Hourly Profiles'!K28 -> 0.06912181303 | L62: ='Hourly Profiles'!L28 -> 0.048281738 | M62: ='Hourly Profiles'!M28 -> 0.050693069 | N62: ='Hourly Profiles'!N28 -> 0.060113154 | O62: ='Hourly Profiles'!O28 -> 0.06 | P62: 0.05307973922 | Q62: 0.04545409182 | R62: 0.04235485485 | S62: 0.0695 | T62: 0.1072780659 | U62: 0.03650656645 | V62: 0.03544710579 | W62: 0.08536540379 | X62: 0.03443891653 | Y62: 0.06109914495 | Z62: 0.06109914495 | AA62: 0.007985089463 | AB62: 0.007985089463 | AC62: 0.0755 | AD62: 0.05687203791 | AE62: =((L62*NewConst!F$238+O62*NewConst!$F$155/365+N62*NewConst!F$328+G62*NewConst!F$298+M62*NewConst!F$279+F62*NewConst!F$264)*3412+(M62*NewConst!F$280+N62*NewConst!F$332)*100000)/((NewConst!F$238+NewConst!$F$155/365+NewConst!F$328+NewConst!F$298+NewConst!F$279+NewConst!F$264)*3412+(NewConst!F$280+NewConst!F$332)*100000) -> 0.05479462931 | AF62: 0.05827871247 | AG62: 0.05618404559 | AH62: 0.8969315068 | AI62: =$AH62*NewConst!$E$400*N_occ -> 520.9378192 | AJ62: =$AH62*NewConst!$E$401*N_occ -> 388.3354652 | AK62: =IF(NewConst!$F$203=NewConst!$I$203,'Detailed Lighting'!BD30,Lighting!BH40) -> 0.1225192391 | AL62: =IF(NewConst!$F$203=NewConst!$I$203,'Detailed Lighting'!BE30,Lighting!BI40) -> 0.1322295716 | AM62: =IF(NewConst!$F$203=NewConst!$I$203,'Detailed Lighting'!BF30,Lighting!BJ40) -> 0.1329666593 | AN62: =IF(NewConst!$F$203=NewConst!$I$203,'Detailed Lighting'!BG30,Lighting!BK40) -> 0.0825134 | AO62: =IF(NewConst!$F$203=NewConst!$I$203,'Detailed Lighting'!BH30,Lighting!BL40) -> 0.06959542571 | AP62: =IF(NewConst!$F$203=NewConst!$I$203,'Detailed Lighting'!BI30,Lighting!BM40) -> 0.06170120636 | AQ62: =IF(NewConst!$F$203=NewConst!$I$203,'Detailed Lighting'!BJ30,Lighting!BN40) -> 0.06144761682 | AR62: =IF(NewConst!$F$203=NewConst!$I$203,'Detailed Lighting'!BK30,Lighting!BO40) -> 0.07166898027 | AS62: =IF(NewConst!$F$203=NewConst!$I$203,'Detailed Lighting'!BL30,Lighting!BP40) -> 0.09526617523 | AT62: =IF(NewConst!$F$203=NewConst!$I$203,'Detailed Lighting'!BM30,Lighting!BQ40) -> 0.1178841808 | AU62: =IF(NewConst!$F$203=NewConst!$I$203,'Detailed Lighting'!BN30,Lighting!BR40) -> 0.1187659094 | AV62: =IF(NewConst!$F$203=NewConst!$I$203,'Detailed Lighting'!BO30,Lighting!BS40) -> 0.1120871923 | AW62: =IF(NewConst!$F$203=NewConst!$I$203,'Detailed Lighting'!BP30,Lighting!BG40) -> 0.1039397548 | BA62: 20 | BB62: 0.07087601009 | BC62: 0.04166666667 | BD62: 0.07087601009 | BE62: 0.07646558829 | BF62: 0 | BG62: 0.01682242991 | BH62: 0.02319044273 | BI62: 0.04166666667 | BJ62: 0.06896551724 | BK62: 0.05882352941 | BL62: 0.09523809524 | BM62: 0 | BN62: 0 | BO62: 0.050693069 | BP62: 0.01682242991 | BQ62: 0 | BR62: 0.04166666667 | BT62: =IF(AVERAGE('Sunrise Calc'!$F$2:$F$13)<'Hourly Profiles'!BA62, 1/12, "0.000 ") -> 0.08333333333 | BU62: 0.0586407767 | BX62: 0.9168901681 | BY62: =BX62*250*NewConst!$F$250 -> 2292.22542 | BZ62: =BX62*200*NewConst!$F$250 -> 1833.780336 | CA62: 0 | CB62: 0 | CC62: 0 | CD62: 1 | CE62: =CD62*710*NewConst!$F$419 -> 2130 | CF62: =CD62*1090*NewConst!$F$419 -> 3270 | CG62: 0 | CH62: =$CG62*CH$7*NewConst!$E$413 -> 0 | CI62: =$CG62*CI$7*NewConst!$E$413 -> 0
C63: 21 | D63: ='Hourly Profiles'!D29 -> 0.05428120836 | E63: 0.128 | F63: ='Hourly Profiles'!F29 -> 0.048598131 | G63: ='Hourly Profiles'!G29 -> 0.090443686 | H63: =(F63*'Monthly Profiles'!V$40+G63*'Monthly Profiles'!T$40+I63*'Monthly Profiles'!W$40+J63*'Monthly Profiles'!X$40+K63*'Monthly Profiles'!Y$40)/'Monthly Profiles'!AA$40 -> 0.05532322349 | I63: ='Hourly Profiles'!I29 -> 0.1003861004 | J63: ='Hourly Profiles'!J29 -> 0.04178814383 | K63: ='Hourly Profiles'!K29 -> 0.0566572238 | L63: ='Hourly Profiles'!L29 -> 0.046861687 | M63: ='Hourly Profiles'!M29 -> 0.052277228 | N63: ='Hourly Profiles'!N29 -> 0.035360679 | O63: ='Hourly Profiles'!O29 -> 0.062 | P63: 0.04907071214 | Q63: 0.04495508982 | R63: 0.04185435435 | S63: 0.044 | T63: 0.0728404198 | U63: 0.03100106094 | V63: 0.0389500998 | W63: 0.09683998006 | X63: 0.04042998222 | Y63: 0.05116322917 | Z63: 0.05116322917 | AA63: 0.003991053678 | AB63: 0.003991053678 | AC63: 0.081 | AD63: 0.05687203791 | AE63: =((L63*NewConst!F$238+O63*NewConst!$F$155/365+N63*NewConst!F$328+G63*NewConst!F$298+M63*NewConst!F$279+F63*NewConst!F$264)*3412+(M63*NewConst!F$280+N63*NewConst!F$332)*100000)/((NewConst!F$238+NewConst!$F$155/365+NewConst!F$328+NewConst!F$298+NewConst!F$279+NewConst!F$264)*3412+(NewConst!F$280+NewConst!F$332)*100000) -> 0.04697121579 | AF63: 0.05682991948 | AG63: 0.04477500361 | AH63: 0.8969315068 | AI63: =$AH63*NewConst!$E$400*N_occ -> 520.9378192 | AJ63: =$AH63*NewConst!$E$401*N_occ -> 388.3354652 | AK63: =IF(NewConst!$F$203=NewConst!$I$203,'Detailed Lighting'!BD31,Lighting!BH41) -> 0.1057132961 | AL63: =IF(NewConst!$F$203=NewConst!$I$203,'Detailed Lighting'!BE31,Lighting!BI41) -> 0.122744659 | AM63: =IF(NewConst!$F$203=NewConst!$I$203,'Detailed Lighting'!BF31,Lighting!BJ41) -> 0.1428160511 | AN63: =IF(NewConst!$F$203=NewConst!$I$203,'Detailed Lighting'!BG31,Lighting!BK41) -> 0.1359426949 | AO63: =IF(NewConst!$F$203=NewConst!$I$203,'Detailed Lighting'!BH31,Lighting!BL41) -> 0.1234396103 | AP63: =IF(NewConst!$F$203=NewConst!$I$203,'Detailed Lighting'!BI31,Lighting!BM41) -> 0.1109255058 | AQ63: =IF(NewConst!$F$203=NewConst!$I$203,'Detailed Lighting'!BJ31,Lighting!BN41) -> 0.1098943457 | AR63: =IF(NewConst!$F$203=NewConst!$I$203,'Detailed Lighting'!BK31,Lighting!BO41) -> 0.1229973115 | AS63: =IF(NewConst!$F$203=NewConst!$I$203,'Detailed Lighting'!BL31,Lighting!BP41) -> 0.1421019529 | AT63: =IF(NewConst!$F$203=NewConst!$I$203,'Detailed Lighting'!BM31,Lighting!BQ41) -> 0.1297423288 | AU63: =IF(NewConst!$F$203=NewConst!$I$203,'Detailed Lighting'!BN31,Lighting!BR41) -> 0.1099138804 | AV63: =IF(NewConst!$F$203=NewConst!$I$203,'Detailed Lighting'!BO31,Lighting!BS41) -> 0.1017703935 | AW63: =IF(NewConst!$F$203=NewConst!$I$203,'Detailed Lighting'!BP31,Lighting!BG41) -> 0.1202612186 | BA63: 21 | BB63: 0.05212356237 | BC63: 0.04166666667 | BD63: 0.05212356237 | BE63: 0.07229300316 | BF63: 0 | BG63: 0.01682242991 | BH63: 0.02319044273 | BI63: 0.04166666667 | BJ63: 0.06896551724 | BK63: 0.05882352941 | BL63: 0.09523809524 | BM63: 0 | BN63: 0 | BO63: 0.052277228 | BP63: 0.01682242991 | BQ63: 0 | BR63: 0.04166666667 | BT63: =IF(AVERAGE('Sunrise Calc'!$F$2:$F$13)<'Hourly Profiles'!BA63, 1/12, "0.000 ") -> 0.08333333333 | BU63: 0.05631067961 | BX63: 0.6742984235 | BY63: =BX63*250*NewConst!$F$250 -> 1685.746059 | BZ63: =BX63*200*NewConst!$F$250 -> 1348.596847 | CA63: 0 | CB63: 0 | CC63: 0 | CD63: 1 | CE63: =CD63*710*NewConst!$F$419 -> 2130 | CF63: =CD63*1090*NewConst!$F$419 -> 3270 | CG63: 0 | CH63: =$CG63*CH$7*NewConst!$E$413 -> 0 | CI63: =$CG63*CI$7*NewConst!$E$413 -> 0
C64: 22 | D64: ='Hourly Profiles'!D30 -> 0.06051878873 | E64: 0.088 | F64: ='Hourly Profiles'!F30 -> 0.046728972 | G64: ='Hourly Profiles'!G30 -> 0.066552901 | H64: =(F64*'Monthly Profiles'!V$40+G64*'Monthly Profiles'!T$40+I64*'Monthly Profiles'!W$40+J64*'Monthly Profiles'!X$40+K64*'Monthly Profiles'!Y$40)/'Monthly Profiles'!AA$40 -> 0.0486747808 | I64: ='Hourly Profiles'!I30 -> 0.07722007722 | J64: ='Hourly Profiles'!J30 -> 0.04081632653 | K64: ='Hourly Profiles'!K30 -> 0.04815864023 | L64: ='Hourly Profiles'!L30 -> 0.046009656 | M64: ='Hourly Profiles'!M30 -> 0.054257426 | N64: ='Hourly Profiles'!N30 -> 0.024752475 | O64: ='Hourly Profiles'!O30 -> 0.06 | P64: 0.04556168506 | Q64: 0.04445608782 | R64: 0.04135385385 | S64: 0.019 | T64: 0.03790426921 | U64: 0.02549555544 | V64: 0.04195309381 | W64: 0.1078160518 | X64: 0.03342297521 | Y64: 0.04272231556 | Z64: 0.04272231556 | AA64: 0.002991053678 | AB64: 0.002991053678 | AC64: 0.0855 | AD64: 0.05687203791 | AE64: =((L64*NewConst!F$238+O64*NewConst!$F$155/365+N64*NewConst!F$328+G64*NewConst!F$298+M64*NewConst!F$279+F64*NewConst!F$264)*3412+(M64*NewConst!F$280+N64*NewConst!F$332)*100000)/((NewConst!F$238+NewConst!$F$155/365+NewConst!F$328+NewConst!F$298+NewConst!F$279+NewConst!F$264)*3412+(NewConst!F$280+NewConst!F$332)*100000) -> 0.04355989934 | AF64: 0.05368021572 | AG64: 0.03852357652 | AH64: 1 | AI64: =$AH64*NewConst!$E$400*N_occ -> 580.8 | AJ64: =$AH64*NewConst!$E$401*N_occ -> 432.96 | AK64: =IF(NewConst!$F$203=NewConst!$I$203,'Detailed Lighting'!BD32,Lighting!BH42) -> 0.0889846468 | AL64: =IF(NewConst!$F$203=NewConst!$I$203,'Detailed Lighting'!BE32,Lighting!BI42) -> 0.1015564817 | AM64: =IF(NewConst!$F$203=NewConst!$I$203,'Detailed Lighting'!BF32,Lighting!BJ42) -> 0.1202160592 | AN64: =IF(NewConst!$F$203=NewConst!$I$203,'Detailed Lighting'!BG32,Lighting!BK42) -> 0.1468813632 | AO64: =IF(NewConst!$F$203=NewConst!$I$203,'Detailed Lighting'!BH32,Lighting!BL42) -> 0.1613807237 | AP64: =IF(NewConst!$F$203=NewConst!$I$203,'Detailed Lighting'!BI32,Lighting!BM42) -> 0.1611633818 | AQ64: =IF(NewConst!$F$203=NewConst!$I$203,'Detailed Lighting'!BJ32,Lighting!BN42) -> 0.1586902107 | AR64: =IF(NewConst!$F$203=NewConst!$I$203,'Detailed Lighting'!BK32,Lighting!BO42) -> 0.1575431349 | AS64: =IF(NewConst!$F$203=NewConst!$I$203,'Detailed Lighting'!BL32,Lighting!BP42) -> 0.1319804973 | AT64: =IF(NewConst!$F$203=NewConst!$I$203,'Detailed Lighting'!BM32,Lighting!BQ42) -> 0.1092111941 | AU64: =IF(NewConst!$F$203=NewConst!$I$203,'Detailed Lighting'!BN32,Lighting!BR42) -> 0.0925205077 | AV64: =IF(NewConst!$F$203=NewConst!$I$203,'Detailed Lighting'!BO32,Lighting!BS42) -> 0.08566569061 | AW64: =IF(NewConst!$F$203=NewConst!$I$203,'Detailed Lighting'!BP32,Lighting!BG42) -> 0.1188658995 | BA64: 22 | BB64: 0.04539068274 | BC64: 0.04166666667 | BD64: 0.04539068274 | BE64: 0.05316564596 | BF64: 0 | BG64: 0.01682242991 | BH64: 0.02319044273 | BI64: 0.04166666667 | BJ64: 0.06896551724 | BK64: 0.05882352941 | BL64: 0.04761904762 | BM64: 0 | BN64: 0 | BO64: 0.054257426 | BP64: 0.01682242991 | BQ64: 0 | BR64: 0.04166666667 | BT64: =IF(AVERAGE('Sunrise Calc'!$F$2:$F$13)<'Hourly Profiles'!BA64, 1/12, "0.000 ") -> 0.08333333333 | BU64: 0.05359223301 | BX64: 0.587198273 | BY64: =BX64*250*NewConst!$F$250 -> 1467.995683 | BZ64: =BX64*200*NewConst!$F$250 -> 1174.396546 | CA64: 0 | CB64: 0 | CC64: 0 | CD64: 1 | CE64: =CD64*710*NewConst!$F$419 -> 2130 | CF64: =CD64*1090*NewConst!$F$419 -> 3270 | CG64: 0 | CH64: =$CG64*CH$7*NewConst!$E$413 -> 0 | CI64: =$CG64*CI$7*NewConst!$E$413 -> 0
C65: 23 | D65: ='Hourly Profiles'!D31 -> 0.06051878873 | E65: 0.049 | F65: ='Hourly Profiles'!F31 -> 0.031775701 | G65: ='Hourly Profiles'!G31 -> 0.044368601 | H65: =(F65*'Monthly Profiles'!V$40+G65*'Monthly Profiles'!T$40+I65*'Monthly Profiles'!W$40+J65*'Monthly Profiles'!X$40+K65*'Monthly Profiles'!Y$40)/'Monthly Profiles'!AA$40 -> 0.03710756964 | I65: ='Hourly Profiles'!I31 -> 0.06563706564 | J65: ='Hourly Profiles'!J31 -> 0.02915451895 | K65: ='Hourly Profiles'!K31 -> 0.03966005666 | L65: ='Hourly Profiles'!L31 -> 0.044021585 | M65: ='Hourly Profiles'!M31 -> 0.043564356 | N65: ='Hourly Profiles'!N31 -> 0.015558699 | O65: ='Hourly Profiles'!O31 -> 0.052 | P65: 0.03804363089 | Q65: 0.04345708583 | R65: 0.04085335335 | S65: 0.013 | T65: 0.02194316152 | U65: 0.01500002997 | V65: 0.03346906188 | W65: 0.08885493519 | X65: 0.03342297521 | Y65: 0.02384402621 | Z65: 0.02384402621 | AA65: 0.002991053678 | AB65: 0.002991053678 | AC65: 0.075 | AD65: 0.05687203791 | AE65: =((L65*NewConst!F$238+O65*NewConst!$F$155/365+N65*NewConst!F$328+G65*NewConst!F$298+M65*NewConst!F$279+F65*NewConst!F$264)*3412+(M65*NewConst!F$280+N65*NewConst!F$332)*100000)/((NewConst!F$238+NewConst!$F$155/365+NewConst!F$328+NewConst!F$298+NewConst!F$279+NewConst!F$264)*3412+(NewConst!F$280+NewConst!F$332)*100000) -> 0.03496169771 | AF65: 0.04561935711 | AG65: 0.02835655891 | AH65: 1 | AI65: =$AH65*NewConst!$E$400*N_occ -> 580.8 | AJ65: =$AH65*NewConst!$E$401*N_occ -> 432.96 | AK65: =IF(NewConst!$F$203=NewConst!$I$203,'Detailed Lighting'!BD33,Lighting!BH43) -> 0.06659281302 | AL65: =IF(NewConst!$F$203=NewConst!$I$203,'Detailed Lighting'!BE33,Lighting!BI43) -> 0.0760011085 | AM65: =IF(NewConst!$F$203=NewConst!$I$203,'Detailed Lighting'!BF33,Lighting!BJ43) -> 0.08996524503 | AN65: =IF(NewConst!$F$203=NewConst!$I$203,'Detailed Lighting'!BG33,Lighting!BK43) -> 0.1099205706 | AO65: =IF(NewConst!$F$203=NewConst!$I$203,'Detailed Lighting'!BH33,Lighting!BL43) -> 0.1262581659 | AP65: =IF(NewConst!$F$203=NewConst!$I$203,'Detailed Lighting'!BI33,Lighting!BM43) -> 0.1350009881 | AQ65: =IF(NewConst!$F$203=NewConst!$I$203,'Detailed Lighting'!BJ33,Lighting!BN43) -> 0.1325208761 | AR65: =IF(NewConst!$F$203=NewConst!$I$203,'Detailed Lighting'!BK33,Lighting!BO43) -> 0.1178994456 | AS65: =IF(NewConst!$F$203=NewConst!$I$203,'Detailed Lighting'!BL33,Lighting!BP43) -> 0.09876931466 | AT65: =IF(NewConst!$F$203=NewConst!$I$203,'Detailed Lighting'!BM33,Lighting!BQ43) -> 0.08172961169 | AU65: =IF(NewConst!$F$203=NewConst!$I$203,'Detailed Lighting'!BN33,Lighting!BR43) -> 0.06923892032 | AV65: =IF(NewConst!$F$203=NewConst!$I$203,'Detailed Lighting'!BO33,Lighting!BS43) -> 0.06410902917 | AW65: =IF(NewConst!$F$203=NewConst!$I$203,'Detailed Lighting'!BP33,Lighting!BG43) -> 0.09088837922 | BA65: 23 | BB65: 0.0287620123 | BC65: 0.04166666667 | BD65: 0.0287620123 | BE65: 0.0462981588 | BF65: 0 | BG65: 0.01682242991 | BH65: 0.02319044273 | BI65: 0.04166666667 | BJ65: 0.03448275862 | BK65: 0.05882352941 | BL65: 0.04761904762 | BM65: 0 | BN65: 0 | BO65: 0.043564356 | BP65: 0.01682242991 | BQ65: 0 | BR65: 0.04166666667 | BT65: =IF(AVERAGE('Sunrise Calc'!$F$2:$F$13)<'Hourly Profiles'!BA65, 1/12, "0.000 ") -> 0.08333333333 | BU65: 0.04504854369 | BX65: 0.372080853 | BY65: =BX65*250*NewConst!$F$250 -> 930.2021325 | BZ65: =BX65*200*NewConst!$F$250 -> 744.161706 | CA65: 0 | CB65: 0 | CC65: 0 | CD65: 0.5 | CE65: =CD65*710*NewConst!$F$419 -> 1065 | CF65: =CD65*1090*NewConst!$F$419 -> 1635 | CG65: 0 | CH65: =$CG65*CH$7*NewConst!$E$413 -> 0 | CI65: =$CG65*CI$7*NewConst!$E$413 -> 0
C66: 24 | D66: ='Hourly Profiles'!D32 -> 0.06051878873 | E66: 0.02 | F66: ='Hourly Profiles'!F32 -> 0.01682243 | G66: ='Hourly Profiles'!G32 -> 0.030716724 | H66: =(F66*'Monthly Profiles'!V$40+G66*'Monthly Profiles'!T$40+I66*'Monthly Profiles'!W$40+J66*'Monthly Profiles'!X$40+K66*'Monthly Profiles'!Y$40)/'Monthly Profiles'!AA$40 -> 0.02440546203 | I66: ='Hourly Profiles'!I32 -> 0.03861003861 | J66: ='Hourly Profiles'!J32 -> 0.02089407191 | K66: ='Hourly Profiles'!K32 -> 0.02719546742 | L66: ='Hourly Profiles'!L32 -> 0.041181483 | M66: ='Hourly Profiles'!M32 -> 0.023762376 | N66: ='Hourly Profiles'!N32 -> 0.010608204 | O66: ='Hourly Profiles'!O32 -> 0.045 | P66: 0.03052557673 | Q66: 0.04245808383 | R66: 0.04085335335 | S66: 0.007 | T66: 0.005983049851 | U66: 0.004504504505 | V66: 0.02448602794 | W66: 0.06989381854 | X66: 0.03794242003 | Y66: 0.02384402621 | Z66: 0.02384402621 | AA66: 0.002991053678 | AB66: 0.002991053678 | AC66: 0.0645 | AD66: 0.05687203791 | AE66: =((L66*NewConst!F$238+O66*NewConst!$F$155/365+N66*NewConst!F$328+G66*NewConst!F$298+M66*NewConst!F$279+F66*NewConst!F$264)*3412+(M66*NewConst!F$280+N66*NewConst!F$332)*100000)/((NewConst!F$238+NewConst!$F$155/365+NewConst!F$328+NewConst!F$298+NewConst!F$279+NewConst!F$264)*3412+(NewConst!F$280+NewConst!F$332)*100000) -> 0.02405884665 | AF66: 0.03780935026 | AG66: 0.02121060313 | AH66: 1 | AI66: =$AH66*NewConst!$E$400*N_occ -> 580.8 | AJ66: =$AH66*NewConst!$E$401*N_occ -> 432.96 | AK66: =IF(NewConst!$F$203=NewConst!$I$203,'Detailed Lighting'!BD34,Lighting!BH44) -> 0.0462868495 | AL66: =IF(NewConst!$F$203=NewConst!$I$203,'Detailed Lighting'!BE34,Lighting!BI44) -> 0.05282629928 | AM66: =IF(NewConst!$F$203=NewConst!$I$203,'Detailed Lighting'!BF34,Lighting!BJ44) -> 0.06253239003 | AN66: =IF(NewConst!$F$203=NewConst!$I$203,'Detailed Lighting'!BG34,Lighting!BK44) -> 0.07640279302 | AO66: =IF(NewConst!$F$203=NewConst!$I$203,'Detailed Lighting'!BH34,Lighting!BL44) -> 0.08775861025 | AP66: =IF(NewConst!$F$203=NewConst!$I$203,'Detailed Lighting'!BI34,Lighting!BM44) -> 0.09383550766 | AQ66: =IF(NewConst!$F$203=NewConst!$I$203,'Detailed Lighting'!BJ34,Lighting!BN44) -> 0.0921116494 | AR66: =IF(NewConst!$F$203=NewConst!$I$203,'Detailed Lighting'!BK34,Lighting!BO44) -> 0.08194869155 | AS66: =IF(NewConst!$F$203=NewConst!$I$203,'Detailed Lighting'!BL34,Lighting!BP44) -> 0.06865185889 | AT66: =IF(NewConst!$F$203=NewConst!$I$203,'Detailed Lighting'!BM34,Lighting!BQ44) -> 0.05680802573 | AU66: =IF(NewConst!$F$203=NewConst!$I$203,'Detailed Lighting'!BN34,Lighting!BR44) -> 0.04812608657 | AV66: =IF(NewConst!$F$203=NewConst!$I$203,'Detailed Lighting'!BO34,Lighting!BS44) -> 0.04456043903 | AW66: =IF(NewConst!$F$203=NewConst!$I$203,'Detailed Lighting'!BP34,Lighting!BG44) -> 0.06317403544 | BA66: 24 | BB66: 0.02383939996 | BC66: 0.04166666667 | BD66: 0.02383939996 | BE66: 0.02933703863 | BF66: 0 | BG66: 0.01682242991 | BH66: 0.02319044273 | BI66: 0.04166666667 | BJ66: 0 | BK66: 0 | BL66: 0 | BM66: 0 | BN66: 0 | BO66: 0.023762376 | BP66: 0.01682242991 | BQ66: 0 | BR66: 0.04166666667 | BT66: =IF(AVERAGE('Sunrise Calc'!$F$2:$F$13)<'Hourly Profiles'!BA66, 1/12, "0.000 ") -> 0.08333333333 | BU66: 0.03650485437 | BX66: 0.3083992935 | BY66: =BX66*250*NewConst!$F$250 -> 770.9982338 | BZ66: =BX66*200*NewConst!$F$250 -> 616.798587 | CA66: 0 | CB66: 0 | CC66: 0 | CD66: 0 | CE66: =CD66*710*NewConst!$F$419 -> 0 | CF66: =CD66*1090*NewConst!$F$419 -> 0 | CG66: 0 | CH66: =$CG66*CH$7*NewConst!$E$413 -> 0 | CI66: =$CG66*CI$7*NewConst!$E$413 -> 0
D67: =SUM(D43:D66) -> 1 | E67: 1 | F67: 1.000000003 | G67: 1.000000001 | H67: 1.000000001 | I67: 1 | J67: 1 | K67: 1 | L67: 1 | M67: 1.000000001 | N67: 1.000000001 | O67: 1 | P67: 1 | Q67: 1 | R67: 1 | S67: 1 | T67: 1 | U67: 1 | V67: 1 | W67: 1 | X67: 1 | Y67: 1 | Z67: 1 | AA67: 1 | AB67: 1 | AC67: 1 | AD67: 1 | AE67: 1.000000001 | AF67: 1 | AG67: 1 | AH67: 16.52379403 | AI67: 9597.019574 | AJ67: 7154.141864 | AK67: 1 | AL67: 1 | AM67: 1 | AN67: 1 | AO67: 1 | AP67: 1 | AQ67: 1 | AR67: 1 | AS67: 1 | AT67: 1 | AU67: 1 | AV67: 1 | AW67: 1 | BB67: =SUM(BB43:BB66) -> 1 | BC67: =SUM(BC43:BC66) -> 1 | BD67: 1 | BE67: 1 | BF67: 1 | BG67: 1 | BH67: 1 | BI67: 1 | BJ67: 1 | BK67: =SUM(BK43:BK66) -> 1 | BL67: 1 | BM67: 1 | BN67: 1 | BO67: 1.000000001 | BP67: 1 | BQ67: 1 | BR67: 1 | BT67: =SUM(BT43:BT66) -> 1 | BU67: =SUM(BU43:BU66) -> 1 | BV67: =SUM(BV43:BV66) ->  | BX67: 12.93653758 | BY67: 32341.34395 | BZ67: 25873.07516 | CA67: 8.5 | CB67: 6375 | CC67: 5100 | CD67: 14.5 | CE67: 30885 | CF67: 47415 | CG67: 7 | CH67: 565.95 | CI67: 358.05
P70: Winter (October - March)
D71: Clothes Washer | E71: Dishwasher | F71: Shower | G71: Bath | H71: Sinks | P71: Hour | Q71: Water heater | R71: Refrigerator | S71: Freezer | T71: Cooking appliances | U71: Dishwasher | V71: Clothes washer | W71: Clothes dryer | X71: Home Entertainment | Y71: Waterbed heater | Z71: Spa heater/pump | AA71: Spa pump | AB71: Pool heater/pump | AC71: Pool pump | AD71: Other MELs | AE71: Ceiling Fans (FSEC)
C72: Weekend | D72: 1.15 | E72: 1.05 | F72: 1.05 | G72: 1.26 | H72: 1.04
C73: Weekday | D73: 0.94 | E73: 0.98 | F73: 0.98 | G73: 0.9 | H73: 0.98 | P73: 1 | Q73: 0.037 | R73: 0.042 | S73: 0.04166666667 | T73: 0.005 | U73: 0.000999000999 | V73: 0 | W73: 0.017 | X73: 0.048 | Y73: 0.03184079602 | Z73: 0.02186878728 | AA73: 0.02186878728 | AB73: 0.001988071571 | AC73: 0.001988071571 | AD73: 0.039 | AE73: 0.05687203791
C74: Vacation (May 26–28, August 12–18, December 22–25) | D74: 0 | E74: 0 | F74: 0 | G74: 0 | H74: 0 | P74: 2 | Q74: 0.031 | R74: 0.041 | S74: 0.04166666667 | T74: 0 | U74: 0 | V74: 0 | W74: 0 | X74: 0.027 | Y74: 0.0368159204 | Z74: 0.03180914513 | AA74: 0.03180914513 | AB74: 0.001988071571 | AC74: 0.001988071571 | AD74: 0.023 | AE74: 0.05687203791
C75: Not vacation | D75: 1.04 | E75: 1.04 | F75: 1.04 | G75: 1.04 | H75: 1.04 | P75: 3 | Q75: 0.024 | R75: 0.04 | S75: 0.04166666667 | T75: 0 | U75: 0 | V75: 0 | W75: 0 | X75: 0.014 | Y75: 0.04179104478 | Z75: 0.02186878728 | AA75: 0.02186878728 | AB75: 0.001988071571 | AC75: 0.001988071571 | AD75: 0.019 | AE75: 0.05687203791
P76: 4 | Q76: 0.017 | R76: 0.039 | S76: 0.04166666667 | T76: 0 | U76: 0 | V76: 0 | W76: 0 | X76: 0.002 | Y76: 0.04179104478 | Z76: 0.03180914513 | AA76: 0.03180914513 | AB76: 0.002982107356 | AC76: 0.002982107356 | AD76: 0.015 | AE76: 0.05687203791
P77: 5 | Q77: 0.014 | R77: 0.037 | S77: 0.04265873016 | T77: 0 | U77: 0 | V77: 0 | W77: 0 | X77: 0.001 | Y77: 0.04776119403 | Z77: 0.04274353877 | AA77: 0.04274353877 | AB77: 0.005964214712 | AC77: 0.005964214712 | AD77: 0.016 | AE77: 0.05687203791
P78: 6 | Q78: 0.012 | R78: 0.036 | S78: 0.04365079365 | T78: 0 | U78: 0 | V78: 0 | W78: 0 | X78: 0.001 | Y78: 0.04776119403 | Z78: 0.05367793241 | AA78: 0.05367793241 | AB78: 0.01491053678 | AC78: 0.01491053678 | AD78: 0.016 | AE78: 0.05687203791
P79: 7 | Q79: 0.02 | R79: 0.036 | S79: 0.04365079365 | T79: 0.025 | U79: 0.000999000999 | V79: 0 | W79: 0.009 | X79: 0.005 | Y79: 0.05273631841 | Z79: 0.05367793241 | AA79: 0.05367793241 | AB79: 0.02783300199 | AC79: 0.02783300199 | AD79: 0.027 | AE79: 0.05687203791
P80: 8 | Q80: 0.028 | R80: 0.036 | S80: 0.04365079365 | T80: 0.05 | U80: 0.000999000999 | V80: 0 | W80: 0.018 | X80: 0.01 | Y80: 0.05771144279 | Z80: 0.03180914513 | AA80: 0.03180914513 | AB80: 0.03976143141 | AC80: 0.03976143141 | AD80: 0.037 | AE80: 0.02369668246
P81: 9 | Q81: 0.04 | R81: 0.037 | S81: 0.04365079365 | T81: 0.045 | U81: 0.05094905095 | V81: 0.04890219561 | W81: 0.028 | X81: 0.017 | Y81: 0.06368159204 | Z81: 0.02186878728 | AA81: 0.02186878728 | AB81: 0.07355864811 | AC81: 0.07355864811 | AD81: 0.034 | AE81: 0.02369668246
P82: 10 | Q82: 0.053 | R82: 0.039 | S82: 0.04365079365 | T82: 0.04 | U82: 0.0999000999 | V82: 0.09780439122 | W82: 0.037 | X82: 0.024 | Y82: 0.06865671642 | Z82: 0.02186878728 | AA82: 0.02186878728 | AB82: 0.1133200795 | AC82: 0.1133200795 | AD82: 0.03 | AE82: 0.02369668246
P83: 11 | Q83: 0.057 | R83: 0.04 | S83: 0.04166666667 | T83: 0.04 | U83: 0.0999000999 | V83: 0.122754491 | W83: 0.072 | X83: 0.033 | Y83: 0.06865671642 | Z83: 0.02186878728 | AA83: 0.02186878728 | AB83: 0.1391650099 | AC83: 0.1391650099 | AD83: 0.03 | AE83: 0.02369668246
P84: 12 | Q84: 0.06 | R84: 0.042 | S84: 0.03968253968 | T84: 0.04 | U84: 0.0999000999 | V84: 0.1467065868 | W84: 0.106 | X84: 0.042 | Y84: 0.06368159204 | Z84: 0.01093439364 | AA84: 0.01093439364 | AB84: 0.1391650099 | AC84: 0.1391650099 | AD84: 0.029 | AE84: 0.02369668246
P85: 13 | Q85: 0.059 | R85: 0.042 | S85: 0.03968253968 | T85: 0.04 | U85: 0.08991008991 | V85: 0.09780439122 | W85: 0.111 | X85: 0.043 | Y85: 0.04179104478 | Z85: 0.01093439364 | AA85: 0.01093439364 | AB85: 0.1391650099 | AC85: 0.1391650099 | AD85: 0.028 | AE85: 0.02369668246
P86: 14 | Q86: 0.058 | R86: 0.043 | S86: 0.03968253968 | T86: 0.04 | U86: 0.07992007992 | V86: 0.04890219561 | W86: 0.115 | X86: 0.044 | Y86: 0.02686567164 | Z86: 0.01093439364 | AA86: 0.01093439364 | AB86: 0.08946322068 | AC86: 0.08946322068 | AD86: 0.027 | AE86: 0.02369668246
P87: 15 | Q87: 0.055 | R87: 0.044 | S87: 0.03968253968 | T87: 0.05 | U87: 0.06493506494 | V87: 0.09780439122 | W87: 0.092 | X87: 0.046 | Y87: 0.02686567164 | Z87: 0.02186878728 | AA87: 0.02186878728 | AB87: 0.07057654076 | AC87: 0.07057654076 | AD87: 0.028 | AE87: 0.02369668246
P88: 16 | Q88: 0.051 | R88: 0.045 | S88: 0.03968253968 | T88: 0.06 | U88: 0.04995004995 | V88: 0.1467065868 | W88: 0.069 | X88: 0.048 | Y88: 0.02686567164 | Z88: 0.02186878728 | AA88: 0.02186878728 | AB88: 0.05964214712 | AC88: 0.05964214712 | AD88: 0.03 | AE88: 0.02369668246
P89: 17 | Q89: 0.047 | R89: 0.046 | S89: 0.04067460317 | T89: 0.11 | U89: 0.04995004995 | V89: 0.08283433134 | W89: 0.067 | X89: 0.054 | Y89: 0.02686567164 | Z89: 0.1928429423 | AA89: 0.1928429423 | AB89: 0.03677932406 | AC89: 0.03677932406 | AD89: 0.047 | AE89: 0.02369668246
P90: 18 | Q90: 0.044 | R90: 0.047 | S90: 0.04166666667 | T90: 0.16 | U90: 0.04995004995 | V90: 0.01996007984 | W90: 0.064 | X90: 0.06 | Y90: 0.02686567164 | Z90: 0.1500994036 | AA90: 0.1500994036 | AB90: 0.01689860835 | AC90: 0.01689860835 | AD90: 0.064 | AE90: 0.02369668246
P91: 19 | Q91: 0.048 | R91: 0.046 | S91: 0.04166666667 | T91: 0.12 | U91: 0.07492507493 | V91: 0.01996007984 | W91: 0.041 | X91: 0.07 | Y91: 0.02686567164 | Z91: 0.04274353877 | AA91: 0.04274353877 | AB91: 0.007952286282 | AC91: 0.007952286282 | AD91: 0.078 | AE91: 0.05687203791
P92: 20 | Q92: 0.053 | R92: 0.045 | S92: 0.04166666667 | T92: 0.08 | U92: 0.0999000999 | V92: 0.01996007984 | W92: 0.018 | X92: 0.081 | Y92: 0.03184079602 | Z92: 0.05367793241 | AA92: 0.05367793241 | AB92: 0.004970178926 | AC92: 0.004970178926 | AD92: 0.093 | AE92: 0.05687203791
P93: 21 | Q93: 0.051 | R93: 0.045 | S93: 0.04166666667 | T93: 0.05 | U93: 0.05894105894 | V93: 0.01996007984 | W93: 0.028 | X93: 0.087 | Y93: 0.0368159204 | Z93: 0.04274353877 | AA93: 0.04274353877 | AB93: 0.002982107356 | AC93: 0.002982107356 | AD93: 0.087 | AE93: 0.05687203791
P94: 22 | Q94: 0.05 | R94: 0.045 | S94: 0.04166666667 | T94: 0.02 | U94: 0.01798201798 | V94: 0.01996007984 | W94: 0.037 | X94: 0.093 | Y94: 0.0368159204 | Z94: 0.04274353877 | AA94: 0.04274353877 | AB94: 0.002982107356 | AC94: 0.002982107356 | AD94: 0.08 | AE94: 0.05687203791
P95: 23 | Q95: 0.047 | R95: 0.044 | S95: 0.04166666667 | T95: 0.015 | U95: 0.008991008991 | V95: 0.00998003992 | W95: 0.036 | X95: 0.081 | Y95: 0.0368159204 | Z95: 0.02186878728 | AA95: 0.02186878728 | AB95: 0.002982107356 | AC95: 0.002982107356 | AD95: 0.068 | AE95: 0.05687203791
P96: 24 | Q96: 0.044 | R96: 0.043 | S96: 0.04166666667 | T96: 0.01 | U96: 0.000999000999 | V96: 0 | W96: 0.035 | X96: 0.069 | Y96: 0.03184079602 | Z96: 0.02186878728 | AA96: 0.02186878728 | AB96: 0.002982107356 | AC96: 0.002982107356 | AD96: 0.055 | AE96: 0.05687203791
P99: =Q1 -> Summer (April - September)
P100: Hour | Q100: Water heater | R100: Refrigerator | S100: Freezer | T100: Cooking appliances | U100: Dishwasher | V100: Clothes washer | W100: Clothes dryer | X100: Home Entertainment | Y100: Waterbed heater | Z100: Spa heater/pump | AA100: Spa pump | AB100: Pool heater/pump | AC100: Pool pump | AD100: Other MELs | AE100: Ceiling Fans (FSEC)
P101: 1 | Q101: 0.01404212638 | R101: 0.03992015968 | S101: 0.03903903904 | T101: 0.003 | U101: 0.005982053838 | V101: 0.005005005005 | W101: 0.008982035928 | X101: 0.04187437687 | Y101: 0.03703703704 | Z101: 0.02581926514 | AA101: 0.02581926514 | AB101: 0.004 | AC101: 0.004 | AD101: 0.048 | AE101: 0.05687203791
P102: 2 | Q102: 0.01003009027 | R102: 0.03892215569 | S102: 0.03903903904 | T102: 0.002 | U102: 0 | V102: 0.001001001001 | W102: 0.002994011976 | X102: 0.01196410768 | Y102: 0.03703703704 | Z102: 0.02581926514 | AA102: 0.02581926514 | AB102: 0.004 | AC102: 0.004 | AD102: 0.023 | AE102: 0.05687203791
P103: 3 | Q103: 0.01303911735 | R103: 0.0379241517 | S103: 0.03903903904 | T103: 0.002 | U103: 0 | V103: 0.001001001001 | W103: 0.002994011976 | X103: 0.005982053838 | Y103: 0.05905905906 | Z103: 0.02581926514 | AA103: 0.02581926514 | AB103: 0.005 | AC103: 0.005 | AD103: 0.019 | AE103: 0.05687203791
P104: 4 | Q104: 0.01604814443 | R104: 0.0369261477 | S104: 0.03903903904 | T104: 0.003 | U104: 0 | V104: 0.001001001001 | W104: 0.001996007984 | X104: 0 | Y104: 0.07407407407 | Z104: 0.02581926514 | AA104: 0.02581926514 | AB104: 0.005 | AC104: 0.005 | AD104: 0.015 | AE104: 0.05687203791
P105: 5 | Q105: 0.03309929789 | R105: 0.0369261477 | S105: 0.03803803804 | T105: 0.013 | U105: 0.003988035892 | V105: 0.009009009009 | W105: 0.00499001996 | X105: 0 | Y105: 0.05205205205 | Z105: 0.05064548163 | AA105: 0.05064548163 | AB105: 0.011 | AC105: 0.011 | AD105: 0.016 | AE105: 0.05687203791
P106: 6 | Q106: 0.05015045135 | R106: 0.0369261477 | S106: 0.03703703704 | T106: 0.023 | U106: 0.006979062812 | V106: 0.01801801802 | W106: 0.006986027944 | X106: 0 | Y106: 0.06006006006 | Z106: 0.07944389275 | AA106: 0.07944389275 | AB106: 0.015 | AC106: 0.015 | AD106: 0.019 | AE106: 0.05687203791
P107: 7 | Q107: 0.06318956871 | R107: 0.0379241517 | S107: 0.03703703704 | T107: 0.032 | U107: 0.02891326022 | V107: 0.04304304304 | W107: 0.02295409182 | X107: 0.004985044865 | Y107: 0.06706706707 | Z107: 0.05958291956 | AA107: 0.05958291956 | AB107: 0.024 | AC107: 0.024 | AD107: 0.024 | AE107: 0.05687203791
P108: 8 | Q108: 0.07622868606 | R108: 0.03892215569 | S108: 0.03803803804 | T108: 0.042 | U108: 0.04985044865 | V108: 0.06906906907 | W108: 0.03892215569 | X108: 0.008973080758 | Y108: 0.05905905906 | Z108: 0.01688182721 | AA108: 0.01688182721 | AB108: 0.048 | AC108: 0.048 | AD108: 0.028 | AE108: 0.02369668246
P109: 9 | Q109: 0.06920762287 | R109: 0.03892215569 | S109: 0.03903903904 | T109: 0.042 | U109: 0.05383848455 | V109: 0.08008008008 | W109: 0.05888223553 | X109: 0.01894317049 | Y109: 0.05905905906 | Z109: 0.02581926514 | AA109: 0.02581926514 | AB109: 0.095 | AC109: 0.095 | AD109: 0.031 | AE109: 0.02369668246
P110: 10 | Q110: 0.06318956871 | R110: 0.03992015968 | S110: 0.04104104104 | T110: 0.042 | U110: 0.05782652044 | V110: 0.09109109109 | W110: 0.07784431138 | X110: 0.02891326022 | Y110: 0.05905905906 | Z110: 0.01688182721 | AA110: 0.01688182721 | AB110: 0.128 | AC110: 0.128 | AD110: 0.034 | AE110: 0.02369668246
P111: 11 | Q111: 0.05315947844 | R111: 0.04091816367 | S111: 0.04204204204 | T111: 0.047 | U111: 0.04685942173 | V111: 0.08008008008 | W111: 0.08083832335 | X111: 0.03190428714 | Y111: 0.04404404404 | Z111: 0.008937437934 | AA111: 0.008937437934 | AB111: 0.115 | AC111: 0.115 | AD111: 0.035 | AE111: 0.02369668246
P112: 12 | Q112: 0.04312938816 | R112: 0.04291417166 | S112: 0.04404404404 | T112: 0.052 | U112: 0.03589232303 | V112: 0.06906906907 | W112: 0.08383233533 | X112: 0.03489531406 | Y112: 0.03703703704 | Z112: 0.01688182721 | AA112: 0.01688182721 | AB112: 0.102 | AC112: 0.102 | AD112: 0.037 | AE112: 0.02369668246
P113: 13 | Q113: 0.04012036108 | R113: 0.04291417166 | S113: 0.04504504505 | T113: 0.044 | U113: 0.03988035892 | V113: 0.06306306306 | W113: 0.07385229541 | X113: 0.036889332 | Y113: 0.03003003003 | Z113: 0.01688182721 | AA113: 0.01688182721 | AB113: 0.1 | AC113: 0.1 | AD113: 0.036 | AE113: 0.02369668246
P114: 14 | Q114: 0.037111334 | R114: 0.04291417166 | S114: 0.04604604605 | T114: 0.036 | U114: 0.04287138584 | V114: 0.05805805806 | W114: 0.0628742515 | X114: 0.03788634098 | Y114: 0.03003003003 | Z114: 0.01688182721 | AA114: 0.01688182721 | AB114: 0.091 | AC114: 0.091 | AD114: 0.036 | AE114: 0.02369668246
P115: 15 | Q115: 0.037111334 | R115: 0.04391217565 | S115: 0.04704704705 | T115: 0.047 | U115: 0.03589232303 | V115: 0.05305305305 | W115: 0.05888223553 | X115: 0.0408773679 | Y115: 0.02202202202 | Z115: 0.02581926514 | AA115: 0.02581926514 | AB115: 0.079 | AC115: 0.079 | AD115: 0.036 | AE115: 0.02369668246
P116: 16 | Q116: 0.03610832497 | R116: 0.04491017964 | S116: 0.04804804805 | T116: 0.058 | U116: 0.02891326022 | V116: 0.04904904905 | W116: 0.05389221557 | X116: 0.04287138584 | Y116: 0.02202202202 | Z116: 0.09334657398 | AA116: 0.09334657398 | AB116: 0.063 | AC116: 0.063 | AD116: 0.036 | AE116: 0.02369668246
P117: 17 | Q117: 0.04613841525 | R117: 0.04590818363 | S117: 0.04604604605 | T117: 0.11 | U117: 0.06081754736 | V117: 0.05005005005 | W117: 0.05489021956 | X117: 0.04685942173 | Y117: 0.02202202202 | Z117: 0.05958291956 | AA117: 0.05958291956 | AB117: 0.037 | AC117: 0.037 | AD117: 0.043 | AE117: 0.02369668246
P118: 18 | Q118: 0.05616850552 | R118: 0.04690618762 | S118: 0.04504504505 | T118: 0.162 | U118: 0.0927218345 | V118: 0.05205205205 | W118: 0.05489021956 | X118: 0.04985044865 | Y118: 0.02202202202 | Z118: 0.09334657398 | AA118: 0.09334657398 | AB118: 0.03 | AC118: 0.03 | AD118: 0.05 | AE118: 0.02369668246
P119: 19 | Q119: 0.05516549649 | R119: 0.04590818363 | S119: 0.04404404404 | T119: 0.11 | U119: 0.1036889332 | V119: 0.05205205205 | W119: 0.05389221557 | X119: 0.06979062812 | Y119: 0.02202202202 | Z119: 0.09334657398 | AA119: 0.09334657398 | AB119: 0.019 | AC119: 0.019 | AD119: 0.054 | AE119: 0.05687203791
P120: 20 | Q120: 0.05315947844 | R120: 0.04590818363 | S120: 0.04304304304 | T120: 0.059 | U120: 0.1146560319 | V120: 0.05305305305 | W120: 0.05289421158 | X120: 0.08973080758 | Y120: 0.03703703704 | Z120: 0.0685203575 | AA120: 0.0685203575 | AB120: 0.011 | AC120: 0.011 | AD120: 0.058 | AE120: 0.05687203791
P121: 21 | Q121: 0.04714142427 | R121: 0.04491017964 | S121: 0.04204204204 | T121: 0.038 | U121: 0.08673978066 | V121: 0.04204204204 | W121: 0.0499001996 | X121: 0.1066799601 | Y121: 0.04404404404 | Z121: 0.05958291956 | AA121: 0.05958291956 | AB121: 0.005 | AC121: 0.005 | AD121: 0.075 | AE121: 0.05687203791
P122: 22 | Q122: 0.04112337011 | R122: 0.04391217565 | S122: 0.04104104104 | T122: 0.018 | U122: 0.05782652044 | V122: 0.03103103103 | W122: 0.04690618762 | X122: 0.1226321037 | Y122: 0.03003003003 | Z122: 0.04270109235 | AA122: 0.04270109235 | AB122: 0.003 | AC122: 0.003 | AD122: 0.091 | AE122: 0.05687203791
P123: 23 | Q123: 0.02908726179 | R123: 0.04291417166 | S123: 0.04004004004 | T123: 0.011 | U123: 0.03489531406 | V123: 0.02002002002 | W123: 0.03093812375 | X123: 0.09670987039 | Y123: 0.03003003003 | Z123: 0.02581926514 | AA123: 0.02581926514 | AB123: 0.003 | AC123: 0.003 | AD123: 0.082 | AE123: 0.05687203791
P124: 24 | Q124: 0.01705115346 | R124: 0.04191616766 | S124: 0.04004004004 | T124: 0.004 | U124: 0.0109670987 | V124: 0.009009009009 | W124: 0.01397205589 | X124: 0.07078763709 | Y124: 0.04404404404 | Z124: 0.02581926514 | AA124: 0.02581926514 | AB124: 0.003 | AC124: 0.003 | AD124: 0.074 | AE124: 0.05687203791
P127: =R1 -> Annual Average
P128: Hour | Q128: Water heater | R128: Refrigerator | S128: Freezer | T128: Cooking appliances | U128: Dishwasher | V128: Clothes washer | W128: Clothes dryer | X128: Home Entertainment | Y128: Waterbed heater | Z128: Spa heater/pump | AA128: Spa pump | AB128: Pool heater/pump | AC128: Pool pump | AD128: Other MELs | AE128: Ceiling Fans (FSEC)
P129: 1 | Q129: =AVERAGE(Q73,Q101) -> 0.02552106319 | R129: =AVERAGE(R73,R101) -> 0.04096007984 | S129: 0.04035285285 | T129: 0.004 | U129: 0.003490527419 | V129: 0.002502502503 | W129: 0.01299101796 | X129: 0.04493718843 | Y129: 0.03443891653 | Z129: 0.02384402621 | AA129: 0.02384402621 | AB129: 0.002994035785 | AC129: 0.002994035785 | AD129: 0.0435 | AE129: 0.05687203791
P130: 2 | Q130: =AVERAGE(Q74,Q102) -> 0.02051504514 | R130: 0.03996107784 | S130: 0.04035285285 | T130: 0.001 | U130: 0 | V130: 0.0005005005005 | W130: 0.001497005988 | X130: 0.01948205384 | Y130: 0.03692647872 | Z130: 0.02881420514 | AA130: 0.02881420514 | AB130: 0.002994035785 | AC130: 0.002994035785 | AD130: 0.023 | AE130: 0.05687203791
P131: 3 | Q131: 0.01851955868 | R131: 0.03896207585 | S131: 0.04035285285 | T131: 0.001 | U131: 0 | V131: 0.0005005005005 | W131: 0.001497005988 | X131: 0.009991026919 | Y131: 0.05042505192 | Z131: 0.02384402621 | AA131: 0.02384402621 | AB131: 0.003494035785 | AC131: 0.003494035785 | AD131: 0.019 | AE131: 0.05687203791
P132: 4 | Q132: 0.01652407222 | R132: 0.03796307385 | S132: 0.04035285285 | T132: 0.0015 | U132: 0 | V132: 0.0005005005005 | W132: 0.000998003992 | X132: 0.001 | Y132: 0.05793255943 | Z132: 0.02881420514 | AA132: 0.02881420514 | AB132: 0.003991053678 | AC132: 0.003991053678 | AD132: 0.015 | AE132: 0.05687203791
P133: 5 | Q133: 0.02354964895 | R133: 0.03696307385 | S133: 0.0403483841 | T133: 0.0065 | U133: 0.001994017946 | V133: 0.004504504505 | W133: 0.00249500998 | X133: 0.0005 | Y133: 0.04990662304 | Z133: 0.0466945102 | AA133: 0.0466945102 | AB133: 0.008482107356 | AC133: 0.008482107356 | AD133: 0.016 | AE133: 0.05687203791
P134: 6 | Q134: 0.03107522568 | R134: 0.03646307385 | S134: 0.04034391534 | T134: 0.0115 | U134: 0.003489531406 | V134: 0.009009009009 | W134: 0.003493013972 | X134: 0.0005 | Y134: 0.05391062704 | Z134: 0.06656091258 | AA134: 0.06656091258 | AB134: 0.01495526839 | AC134: 0.01495526839 | AD134: 0.0175 | AE134: 0.05687203791
P135: 7 | Q135: 0.04159478435 | R135: 0.03696207585 | S135: 0.04034391534 | T135: 0.0285 | U135: 0.01495613061 | V135: 0.02152152152 | W135: 0.01597704591 | X135: 0.004992522433 | Y135: 0.05990169274 | Z135: 0.05663042598 | AA135: 0.05663042598 | AB135: 0.02591650099 | AC135: 0.02591650099 | AD135: 0.0255 | AE135: 0.05687203791
P136: 8 | Q136: 0.05211434303 | R136: 0.03746107784 | S136: 0.04084441584 | T136: 0.046 | U136: 0.02542472483 | V136: 0.03453453453 | W136: 0.02846107784 | X136: 0.009486540379 | Y136: 0.05838525092 | Z136: 0.02434548617 | AA136: 0.02434548617 | AB136: 0.04388071571 | AC136: 0.04388071571 | AD136: 0.0325 | AE136: 0.02369668246
P137: 9 | Q137: 0.05460381143 | R137: 0.03796107784 | S137: 0.04134491634 | T137: 0.0435 | U137: 0.05239376775 | V137: 0.06449113784 | W137: 0.04344111776 | X137: 0.01797158524 | Y137: 0.06137032555 | Z137: 0.02384402621 | AA137: 0.02384402621 | AB137: 0.08427932406 | AC137: 0.08427932406 | AD137: 0.0325 | AE137: 0.02369668246
P138: 10 | Q138: 0.05809478435 | R138: 0.03946007984 | S138: 0.04234591735 | T138: 0.041 | U138: 0.07886331017 | V138: 0.09444774115 | W138: 0.05742215569 | X138: 0.02645663011 | Y138: 0.06385788774 | Z138: 0.01937530724 | AA138: 0.01937530724 | AB138: 0.1206600398 | AC138: 0.1206600398 | AD138: 0.032 | AE138: 0.02369668246
P139: 11 | Q139: 0.05507973922 | R139: 0.04045908184 | S139: 0.04185435435 | T139: 0.0435 | U139: 0.07337976082 | V139: 0.1014172855 | W139: 0.07641916168 | X139: 0.03245214357 | Y139: 0.05635038023 | Z139: 0.01540311261 | AA139: 0.01540311261 | AB139: 0.127082505 | AC139: 0.127082505 | AD139: 0.0325 | AE139: 0.02369668246
P140: 12 | Q140: 0.05156469408 | R140: 0.04245708583 | S140: 0.04186329186 | T140: 0.046 | U140: 0.06789621147 | V140: 0.1078878279 | W140: 0.09491616766 | X140: 0.03844765703 | Y140: 0.05035931454 | Z140: 0.01390811042 | AA140: 0.01390811042 | AB140: 0.120582505 | AC140: 0.120582505 | AD140: 0.033 | AE140: 0.02369668246
P141: 13 | Q141: 0.04956018054 | R141: 0.04245708583 | S141: 0.04236379236 | T141: 0.042 | U141: 0.06489522442 | V141: 0.08043372714 | W141: 0.0924261477 | X141: 0.039944666 | Y141: 0.0359105374 | Z141: 0.01390811042 | AA141: 0.01390811042 | AB141: 0.119582505 | AC141: 0.119582505 | AD141: 0.032 | AE141: 0.02369668246
P142: 14 | Q142: 0.047555667 | R142: 0.04295708583 | S142: 0.04286429286 | T142: 0.038 | U142: 0.06139573288 | V142: 0.05348012683 | W142: 0.08893712575 | X142: 0.04094317049 | Y142: 0.02844785084 | Z142: 0.01390811042 | AA142: 0.01390811042 | AB142: 0.09023161034 | AC142: 0.09023161034 | AD142: 0.0315 | AE142: 0.02369668246
P143: 15 | Q143: 0.046055667 | R143: 0.04395608782 | S143: 0.04336479336 | T143: 0.0485 | U143: 0.05041369398 | V143: 0.07542872214 | W143: 0.07544111776 | X143: 0.04343868395 | Y143: 0.02444384683 | Z143: 0.02384402621 | AA143: 0.02384402621 | AB143: 0.07478827038 | AC143: 0.07478827038 | AD143: 0.032 | AE143: 0.02369668246
P144: 16 | Q144: 0.04355416249 | R144: 0.04495508982 | S144: 0.04386529387 | T144: 0.059 | U144: 0.03943165508 | V144: 0.09787781794 | W144: 0.06144610778 | X144: 0.04543569292 | Y144: 0.02444384683 | Z144: 0.05760768063 | AA144: 0.05760768063 | AB144: 0.06132107356 | AC144: 0.06132107356 | AD144: 0.033 | AE144: 0.02369668246
P145: 17 | Q145: 0.04656920762 | R145: 0.04595409182 | S145: 0.04336032461 | T145: 0.11 | U145: 0.05538379865 | V145: 0.06644219069 | W145: 0.06094510978 | X145: 0.05042971087 | Y145: 0.02444384683 | Z145: 0.126212931 | AA145: 0.126212931 | AB145: 0.03688966203 | AC145: 0.03688966203 | AD145: 0.045 | AE145: 0.02369668246
P146: 18 | Q146: =AVERAGE(Q90,Q118) -> 0.05008425276 | R146: 0.04695309381 | S146: 0.04335585586 | T146: 0.161 | U146: 0.07133594222 | V146: 0.03600606595 | W146: 0.05944510978 | X146: 0.05492522433 | Y146: 0.02444384683 | Z146: 0.1217229888 | AA146: 0.1217229888 | AB146: 0.02344930417 | AC146: 0.02344930417 | AD146: 0.057 | AE146: 0.02369668246
P147: 19 | Q147: 0.05158274824 | R147: 0.04595409182 | S147: 0.04285535536 | T147: 0.115 | U147: 0.08930700406 | V147: 0.03600606595 | W147: 0.04744610778 | X147: 0.06989531406 | Y147: 0.02444384683 | Z147: 0.06804505637 | AA147: 0.06804505637 | AB147: 0.01347614314 | AC147: 0.01347614314 | AD147: 0.066 | AE147: 0.05687203791
P148: 20 | Q148: 0.05307973922 | R148: 0.04545409182 | S148: 0.04235485485 | T148: 0.0695 | U148: 0.1072780659 | V148: 0.03650656645 | W148: 0.03544710579 | X148: 0.08536540379 | Y148: 0.03443891653 | Z148: 0.06109914495 | AA148: 0.06109914495 | AB148: 0.007985089463 | AC148: 0.007985089463 | AD148: 0.0755 | AE148: 0.05687203791
P149: 21 | Q149: 0.04907071214 | R149: 0.04495508982 | S149: 0.04185435435 | T149: 0.044 | U149: 0.0728404198 | V149: 0.03100106094 | W149: 0.0389500998 | X149: 0.09683998006 | Y149: 0.04042998222 | Z149: 0.05116322917 | AA149: 0.05116322917 | AB149: 0.003991053678 | AC149: 0.003991053678 | AD149: 0.081 | AE149: 0.05687203791
P150: 22 | Q150: 0.04556168506 | R150: 0.04445608782 | S150: 0.04135385385 | T150: 0.019 | U150: 0.03790426921 | V150: 0.02549555544 | W150: 0.04195309381 | X150: 0.1078160518 | Y150: 0.03342297521 | Z150: 0.04272231556 | AA150: 0.04272231556 | AB150: 0.002991053678 | AC150: 0.002991053678 | AD150: 0.0855 | AE150: 0.05687203791
P151: 23 | Q151: 0.03804363089 | R151: 0.04345708583 | S151: 0.04085335335 | T151: 0.013 | U151: 0.02194316152 | V151: 0.01500002997 | W151: 0.03346906188 | X151: 0.08885493519 | Y151: 0.03342297521 | Z151: 0.02384402621 | AA151: 0.02384402621 | AB151: 0.002991053678 | AC151: 0.002991053678 | AD151: 0.075 | AE151: 0.05687203791
P152: 24 | Q152: 0.03052557673 | R152: 0.04245808383 | S152: 0.04085335335 | T152: 0.007 | U152: 0.005983049851 | V152: 0.004504504505 | W152: 0.02448602794 | X152: 0.06989381854 | Y152: 0.03794242003 | Z152: 0.02384402621 | AA152: 0.02384402621 | AB152: 0.002991053678 | AC152: 0.002991053678 | AD152: 0.0645 | AE152: 0.05687203791

Sheet Monthly Profiles
A2: Benchmark Monthly Profiles
H3: Daily Energy Use Multipliers | Z3: Common Area | AA3: Total DHW for | AB3: Total DHW for | AC3: Interior Heat Gain | AD3: Wasted | AE3: Wasted | AF3: Wasted
C4: Heating Active | D4: Cooling Active | E4: Estimated Interior Shading | F4: Corrected Water Heater Recovery | H4: Refrigerator | I4: Freezer | J4: Spa Heater | K4: Cooking Appliances | L4: Dishwasher | M4: Clothes washer | N4: Clothes dryer | O4: Home Entertainment | P4: Waterbed heater | Q4: Spa pump | R4: Ceiling Fans | S4: Other MELs | T4: Dishwasher DHW | U4: Common Area Dishwasher | V4: Clothes Washer DHW | W4: Bath DHW | X4: Shower DHW | Y4: Sinks DHW | Z4: Sinks | AA4: Unit | AB4: Common Areas | AC4: from DHW in Unit | AD4: Shower DHW | AE4: Bath DHW | AF4: Sinks DHW | AG4: Lighting Fraction
B5: Month | C5: (1=yes) | D5: (1=yes) | E5: Multiplier | F5: Efficiency | G5: Mains Temp (ºF) | T5: (gal/day) | U5: (gal/day) | V5: (gal/day) | W5: (gal/day) | X5: (gal/day) | Y5: (gal/day) | Z5: (gal/day) | AA5: (gal/day) | AB5: (gal/day) | AC5: (Btu/day) | AD5: (gal/day) | AE5: (gal/day) | AF5: (gal/day) | AG5: %
A6: 1 | B6: Jan | C6: =1 -> 1 | D6: =1 -> 1 | E6: =Locations!CI2 -> 0.85 | F6: =IF(NewConst!$F$111="Electric", DHW!J53,DHW!K53) -> 0.7656686887 | G6: =Locations!AA2 -> 48.71829039 | H6: 0.8366416497 | I6: 0.8366416497 | J6: 0.8366416497 | K6: 1.096769967 | L6: 1.096769967 | M6: 1.010625275 | N6: 1.150953069 | O6: 1.136917013 | P6: 1.272593372 | Q6: 0.921313819 | R6: 0 | S6: 1.154258713 | T6: =Appliances!$AD$125 -> 4.999 | U6: =0.1428*(2.5+0.833*1.56) -> 0.542565744 | V6: =IF(AND(HomeType=2,NewConst!F$249="Yes"), 2.47*NewConst!$F$38,2.35+0.78*N_br) -> 4.69 | W6: =(3.5+1.17*N_br)*MAX((105-G6)/(120-G6),0) -> 5.53486703 | X6: =(14+4.67*N_br)*MAX((105-G6)/(120-G6),0) -> 22.1157811 | Y6: =(12.5+4.16*N_br)*MAX((105-G6)/(120-G6),0) -> 19.72339207 | Z6: =IF(NewConst!F$135>0,0.028*NewConst!$F$38*MAX((105-G6)/(120-G6),0),0) -> 4.421577085 | AA6: =IF(AND(HomeType=2,NewConst!F$249="YES"),SUM(T6,W6:Y6),SUM(T6,V6:Y6)) -> 57.0630402 | AB6: =IF(HomeType=2,IF(NewConst!F$249="YES",IF(NewConst!$F$135>0,IF(NewConst!$F$303="YES",SUM(U6,V6,Z6),SUM(V6,Z6)),IF(NewConst!$F$303="YES",SUM(U6,V6),V6)),IF(NewConst!$F$135>0,IF(NewConst!$F$303="YES",SUM(U6,Z6),SUM(Z6)),IF(NewConst!$F$303="YES",SUM(U6),0))),0) -> 0 | AC6: =($Z$20+735*(N_br-3))*(1+1/$Z$20*(362+(63*(N_br-3)))*SIN(2*PI()*(A6/12)+0.3)) -> 4522.561843 | AD6: =(1.6+0.3*N_br) -> 2.5 | AE6: =(0.2+0.05*N_br) -> 0.35 | AF6: =(2.55+1.15*N_br) -> 6 | AG6: =IF(NewConst!$F$203=NewConst!$I$203,'Detailed Lighting'!BB11,Lighting!BC21) -> 0.1159177192
A7: 2 | B7: Feb | C7: =1 -> 1 | D7: =1 -> 1 | E7: =Locations!CJ2 -> 0.85 | F7: =IF(NewConst!$F$111="Electric", DHW!J54,DHW!K54) -> 0.7656686887 | G7: =Locations!AB2 -> 47.64133978 | H7: 0.8349582661 | I7: 0.8349582661 | J7: 0.8349582661 | K7: 1.096769967 | L7: 1.096769967 | M7: 1.001811683 | N7: 1.144241972 | O7: 1.128963617 | P7: 1.265439243 | Q7: 0.9284852178 | R7: 0 | S7: 1.160568436 | T7: =Appliances!$AD$125 -> 4.999 | U7: 0.542565744 | V7: =IF(AND(HomeType=2,NewConst!F$249="Yes"), 2.47*NewConst!$F$38,2.35+0.78*N_br) -> 4.69 | W7: 5.556822182 | X7: 22.20350775 | Y7: 19.80162883 | Z7: =IF(NewConst!F$135>0,0.028*NewConst!$F$38*MAX((105-G7)/(120-G7),0),0) -> 4.439116151 | AA7: =IF(AND(HomeType=2,NewConst!F$249="YES"),SUM(T7,W7:Y7),SUM(T7,V7:Y7)) -> 57.25095876 | AB7: =IF(HomeType=2,IF(NewConst!F$249="YES",IF(NewConst!$F$135>0,IF(NewConst!$F$303="YES",SUM(U7,V7,Z7),SUM(V7,Z7)),IF(NewConst!$F$303="YES",SUM(U7,V7),V7)),IF(NewConst!$F$135>0,IF(NewConst!$F$303="YES",SUM(U7,Z7),SUM(Z7)),IF(NewConst!$F$303="YES",SUM(U7),0))),0) -> 0 | AC7: 4609.988289 | AD7: 2.5 | AE7: 0.35 | AF7: 6 | AG7: =IF(NewConst!$F$203=NewConst!$I$203,'Detailed Lighting'!BB12,Lighting!BC22) -> 0.09173891494
A8: 3 | B8: Mar | C8: =1 -> 1 | D8: =1 -> 1 | E8: =Locations!CK2 -> 0.85 | F8: =IF(NewConst!$F$111="Electric", DHW!J55,DHW!K55) -> 0.7656686887 | G8: =Locations!AC2 -> 49.15056928 | H8: 1.084099039 | I8: 1.084099039 | J8: 1.084099039 | K8: 0.9906309376 | L8: 0.9906309376 | M8: 1.022376732 | N8: 1.01002004 | O8: 0.9611051034 | P8: 0.9073119411 | Q8: 0.921313819 | R8: 0 | S8: 1.012920911 | T8: =Appliances!$AD$125 -> 4.999 | U8: 0.542565744 | V8: =IF(AND(HomeType=2,NewConst!F$249="Yes"), 2.47*NewConst!$F$38,2.35+0.78*N_br) -> 4.69 | W8: 5.525866692 | X8: 22.07981827 | Y8: 19.69131954 | Z8: =IF(NewConst!F$135>0,0.028*NewConst!$F$38*MAX((105-G8)/(120-G8),0),0) -> 4.414387086 | AA8: =IF(AND(HomeType=2,NewConst!F$249="YES"),SUM(T8,W8:Y8),SUM(T8,V8:Y8)) -> 56.9860045 | AB8: =IF(HomeType=2,IF(NewConst!F$249="YES",IF(NewConst!$F$135>0,IF(NewConst!$F$303="YES",SUM(U8,V8,Z8),SUM(V8,Z8)),IF(NewConst!$F$303="YES",SUM(U8,V8),V8)),IF(NewConst!$F$135>0,IF(NewConst!$F$303="YES",SUM(U8,Z8),SUM(Z8)),IF(NewConst!$F$303="YES",SUM(U8),0))),0) -> 0 | AC8: 4602.831809 | AD8: 2.5 | AE8: 0.35 | AF8: 6 | AG8: =IF(NewConst!$F$203=NewConst!$I$203,'Detailed Lighting'!BB13,Lighting!BC23) -> 0.08580298981
A9: 4 | B9: Apr | C9: =1 -> 1 | D9: =1 -> 1 | E9: =Locations!CL2 -> 0.85 | F9: =IF(NewConst!$F$111="Electric", DHW!J56,DHW!K56) -> 0.7656686887 | G9: =Locations!AD2 -> 52.85257496 | H9: 1.08370625 | I9: 1.08370625 | J9: 1.08370625 | K9: 0.9870929699 | L9: 0.9870929699 | M9: 1.020026441 | N9: 1.007279676 | O9: 0.9689189661 | P9: 0.9132035771 | Q9: 0.9154079612 | R9: 0 | S9: 1.010172676 | T9: =Appliances!$AD$125 -> 4.999 | U9: 0.542565744 | V9: =IF(AND(HomeType=2,NewConst!F$249="Yes"), 2.47*NewConst!$F$38,2.35+0.78*N_br) -> 4.69 | W9: 5.444042706 | X9: 21.7528725 | Y9: 19.39974134 | Z9: =IF(NewConst!F$135>0,0.028*NewConst!$F$38*MAX((105-G9)/(120-G9),0),0) -> 4.349021277 | AA9: =IF(AND(HomeType=2,NewConst!F$249="YES"),SUM(T9,W9:Y9),SUM(T9,V9:Y9)) -> 56.28565654 | AB9: =IF(HomeType=2,IF(NewConst!F$249="YES",IF(NewConst!$F$135>0,IF(NewConst!$F$303="YES",SUM(U9,V9,Z9),SUM(V9,Z9)),IF(NewConst!$F$303="YES",SUM(U9,V9),V9)),IF(NewConst!$F$135>0,IF(NewConst!$F$303="YES",SUM(U9,Z9),SUM(Z9)),IF(NewConst!$F$303="YES",SUM(U9),0))),0) -> 0 | AC9: 4503.009975 | AD9: 2.5 | AE9: 0.35 | AF9: 6 | AG9: =IF(NewConst!$F$203=NewConst!$I$203,'Detailed Lighting'!BB14,Lighting!BC24) -> 0.06796068926
A10: 5 | B10: May | C10: =1 -> 1 | D10: =1 -> 1 | E10: =Locations!CM2 -> 0.85 | F10: =IF(NewConst!$F$111="Electric", DHW!J57,DHW!K57) -> 0.7656686887 | G10: =Locations!AE2 -> 57.78237199 | H10: 1.084099039 | I10: 1.084099039 | J10: 1.084099039 | K10: 0.9906309376 | L10: 0.9906309376 | M10: 1.022376732 | N10: 1.01002004 | O10: 0.9611051034 | P10: 0.9073119411 | Q10: 0.921313819 | R10: 1.5 | S10: 1.012920911 | T10: =Appliances!$AD$125 -> 4.999 | U10: 0.542565744 | V10: =IF(AND(HomeType=2,NewConst!F$249="Yes"), 2.47*NewConst!$F$38,2.35+0.78*N_br) -> 4.69 | W10: 5.319964501 | X10: 21.25709068 | Y10: 18.95759105 | Z10: =IF(NewConst!F$135>0,0.028*NewConst!$F$38*MAX((105-G10)/(120-G10),0),0) -> 4.249900315 | AA10: =IF(AND(HomeType=2,NewConst!F$249="YES"),SUM(T10,W10:Y10),SUM(T10,V10:Y10)) -> 55.22364623 | AB10: =IF(HomeType=2,IF(NewConst!F$249="YES",IF(NewConst!$F$135>0,IF(NewConst!$F$303="YES",SUM(U10,V10,Z10),SUM(V10,Z10)),IF(NewConst!$F$303="YES",SUM(U10,V10),V10)),IF(NewConst!$F$135>0,IF(NewConst!$F$303="YES",SUM(U10,Z10),SUM(Z10)),IF(NewConst!$F$303="YES",SUM(U10),0))),0) -> 0 | AC10: 4337.269966 | AD10: 2.5 | AE10: 0.35 | AF10: 6 | AG10: =IF(NewConst!$F$203=NewConst!$I$203,'Detailed Lighting'!BB15,Lighting!BC25) -> 0.06113891285
A11: 6 | B11: Jun | C11: =1 -> 1 | D11: =1 -> 1 | E11: =Locations!CN2 -> 0.85 | F11: =IF(NewConst!$F$111="Electric", DHW!J58,DHW!K58) -> 0.7672007667 | G11: =Locations!AF2 -> 62.65493281 | H11: 1.095882724 | I11: 1.095882724 | J11: 1.095882724 | K11: 0.8896023062 | L11: 0.8896023062 | M11: 0.9957400969 | N11: 0.8737847789 | O11: 0.9931419402 | P11: 0.9132035771 | Q11: 1.159516751 | R11: 3 | S11: 0.8884651248 | T11: =Appliances!$AD$125 -> 4.999 | U11: 0.542565744 | V11: =IF(AND(HomeType=2,NewConst!F$249="Yes"), 2.47*NewConst!$F$38,2.35+0.78*N_br) -> 4.69 | W11: 5.176363645 | X11: 20.68330181 | Y11: 18.44587216 | Z11: =IF(NewConst!F$135>0,0.028*NewConst!$F$38*MAX((105-G11)/(120-G11),0),0) -> 4.135183511 | AA11: =IF(AND(HomeType=2,NewConst!F$249="YES"),SUM(T11,W11:Y11),SUM(T11,V11:Y11)) -> 53.99453762 | AB11: =IF(HomeType=2,IF(NewConst!F$249="YES",IF(NewConst!$F$135>0,IF(NewConst!$F$303="YES",SUM(U11,V11,Z11),SUM(V11,Z11)),IF(NewConst!$F$303="YES",SUM(U11,V11),V11)),IF(NewConst!$F$135>0,IF(NewConst!$F$303="YES",SUM(U11,Z11),SUM(Z11)),IF(NewConst!$F$303="YES",SUM(U11),0))),0) -> 0 | AC11: 4150.021685 | AD11: 2.5 | AE11: 0.35 | AF11: 6 | AG11: =IF(NewConst!$F$203=NewConst!$I$203,'Detailed Lighting'!BB16,Lighting!BC26) -> 0.0553349857
A12: 7 | B12: Jul | C12: =1 -> 1 | D12: =1 -> 1 | E12: =Locations!CO2 -> 0.7 | F12: =IF(NewConst!$F$111="Electric", DHW!J59,DHW!K59) -> 0.7672007667 | G12: =Locations!AG2 -> 66.20014934 | H12: 1.095882724 | I12: 1.095882724 | J12: 1.095882724 | K12: 0.896285134 | L12: 0.896285134 | M12: 0.9988738187 | N12: 0.8808314303 | O12: 0.9962674853 | P12: 0.9073119411 | Q12: 1.157548132 | R12: 3 | S12: 0.8833612597 | T12: =Appliances!$AD$125 -> 4.999 | U12: 0.542565744 | V12: =IF(AND(HomeType=2,NewConst!F$249="Yes"), 2.47*NewConst!$F$38,2.35+0.78*N_br) -> 4.69 | W12: 5.055533608 | X12: 20.20049877 | Y12: 18.01529665 | Z12: =IF(NewConst!F$135>0,0.028*NewConst!$F$38*MAX((105-G12)/(120-G12),0),0) -> 4.038657376 | AA12: =IF(AND(HomeType=2,NewConst!F$249="YES"),SUM(T12,W12:Y12),SUM(T12,V12:Y12)) -> 52.96032903 | AB12: =IF(HomeType=2,IF(NewConst!F$249="YES",IF(NewConst!$F$135>0,IF(NewConst!$F$303="YES",SUM(U12,V12,Z12),SUM(V12,Z12)),IF(NewConst!$F$303="YES",SUM(U12,V12),V12)),IF(NewConst!$F$135>0,IF(NewConst!$F$303="YES",SUM(U12,Z12),SUM(Z12)),IF(NewConst!$F$303="YES",SUM(U12),0))),0) -> 0 | AC12: 3991.438157 | AD12: 2.5 | AE12: 0.35 | AF12: 6 | AG12: =IF(NewConst!$F$203=NewConst!$I$203,'Detailed Lighting'!BB17,Lighting!BC27) -> 0.0582495923
A13: 8 | B13: Aug | C13: =1 -> 1 | D13: =1 -> 1 | E13: =Locations!CP2 -> 0.7 | F13: =IF(NewConst!$F$111="Electric", DHW!J60,DHW!K60) -> 0.7672007667 | G13: =Locations!AH2 -> 67.49390627 | H13: 1.095882724 | I13: 1.095882724 | J13: 1.095882724 | K13: 0.896285134 | L13: 0.896285134 | M13: 0.9988738187 | N13: 0.8808314303 | O13: 0.9962674853 | P13: 0.9073119411 | Q13: 1.157548132 | R13: 3 | S13: 0.8833612597 | T13: =Appliances!$AD$125 -> 4.999 | U13: 0.542565744 | V13: =IF(AND(HomeType=2,NewConst!F$249="Yes"), 2.47*NewConst!$F$38,2.35+0.78*N_br) -> 4.69 | W13: 5.007375304 | X13: 20.00807165 | Y13: 17.84368546 | Z13: =IF(NewConst!F$135>0,0.028*NewConst!$F$38*MAX((105-G13)/(120-G13),0),0) -> 4.000185692 | AA13: =IF(AND(HomeType=2,NewConst!F$249="YES"),SUM(T13,W13:Y13),SUM(T13,V13:Y13)) -> 52.54813241 | AB13: =IF(HomeType=2,IF(NewConst!F$249="YES",IF(NewConst!$F$135>0,IF(NewConst!$F$303="YES",SUM(U13,V13,Z13),SUM(V13,Z13)),IF(NewConst!$F$303="YES",SUM(U13,V13),V13)),IF(NewConst!$F$135>0,IF(NewConst!$F$303="YES",SUM(U13,Z13),SUM(Z13)),IF(NewConst!$F$303="YES",SUM(U13),0))),0) -> 0 | AC13: 3904.011711 | AD13: 2.5 | AE13: 0.35 | AF13: 6 | AG13: =IF(NewConst!$F$203=NewConst!$I$203,'Detailed Lighting'!BB18,Lighting!BC28) -> 0.06547348008
A14: 9 | B14: Sep | C14: =1 -> 1 | D14: =1 -> 1 | E14: =Locations!CQ2 -> 0.7 | F14: =IF(NewConst!$F$111="Electric", DHW!J61,DHW!K61) -> 0.7672007667 | G14: =Locations!AI2 -> 66.19896592 | H14: 1.095882724 | I14: 1.095882724 | J14: 1.095882724 | K14: 0.8896023062 | L14: 0.8896023062 | M14: 0.9957400969 | N14: 0.8737847789 | O14: 0.9931419402 | P14: 0.9132035771 | Q14: 1.159516751 | R14: 1.5 | S14: 0.8884651248 | T14: =Appliances!$AD$125 -> 4.999 | U14: 0.542565744 | V14: =IF(AND(HomeType=2,NewConst!F$249="Yes"), 2.47*NewConst!$F$38,2.35+0.78*N_br) -> 4.69 | W14: 5.055576599 | X14: 20.20067055 | Y14: 18.01544985 | Z14: =IF(NewConst!F$135>0,0.028*NewConst!$F$38*MAX((105-G14)/(120-G14),0),0) -> 4.03869172 | AA14: =IF(AND(HomeType=2,NewConst!F$249="YES"),SUM(T14,W14:Y14),SUM(T14,V14:Y14)) -> 52.960697 | AB14: =IF(HomeType=2,IF(NewConst!F$249="YES",IF(NewConst!$F$135>0,IF(NewConst!$F$303="YES",SUM(U14,V14,Z14),SUM(V14,Z14)),IF(NewConst!$F$303="YES",SUM(U14,V14),V14)),IF(NewConst!$F$135>0,IF(NewConst!$F$303="YES",SUM(U14,Z14),SUM(Z14)),IF(NewConst!$F$303="YES",SUM(U14),0))),0) -> 0 | AC14: 3911.168191 | AD14: 2.5 | AE14: 0.35 | AF14: 6 | AG14: =IF(NewConst!$F$203=NewConst!$I$203,'Detailed Lighting'!BB19,Lighting!BC29) -> 0.07563358894
A15: 10 | B15: Oct | C15: =1 -> 1 | D15: =1 -> 1 | E15: =Locations!CR2 -> 0.85 | F15: =IF(NewConst!$F$111="Electric", DHW!J62,DHW!K62) -> 0.7656686887 | G15: =Locations!AJ2 -> 62.65287444 | H15: 0.9309111314 | I15: 0.9309111314 | J15: 0.9309111314 | K15: 1.084976741 | L15: 1.084976741 | M15: 0.9636194487 | N15: 1.01002004 | O15: 0.8673387519 | P15: 0.9073119411 | Q15: 0.921313819 | R15: 0 | S15: 0.9775864607 | T15: =Appliances!$AD$125 -> 4.999 | U15: 0.542565744 | V15: =IF(AND(HomeType=2,NewConst!F$249="Yes"), 2.47*NewConst!$F$38,2.35+0.78*N_br) -> 4.69 | W15: 5.17642946 | X15: 20.68356479 | Y15: 18.44610669 | Z15: =IF(NewConst!F$135>0,0.028*NewConst!$F$38*MAX((105-G15)/(120-G15),0),0) -> 4.135236088 | AA15: =IF(AND(HomeType=2,NewConst!F$249="YES"),SUM(T15,W15:Y15),SUM(T15,V15:Y15)) -> 53.99510094 | AB15: =IF(HomeType=2,IF(NewConst!F$249="YES",IF(NewConst!$F$135>0,IF(NewConst!$F$303="YES",SUM(U15,V15,Z15),SUM(V15,Z15)),IF(NewConst!$F$303="YES",SUM(U15,V15),V15)),IF(NewConst!$F$135>0,IF(NewConst!$F$303="YES",SUM(U15,Z15),SUM(Z15)),IF(NewConst!$F$303="YES",SUM(U15),0))),0) -> 0 | AC15: 4010.990025 | AD15: 2.5 | AE15: 0.35 | AF15: 6 | AG15: =IF(NewConst!$F$203=NewConst!$I$203,'Detailed Lighting'!BB20,Lighting!BC30) -> 0.09444908453
A16: 11 | B16: Nov | C16: =1 -> 1 | D16: =1 -> 1 | E16: =Locations!CS2 -> 0.85 | F16: =IF(NewConst!$F$111="Electric", DHW!J63,DHW!K63) -> 0.7656686887 | G16: =Locations!AK2 -> 57.77997522 | H16: 0.9254120783 | I16: 0.9254120783 | J16: 0.9254120783 | K16: 1.084583634 | L16: 1.084583634 | M16: 0.9593105812 | N16: 1.007279676 | O16: 0.8599155824 | P16: 0.9132035771 | Q16: 0.9154079612 | R16: 0 | S16: 0.9736604107 | T16: =Appliances!$AD$125 -> 4.999 | U16: 0.542565744 | V16: =IF(AND(HomeType=2,NewConst!F$249="Yes"), 2.47*NewConst!$F$38,2.35+0.78*N_br) -> 4.69 | W16: 5.320029603 | X16: 21.25735081 | Y16: 18.95782303 | Z16: =IF(NewConst!F$135>0,0.028*NewConst!$F$38*MAX((105-G16)/(120-G16),0),0) -> 4.249952322 | AA16: =IF(AND(HomeType=2,NewConst!F$249="YES"),SUM(T16,W16:Y16),SUM(T16,V16:Y16)) -> 55.22420345 | AB16: =IF(HomeType=2,IF(NewConst!F$249="YES",IF(NewConst!$F$135>0,IF(NewConst!$F$303="YES",SUM(U16,V16,Z16),SUM(V16,Z16)),IF(NewConst!$F$303="YES",SUM(U16,V16),V16)),IF(NewConst!$F$135>0,IF(NewConst!$F$303="YES",SUM(U16,Z16),SUM(Z16)),IF(NewConst!$F$303="YES",SUM(U16),0))),0) -> 0 | AC16: 4176.730034 | AD16: 2.5 | AE16: 0.35 | AF16: 6 | AG16: =IF(NewConst!$F$203=NewConst!$I$203,'Detailed Lighting'!BB21,Lighting!BC31) -> 0.107891309
A17: 12 | B17: Dec | C17: =1 -> 1 | D17: =1 -> 1 | E17: =Locations!CT2 -> 0.85 | F17: =IF(NewConst!$F$111="Electric", DHW!J64,DHW!K64) -> 0.7656686887 | G17: =Locations!AL2 -> 52.85046454 | H17: 0.8366416497 | I17: 0.8366416497 | J17: 0.8366416497 | K17: 1.096769967 | L17: 1.096769967 | M17: 1.010625275 | N17: 1.150953069 | O17: 1.136917013 | P17: 1.272593372 | Q17: 0.921313819 | R17: 0 | S17: 1.154258713 | T17: =Appliances!$AD$125 -> 4.999 | U17: 0.542565744 | V17: =IF(AND(HomeType=2,NewConst!F$249="Yes"), 2.47*NewConst!$F$38,2.35+0.78*N_br) -> 4.69 | W17: 5.444091922 | X17: 21.75306915 | Y17: 19.39991672 | Z17: =IF(NewConst!F$135>0,0.028*NewConst!$F$38*MAX((105-G17)/(120-G17),0),0) -> 4.349060594 | AA17: =IF(AND(HomeType=2,NewConst!F$249="YES"),SUM(T17,W17:Y17),SUM(T17,V17:Y17)) -> 56.28607779 | AB17: =IF(HomeType=2,IF(NewConst!F$249="YES",IF(NewConst!$F$135>0,IF(NewConst!$F$303="YES",SUM(U17,V17,Z17),SUM(V17,Z17)),IF(NewConst!$F$303="YES",SUM(U17,V17),V17)),IF(NewConst!$F$135>0,IF(NewConst!$F$303="YES",SUM(U17,Z17),SUM(Z17)),IF(NewConst!$F$303="YES",SUM(U17),0))),0) -> 0 | AC17: 4363.978315 | AD17: 2.5 | AE17: 0.35 | AF17: 6 | AG17: =IF(NewConst!$F$203=NewConst!$I$203,'Detailed Lighting'!BB22,Lighting!BC32) -> 0.1204087334
F18: Annual Avg | G18: =(G6*'Monthly Profiles'!D47+G7*'Monthly Profiles'!D48+G8*'Monthly Profiles'!D49+G9*'Monthly Profiles'!D50+G10*'Monthly Profiles'!D51+G11*'Monthly Profiles'!D52+G12*'Monthly Profiles'!D53+G13*'Monthly Profiles'!D54+G14*'Monthly Profiles'!D55+G15*'Monthly Profiles'!D56+G16*'Monthly Profiles'!D57+G17*'Monthly Profiles'!D58)/365 -> 57.72289971 | H18: =SUM(H6:H17) -> 12 | I18: 12 | J18: 12 | K18: 12 | L18: 12 | M18: 12 | N18: 12 | O18: 12 | P18: 12 | Q18: 12 | R18: 12 | S18: 12 | T18: =Appliances!$AD$125 -> 4.999 | U18: 0.542565744 | V18: =IF(HomeType=2, 2.47*NewConst!$F$38,7.5+2.5*N_br) -> 15 | W18: =(W6*'Monthly Profiles'!$D$47+W7*'Monthly Profiles'!$D$48+W8*'Monthly Profiles'!$D$49+W9*'Monthly Profiles'!$D$50+W10*'Monthly Profiles'!$D$51+W11*'Monthly Profiles'!$D$52+W12*'Monthly Profiles'!$D$53+W13*'Monthly Profiles'!$D$54+W14*'Monthly Profiles'!$D$55+W15*'Monthly Profiles'!$D$56+W16*'Monthly Profiles'!$D$57+W17*'Monthly Profiles'!$D$58)/365 -> 5.299888717 | X18: =(X6*'Monthly Profiles'!$D$47+X7*'Monthly Profiles'!$D$48+X8*'Monthly Profiles'!$D$49+X9*'Monthly Profiles'!$D$50+X10*'Monthly Profiles'!$D$51+X11*'Monthly Profiles'!$D$52+X12*'Monthly Profiles'!$D$53+X13*'Monthly Profiles'!$D$54+X14*'Monthly Profiles'!$D$55+X15*'Monthly Profiles'!$D$56+X16*'Monthly Profiles'!$D$57+X17*'Monthly Profiles'!$D$58)/365 -> 21.17687346 | Y18: =(Y6*'Monthly Profiles'!D47+Y7*'Monthly Profiles'!D48+Y8*'Monthly Profiles'!D49+Y9*'Monthly Profiles'!D50+Y10*'Monthly Profiles'!D51+Y11*'Monthly Profiles'!D52+Y12*'Monthly Profiles'!D53+Y13*'Monthly Profiles'!D54+Y14*'Monthly Profiles'!D55+Y15*'Monthly Profiles'!D56+Y16*'Monthly Profiles'!D57+Y17*'Monthly Profiles'!D58)/365 -> 18.88605138 | Z18: =IF(NewConst!F$135>0,0.028*NewConst!$F$38*MAX((105-G18)/(120-G18),0),0) -> 4.251189609 | AA18: =IF(AND(HomeType=2,NewConst!F$249="YES"),SUM(T18,W18:Y18),SUM(T18,V18:Y18)) -> 65.36181355 | AB18: =IF(HomeType=2,IF(NewConst!F$249="YES",IF(NewConst!$F$135>0,IF(NewConst!$F$303="YES",SUM(U18,V18,Z18),SUM(V18,Z18)),IF(NewConst!$F$303="YES",SUM(U18,V18),V18)),IF(NewConst!$F$135>0,IF(NewConst!$F$303="YES",SUM(U18,Z18),SUM(Z18)),IF(NewConst!$F$303="YES",SUM(U18),0))),0) -> 0 | AC18: =(AC6*'Monthly Profiles'!$D$47+AC7*'Monthly Profiles'!$D$48+AC8*'Monthly Profiles'!$D$49+AC9*'Monthly Profiles'!$D$50+AC10*'Monthly Profiles'!$D$51+AC11*'Monthly Profiles'!$D$52+AC12*'Monthly Profiles'!$D$53+AC13*'Monthly Profiles'!$D$54+AC14*'Monthly Profiles'!$D$55+AC15*'Monthly Profiles'!$D$56+AC16*'Monthly Profiles'!$D$57+AC17*'Monthly Profiles'!$D$58)/365 -> 4254.88522 | AD18: =(AD6*'Monthly Profiles'!$D$47+AD7*'Monthly Profiles'!$D$48+AD8*'Monthly Profiles'!$D$49+AD9*'Monthly Profiles'!$D$50+AD10*'Monthly Profiles'!$D$51+AD11*'Monthly Profiles'!$D$52+AD12*'Monthly Profiles'!$D$53+AD13*'Monthly Profiles'!$D$54+AD14*'Monthly Profiles'!$D$55+AD15*'Monthly Profiles'!$D$56+AD16*'Monthly Profiles'!$D$57+AD17*'Monthly Profiles'!$D$58)/365 -> 2.5 | AE18: =(AE6*'Monthly Profiles'!$D$47+AE7*'Monthly Profiles'!$D$48+AE8*'Monthly Profiles'!$D$49+AE9*'Monthly Profiles'!$D$50+AE10*'Monthly Profiles'!$D$51+AE11*'Monthly Profiles'!$D$52+AE12*'Monthly Profiles'!$D$53+AE13*'Monthly Profiles'!$D$54+AE14*'Monthly Profiles'!$D$55+AE15*'Monthly Profiles'!$D$56+AE16*'Monthly Profiles'!$D$57+AE17*'Monthly Profiles'!$D$58)/365 -> 0.35 | AF18: =(AF6*'Monthly Profiles'!$D$47+AF7*'Monthly Profiles'!$D$48+AF8*'Monthly Profiles'!$D$49+AF9*'Monthly Profiles'!$D$50+AF10*'Monthly Profiles'!$D$51+AF11*'Monthly Profiles'!$D$52+AF12*'Monthly Profiles'!$D$53+AF13*'Monthly Profiles'!$D$54+AF14*'Monthly Profiles'!$D$55+AF15*'Monthly Profiles'!$D$56+AF16*'Monthly Profiles'!$D$57+AF17*'Monthly Profiles'!$D$58)/365 -> 6 | AG18: =SUM(AG6:AG17) -> 1
S19: Btu/day
Z20: 4257
Z22: Reference DHW Heat Gain | AI22: from Table 18. Effects of Alternative DHW Distribution Systems on Daily Hot Water Volume, Internal Heat Gains, and Recovery Load
AI23: December 2008 Building America Research Benchmark Definition
A24: NCTH Monthly Profiles | AI24: Interior Heat Gain from DHW (Btu/day) | AU24: Change in Shower DHW (gal/day) | BG24: Change in Bath DHW (gal/day) | BS24: Change in Sink DHW (gal/day)
H25: Daily Energy Use Multipliers | Z25: Common Area | AA25: Total DHW for | AB25: Total DHW for | AC25: Interior Heat Gain | AD25: Equivalent DHW | AI25: Trunk and branch, Copper, Basement or interior space, None | AJ25: Trunk and branch, PEX, Basement or interior space, None | AK25: Trunk and branch, Copper, Attic or garage, None | AL25: Trunk and branch, PEX, Attic or garage, None | AM25: Home run, PEX, Basement or interior space, None | AN25: Home run, PEX, Attic or garage, None | AO25: Trunk and branch, Copper, Basement or interior space, Timer control | AP25: Trunk and branch, Copper, Basement or interior space, Demand control | AQ25: Trunk and branch, PEX, Basement or interior space, Timer control | AR25: Trunk and branch, PEX, Basement or interior space, Demand control | AS25: =NewConst!$F$153 & ", " & NewConst!$F$151 & ", " & NewConst!$F$156 & ", " & NewConst!$F$154 -> Trunk and branch, Copper, Basement or interior space, None | AU25: Trunk and branch, Copper, Basement or interior space, None | AV25: Trunk and branch, PEX, Basement or interior space, None | AW25: Trunk and branch, Copper, Attic or garage, None | AX25: Trunk and branch, PEX, Attic or garage, None | AY25: Home run, PEX, Basement or interior space, None | AZ25: Home run, PEX, Attic or garage, None | BA25: Trunk and branch, Copper, Basement or interior space, Timer control | BB25: Trunk and branch, Copper, Basement or interior space, Demand control | BC25: Trunk and branch, PEX, Basement or interior space, Timer control | BD25: Trunk and branch, PEX, Basement or interior space, Demand control | BE25: =NewConst!$F$153 & ", " & NewConst!$F$151 & ", " & NewConst!$F$156 & ", " & NewConst!$F$154 -> Trunk and branch, Copper, Basement or interior space, None | BG25: Trunk and branch, Copper, Basement or interior space, None | BH25: Trunk and branch, PEX, Basement or interior space, None | BI25: Trunk and branch, Copper, Attic or garage, None | BJ25: Trunk and branch, PEX, Attic or garage, None | BK25: Home run, PEX, Basement or interior space, None | BL25: Home run, PEX, Attic or garage, None | BM25: Trunk and branch, Copper, Basement or interior space, Timer control | BN25: Trunk and branch, Copper, Basement or interior space, Demand control | BO25: Trunk and branch, PEX, Basement or interior space, Timer control | BP25: Trunk and branch, PEX, Basement or interior space, Demand control | BQ25: =NewConst!$F$153 & ", " & NewConst!$F$151 & ", " & NewConst!$F$156 & ", " & NewConst!$F$154 -> Trunk and branch, Copper, Basement or interior space, None | BS25: Trunk and branch, Copper, Basement or interior space, None | BT25: Trunk and branch, PEX, Basement or interior space, None | BU25: Trunk and branch, Copper, Attic or garage, None | BV25: Trunk and branch, PEX, Attic or garage, None | BW25: Home run, PEX, Basement or interior space, None | BX25: Home run, PEX, Attic or garage, None | BY25: Trunk and branch, Copper, Basement or interior space, Timer control | BZ25: Trunk and branch, Copper, Basement or interior space, Demand control | CA25: Trunk and branch, PEX, Basement or interior space, Timer control | CB25: Trunk and branch, PEX, Basement or interior space, Demand control | CC25: =NewConst!$F$153 & ", " & NewConst!$F$151 & ", " & NewConst!$F$156 & ", " & NewConst!$F$154 -> Trunk and branch, Copper, Basement or interior space, None
C26: Heating Active | D26: Cooling Active | E26: Estimated Interior Shading | F26: Corrected Water Heater Recovery | H26: =H4 -> Refrigerator | I26: =I4 -> Freezer | J26: Spa Heater | K26: Cooking Appliances | L26: Dishwasher | M26: Clothes washer | N26: Clothes dryer | O26: Home Entertainment | P26: Waterbed heater | Q26: Spa pump | R26: Ceiling Fans | S26: Other MELs | T26: Dishwasher DHW | U26: Common Area Dishwasher | V26: Clothes Washer DHW | W26: Bath DHW | X26: Shower DHW | Y26: Sinks DHW | Z26: Sinks | AA26: Unit | AB26: Common Areas | AC26: from DHW in Unit | AD26: for Recirc Energy | AE26: Lighting Fraction
B27: Month | C27: (1=yes) | D27: (1=yes) | E27: Multiplier | F27: Efficiency | G27: Mains Temp (ºF) | T27: (gal/day) | U27: (gal/day) | V27: (gal/day) | W27: (gal/day) | X27: (gal/day) | Y27: (gal/day) | Z27: (gal/day) | AA27: (gal/day) | AB27: (gal/day) | AC27: (Btu/day) | AD27: (gal/day) | AE27: %
A28: 1 | B28: Jan | C28: ='Monthly Profiles'!C6 -> 1 | D28: ='Monthly Profiles'!D6 -> 1 | E28: ='Monthly Profiles'!E6 -> 0.85 | F28: =DHW!N53 -> 0.7658205608 | G28: ='Monthly Profiles'!G6 -> 48.71829039 | H28: =H6 -> 0.8366416497 | I28: =I6 -> 0.8366416497 | J28: 0.8366416497 | K28: 1.096769967 | L28: 1.096769967 | M28: 1.010625275 | N28: 1.150953069 | O28: 1.136917013 | P28: 1.272593372 | Q28: 0.921313819 | R28: 0 | S28: 1.154258713 | T28: =IF(NewConst!$F$286="yes", Appliances!$AF$125, 'Monthly Profiles'!T6) -> 2.045609707 | U28: =IF(NewConst!$F$303="YES", IF(NewConst!$F$304="yes", Appliances!$AG$125, 'Monthly Profiles'!$U6), 0) -> 0.7051154671 | V28: =IF(NewConst!F$247="yes", (IF(Appliances!AF$237="yes",IF(AND(Appliances!AF$238="yes",G28<70),Appliances!AF$267+(Appliances!AF$267*((1/Appliances!AF$257)*(70-G28)+(G28-NewConst!F$112))/(NewConst!F$112-G28)),0),IF(Appliances!AF$238="yes",Appliances!AF$267+(Appliances!AF$267*((1/Appliances!AF$257)*(Appliances!AF$258-G28)+(G28-NewConst!F$112))/(NewConst!F$112-G28)),Appliances!AF$267)*(Appliances!AF$261/365))), 'Monthly Profiles'!V6) -> 8.809492142 | W28: =(3.5+1.17*N_br)*MAX((105-G28)/(NewConst!$F$112-G28),0)+HLOOKUP(NewConst!$F$153 & ", " & NewConst!$F$151 & ", " & NewConst!$F$156 & ", " & NewConst!$F$154,'Monthly Profiles'!$BG$25:$BQ$40,A28+3,FALSE ) -> 4.853918382 | X28: =(14+4.67*N_br)*MAX((105-G28)/(NewConst!$F$112-G28),0)+HLOOKUP(NewConst!$F$153 & ", " & NewConst!$F$151 & ", " & NewConst!$F$156 & ", " & NewConst!$F$154,'Monthly Profiles'!$AU$25:$BE$39,A28+3,FALSE ) -> 19.39490069 | Y28: =(12.5+4.16*N_br)*MAX((105-G28)/(NewConst!$F$112-G28),0)+HLOOKUP(NewConst!$F$153 & ", " & NewConst!$F$151 & ", " & NewConst!$F$156 & ", " & NewConst!$F$154,'Monthly Profiles'!$BS$25:$CC$39,A28+3,FALSE ) -> 17.29684468 | Z28: =IF(NewConst!F$135>0,(0.028*NewConst!$F$38)*MAX((105-$G28)/(NewConst!$F$112-$G28),0),0) -> 3.877595284 | AA28: =SUM(AD28, T28,V28:Y28) -> 52.4007656 | AB28: =IF(HomeType=2,IF(NewConst!F$249="YES",IF(NewConst!$F$135>0,IF(NewConst!$F$303="YES",SUM(U28,V28,Z28),SUM(V28,Z28)),IF(NewConst!$F$303="YES",SUM(U28,V28),V28)),IF(NewConst!$F$135>0,IF(NewConst!$F$303="YES",SUM(U28,Z28),SUM(Z28)),IF(NewConst!$F$303="YES",SUM(U28),0))),0) -> 0 | AC28: =HLOOKUP(NewConst!$F$153 & ", " & NewConst!$F$151 & ", " & NewConst!$F$156 & ", " & NewConst!$F$154,'Monthly Profiles'!$AI$25:$AS$40,A28+3,FALSE ) -> 4522.561843 | AD28: =IF(NewConst!$F$154="Timer control",(18135+2538*N_br+(-12265-1495*N_br)*R_ins/2)/(8.33*((120-'Monthly Profiles'!G28)*4184*0.00023886)),IF(NewConst!$F$154="Demand control",(-3648+2344*N_br+(-1328-761*N_br)*R_ins/2)/(8.33*((120-'Monthly Profiles'!G28)*4184*0.000238861)),0)) -> 0 | AE28: =IF(NewConst!$F$203=NewConst!$I$203,'Detailed Lighting'!BB11,Lighting!BC21) -> 0.1159177192 | AI28: =('Monthly Profiles'!$Z$20+735*(N_br-3)-(948+158*(N_br-3))*R_ins/2)*(1+1/'Monthly Profiles'!$Z$20*(362+(63*(N_br-3)))*SIN(2*PI()*('Monthly Profiles'!$A28/12)+0.3)) -> 4522.561843 | AJ28: =('Monthly Profiles'!$Z$20-1047-732*R_ins/2)*(1+1/'Monthly Profiles'!$Z$20*735*(N_br-3)+1/'Monthly Profiles'!$Z$20*(362+(63*(N_br-3)))*SIN(2*PI()*('Monthly Profiles'!$A28/12)+0.3)) -> 3410.247478 | AK28: =('Monthly Profiles'!$Z$20+735*(N_br-3)-(3356+589*(N_br-3))-(90+11*(N_br-3))*R_ins/2)*(1+1/'Monthly Profiles'!$Z$20*(362+(63*(N_br-3)))*SIN(2*PI()*('Monthly Profiles'!$A28/12)+0.3)) -> 957.2065352 | AL28: =('Monthly Profiles'!$Z$20-1047)*(1+1/'Monthly Profiles'!$Z$20*735*(N_br-3)-1/'Monthly Profiles'!$Z$20*(3356+589*(N_br-3)+(90+11*(N_br-3))*R_ins/2))*(1+1/'Monthly Profiles'!$Z$20*(362+(63*(N_br-3)))*SIN(2*PI()*('Monthly Profiles'!$A28/12)+0.3)) -> 721.7836453 | AM28: =('Monthly Profiles'!$Z$20+735*(N_br-3)-(1142+378*(N_br-3))-(649+73*(N_br-3))*R_ins/2)*(1+1/'Monthly Profiles'!$Z$20*(362+(63*(N_br-3)))*SIN(2*PI()*('Monthly Profiles'!$A28/12)+0.3)) -> 3309.321151 | AN28: =('Monthly Profiles'!$Z$20+735*(N_br-3)-(1142+378*(N_br-3)))*(1-1/'Monthly Profiles'!$Z$20*(3356+589*(N_br-3)+(90+11*(N_br-3))*R_ins/2))*(1+1/'Monthly Profiles'!$Z$20*(362+(63*(N_br-3)))*SIN(2*PI()*('Monthly Profiles'!$A28/12)+0.3)) -> 700.4224471 | AO28: =('Monthly Profiles'!$Z$20+735*(N_br-3)+(20148+2140*(N_br-3))-(11956+1355*(N_br-3))*R_ins/2)*(1+1/'Monthly Profiles'!$Z$20*(362+(63*(N_br-3)))*SIN(2*PI()*('Monthly Profiles'!$A28/12)+0.3)) -> 25927.44228 | AP28: =('Monthly Profiles'!$Z$20+735*(N_br-3)+(1458+1066*(N_br-3))-(1332+545*(N_br-3))*R_ins/2)*(1+1/'Monthly Profiles'!$Z$20*(362+(63*(N_br-3)))*SIN(2*PI()*('Monthly Profiles'!$A28/12)+0.3)) -> 6071.51537 | AQ28: =('Monthly Profiles'!$Z$20-1047)*(1+1/'Monthly Profiles'!$Z$20*735*(N_br-3)+1/'Monthly Profiles'!$Z$20*(20148+2140*(N_br-3))-1/'Monthly Profiles'!$Z$20*((11956+1355*(N_br-3))*R_ins/2))*(1+1/'Monthly Profiles'!$Z$20*(362+(63*(N_br-3)))*SIN(2*PI()*('Monthly Profiles'!$A28/12)+0.3)) -> 19550.64358 | AR28: =('Monthly Profiles'!$Z$20-1047)*(1+1/'Monthly Profiles'!$Z$20*735*(N_br-3)+1/'Monthly Profiles'!$Z$20*(1458+1066*(N_br-3))-1/'Monthly Profiles'!$Z$20*((1332+545*(N_br-3))*R_ins/2))*(1+1/'Monthly Profiles'!$Z$20*(362+(63*(N_br-3)))*SIN(2*PI()*('Monthly Profiles'!$A28/12)+0.3)) -> 4578.239215 | AS28: ='Monthly Profiles'!AC6 -> 4522.561843 | AU28: =(-0.305-0.075*N_br)*R_ins/2 -> 0 | AV28: =-0.85-0.44*R_ins/2 -> -0.85 | AW28: =(-1.14-0.36*(N_br)+(-0.34-0.08*(N_br))*R_ins/2)*(1+0.11*SIN(2*PI()*('Monthly Profiles'!$A28/12)+0.3)) -> -2.399144204 | AX28: =-0.85+('Monthly Profiles'!$X$18-0.85)/'Monthly Profiles'!$X$18*((-1.14-0.36*(N_br)+(-0.34-0.08*(N_br))*R_ins/2)*(1+0.11*SIN(2*PI()*('Monthly Profiles'!$A28/12)+0.3))) -> -3.152847054 | AY28: =-0.52-0.23*N_br+(-0.35+0.02*N_br)*R_ins/2 -> -1.21 | AZ28: =-0.52-0.23*N_br+('Monthly Profiles'!$X$18-0.52-0.23*N_br)/'Monthly Profiles'!$X$18*((-1.14-0.36*(N_br)+(-0.34-0.08*(N_br))*R_ins/2)*(1+0.11*SIN(2*PI()*('Monthly Profiles'!$A28/12)+0.3))) -> -3.472062378 | BA28: =-2.15+0.25*N_br+(-0.16-0.08*N_br)*R_ins/2 -> -1.4 | BB28: =-2.61+0.35*N_br+(0.05-0.13*N_br)*R_ins/2 -> -1.56 | BC28: =-0.85+('Monthly Profiles'!$X$18-0.85)/'Monthly Profiles'!$X$18*((-2.15+0.25*(N_br)+(-0.16-0.08*(N_br))*R_ins/2)) -> -2.193806625 | BD28: =-0.85+('Monthly Profiles'!$X$18-0.85)/'Monthly Profiles'!$X$18*((-2.61+0.35*(N_br)+(0.05-0.13*(N_br))*R_ins/2)) -> -2.347384525 | BE28: =0 -> 0 | BG28: =(0.03-0.03*N_br)*R_ins/2 -> 0 | BH28: =-0.12-0.06*R_ins/2 -> -0.12 | BI28: =(-0.28-0.11*(N_br)+(0.06-0.04*(N_br))*R_ins/2)*(1+0.13*SIN(2*PI()*('Monthly Profiles'!$A28/12)+0.3)) -> -0.6681741827 | BJ28: =-0.12+('Monthly Profiles'!$W$18-0.12)/'Monthly Profiles'!$W$18*((-0.28-0.11*(N_br)+(0.06-0.04*(N_br))*R_ins/2)*(1+0.13*SIN(2*PI()*('Monthly Profiles'!$A28/12)+0.3))) -> -0.773045393 | BK28: =-0.06-0.05*N_br+(-0.11+0.03*N_br)*R_ins/2 -> -0.21 | BL28: =-0.06-0.05*N_br+('Monthly Profiles'!$W$18-0.06-0.05*N_br)/'Monthly Profiles'!$W$18*((-0.28-0.11*(N_br)+(0.06-0.04*(N_br))*R_ins/2)*(1+0.13*SIN(2*PI()*('Monthly Profiles'!$A28/12)+0.3))) -> -0.8516988007 | BM28: =-0.27+0.04*N_br+(-0.01-0.03*N_br)*R_ins/2 -> -0.15 | BN28: =-0.26+0.01*N_br+(-0.03-0*N_br)*R_ins/2 -> -0.23 | BO28: =-0.12+('Monthly Profiles'!$W$18-0.12)/'Monthly Profiles'!$W$18*((-0.27+0.04*(N_br)+(-0.01-0.03*(N_br))*R_ins/2)) -> -0.2666037023 | BP28: =-0.12+('Monthly Profiles'!$W$18-0.12)/'Monthly Profiles'!$W$18*((-0.26+0.01*(N_br)+(-0.03-0*(N_br))*R_ins/2)) -> -0.3447923435 | BQ28: =0 -> 0 | BS28: =(-0.755-0.245*N_br)*R_ins/2 -> 0 | BT28: =-1.69-1.74*R_ins/2 -> -1.69 | BU28: =(-0.89-0.32*(N_br)+(-1.86+0.31*(N_br))*R_ins/2)*(1+0.16*SIN(2*PI()*('Monthly Profiles'!$A28/12)+0.3)) -> -2.06714449 | BV28: =-1.69+('Monthly Profiles'!$Y$18-1.69)/'Monthly Profiles'!$Y$18*((-0.89-0.32*(N_br)+(-1.86+0.31*(N_br))*R_ins/2)*(1+0.16*SIN(2*PI()*('Monthly Profiles'!$A28/12)+0.3))) -> -3.572168069 | BW28: =0.21-0.72*N_br+(-0.75-0.15*N_br)*R_ins/2 -> -1.95 | BX28: =0.21-0.72*N_br+('Monthly Profiles'!$Y$18+0.21-0.72*N_br)/'Monthly Profiles'!$Y$18*((-0.89-0.32*(N_br)+(-1.86+0.31*(N_br))*R_ins/2)*(1+0.16*SIN(2*PI()*('Monthly Profiles'!$A28/12)+0.3))) -> -3.803710158 | BY28: =-2.01-0.95*N_br+(-0.36-0.13*N_br)*R_ins/2 -> -4.86 | BZ28: =-1.34-0.91*N_br+(-0.64-0.07*N_br)*R_ins/2 -> -4.07 | CA28: =-1.69+('Monthly Profiles'!$Y$18-1.69)/'Monthly Profiles'!$Y$18*((-2.01-0.95*(N_br)+(-0.36-0.13*(N_br))*R_ins/2)) -> -6.115107611 | CB28: =-1.69+('Monthly Profiles'!$Y$18-1.69)/'Monthly Profiles'!$Y$18*((-1.34-0.91*(N_br)+(-0.64-0.07*(N_br))*R_ins/2)) -> -5.395799995 | CC28: =0 -> 0
A29: 2 | B29: Feb | C29: ='Monthly Profiles'!C7 -> 1 | D29: ='Monthly Profiles'!D7 -> 1 | E29: ='Monthly Profiles'!E7 -> 0.85 | F29: =DHW!N54 -> 0.7658205608 | G29: ='Monthly Profiles'!G7 -> 47.64133978 | H29: =H7 -> 0.8349582661 | I29: 0.8349582661 | J29: 0.8349582661 | K29: 1.096769967 | L29: 1.096769967 | M29: 1.001811683 | N29: 1.144241972 | O29: 1.128963617 | P29: 1.265439243 | Q29: 0.9284852178 | R29: 0 | S29: 1.160568436 | T29: =IF(NewConst!$F$286="yes", Appliances!$AF$125, 'Monthly Profiles'!T7) -> 2.045609707 | U29: =IF(NewConst!$F$303="YES", IF(NewConst!$F$304="yes", Appliances!$AG$125, 'Monthly Profiles'!$U7), 0) -> 0.7051154671 | V29: =IF(NewConst!F$247="yes", (IF(Appliances!AF$237="yes",IF(AND(Appliances!AF$238="yes",G29<70),Appliances!AF$267+(Appliances!AF$267*((1/Appliances!AF$257)*(70-G29)+(G29-NewConst!F$112))/(NewConst!F$112-G29)),0),IF(Appliances!AF$238="yes",Appliances!AF$267+(Appliances!AF$267*((1/Appliances!AF$257)*(Appliances!AF$258-G29)+(G29-NewConst!F$112))/(NewConst!F$112-G29)),Appliances!AF$267)*(Appliances!AF$261/365))), 'Monthly Profiles'!V7) -> 8.908160054 | W29: =(3.5+1.17*N_br)*MAX((105-G29)/(NewConst!$F$112-G29),0)+HLOOKUP(NewConst!$F$153 & ", " & NewConst!$F$151 & ", " & NewConst!$F$156 & ", " & NewConst!$F$154,'Monthly Profiles'!$BG$25:$BQ$40,A29+3,FALSE ) -> 4.882112058 | X29: =(14+4.67*N_br)*MAX((105-G29)/(NewConst!$F$112-G29),0)+HLOOKUP(NewConst!$F$153 & ", " & NewConst!$F$151 & ", " & NewConst!$F$156 & ", " & NewConst!$F$154,'Monthly Profiles'!$AU$25:$BE$39,A29+3,FALSE ) -> 19.50755474 | Y29: =(12.5+4.16*N_br)*MAX((105-G29)/(NewConst!$F$112-G29),0)+HLOOKUP(NewConst!$F$153 & ", " & NewConst!$F$151 & ", " & NewConst!$F$156 & ", " & NewConst!$F$154,'Monthly Profiles'!$BS$25:$CC$39,A29+3,FALSE ) -> 17.3973123 | Z29: =IF(NewConst!F$135>0,(0.028*NewConst!$F$38)*MAX((105-$G29)/(NewConst!$F$112-$G29),0),0) -> 3.900118049 | AA29: 52.74074886 | AB29: =IF(HomeType=2,IF(NewConst!F$249="YES",IF(NewConst!$F$135>0,IF(NewConst!$F$303="YES",SUM(U29,V29,Z29),SUM(V29,Z29)),IF(NewConst!$F$303="YES",SUM(U29,V29),V29)),IF(NewConst!$F$135>0,IF(NewConst!$F$303="YES",SUM(U29,Z29),SUM(Z29)),IF(NewConst!$F$303="YES",SUM(U29),0))),0) -> 0 | AC29: =HLOOKUP(NewConst!$F$153 & ", " & NewConst!$F$151 & ", " & NewConst!$F$156 & ", " & NewConst!$F$154,'Monthly Profiles'!$AI$25:$AS$40,A29+3,FALSE ) -> 4609.988289 | AD29: =IF(NewConst!$F$154="Timer control",(18135+2538*N_br+(-12265-1495*N_br)*R_ins/2)/(8.33*((120-'Monthly Profiles'!G29)*4184*0.00023886)),IF(NewConst!$F$154="Demand control",(-3648+2344*N_br+(-1328-761*N_br)*R_ins/2)/(8.33*((120-'Monthly Profiles'!G29)*4184*0.000238861)),0)) -> 0 | AE29: =IF(NewConst!$F$203=NewConst!$I$203,'Detailed Lighting'!BB12,Lighting!BC22) -> 0.09173891494 | AI29: =('Monthly Profiles'!$Z$20+735*(N_br-3)-(948+158*(N_br-3))*R_ins/2)*(1+1/'Monthly Profiles'!$Z$20*(362+(63*(N_br-3)))*SIN(2*PI()*('Monthly Profiles'!$A29/12)+0.3)) -> 4609.988289 | AJ29: =('Monthly Profiles'!$Z$20-1047-732*R_ins/2)*(1+1/'Monthly Profiles'!$Z$20*735*(N_br-3)+1/'Monthly Profiles'!$Z$20*(362+(63*(N_br-3)))*SIN(2*PI()*('Monthly Profiles'!$A29/12)+0.3)) -> 3476.171578 | AK29: =('Monthly Profiles'!$Z$20+735*(N_br-3)-(3356+589*(N_br-3))-(90+11*(N_br-3))*R_ins/2)*(1+1/'Monthly Profiles'!$Z$20*(362+(63*(N_br-3)))*SIN(2*PI()*('Monthly Profiles'!$A29/12)+0.3)) -> 975.7104648 | AL29: =('Monthly Profiles'!$Z$20-1047)*(1+1/'Monthly Profiles'!$Z$20*735*(N_br-3)-1/'Monthly Profiles'!$Z$20*(3356+589*(N_br-3)+(90+11*(N_br-3))*R_ins/2))*(1+1/'Monthly Profiles'!$Z$20*(362+(63*(N_br-3)))*SIN(2*PI()*('Monthly Profiles'!$A29/12)+0.3)) -> 735.7365732 | AM29: =('Monthly Profiles'!$Z$20+735*(N_br-3)-(1142+378*(N_br-3))-(649+73*(N_br-3))*R_ins/2)*(1+1/'Monthly Profiles'!$Z$20*(362+(63*(N_br-3)))*SIN(2*PI()*('Monthly Profiles'!$A29/12)+0.3)) -> 3373.294226 | AN29: =('Monthly Profiles'!$Z$20+735*(N_br-3)-(1142+378*(N_br-3)))*(1-1/'Monthly Profiles'!$Z$20*(3356+589*(N_br-3)+(90+11*(N_br-3))*R_ins/2))*(1+1/'Monthly Profiles'!$Z$20*(362+(63*(N_br-3)))*SIN(2*PI()*('Monthly Profiles'!$A29/12)+0.3)) -> 713.9624379 | AO29: =('Monthly Profiles'!$Z$20+735*(N_br-3)+(20148+2140*(N_br-3))-(11956+1355*(N_br-3))*R_ins/2)*(1+1/'Monthly Profiles'!$Z$20*(362+(63*(N_br-3)))*SIN(2*PI()*('Monthly Profiles'!$A29/12)+0.3)) -> 26428.65027 | AP29: =('Monthly Profiles'!$Z$20+735*(N_br-3)+(1458+1066*(N_br-3))-(1332+545*(N_br-3))*R_ins/2)*(1+1/'Monthly Profiles'!$Z$20*(362+(63*(N_br-3)))*SIN(2*PI()*('Monthly Profiles'!$A29/12)+0.3)) -> 6188.884913 | AQ29: =('Monthly Profiles'!$Z$20-1047)*(1+1/'Monthly Profiles'!$Z$20*735*(N_br-3)+1/'Monthly Profiles'!$Z$20*(20148+2140*(N_br-3))-1/'Monthly Profiles'!$Z$20*((11956+1355*(N_br-3))*R_ins/2))*(1+1/'Monthly Profiles'!$Z$20*(362+(63*(N_br-3)))*SIN(2*PI()*('Monthly Profiles'!$A29/12)+0.3)) -> 19928.58054 | AR29: =('Monthly Profiles'!$Z$20-1047)*(1+1/'Monthly Profiles'!$Z$20*735*(N_br-3)+1/'Monthly Profiles'!$Z$20*(1458+1066*(N_br-3))-1/'Monthly Profiles'!$Z$20*((1332+545*(N_br-3))*R_ins/2))*(1+1/'Monthly Profiles'!$Z$20*(362+(63*(N_br-3)))*SIN(2*PI()*('Monthly Profiles'!$A29/12)+0.3)) -> 4666.741971 | AS29: ='Monthly Profiles'!AC7 -> 4609.988289 | AU29: 0 | AV29: -0.85 | AW29: =(-1.14-0.36*(N_br)+(-0.34-0.08*(N_br))*R_ins/2)*(1+0.11*SIN(2*PI()*('Monthly Profiles'!$A29/12)+0.3)) -> -2.45812083 | AX29: =-0.85+('Monthly Profiles'!$X$18-0.85)/'Monthly Profiles'!$X$18*((-1.14-0.36*(N_br)+(-0.34-0.08*(N_br))*R_ins/2)*(1+0.11*SIN(2*PI()*('Monthly Profiles'!$A29/12)+0.3))) -> -3.209456468 | AY29: -1.21 | AZ29: =-0.52-0.23*N_br+('Monthly Profiles'!$X$18-0.52-0.23*N_br)/'Monthly Profiles'!$X$18*((-1.14-0.36*(N_br)+(-0.34-0.08*(N_br))*R_ins/2)*(1+0.11*SIN(2*PI()*('Monthly Profiles'!$A29/12)+0.3))) -> -3.527669209 | BA29: -1.4 | BB29: -1.56 | BC29: =-0.85+('Monthly Profiles'!$X$18-0.85)/'Monthly Profiles'!$X$18*((-2.15+0.25*(N_br)+(-0.16-0.08*(N_br))*R_ins/2)) -> -2.193806625 | BD29: =-0.85+('Monthly Profiles'!$X$18-0.85)/'Monthly Profiles'!$X$18*((-2.61+0.35*(N_br)+(0.05-0.13*(N_br))*R_ins/2)) -> -2.347384525 | BE29: =0 -> 0 | BG29: 0 | BH29: -0.12 | BI29: =(-0.28-0.11*(N_br)+(0.06-0.04*(N_br))*R_ins/2)*(1+0.13*SIN(2*PI()*('Monthly Profiles'!$A29/12)+0.3)) -> -0.6873258877 | BJ29: =-0.12+('Monthly Profiles'!$W$18-0.12)/'Monthly Profiles'!$W$18*((-0.28-0.11*(N_br)+(0.06-0.04*(N_br))*R_ins/2)*(1+0.13*SIN(2*PI()*('Monthly Profiles'!$A29/12)+0.3))) -> -0.7917634654 | BK29: -0.21 | BL29: =-0.06-0.05*N_br+('Monthly Profiles'!$W$18-0.06-0.05*N_br)/'Monthly Profiles'!$W$18*((-0.28-0.11*(N_br)+(0.06-0.04*(N_br))*R_ins/2)*(1+0.13*SIN(2*PI()*('Monthly Profiles'!$A29/12)+0.3))) -> -0.8700916486 | BM29: -0.15 | BN29: -0.23 | BO29: =-0.12+('Monthly Profiles'!$W$18-0.12)/'Monthly Profiles'!$W$18*((-0.27+0.04*(N_br)+(-0.01-0.03*(N_br))*R_ins/2)) -> -0.2666037023 | BP29: =-0.12+('Monthly Profiles'!$W$18-0.12)/'Monthly Profiles'!$W$18*((-0.26+0.01*(N_br)+(-0.03-0*(N_br))*R_ins/2)) -> -0.3447923435 | BQ29: =0 -> 0 | BS29: 0 | BT29: -1.69 | BU29: =(-0.89-0.32*(N_br)+(-1.86+0.31*(N_br))*R_ins/2)*(1+0.16*SIN(2*PI()*('Monthly Profiles'!$A29/12)+0.3)) -> -2.138631309 | BV29: =-1.69+('Monthly Profiles'!$Y$18-1.69)/'Monthly Profiles'!$Y$18*((-0.89-0.32*(N_br)+(-1.86+0.31*(N_br))*R_ins/2)*(1+0.16*SIN(2*PI()*('Monthly Profiles'!$A29/12)+0.3))) -> -3.637257959 | BW29: -1.95 | BX29: =0.21-0.72*N_br+('Monthly Profiles'!$Y$18+0.21-0.72*N_br)/'Monthly Profiles'!$Y$18*((-0.89-0.32*(N_br)+(-1.86+0.31*(N_br))*R_ins/2)*(1+0.16*SIN(2*PI()*('Monthly Profiles'!$A29/12)+0.3))) -> -3.867815905 | BY29: -4.86 | BZ29: -4.07 | CA29: =-1.69+('Monthly Profiles'!$Y$18-1.69)/'Monthly Profiles'!$Y$18*((-2.01-0.95*(N_br)+(-0.36-0.13*(N_br))*R_ins/2)) -> -6.115107611 | CB29: =-1.69+('Monthly Profiles'!$Y$18-1.69)/'Monthly Profiles'!$Y$18*((-1.34-0.91*(N_br)+(-0.64-0.07*(N_br))*R_ins/2)) -> -5.395799995 | CC29: =0 -> 0
A30: 3 | B30: Mar | C30: ='Monthly Profiles'!C8 -> 1 | D30: ='Monthly Profiles'!D8 -> 1 | E30: ='Monthly Profiles'!E8 -> 0.85 | F30: =DHW!N55 -> 0.7658205608 | G30: ='Monthly Profiles'!G8 -> 49.15056928 | H30: =H8 -> 1.084099039 | I30: 1.084099039 | J30: 1.084099039 | K30: 0.9906309376 | L30: 0.9906309376 | M30: 1.022376732 | N30: 1.01002004 | O30: 0.9611051034 | P30: 0.9073119411 | Q30: 0.921313819 | R30: 0 | S30: 1.012920911 | T30: =IF(NewConst!$F$286="yes", Appliances!$AF$125, 'Monthly Profiles'!T8) -> 2.045609707 | U30: =IF(NewConst!$F$303="YES", IF(NewConst!$F$304="yes", Appliances!$AG$125, 'Monthly Profiles'!$U8), 0) -> 0.7051154671 | V30: =IF(NewConst!F$247="yes", (IF(Appliances!AF$237="yes",IF(AND(Appliances!AF$238="yes",G30<70),Appliances!AF$267+(Appliances!AF$267*((1/Appliances!AF$257)*(70-G30)+(G30-NewConst!F$112))/(NewConst!F$112-G30)),0),IF(Appliances!AF$238="yes",Appliances!AF$267+(Appliances!AF$267*((1/Appliances!AF$257)*(Appliances!AF$258-G30)+(G30-NewConst!F$112))/(NewConst!F$112-G30)),Appliances!AF$267)*(Appliances!AF$261/365))), 'Monthly Profiles'!V8) -> 8.769148372 | W30: =(3.5+1.17*N_br)*MAX((105-G30)/(NewConst!$F$112-G30),0)+HLOOKUP(NewConst!$F$153 & ", " & NewConst!$F$151 & ", " & NewConst!$F$156 & ", " & NewConst!$F$154,'Monthly Profiles'!$BG$25:$BQ$40,A30+3,FALSE ) -> 4.842390427 | X30: =(14+4.67*N_br)*MAX((105-G30)/(NewConst!$F$112-G30),0)+HLOOKUP(NewConst!$F$153 & ", " & NewConst!$F$151 & ", " & NewConst!$F$156 & ", " & NewConst!$F$154,'Monthly Profiles'!$AU$25:$BE$39,A30+3,FALSE ) -> 19.34883821 | Y30: =(12.5+4.16*N_br)*MAX((105-G30)/(NewConst!$F$112-G30),0)+HLOOKUP(NewConst!$F$153 & ", " & NewConst!$F$151 & ", " & NewConst!$F$156 & ", " & NewConst!$F$154,'Monthly Profiles'!$BS$25:$CC$39,A30+3,FALSE ) -> 17.25576503 | Z30: =IF(NewConst!F$135>0,(0.028*NewConst!$F$38)*MAX((105-$G30)/(NewConst!$F$112-$G30),0),0) -> 3.868386076 | AA30: 52.26175175 | AB30: =IF(HomeType=2,IF(NewConst!F$249="YES",IF(NewConst!$F$135>0,IF(NewConst!$F$303="YES",SUM(U30,V30,Z30),SUM(V30,Z30)),IF(NewConst!$F$303="YES",SUM(U30,V30),V30)),IF(NewConst!$F$135>0,IF(NewConst!$F$303="YES",SUM(U30,Z30),SUM(Z30)),IF(NewConst!$F$303="YES",SUM(U30),0))),0) -> 0 | AC30: =HLOOKUP(NewConst!$F$153 & ", " & NewConst!$F$151 & ", " & NewConst!$F$156 & ", " & NewConst!$F$154,'Monthly Profiles'!$AI$25:$AS$40,A30+3,FALSE ) -> 4602.831809 | AD30: =IF(NewConst!$F$154="Timer control",(18135+2538*N_br+(-12265-1495*N_br)*R_ins/2)/(8.33*((120-'Monthly Profiles'!G30)*4184*0.00023886)),IF(NewConst!$F$154="Demand control",(-3648+2344*N_br+(-1328-761*N_br)*R_ins/2)/(8.33*((120-'Monthly Profiles'!G30)*4184*0.000238861)),0)) -> 0 | AE30: =IF(NewConst!$F$203=NewConst!$I$203,'Detailed Lighting'!BB13,Lighting!BC23) -> 0.08580298981 | AI30: =('Monthly Profiles'!$Z$20+735*(N_br-3)-(948+158*(N_br-3))*R_ins/2)*(1+1/'Monthly Profiles'!$Z$20*(362+(63*(N_br-3)))*SIN(2*PI()*('Monthly Profiles'!$A30/12)+0.3)) -> 4602.831809 | AJ30: =('Monthly Profiles'!$Z$20-1047-732*R_ins/2)*(1+1/'Monthly Profiles'!$Z$20*735*(N_br-3)+1/'Monthly Profiles'!$Z$20*(362+(63*(N_br-3)))*SIN(2*PI()*('Monthly Profiles'!$A30/12)+0.3)) -> 3470.775219 | AK30: =('Monthly Profiles'!$Z$20+735*(N_br-3)-(3356+589*(N_br-3))-(90+11*(N_br-3))*R_ins/2)*(1+1/'Monthly Profiles'!$Z$20*(362+(63*(N_br-3)))*SIN(2*PI()*('Monthly Profiles'!$A30/12)+0.3)) -> 974.1957858 | AL30: =('Monthly Profiles'!$Z$20-1047)*(1+1/'Monthly Profiles'!$Z$20*735*(N_br-3)-1/'Monthly Profiles'!$Z$20*(3356+589*(N_br-3)+(90+11*(N_br-3))*R_ins/2))*(1+1/'Monthly Profiles'!$Z$20*(362+(63*(N_br-3)))*SIN(2*PI()*('Monthly Profiles'!$A30/12)+0.3)) -> 734.5944262 | AM30: =('Monthly Profiles'!$Z$20+735*(N_br-3)-(1142+378*(N_br-3))-(649+73*(N_br-3))*R_ins/2)*(1+1/'Monthly Profiles'!$Z$20*(362+(63*(N_br-3)))*SIN(2*PI()*('Monthly Profiles'!$A30/12)+0.3)) -> 3368.057572 | AN30: =('Monthly Profiles'!$Z$20+735*(N_br-3)-(1142+378*(N_br-3)))*(1-1/'Monthly Profiles'!$Z$20*(3356+589*(N_br-3)+(90+11*(N_br-3))*R_ins/2))*(1+1/'Monthly Profiles'!$Z$20*(362+(63*(N_br-3)))*SIN(2*PI()*('Monthly Profiles'!$A30/12)+0.3)) -> 712.8540927 | AO30: =('Monthly Profiles'!$Z$20+735*(N_br-3)+(20148+2140*(N_br-3))-(11956+1355*(N_br-3))*R_ins/2)*(1+1/'Monthly Profiles'!$Z$20*(362+(63*(N_br-3)))*SIN(2*PI()*('Monthly Profiles'!$A30/12)+0.3)) -> 26387.62281 | AP30: =('Monthly Profiles'!$Z$20+735*(N_br-3)+(1458+1066*(N_br-3))-(1332+545*(N_br-3))*R_ins/2)*(1+1/'Monthly Profiles'!$Z$20*(362+(63*(N_br-3)))*SIN(2*PI()*('Monthly Profiles'!$A30/12)+0.3)) -> 6179.277376 | AQ30: =('Monthly Profiles'!$Z$20-1047)*(1+1/'Monthly Profiles'!$Z$20*735*(N_br-3)+1/'Monthly Profiles'!$Z$20*(20148+2140*(N_br-3))-1/'Monthly Profiles'!$Z$20*((11956+1355*(N_br-3))*R_ins/2))*(1+1/'Monthly Profiles'!$Z$20*(362+(63*(N_br-3)))*SIN(2*PI()*('Monthly Profiles'!$A30/12)+0.3)) -> 19897.6437 | AR30: =('Monthly Profiles'!$Z$20-1047)*(1+1/'Monthly Profiles'!$Z$20*735*(N_br-3)+1/'Monthly Profiles'!$Z$20*(1458+1066*(N_br-3))-1/'Monthly Profiles'!$Z$20*((1332+545*(N_br-3))*R_ins/2))*(1+1/'Monthly Profiles'!$Z$20*(362+(63*(N_br-3)))*SIN(2*PI()*('Monthly Profiles'!$A30/12)+0.3)) -> 4659.497387 | AS30: ='Monthly Profiles'!AC8 -> 4602.831809 | AU30: 0 | AV30: -0.85 | AW30: =(-1.14-0.36*(N_br)+(-0.34-0.08*(N_br))*R_ins/2)*(1+0.11*SIN(2*PI()*('Monthly Profiles'!$A30/12)+0.3)) -> -2.453293171 | AX30: =-0.85+('Monthly Profiles'!$X$18-0.85)/'Monthly Profiles'!$X$18*((-1.14-0.36*(N_br)+(-0.34-0.08*(N_br))*R_ins/2)*(1+0.11*SIN(2*PI()*('Monthly Profiles'!$A30/12)+0.3))) -> -3.204822582 | AY30: -1.21 | AZ30: =-0.52-0.23*N_br+('Monthly Profiles'!$X$18-0.52-0.23*N_br)/'Monthly Profiles'!$X$18*((-1.14-0.36*(N_br)+(-0.34-0.08*(N_br))*R_ins/2)*(1+0.11*SIN(2*PI()*('Monthly Profiles'!$A30/12)+0.3))) -> -3.523117392 | BA30: -1.4 | BB30: -1.56 | BC30: =-0.85+('Monthly Profiles'!$X$18-0.85)/'Monthly Profiles'!$X$18*((-2.15+0.25*(N_br)+(-0.16-0.08*(N_br))*R_ins/2)) -> -2.193806625 | BD30: =-0.85+('Monthly Profiles'!$X$18-0.85)/'Monthly Profiles'!$X$18*((-2.61+0.35*(N_br)+(0.05-0.13*(N_br))*R_ins/2)) -> -2.347384525 | BE30: =0 -> 0 | BG30: 0 | BH30: -0.12 | BI30: =(-0.28-0.11*(N_br)+(0.06-0.04*(N_br))*R_ins/2)*(1+0.13*SIN(2*PI()*('Monthly Profiles'!$A30/12)+0.3)) -> -0.6857581836 | BJ30: =-0.12+('Monthly Profiles'!$W$18-0.12)/'Monthly Profiles'!$W$18*((-0.28-0.11*(N_br)+(0.06-0.04*(N_br))*R_ins/2)*(1+0.13*SIN(2*PI()*('Monthly Profiles'!$A30/12)+0.3))) -> -0.7902312572 | BK30: -0.21 | BL30: =-0.06-0.05*N_br+('Monthly Profiles'!$W$18-0.06-0.05*N_br)/'Monthly Profiles'!$W$18*((-0.28-0.11*(N_br)+(0.06-0.04*(N_br))*R_ins/2)*(1+0.13*SIN(2*PI()*('Monthly Profiles'!$A30/12)+0.3))) -> -0.8685860624 | BM30: -0.15 | BN30: -0.23 | BO30: =-0.12+('Monthly Profiles'!$W$18-0.12)/'Monthly Profiles'!$W$18*((-0.27+0.04*(N_br)+(-0.01-0.03*(N_br))*R_ins/2)) -> -0.2666037023 | BP30: =-0.12+('Monthly Profiles'!$W$18-0.12)/'Monthly Profiles'!$W$18*((-0.26+0.01*(N_br)+(-0.03-0*(N_br))*R_ins/2)) -> -0.3447923435 | BQ30: =0 -> 0 | BS30: 0 | BT30: -1.69 | BU30: =(-0.89-0.32*(N_br)+(-1.86+0.31*(N_br))*R_ins/2)*(1+0.16*SIN(2*PI()*('Monthly Profiles'!$A30/12)+0.3)) -> -2.132779601 | BV30: =-1.69+('Monthly Profiles'!$Y$18-1.69)/'Monthly Profiles'!$Y$18*((-0.89-0.32*(N_br)+(-1.86+0.31*(N_br))*R_ins/2)*(1+0.16*SIN(2*PI()*('Monthly Profiles'!$A30/12)+0.3))) -> -3.631929886 | BW30: -1.95 | BX30: =0.21-0.72*N_br+('Monthly Profiles'!$Y$18+0.21-0.72*N_br)/'Monthly Profiles'!$Y$18*((-0.89-0.32*(N_br)+(-1.86+0.31*(N_br))*R_ins/2)*(1+0.16*SIN(2*PI()*('Monthly Profiles'!$A30/12)+0.3))) -> -3.862568391 | BY30: -4.86 | BZ30: -4.07 | CA30: =-1.69+('Monthly Profiles'!$Y$18-1.69)/'Monthly Profiles'!$Y$18*((-2.01-0.95*(N_br)+(-0.36-0.13*(N_br))*R_ins/2)) -> -6.115107611 | CB30: =-1.69+('Monthly Profiles'!$Y$18-1.69)/'Monthly Profiles'!$Y$18*((-1.34-0.91*(N_br)+(-0.64-0.07*(N_br))*R_ins/2)) -> -5.395799995 | CC30: =0 -> 0
A31: 4 | B31: Apr | C31: ='Monthly Profiles'!C9 -> 1 | D31: ='Monthly Profiles'!D9 -> 1 | E31: ='Monthly Profiles'!E9 -> 0.85 | F31: =DHW!N56 -> 0.7658205608 | G31: ='Monthly Profiles'!G9 -> 52.85257496 | H31: =H9 -> 1.08370625 | I31: 1.08370625 | J31: 1.08370625 | K31: 0.9870929699 | L31: 0.9870929699 | M31: 1.020026441 | N31: 1.007279676 | O31: 0.9689189661 | P31: 0.9132035771 | Q31: 0.9154079612 | R31: 0 | S31: 1.010172676 | T31: =IF(NewConst!$F$286="yes", Appliances!$AF$125, 'Monthly Profiles'!T9) -> 2.045609707 | U31: =IF(NewConst!$F$303="YES", IF(NewConst!$F$304="yes", Appliances!$AG$125, 'Monthly Profiles'!$U9), 0) -> 0.7051154671 | V31: =IF(NewConst!F$247="yes", (IF(Appliances!AF$237="yes",IF(AND(Appliances!AF$238="yes",G31<70),Appliances!AF$267+(Appliances!AF$267*((1/Appliances!AF$257)*(70-G31)+(G31-NewConst!F$112))/(NewConst!F$112-G31)),0),IF(Appliances!AF$238="yes",Appliances!AF$267+(Appliances!AF$267*((1/Appliances!AF$257)*(Appliances!AF$258-G31)+(G31-NewConst!F$112))/(NewConst!F$112-G31)),Appliances!AF$267)*(Appliances!AF$261/365))), 'Monthly Profiles'!V9) -> 8.405131986 | W31: =(3.5+1.17*N_br)*MAX((105-G31)/(NewConst!$F$112-G31),0)+HLOOKUP(NewConst!$F$153 & ", " & NewConst!$F$151 & ", " & NewConst!$F$156 & ", " & NewConst!$F$154,'Monthly Profiles'!$BG$25:$BQ$40,A31+3,FALSE ) -> 4.738375252 | X31: =(14+4.67*N_br)*MAX((105-G31)/(NewConst!$F$112-G31),0)+HLOOKUP(NewConst!$F$153 & ", " & NewConst!$F$151 & ", " & NewConst!$F$156 & ", " & NewConst!$F$154,'Monthly Profiles'!$AU$25:$BE$39,A31+3,FALSE ) -> 18.93322265 | Y31: =(12.5+4.16*N_br)*MAX((105-G31)/(NewConst!$F$112-G31),0)+HLOOKUP(NewConst!$F$153 & ", " & NewConst!$F$151 & ", " & NewConst!$F$156 & ", " & NewConst!$F$154,'Monthly Profiles'!$BS$25:$CC$39,A31+3,FALSE ) -> 16.88510896 | Z31: =IF(NewConst!F$135>0,(0.028*NewConst!$F$38)*MAX((105-$G31)/(NewConst!$F$112-$G31),0),0) -> 3.78529264 | AA31: 51.00744855 | AB31: =IF(HomeType=2,IF(NewConst!F$249="YES",IF(NewConst!$F$135>0,IF(NewConst!$F$303="YES",SUM(U31,V31,Z31),SUM(V31,Z31)),IF(NewConst!$F$303="YES",SUM(U31,V31),V31)),IF(NewConst!$F$135>0,IF(NewConst!$F$303="YES",SUM(U31,Z31),SUM(Z31)),IF(NewConst!$F$303="YES",SUM(U31),0))),0) -> 0 | AC31: =HLOOKUP(NewConst!$F$153 & ", " & NewConst!$F$151 & ", " & NewConst!$F$156 & ", " & NewConst!$F$154,'Monthly Profiles'!$AI$25:$AS$40,A31+3,FALSE ) -> 4503.009975 | AD31: =IF(NewConst!$F$154="Timer control",(18135+2538*N_br+(-12265-1495*N_br)*R_ins/2)/(8.33*((120-'Monthly Profiles'!G31)*4184*0.00023886)),IF(NewConst!$F$154="Demand control",(-3648+2344*N_br+(-1328-761*N_br)*R_ins/2)/(8.33*((120-'Monthly Profiles'!G31)*4184*0.000238861)),0)) -> 0 | AE31: =IF(NewConst!$F$203=NewConst!$I$203,'Detailed Lighting'!BB14,Lighting!BC24) -> 0.06796068926 | AI31: =('Monthly Profiles'!$Z$20+735*(N_br-3)-(948+158*(N_br-3))*R_ins/2)*(1+1/'Monthly Profiles'!$Z$20*(362+(63*(N_br-3)))*SIN(2*PI()*('Monthly Profiles'!$A31/12)+0.3)) -> 4503.009975 | AJ31: =('Monthly Profiles'!$Z$20-1047-732*R_ins/2)*(1+1/'Monthly Profiles'!$Z$20*735*(N_br-3)+1/'Monthly Profiles'!$Z$20*(362+(63*(N_br-3)))*SIN(2*PI()*('Monthly Profiles'!$A31/12)+0.3)) -> 3395.50435 | AK31: =('Monthly Profiles'!$Z$20+735*(N_br-3)-(3356+589*(N_br-3))-(90+11*(N_br-3))*R_ins/2)*(1+1/'Monthly Profiles'!$Z$20*(362+(63*(N_br-3)))*SIN(2*PI()*('Monthly Profiles'!$A31/12)+0.3)) -> 953.068355 | AL31: =('Monthly Profiles'!$Z$20-1047)*(1+1/'Monthly Profiles'!$Z$20*735*(N_br-3)-1/'Monthly Profiles'!$Z$20*(3356+589*(N_br-3)+(90+11*(N_br-3))*R_ins/2))*(1+1/'Monthly Profiles'!$Z$20*(362+(63*(N_br-3)))*SIN(2*PI()*('Monthly Profiles'!$A31/12)+0.3)) -> 718.6632416 | AM31: =('Monthly Profiles'!$Z$20+735*(N_br-3)-(1142+378*(N_br-3))-(649+73*(N_br-3))*R_ins/2)*(1+1/'Monthly Profiles'!$Z$20*(362+(63*(N_br-3)))*SIN(2*PI()*('Monthly Profiles'!$A31/12)+0.3)) -> 3295.014346 | AN31: =('Monthly Profiles'!$Z$20+735*(N_br-3)-(1142+378*(N_br-3)))*(1-1/'Monthly Profiles'!$Z$20*(3356+589*(N_br-3)+(90+11*(N_br-3))*R_ins/2))*(1+1/'Monthly Profiles'!$Z$20*(362+(63*(N_br-3)))*SIN(2*PI()*('Monthly Profiles'!$A31/12)+0.3)) -> 697.3943918 | AO31: =('Monthly Profiles'!$Z$20+735*(N_br-3)+(20148+2140*(N_br-3))-(11956+1355*(N_br-3))*R_ins/2)*(1+1/'Monthly Profiles'!$Z$20*(362+(63*(N_br-3)))*SIN(2*PI()*('Monthly Profiles'!$A31/12)+0.3)) -> 25815.35317 | AP31: =('Monthly Profiles'!$Z$20+735*(N_br-3)+(1458+1066*(N_br-3))-(1332+545*(N_br-3))*R_ins/2)*(1+1/'Monthly Profiles'!$Z$20*(362+(63*(N_br-3)))*SIN(2*PI()*('Monthly Profiles'!$A31/12)+0.3)) -> 6045.267091 | AQ31: =('Monthly Profiles'!$Z$20-1047)*(1+1/'Monthly Profiles'!$Z$20*735*(N_br-3)+1/'Monthly Profiles'!$Z$20*(20148+2140*(N_br-3))-1/'Monthly Profiles'!$Z$20*((11956+1355*(N_br-3))*R_ins/2))*(1+1/'Monthly Profiles'!$Z$20*(362+(63*(N_br-3)))*SIN(2*PI()*('Monthly Profiles'!$A31/12)+0.3)) -> 19466.12254 | AR31: =('Monthly Profiles'!$Z$20-1047)*(1+1/'Monthly Profiles'!$Z$20*735*(N_br-3)+1/'Monthly Profiles'!$Z$20*(1458+1066*(N_br-3))-1/'Monthly Profiles'!$Z$20*((1332+545*(N_br-3))*R_ins/2))*(1+1/'Monthly Profiles'!$Z$20*(362+(63*(N_br-3)))*SIN(2*PI()*('Monthly Profiles'!$A31/12)+0.3)) -> 4558.446643 | AS31: ='Monthly Profiles'!AC9 -> 4503.009975 | AU31: 0 | AV31: -0.85 | AW31: =(-1.14-0.36*(N_br)+(-0.34-0.08*(N_br))*R_ins/2)*(1+0.11*SIN(2*PI()*('Monthly Profiles'!$A31/12)+0.3)) -> -2.385954795 | AX31: =-0.85+('Monthly Profiles'!$X$18-0.85)/'Monthly Profiles'!$X$18*((-1.14-0.36*(N_br)+(-0.34-0.08*(N_br))*R_ins/2)*(1+0.11*SIN(2*PI()*('Monthly Profiles'!$A31/12)+0.3))) -> -3.140187043 | AY31: -1.21 | AZ31: =-0.52-0.23*N_br+('Monthly Profiles'!$X$18-0.52-0.23*N_br)/'Monthly Profiles'!$X$18*((-1.14-0.36*(N_br)+(-0.34-0.08*(N_br))*R_ins/2)*(1+0.11*SIN(2*PI()*('Monthly Profiles'!$A31/12)+0.3))) -> -3.459626583 | BA31: -1.4 | BB31: -1.56 | BC31: =-0.85+('Monthly Profiles'!$X$18-0.85)/'Monthly Profiles'!$X$18*((-2.15+0.25*(N_br)+(-0.16-0.08*(N_br))*R_ins/2)) -> -2.193806625 | BD31: =-0.85+('Monthly Profiles'!$X$18-0.85)/'Monthly Profiles'!$X$18*((-2.61+0.35*(N_br)+(0.05-0.13*(N_br))*R_ins/2)) -> -2.347384525 | BE31: =0 -> 0 | BG31: 0 | BH31: -0.12 | BI31: =(-0.28-0.11*(N_br)+(0.06-0.04*(N_br))*R_ins/2)*(1+0.13*SIN(2*PI()*('Monthly Profiles'!$A31/12)+0.3)) -> -0.6638911353 | BJ31: =-0.12+('Monthly Profiles'!$W$18-0.12)/'Monthly Profiles'!$W$18*((-0.28-0.11*(N_br)+(0.06-0.04*(N_br))*R_ins/2)*(1+0.13*SIN(2*PI()*('Monthly Profiles'!$A31/12)+0.3))) -> -0.7688593223 | BK31: -0.21 | BL31: =-0.06-0.05*N_br+('Monthly Profiles'!$W$18-0.06-0.05*N_br)/'Monthly Profiles'!$W$18*((-0.28-0.11*(N_br)+(0.06-0.04*(N_br))*R_ins/2)*(1+0.13*SIN(2*PI()*('Monthly Profiles'!$A31/12)+0.3))) -> -0.8475854625 | BM31: -0.15 | BN31: -0.23 | BO31: =-0.12+('Monthly Profiles'!$W$18-0.12)/'Monthly Profiles'!$W$18*((-0.27+0.04*(N_br)+(-0.01-0.03*(N_br))*R_ins/2)) -> -0.2666037023 | BP31: =-0.12+('Monthly Profiles'!$W$18-0.12)/'Monthly Profiles'!$W$18*((-0.26+0.01*(N_br)+(-0.03-0*(N_br))*R_ins/2)) -> -0.3447923435 | BQ31: =0 -> 0 | BS31: 0 | BT31: -1.69 | BU31: =(-0.89-0.32*(N_br)+(-1.86+0.31*(N_br))*R_ins/2)*(1+0.16*SIN(2*PI()*('Monthly Profiles'!$A31/12)+0.3)) -> -2.051157327 | BV31: =-1.69+('Monthly Profiles'!$Y$18-1.69)/'Monthly Profiles'!$Y$18*((-0.89-0.32*(N_br)+(-1.86+0.31*(N_br))*R_ins/2)*(1+0.16*SIN(2*PI()*('Monthly Profiles'!$A31/12)+0.3))) -> -3.557611502 | BW31: -1.95 | BX31: =0.21-0.72*N_br+('Monthly Profiles'!$Y$18+0.21-0.72*N_br)/'Monthly Profiles'!$Y$18*((-0.89-0.32*(N_br)+(-1.86+0.31*(N_br))*R_ins/2)*(1+0.16*SIN(2*PI()*('Monthly Profiles'!$A31/12)+0.3))) -> -3.789373683 | BY31: -4.86 | BZ31: -4.07 | CA31: =-1.69+('Monthly Profiles'!$Y$18-1.69)/'Monthly Profiles'!$Y$18*((-2.01-0.95*(N_br)+(-0.36-0.13*(N_br))*R_ins/2)) -> -6.115107611 | CB31: =-1.69+('Monthly Profiles'!$Y$18-1.69)/'Monthly Profiles'!$Y$18*((-1.34-0.91*(N_br)+(-0.64-0.07*(N_br))*R_ins/2)) -> -5.395799995 | CC31: =0 -> 0
A32: 5 | B32: May | C32: ='Monthly Profiles'!C10 -> 1 | D32: ='Monthly Profiles'!D10 -> 1 | E32: ='Monthly Profiles'!E10 -> 0.85 | F32: =DHW!N57 -> 0.7658205608 | G32: ='Monthly Profiles'!G10 -> 57.78237199 | H32: =H10 -> 1.084099039 | I32: 1.084099039 | J32: 1.084099039 | K32: 0.9906309376 | L32: 0.9906309376 | M32: 1.022376732 | N32: 1.01002004 | O32: 0.9611051034 | P32: 0.9073119411 | Q32: 0.921313819 | R32: 1.5 | S32: 1.012920911 | T32: =IF(NewConst!$F$286="yes", Appliances!$AF$125, 'Monthly Profiles'!T10) -> 2.045609707 | U32: =IF(NewConst!$F$303="YES", IF(NewConst!$F$304="yes", Appliances!$AG$125, 'Monthly Profiles'!$U10), 0) -> 0.7051154671 | V32: =IF(NewConst!F$247="yes", (IF(Appliances!AF$237="yes",IF(AND(Appliances!AF$238="yes",G32<70),Appliances!AF$267+(Appliances!AF$267*((1/Appliances!AF$257)*(70-G32)+(G32-NewConst!F$112))/(NewConst!F$112-G32)),0),IF(Appliances!AF$238="yes",Appliances!AF$267+(Appliances!AF$267*((1/Appliances!AF$257)*(Appliances!AF$258-G32)+(G32-NewConst!F$112))/(NewConst!F$112-G32)),Appliances!AF$267)*(Appliances!AF$261/365))), 'Monthly Profiles'!V10) -> 7.862448461 | W32: =(3.5+1.17*N_br)*MAX((105-G32)/(NewConst!$F$112-G32),0)+HLOOKUP(NewConst!$F$153 & ", " & NewConst!$F$151 & ", " & NewConst!$F$156 & ", " & NewConst!$F$154,'Monthly Profiles'!$BG$25:$BQ$40,A32+3,FALSE ) -> 4.583307171 | X32: =(14+4.67*N_br)*MAX((105-G32)/(NewConst!$F$112-G32),0)+HLOOKUP(NewConst!$F$153 & ", " & NewConst!$F$151 & ", " & NewConst!$F$156 & ", " & NewConst!$F$154,'Monthly Profiles'!$AU$25:$BE$39,A32+3,FALSE ) -> 18.31361396 | Y32: =(12.5+4.16*N_br)*MAX((105-G32)/(NewConst!$F$112-G32),0)+HLOOKUP(NewConst!$F$153 & ", " & NewConst!$F$151 & ", " & NewConst!$F$156 & ", " & NewConst!$F$154,'Monthly Profiles'!$BS$25:$CC$39,A32+3,FALSE ) -> 16.33252684 | Z32: =IF(NewConst!F$135>0,(0.028*NewConst!$F$38)*MAX((105-$G32)/(NewConst!$F$112-$G32),0),0) -> 3.661415144 | AA32: 49.13750614 | AB32: =IF(HomeType=2,IF(NewConst!F$249="YES",IF(NewConst!$F$135>0,IF(NewConst!$F$303="YES",SUM(U32,V32,Z32),SUM(V32,Z32)),IF(NewConst!$F$303="YES",SUM(U32,V32),V32)),IF(NewConst!$F$135>0,IF(NewConst!$F$303="YES",SUM(U32,Z32),SUM(Z32)),IF(NewConst!$F$303="YES",SUM(U32),0))),0) -> 0 | AC32: =HLOOKUP(NewConst!$F$153 & ", " & NewConst!$F$151 & ", " & NewConst!$F$156 & ", " & NewConst!$F$154,'Monthly Profiles'!$AI$25:$AS$40,A32+3,FALSE ) -> 4337.269966 | AD32: =IF(NewConst!$F$154="Timer control",(18135+2538*N_br+(-12265-1495*N_br)*R_ins/2)/(8.33*((120-'Monthly Profiles'!G32)*4184*0.00023886)),IF(NewConst!$F$154="Demand control",(-3648+2344*N_br+(-1328-761*N_br)*R_ins/2)/(8.33*((120-'Monthly Profiles'!G32)*4184*0.000238861)),0)) -> 0 | AE32: =IF(NewConst!$F$203=NewConst!$I$203,'Detailed Lighting'!BB15,Lighting!BC25) -> 0.06113891285 | AI32: =('Monthly Profiles'!$Z$20+735*(N_br-3)-(948+158*(N_br-3))*R_ins/2)*(1+1/'Monthly Profiles'!$Z$20*(362+(63*(N_br-3)))*SIN(2*PI()*('Monthly Profiles'!$A32/12)+0.3)) -> 4337.269966 | AJ32: =('Monthly Profiles'!$Z$20-1047-732*R_ins/2)*(1+1/'Monthly Profiles'!$Z$20*735*(N_br-3)+1/'Monthly Profiles'!$Z$20*(362+(63*(N_br-3)))*SIN(2*PI()*('Monthly Profiles'!$A32/12)+0.3)) -> 3270.527741 | AK32: =('Monthly Profiles'!$Z$20+735*(N_br-3)-(3356+589*(N_br-3))-(90+11*(N_br-3))*R_ins/2)*(1+1/'Monthly Profiles'!$Z$20*(362+(63*(N_br-3)))*SIN(2*PI()*('Monthly Profiles'!$A32/12)+0.3)) -> 917.9892506 | AL32: =('Monthly Profiles'!$Z$20-1047)*(1+1/'Monthly Profiles'!$Z$20*735*(N_br-3)-1/'Monthly Profiles'!$Z$20*(3356+589*(N_br-3)+(90+11*(N_br-3))*R_ins/2))*(1+1/'Monthly Profiles'!$Z$20*(362+(63*(N_br-3)))*SIN(2*PI()*('Monthly Profiles'!$A32/12)+0.3)) -> 692.2117675 | AM32: =('Monthly Profiles'!$Z$20+735*(N_br-3)-(1142+378*(N_br-3))-(649+73*(N_br-3))*R_ins/2)*(1+1/'Monthly Profiles'!$Z$20*(362+(63*(N_br-3)))*SIN(2*PI()*('Monthly Profiles'!$A32/12)+0.3)) -> 3173.736421 | AN32: =('Monthly Profiles'!$Z$20+735*(N_br-3)-(1142+378*(N_br-3)))*(1-1/'Monthly Profiles'!$Z$20*(3356+589*(N_br-3)+(90+11*(N_br-3))*R_ins/2))*(1+1/'Monthly Profiles'!$Z$20*(362+(63*(N_br-3)))*SIN(2*PI()*('Monthly Profiles'!$A32/12)+0.3)) -> 671.7257495 | AO32: =('Monthly Profiles'!$Z$20+735*(N_br-3)+(20148+2140*(N_br-3))-(11956+1355*(N_br-3))*R_ins/2)*(1+1/'Monthly Profiles'!$Z$20*(362+(63*(N_br-3)))*SIN(2*PI()*('Monthly Profiles'!$A32/12)+0.3)) -> 24865.18053 | AP32: =('Monthly Profiles'!$Z$20+735*(N_br-3)+(1458+1066*(N_br-3))-(1332+545*(N_br-3))*R_ins/2)*(1+1/'Monthly Profiles'!$Z$20*(362+(63*(N_br-3)))*SIN(2*PI()*('Monthly Profiles'!$A32/12)+0.3)) -> 5822.762005 | AQ32: =('Monthly Profiles'!$Z$20-1047)*(1+1/'Monthly Profiles'!$Z$20*735*(N_br-3)+1/'Monthly Profiles'!$Z$20*(20148+2140*(N_br-3))-1/'Monthly Profiles'!$Z$20*((11956+1355*(N_br-3))*R_ins/2))*(1+1/'Monthly Profiles'!$Z$20*(362+(63*(N_br-3)))*SIN(2*PI()*('Monthly Profiles'!$A32/12)+0.3)) -> 18749.64283 | AR32: =('Monthly Profiles'!$Z$20-1047)*(1+1/'Monthly Profiles'!$Z$20*735*(N_br-3)+1/'Monthly Profiles'!$Z$20*(1458+1066*(N_br-3))-1/'Monthly Profiles'!$Z$20*((1332+545*(N_br-3))*R_ins/2))*(1+1/'Monthly Profiles'!$Z$20*(362+(63*(N_br-3)))*SIN(2*PI()*('Monthly Profiles'!$A32/12)+0.3)) -> 4390.666206 | AS32: ='Monthly Profiles'!AC10 -> 4337.269966 | AU32: 0 | AV32: -0.85 | AW32: =(-1.14-0.36*(N_br)+(-0.34-0.08*(N_br))*R_ins/2)*(1+0.11*SIN(2*PI()*('Monthly Profiles'!$A32/12)+0.3)) -> -2.274148966 | AX32: =-0.85+('Monthly Profiles'!$X$18-0.85)/'Monthly Profiles'!$X$18*((-1.14-0.36*(N_br)+(-0.34-0.08*(N_br))*R_ins/2)*(1+0.11*SIN(2*PI()*('Monthly Profiles'!$A32/12)+0.3))) -> -3.03286889 | AY32: -1.21 | AZ32: =-0.52-0.23*N_br+('Monthly Profiles'!$X$18-0.52-0.23*N_br)/'Monthly Profiles'!$X$18*((-1.14-0.36*(N_br)+(-0.34-0.08*(N_br))*R_ins/2)*(1+0.11*SIN(2*PI()*('Monthly Profiles'!$A32/12)+0.3))) -> -3.354209093 | BA32: -1.4 | BB32: -1.56 | BC32: =-0.85+('Monthly Profiles'!$X$18-0.85)/'Monthly Profiles'!$X$18*((-2.15+0.25*(N_br)+(-0.16-0.08*(N_br))*R_ins/2)) -> -2.193806625 | BD32: =-0.85+('Monthly Profiles'!$X$18-0.85)/'Monthly Profiles'!$X$18*((-2.61+0.35*(N_br)+(0.05-0.13*(N_br))*R_ins/2)) -> -2.347384525 | BE32: =0 -> 0 | BG32: 0 | BH32: -0.12 | BI32: =(-0.28-0.11*(N_br)+(0.06-0.04*(N_br))*R_ins/2)*(1+0.13*SIN(2*PI()*('Monthly Profiles'!$A32/12)+0.3)) -> -0.6275840009 | BJ32: =-0.12+('Monthly Profiles'!$W$18-0.12)/'Monthly Profiles'!$W$18*((-0.28-0.11*(N_br)+(0.06-0.04*(N_br))*R_ins/2)*(1+0.13*SIN(2*PI()*('Monthly Profiles'!$A32/12)+0.3))) -> -0.7333742535 | BK32: -0.21 | BL32: =-0.06-0.05*N_br+('Monthly Profiles'!$W$18-0.06-0.05*N_br)/'Monthly Profiles'!$W$18*((-0.28-0.11*(N_br)+(0.06-0.04*(N_br))*R_ins/2)*(1+0.13*SIN(2*PI()*('Monthly Profiles'!$A32/12)+0.3))) -> -0.8127169429 | BM32: -0.15 | BN32: -0.23 | BO32: =-0.12+('Monthly Profiles'!$W$18-0.12)/'Monthly Profiles'!$W$18*((-0.27+0.04*(N_br)+(-0.01-0.03*(N_br))*R_ins/2)) -> -0.2666037023 | BP32: =-0.12+('Monthly Profiles'!$W$18-0.12)/'Monthly Profiles'!$W$18*((-0.26+0.01*(N_br)+(-0.03-0*(N_br))*R_ins/2)) -> -0.3447923435 | BQ32: =0 -> 0 | BS32: 0 | BT32: -1.69 | BU32: =(-0.89-0.32*(N_br)+(-1.86+0.31*(N_br))*R_ins/2)*(1+0.16*SIN(2*PI()*('Monthly Profiles'!$A32/12)+0.3)) -> -1.915635111 | BV32: =-1.69+('Monthly Profiles'!$Y$18-1.69)/'Monthly Profiles'!$Y$18*((-0.89-0.32*(N_br)+(-1.86+0.31*(N_br))*R_ins/2)*(1+0.16*SIN(2*PI()*('Monthly Profiles'!$A32/12)+0.3))) -> -3.43421636 | BW32: -1.95 | BX32: =0.21-0.72*N_br+('Monthly Profiles'!$Y$18+0.21-0.72*N_br)/'Monthly Profiles'!$Y$18*((-0.89-0.32*(N_br)+(-1.86+0.31*(N_br))*R_ins/2)*(1+0.16*SIN(2*PI()*('Monthly Profiles'!$A32/12)+0.3))) -> -3.667844244 | BY32: -4.86 | BZ32: -4.07 | CA32: =-1.69+('Monthly Profiles'!$Y$18-1.69)/'Monthly Profiles'!$Y$18*((-2.01-0.95*(N_br)+(-0.36-0.13*(N_br))*R_ins/2)) -> -6.115107611 | CB32: =-1.69+('Monthly Profiles'!$Y$18-1.69)/'Monthly Profiles'!$Y$18*((-1.34-0.91*(N_br)+(-0.64-0.07*(N_br))*R_ins/2)) -> -5.395799995 | CC32: =0 -> 0
A33: 6 | B33: Jun | C33: ='Monthly Profiles'!C11 -> 1 | D33: ='Monthly Profiles'!D11 -> 1 | E33: ='Monthly Profiles'!E11 -> 0.85 | F33: =DHW!N58 -> 0.7673936853 | G33: ='Monthly Profiles'!G11 -> 62.65493281 | H33: =H11 -> 1.095882724 | I33: 1.095882724 | J33: 1.095882724 | K33: 0.8896023062 | L33: 0.8896023062 | M33: 0.9957400969 | N33: 0.8737847789 | O33: 0.9931419402 | P33: 0.9132035771 | Q33: 1.159516751 | R33: 3 | S33: 0.8884651248 | T33: =IF(NewConst!$F$286="yes", Appliances!$AF$125, 'Monthly Profiles'!T11) -> 2.045609707 | U33: =IF(NewConst!$F$303="YES", IF(NewConst!$F$304="yes", Appliances!$AG$125, 'Monthly Profiles'!$U11), 0) -> 0.7051154671 | V33: =IF(NewConst!F$247="yes", (IF(Appliances!AF$237="yes",IF(AND(Appliances!AF$238="yes",G33<70),Appliances!AF$267+(Appliances!AF$267*((1/Appliances!AF$257)*(70-G33)+(G33-NewConst!F$112))/(NewConst!F$112-G33)),0),IF(Appliances!AF$238="yes",Appliances!AF$267+(Appliances!AF$267*((1/Appliances!AF$257)*(Appliances!AF$258-G33)+(G33-NewConst!F$112))/(NewConst!F$112-G33)),Appliances!AF$267)*(Appliances!AF$261/365))), 'Monthly Profiles'!V11) -> 7.247992853 | W33: =(3.5+1.17*N_br)*MAX((105-G33)/(NewConst!$F$112-G33),0)+HLOOKUP(NewConst!$F$153 & ", " & NewConst!$F$151 & ", " & NewConst!$F$156 & ", " & NewConst!$F$154,'Monthly Profiles'!$BG$25:$BQ$40,A33+3,FALSE ) -> 4.407730713 | X33: =(14+4.67*N_br)*MAX((105-G33)/(NewConst!$F$112-G33),0)+HLOOKUP(NewConst!$F$153 & ", " & NewConst!$F$151 & ", " & NewConst!$F$156 & ", " & NewConst!$F$154,'Monthly Profiles'!$AU$25:$BE$39,A33+3,FALSE ) -> 17.61205952 | Y33: =(12.5+4.16*N_br)*MAX((105-G33)/(NewConst!$F$112-G33),0)+HLOOKUP(NewConst!$F$153 & ", " & NewConst!$F$151 & ", " & NewConst!$F$156 & ", " & NewConst!$F$154,'Monthly Profiles'!$BS$25:$CC$39,A33+3,FALSE ) -> 15.70686351 | Z33: =IF(NewConst!F$135>0,(0.028*NewConst!$F$38)*MAX((105-$G33)/(NewConst!$F$112-$G33),0),0) -> 3.52115435 | AA33: 47.02025631 | AB33: =IF(HomeType=2,IF(NewConst!F$249="YES",IF(NewConst!$F$135>0,IF(NewConst!$F$303="YES",SUM(U33,V33,Z33),SUM(V33,Z33)),IF(NewConst!$F$303="YES",SUM(U33,V33),V33)),IF(NewConst!$F$135>0,IF(NewConst!$F$303="YES",SUM(U33,Z33),SUM(Z33)),IF(NewConst!$F$303="YES",SUM(U33),0))),0) -> 0 | AC33: =HLOOKUP(NewConst!$F$153 & ", " & NewConst!$F$151 & ", " & NewConst!$F$156 & ", " & NewConst!$F$154,'Monthly Profiles'!$AI$25:$AS$40,A33+3,FALSE ) -> 4150.021685 | AD33: =IF(NewConst!$F$154="Timer control",(18135+2538*N_br+(-12265-1495*N_br)*R_ins/2)/(8.33*((120-'Monthly Profiles'!G33)*4184*0.00023886)),IF(NewConst!$F$154="Demand control",(-3648+2344*N_br+(-1328-761*N_br)*R_ins/2)/(8.33*((120-'Monthly Profiles'!G33)*4184*0.000238861)),0)) -> 0 | AE33: =IF(NewConst!$F$203=NewConst!$I$203,'Detailed Lighting'!BB16,Lighting!BC26) -> 0.0553349857 | AI33: =('Monthly Profiles'!$Z$20+735*(N_br-3)-(948+158*(N_br-3))*R_ins/2)*(1+1/'Monthly Profiles'!$Z$20*(362+(63*(N_br-3)))*SIN(2*PI()*('Monthly Profiles'!$A33/12)+0.3)) -> 4150.021685 | AJ33: =('Monthly Profiles'!$Z$20-1047-732*R_ins/2)*(1+1/'Monthly Profiles'!$Z$20*735*(N_br-3)+1/'Monthly Profiles'!$Z$20*(362+(63*(N_br-3)))*SIN(2*PI()*('Monthly Profiles'!$A33/12)+0.3)) -> 3129.332772 | AK33: =('Monthly Profiles'!$Z$20+735*(N_br-3)-(3356+589*(N_br-3))-(90+11*(N_br-3))*R_ins/2)*(1+1/'Monthly Profiles'!$Z$20*(362+(63*(N_br-3)))*SIN(2*PI()*('Monthly Profiles'!$A33/12)+0.3)) -> 878.3578901 | AL33: =('Monthly Profiles'!$Z$20-1047)*(1+1/'Monthly Profiles'!$Z$20*735*(N_br-3)-1/'Monthly Profiles'!$Z$20*(3356+589*(N_br-3)+(90+11*(N_br-3))*R_ins/2))*(1+1/'Monthly Profiles'!$Z$20*(362+(63*(N_br-3)))*SIN(2*PI()*('Monthly Profiles'!$A33/12)+0.3)) -> 662.327655 | AM33: =('Monthly Profiles'!$Z$20+735*(N_br-3)-(1142+378*(N_br-3))-(649+73*(N_br-3))*R_ins/2)*(1+1/'Monthly Profiles'!$Z$20*(362+(63*(N_br-3)))*SIN(2*PI()*('Monthly Profiles'!$A33/12)+0.3)) -> 3036.72012 | AN33: =('Monthly Profiles'!$Z$20+735*(N_br-3)-(1142+378*(N_br-3)))*(1-1/'Monthly Profiles'!$Z$20*(3356+589*(N_br-3)+(90+11*(N_br-3))*R_ins/2))*(1+1/'Monthly Profiles'!$Z$20*(362+(63*(N_br-3)))*SIN(2*PI()*('Monthly Profiles'!$A33/12)+0.3)) -> 642.7260577 | AO33: =('Monthly Profiles'!$Z$20+735*(N_br-3)+(20148+2140*(N_br-3))-(11956+1355*(N_br-3))*R_ins/2)*(1+1/'Monthly Profiles'!$Z$20*(362+(63*(N_br-3)))*SIN(2*PI()*('Monthly Profiles'!$A33/12)+0.3)) -> 23791.7029 | AP33: =('Monthly Profiles'!$Z$20+735*(N_br-3)+(1458+1066*(N_br-3))-(1332+545*(N_br-3))*R_ins/2)*(1+1/'Monthly Profiles'!$Z$20*(362+(63*(N_br-3)))*SIN(2*PI()*('Monthly Profiles'!$A33/12)+0.3)) -> 5571.382178 | AQ33: =('Monthly Profiles'!$Z$20-1047)*(1+1/'Monthly Profiles'!$Z$20*735*(N_br-3)+1/'Monthly Profiles'!$Z$20*(20148+2140*(N_br-3))-1/'Monthly Profiles'!$Z$20*((11956+1355*(N_br-3))*R_ins/2))*(1+1/'Monthly Profiles'!$Z$20*(362+(63*(N_br-3)))*SIN(2*PI()*('Monthly Profiles'!$A33/12)+0.3)) -> 17940.18471 | AR33: =('Monthly Profiles'!$Z$20-1047)*(1+1/'Monthly Profiles'!$Z$20*735*(N_br-3)+1/'Monthly Profiles'!$Z$20*(1458+1066*(N_br-3))-1/'Monthly Profiles'!$Z$20*((1332+545*(N_br-3))*R_ins/2))*(1+1/'Monthly Profiles'!$Z$20*(362+(63*(N_br-3)))*SIN(2*PI()*('Monthly Profiles'!$A33/12)+0.3)) -> 4201.112706 | AS33: ='Monthly Profiles'!AC11 -> 4150.021685 | AU33: 0 | AV33: -0.85 | AW33: =(-1.14-0.36*(N_br)+(-0.34-0.08*(N_br))*R_ins/2)*(1+0.11*SIN(2*PI()*('Monthly Profiles'!$A33/12)+0.3)) -> -2.147833966 | AX33: =-0.85+('Monthly Profiles'!$X$18-0.85)/'Monthly Profiles'!$X$18*((-1.14-0.36*(N_br)+(-0.34-0.08*(N_br))*R_ins/2)*(1+0.11*SIN(2*PI()*('Monthly Profiles'!$A33/12)+0.3))) -> -2.911623937 | AY33: -1.21 | AZ33: =-0.52-0.23*N_br+('Monthly Profiles'!$X$18-0.52-0.23*N_br)/'Monthly Profiles'!$X$18*((-1.14-0.36*(N_br)+(-0.34-0.08*(N_br))*R_ins/2)*(1+0.11*SIN(2*PI()*('Monthly Profiles'!$A33/12)+0.3))) -> -3.235111454 | BA33: -1.4 | BB33: -1.56 | BC33: =-0.85+('Monthly Profiles'!$X$18-0.85)/'Monthly Profiles'!$X$18*((-2.15+0.25*(N_br)+(-0.16-0.08*(N_br))*R_ins/2)) -> -2.193806625 | BD33: =-0.85+('Monthly Profiles'!$X$18-0.85)/'Monthly Profiles'!$X$18*((-2.61+0.35*(N_br)+(0.05-0.13*(N_br))*R_ins/2)) -> -2.347384525 | BE33: =0 -> 0 | BG33: 0 | BH33: -0.12 | BI33: =(-0.28-0.11*(N_br)+(0.06-0.04*(N_br))*R_ins/2)*(1+0.13*SIN(2*PI()*('Monthly Profiles'!$A33/12)+0.3)) -> -0.5865652476 | BJ33: =-0.12+('Monthly Profiles'!$W$18-0.12)/'Monthly Profiles'!$W$18*((-0.28-0.11*(N_br)+(0.06-0.04*(N_br))*R_ins/2)*(1+0.13*SIN(2*PI()*('Monthly Profiles'!$A33/12)+0.3))) -> -0.6932842462 | BK33: -0.21 | BL33: =-0.06-0.05*N_br+('Monthly Profiles'!$W$18-0.06-0.05*N_br)/'Monthly Profiles'!$W$18*((-0.28-0.11*(N_br)+(0.06-0.04*(N_br))*R_ins/2)*(1+0.13*SIN(2*PI()*('Monthly Profiles'!$A33/12)+0.3))) -> -0.7733234951 | BM33: -0.15 | BN33: -0.23 | BO33: =-0.12+('Monthly Profiles'!$W$18-0.12)/'Monthly Profiles'!$W$18*((-0.27+0.04*(N_br)+(-0.01-0.03*(N_br))*R_ins/2)) -> -0.2666037023 | BP33: =-0.12+('Monthly Profiles'!$W$18-0.12)/'Monthly Profiles'!$W$18*((-0.26+0.01*(N_br)+(-0.03-0*(N_br))*R_ins/2)) -> -0.3447923435 | BQ33: =0 -> 0 | BS33: 0 | BT33: -1.69 | BU33: =(-0.89-0.32*(N_br)+(-1.86+0.31*(N_br))*R_ins/2)*(1+0.16*SIN(2*PI()*('Monthly Profiles'!$A33/12)+0.3)) -> -1.762526019 | BV33: =-1.69+('Monthly Profiles'!$Y$18-1.69)/'Monthly Profiles'!$Y$18*((-0.89-0.32*(N_br)+(-1.86+0.31*(N_br))*R_ins/2)*(1+0.16*SIN(2*PI()*('Monthly Profiles'!$A33/12)+0.3))) -> -3.294808087 | BW33: -1.95 | BX33: =0.21-0.72*N_br+('Monthly Profiles'!$Y$18+0.21-0.72*N_br)/'Monthly Profiles'!$Y$18*((-0.89-0.32*(N_br)+(-1.86+0.31*(N_br))*R_ins/2)*(1+0.16*SIN(2*PI()*('Monthly Profiles'!$A33/12)+0.3))) -> -3.530543789 | BY33: -4.86 | BZ33: -4.07 | CA33: =-1.69+('Monthly Profiles'!$Y$18-1.69)/'Monthly Profiles'!$Y$18*((-2.01-0.95*(N_br)+(-0.36-0.13*(N_br))*R_ins/2)) -> -6.115107611 | CB33: =-1.69+('Monthly Profiles'!$Y$18-1.69)/'Monthly Profiles'!$Y$18*((-1.34-0.91*(N_br)+(-0.64-0.07*(N_br))*R_ins/2)) -> -5.395799995 | CC33: =0 -> 0
